Workbook

Sheet WP Data Req Summary
A3: Work Paper Reference | E3: Allocation
A4: Number | B4: Page | C4: Title | E4: Factors | G4: Purpose | I4: Data to be Requested
A5: WPE 3.2a | B5: Pg 1, 2, 3 of 3 | C5: Allocation Factors For Cost of Sevice Study (E-3.2, Schedule12) | E5: K201, K203, K205, K300, K301, K401, K403, K405, K406, K407, K408, K413, K417, K595, K415 | G5: Energy and demand allocators, average customer allocator | I5: None - pulls from other WPs
A6: WPE 3.2b | B6: Pg 1 of 1 | C6: Peak & Average - Peak Day | E6: K203, K205 | G6: Shows how Peak and Average - Peak Day was calculated (K203 and K205) | I6: None - pulls from other WPs
A7: WPE 3.2c | B7: Pg 1, 2, 3 of 7 | C7: DAILY DEMAND ANALYSIS | G7: Calculation of Diversified Class and Non-coincident peaks | I7: None - pulls from other WPs
A8: WPE 3.2c | B8: Pg 4-7 of 7 | C8: Monthly Gas Daily Statistics | G8: Load Research Data RS, GS and IT | I8: Load Research data
A9: WPE 3.2d | B9: Pg 1 of 1 | C9: ALLOCATION OF LARGE INDUSTRIAL MEASURING AND REGULATING STATIONS (ACCTS 2580 & 2581) | E9: K595 | G9: Allocate sales (MCF) among customer classes | I9: Sales comes from WPE-4a
A10: WPE 3.2e | B10: Pg 1 of 3 | C10: MINIMUM INTERCEPT STUDY - PLASTIC MAINS | E10: none | G10: Results of minimum intercept study | I10: None - source is WPE-3.2e, page 3
A11: WPE 3.2e | B11: Pg 2 of 3 | C11: MINIMUM SYSTEM STUDY - PLASTIC MAINS | E11: none | G11: Results of minimum system study | I11: None - source is WPE-3.2e, page 3
A12: WPE 3.2e | B12: Pg 3 of 3 | C12: MINIMUM SYSTEM STUDY - BACKUP DATA PLASTIC MAINS | E12: none | G12: Backup data plastic mains | I12: Detail cost and quantity by size for plastic mains
A13: WPE 3.2f | B13: Pg 1 -4 of 4 | C13: DERIVATION OF GAS SERVICES ALLOCATION FACTOR | E13: none | G13: To allocate services by size to customer class | I13: Detail cost and quantity by size for services
A14: WPE 3.2g | B14: Pg 1 -2 of 2 | C14: HOUSE REGULATORS AND INSTALLATIONS ( ACCOUNT 2830, 2840) | E14: none | G14: To develop a weighted allocator (based on cost and customers) | I14: Detail cost and quantity by size for house regulators
A15: WPE 3.2h | B15: Pg 1 of 1 | C15: METERS BACKUP | E15: none | G15: Allocate meter cost to rate class based on number of meters per GM code. | I15: Number of meters by GM code
A16: WPE 3.2i | B16: Pg 1 of 1 | C16: GAS CUSTOMER ACCOUNTING EXPENSES BY ACCOUNT | E16: none | G16: Allocate accounts 901-913 by rate class based on avg customers by class | I16: Cost by acct from FERC Form 2 page 324-325; avg customer from WPE-4a
A17: WPE 3.2j | B17: Pg 1 of 2 | C17: GENERAL & COMMON PLANT, ACCUMULATED DEPRECIATION, A & G EXPENSES | E17: none | G17: To allocate common and general plant and reserve to function | I17: Labor dollars from FERC Form 2 page 354
A18: WPE 3.2k | B18: Page 1 of 1 | C18: Computation Of The Rate Increase Amount By Rate Class | E18: none | G18: =C18 -> Computation Of The Rate Increase Amount By Rate Class | I18: Hard code total rate increase
A19: WPE 3.2l | B19: Page 1 of 1 | C19: Cost of Service Study - Computation of Present Total Return Earned (Present NOI) | E19: none | G19: =C19 -> Cost of Service Study - Computation of Present Total Return Earned (Present NOI) | I19: None - copy of COSS study used to determine present rev

Sheet Print & Input
A1: DUKE ENERGY KENTUCKY, INC. | B1: company_name | C1: WorkingCap | D1: No
A2: GAS COST OF SERVICE STUDY | B2: header_name | C2: Pages | D2: 18
A3: CASE NO: 2025-00125 | B3: case_name | C3: Pages2 | D3: 15
A4: TWELVE MONTHS ENDING DECEMBER 31, 2026 | B4: time_period
A5: DATA: 12 MONTH FORECASTED PERIOD | B5: data_filing
A6: DOUGLAS J. HEITKAMP | B6: witness
A7: DOUGLAS J. HEITKAMP | B7: witness1
A8: TYPE OF FILING: "X" ORIGINAL UPDATED REVISED | B8: type
A9: ALLOCATION FACTORS FOR COST OF SERVICE STUDY | B9: alloc_factors
A10: TWELVE MONTHS ENDING DECEMBER 31, 2024 | B10: time_period
A14: Schedule E - Reference | C14: FR-16(7)(v)-1 | D14: FR-16(7)(v)-2 | E14: FR-16(7)(v)-3 | F14: FR-16(7)(v)-4 | G14: FR-16(7)(v)-5 | H14: FR-16(7)(v)-6 | I14: FR-16(7)(v)-8 | J14: FR-16(7)(v)-9 | K14: FR-16(7)(v)-10 | L14: FR-16(7)(v)-11 | M14: FR-16(7)(v)-12 | N14: FR-16(7)(v)-7
E15: Production | G15: Distribution | H15: Distribution | I15: Total
D16: Production | E16: Commodity | F16: Distribution | G16: Demand | H16: Customer | I16: Class | J16: Residential | K16: GS | L16: FT-L | M16: IT | N16: Storage
C17: Functional | D17: Classified | E17: Allocated | F17: Classified | G17: Allocated | H17: Allocated | I17: Allocated | J17: Classified | K17: Classified | L17: Classified | M17: Classified | N17: Classified
A18: Schedule Name | B18: Range name
A19: Schedule 1 - Summary | B19: SCH_E3.2_Summary_1 | N19: NOT USED
A20: Schedule 2 - Gross Plant | B20: SCH_E3.2_Gross_Plant_2
A21: Schedule 3 - Accum Deprec | B21: SCH_E3.2_Depreciation_Reserve_3
A22: Schedule 4 - Net Plant | B22: SCH_E3.2_Net_Plant_4
A23: Schedule 5 - Subtractive Adjustments | B23: SCH_E3.2_RB_Subtractive_Adj_5
A24: Schedule 5.1 - Additive Adjustments | B24: SCH_E3.2_RB_Additive_Adj_5.1
A25: Schedule 5.2 - Total Rate Base | B25: SCH_E3.2_RB_Total_5.2
A26: Schedule 6 - O & M Expenses | B26: SCH_E3.2_OMEXP_6
A27: Schedule 6.1 - O & M Expenses | B27: SCH_E3.2_OMEXP_6.1
A28: Schedule 7 - Depreciation Exp | B28: SCH_E3.2_Depreciation_Expense_7
A29: Schedule 8 - Oth Tax & Misc Exp | B29: SCH_E3.2_Taxes_Other_Than_Income_8
A30: Schedule 9 - Income Tax - Fed | B30: SCH_E3.2_FIT_Return_9
A31: Schedule 10 - Oth Revenues COS Calc | B31: SCH_E3.2_COS_Compute_10
A32: Schedule 11 - Rate of Return & Tax Rates | B32: SCH_E3.2_RofR_11
A33: Schedule 12 - Allocation Factors | B33: SCH_E3.2_Alloc1
A34: Schedule 13 - Income Tax Calculation | B34: SCH_E3.2_FIT_Revenue_13

Sheet Rev req link
C2: COSS | D2: Rev Req Mod | E2: Difference
B3: Gross Plant (Sch. B-1) | C3: ='FR-16(7)(v)-1 Functional'!F101 -> 925424402 | D3: 925424402 | E3: =D3-C3 -> 0
B4: Depreciation (Sch B-1) | C4: ='FR-16(7)(v)-1 Functional'!F151 -> 252827972 | D4: 252827972 | E4: =D4-C4 -> 0
B5: Net Plant | C5: =C3-C4 -> 672596430 | D5: =D3-D4 -> 672596430 | E5: =E3-E4 -> 0
B7: Schedule B-5
B8: Cash WC | C8: ='FR-16(7)(v)-1 Functional'!F318 -> 31851 | D8: 31851 | E8: =D8-C8 -> 0
B9: Gas stock | C9: 0 | D9: 0 | E9: =D9-C9 -> 0
B10: Mat & Supp | C10: ='FR-16(7)(v)-1 Functional'!F304+'FR-16(7)(v)-1 Functional'!F316+'FR-16(7)(v)-1 Functional'!F310 -> 2440832 | D10: 2440832 | E10: =D10-C10 -> 0
B11: Tot WC | C11: =SUM(C8:C10) -> 2472683 | D11: =SUM(D8:D10) -> 2472683 | E11: =D11-C11 -> 0
A13: Rate Base Deductions | B13: Schedule B-6
A14: Customer Advances | B14: Acct 252 | C14: ='FR-16(7)(v)-1 Functional'!F232 -> 1801940 | D14: 1801940 | E14: =D14-C14 -> 0 | F14: Linked To Sch. B-1
B15: Customer Service Deposits | C15: ='FR-16(7)(v)-1 Functional'!F233 -> 0 | D15: 0 | E15: =D15-C15 -> 0 | F15: Linked To Sch. B-1
A16: Post Retirement Benefits | B16: Acct 271 | C16: ='FR-16(7)(v)-1 Functional'!F234 -> 0 | D16: 0 | E16: 0 | F16: Linked To Sch. B-1
A17: ITC | B17: EDIT | C17: ='FR-16(7)(v)-1 Functional'!F235 -> 27023637 | D17: 27023637 | E17: 0 | F17: Linked To Sch. B-1
B18: Acct 282 | C18: ='FR-16(7)(v)-1 Functional'!F215 -> 96304671 | D18: 96304671 | E18: 0 | F18: Linked To Sch. B-6
B19: Acct 283 | C19: ='FR-16(7)(v)-1 Functional'!F229 -> 231761 | D19: 231761 | E19: 0 | F19: Linked To Sch. B-6
B20: Total Rate Base Reductions | C20: =SUM(C14:C19) -> 125362009 | D20: =SUM(D14:D19) -> 125362009 | E20: 0
A22: Rate Base Additions | B22: Acct 190 | C22: ='FR-16(7)(v)-1 Functional'!F275 -> 2824291 | D22: 2824291 | E22: =D22-C22 -> 0 | F22: Linked To Sch. B-6
B23: Other Rate Base Adj. | C23: ='FR-16(7)(v)-1 Functional'!F279 -> 1299897 | D23: 1299897 | E23: =D23-C23 -> 0 | F23: Linked To Sch. B-6
B24: Total Rate Base Additions | C24: =C22+C23 -> 4124188 | D24: =SUM(D22:D23) -> 4124188 | E24: =D24-C24 -> 0
A26: Jurisdictional Rate Base | B26: Total Rate Base | C26: =C5+C11-C20+C24 -> 553831292 | D26: =D5+D11-D20+D24 -> 553831292 | E26: =D26-C26 -> 0 | F26: Ties to Sch. B-1
B28: Schedule C-2
A29: O&M Expenses | B29: Prod O&M | C29: ='FR-16(7)(v)-1 Functional'!F360 -> 64805738 | D29: 64805738 | E29: =D29-C29 -> 0 | F29: Linked To Sch. C-2
B30: Trans | C30: ='FR-16(7)(v)-1 Functional'!F364 -> 0 | D30: 0 | E30: =D30-C30 -> 0 | F30: Linked To Sch. C-2
B31: Dist | C31: ='FR-16(7)(v)-1 Functional'!F378 -> 9015501 | D31: 9015501 | E31: 0
B32: Cust Acct | C32: ='FR-16(7)(v)-1 Functional'!F389 -> 3664712 | D32: 3664712 | E32: 0
B33: Cust serv | C33: ='FR-16(7)(v)-1 Functional'!F403 -> 797729 | D33: 797729 | E33: 0 | F33: Linked To Sch. C-2
B34: Sales | C34: ='FR-16(7)(v)-1 Functional'!F407 -> 37841 | D34: 37841 | E34: 0 | F34: Linked To Sch. C-2
B35: A&G & AMORT OF DEF EXP | C35: ='FR-16(7)(v)-1 Functional'!F431 -> 7395727 | D35: 7395727 | E35: 0 | F35: Linked To Sch. C-2
B36: Total O&M | C36: =SUM(C29:C35) -> 85717248 | D36: =SUM(D29:D35) -> 85717248 | E36: =D36-C36 -> 0
A37: Depreciation | B37: Total Deprec Exp | C37: ='FR-16(7)(v)-1 Functional'!F465 -> 26963556.82 | D37: 26963557 | E37: 0.1799999997
A38: Property Tax | B38: Property Tax | C38: ='FR-16(7)(v)-1 Functional'!F481 -> 4767103 | D38: 4767103 | E38: 0 | F38: Linked To Sch. C2.1
A39: Misc taxes | B39: Misc Taxes | C39: ='FR-16(7)(v)-1 Functional'!F488 -> 515674 | D39: 515674 | E39: 0 | F39: Linked To Sch. C-2
A40: total prop & misc taxes | B40: Total Prop & Misc Taxes | C40: =C38+C39 -> 5282777 | D40: =D38+D39 -> 5282777 | E40: 0
B41: Misc. Expenses | C41: ='FR-16(7)(v)-1 Functional'!F493 -> 41006 | D41: 41006 | E41: 0
B42: Total O&M, Depr & MISC TAX | C42: =C36+C37+C40+C41 -> 118004587.8 | D42: =D36+D37+D40+D41 -> 118004588 | E42: 0.1800000072
B44: Schedule E-1
B45: Tax Calculation
B46: Interest Deduction | C46: ='FR-16(7)(v)-1 Functional'!F515 -> 13016871 | D46: 13016871 | E46: =D46-C46 -> 0
B47: Other Deductions | C47: ='FR-16(7)(v)-1 Functional'!F522 -> 3784358 | D47: 3784358 | E47: =D47-C47 -> 0
B49: State Tax Calc
B50: Total State Inc Tax Payable | C50: ='FR-16(7)(v)-1 Functional'!F603 -> 1828081.274 | D50: 1828082 | E50: =D50-C50 -> 0.7255268255
B51: State prov Acct 410.1 & 411.1 - Net | C51: ='FR-16(7)(v)-1 Functional'!F585 -> 5142 | D51: 5142 | E51: 0
B52: Total SIT Adj | C52: =SUM(C50:C51) -> 1833223.274 | D52: =SUM(D50:D51) -> 1833224 | E52: 0.7255268255
B54: Federal Tax Calc
B55: Total Fed Inc Tax Payable | C55: ='FR-16(7)(v)-1 Functional'!F555 -> 7342722.575 | D55: 7342723 | E55: =D55-C55 -> 0.4251349447
B56: FIT prov Acct 410.1 & 411.1 - Net | C56: ='FR-16(7)(v)-1 Functional'!F532 -> 51331 | D56: 51331 | E56: =D56-C56 -> 0
B57: ITC Amort & Other Credits | C57: =-'FR-16(7)(v)-1 Functional'!F535 -> 0 | D57: 0 | E57: =D57-C57 -> 0
B58: Total FIT Adj | C58: =SUM(C55:C57) -> 7394053.575 | D58: =SUM(D55:D57) -> 7394054 | E58: =D58-C58 -> 0.4251349447
B61: Total FIT | C61: =C58 -> 7394053.575 | D61: =D58 -> 7394054 | E61: =D61-C61 -> 0.4251349447
B63: Other Operating Revenues | C63: ='FR-16(7)(v)-1 Functional'!F630 -> 1087776 | D63: 1087776 | E63: =D63-C63 -> 0
B65: Revenue Tax | C65: ='FR-16(7)(v)-1 Functional'!F646 -> 0
B66: Deficiency @ROR | C66: ='FR-16(7)(v)-1 Functional'!F41 -> 26387363.67 | D66: 26387365 | E66: =D66-C66 -> 1.330661774
B68: Incr Uncollectible Exp/Ucoll | C68: 0 | D68: 0 | E68: =D68-C68 -> 0
B71: Present Revenue vs Sch-C2 Rev | C71: ='FR-16(7)(v)-1 Functional'!F744 -> 144124104 | D71: 144124104 | E71: =D71-C71 -> 0

Sheet Customer Charge
A1: =co_name -> DUKE ENERGY KENTUCKY, INC.
A2: =case_name -> CASE NO: 2025-00125
A3: CUSTOMER CHARGE ANALYSIS / MINIMUM BILL RATIONALE
A4: =test_period -> TWELVE MONTHS ENDING DECEMBER 31, 2026
A7: =data_filing -> DATA: 12 MONTH FORECASTED PERIOD | G7: CUSTOMER CHARGE ANALYSIS
A8: =type -> TYPE OF FILING: "X" ORIGINAL UPDATED REVISED | G8: PAGE 1 of 1
A9: WORK PAPER REFERENCE NO(S).: SCHEDULE E-3.2e, WPE-4d | G9: WITNESS RESPONSIBLE:
G10: =Witness1 -> DOUGLAS J. HEITKAMP
I13: IT
A14: LINE | C14: RS | E14: GS | G14: FT-L | I14: INTERUPT
A15: NO. | B15: DESCRIPTION | C15: RESIDENTIAL | E15: GEN SERV | G15: FIRM TRANS | I15: TRANS
A17: 1 | B17: Rate Base | C17: ='FR-16(7)(v)-6 DISTR Cust Alloc'!$G$15 -> 189278382 | E17: ='FR-16(7)(v)-6 DISTR Cust Alloc'!$H$15 -> 32632912 | G17: ='FR-16(7)(v)-6 DISTR Cust Alloc'!$I$15 -> 1877758 | I17: ='FR-16(7)(v)-6 DISTR Cust Alloc'!$J$15 -> 460036
A19: 2 | B19: Operating Expense | C19: ='FR-16(7)(v)-6 DISTR Cust Alloc'!$G$24 -> 24404108 | E19: ='FR-16(7)(v)-6 DISTR Cust Alloc'!$H$24 -> 3692383 | G19: ='FR-16(7)(v)-6 DISTR Cust Alloc'!$I$24 -> 285525 | I19: ='FR-16(7)(v)-6 DISTR Cust Alloc'!$J$24 -> 68887
A21: 3 | B21: ="Return @ "&TEXT(RofR,"0.00%") -> Return @ 8.01% | C21: ='FR-16(7)(v)-6 DISTR Cust Alloc'!$G$26 -> 15163091 | E21: ='FR-16(7)(v)-6 DISTR Cust Alloc'!$H$26 -> 2614223 | G21: ='FR-16(7)(v)-6 DISTR Cust Alloc'!$I$26 -> 150427 | I21: ='FR-16(7)(v)-6 DISTR Cust Alloc'!$J$26 -> 36853
A23: 4 | B23: Operating Expense Plus Return | C23: =C19+C21 -> 39567199 | E23: =E19+E21 -> 6306606 | G23: =G19+G21 -> 435952 | I23: =I19+I21 -> 105740
A25: 5 | B25: Less: Revenue Credits | C25: =-'FR-16(7)(v)-6 DISTR Cust Alloc'!$G$27 -> 681745 | E25: =-'FR-16(7)(v)-6 DISTR Cust Alloc'!$H$27 -> 68193 | G25: =-'FR-16(7)(v)-6 DISTR Cust Alloc'!$I$27 -> 4666 | I25: =-'FR-16(7)(v)-6 DISTR Cust Alloc'!$J$27 -> 1062
A27: 6 | B27: Customer Cost Component (Revenue Requirement) | C27: =C23-C25 -> 38885454 | E27: =E23-E25 -> 6238413 | G27: =G23-G25 -> 431286 | I27: =I23-I25 -> 104678
A29: 7 | B29: Total Customers | C29: ='Alloc Factors Summary'!$D$60 -> 98278 | E29: ='Alloc Factors Summary'!$D$61 -> 7417 | G29: ='Alloc Factors Summary'!$D$62 -> 135 | I29: ='Alloc Factors Summary'!$D$63 -> 19
A31: 8 | B31: Annual Revenue / Customer | C31: =ROUND(C27/C29,2) -> 395.67 | E31: =ROUND(E27/E29,2) -> 841.1 | G31: =ROUND(G27/G29,2) -> 3194.71 | I31: =ROUND(I27/I29,2) -> 5509.37
A33: 9 | B33: Monthly Revenue / Customer | C33: =ROUND(C31/12,2) -> 32.97 | E33: =ROUND(E31/12,2) -> 70.09 | G33: =ROUND(G31/12,2) -> 266.23 | I33: =ROUND(I31/12,2) -> 459.11

Sheet FR-16(7)(v)-1 Functional
A1: =co_name -> DUKE ENERGY KENTUCKY, INC. | J1: FR-16(7)(v)-1
A2: FUNCTIONAL GAS COST OF SERVICE | J2: WITNESS RESPONSIBLE:
A3: =case_name -> CASE NO: 2025-00125 | J3: =Witness -> DOUGLAS J. HEITKAMP
A4: =data_filing -> DATA: 12 MONTH FORECASTED PERIOD | J4: ="PAGE "&Pages-17&" OF "&Pages -> PAGE 1 OF 18
A5: =type -> TYPE OF FILING: "X" ORIGINAL UPDATED REVISED
A8: LINE | F8: TOTAL | G8: FUNCTIONAL | J8: TOTAL | K8: ALL
A9: NO. | B9: SUMMARY OF RESULTS | D9: ALLO | F9: GAS | G9: PRODUCTION | H9: STORAGE | I9: DISTRIBUTION | J9: AT ISSUE | K9: OTHER
C10: Schedule 1 | G10: 3 | H10: 4 | I10: 5
A11: 1 | B11: NET INCOME COMPUTATION
A12: 2 | C12: GROSS GAS PLANT IN SERVICE | F12: =F101 -> 925424402 | G12: =G101 -> 5519018 | H12: =H101 -> 0 | I12: =I101 -> 919905384 | J12: =J101 -> 925424402 | K12: =F12-J12 -> 0
A13: 3 | C13: TOTAL DEPRECIATION RESERVE | F13: =-F151 -> -252827972 | G13: =-G151 -> -2710148 | H13: =-H151 -> 0 | I13: =-I151 -> -250117824 | J13: =-J151 -> -252827972 | K13: =F13-J13 -> 0
A14: 4 | C14: TOTAL RATE BASE ADJUSTMENTS | F14: =F326 -> -118765138 | G14: =G326 -> 1513439 | H14: =H326 -> 0 | I14: =I326 -> -120278577 | J14: =J326 -> -118765138 | K14: =F14-J14 -> 0
A15: 5 | C15: TOTAL RATE BASE | F15: =SUM(F12:F14) -> 553831292 | G15: 4322309 | H15: 0 | I15: 549508983 | J15: 553831292 | K15: 0
A16: 6
A17: 7 | B17: OPERATING EXPENSES
A18: 8 | C18: TOTAL O&M EXPENSE | F18: =F433 -> 85717248 | G18: =G433 -> 65416645 | H18: =H433 -> 0 | I18: =I433 -> 20300603 | J18: =J433 -> 85717248 | K18: =F18-J18 -> 0
A19: 9 | C19: TOTAL DEPRECIATION EXPENSE | F19: =F465 -> 26963556.82 | G19: =G465 -> 543527.82 | H19: =H465 -> 0 | I19: =I465 -> 26420029 | J19: =J465 -> 26963556.82 | K19: 0
A20: 10 | C20: TOTAL OTHER TAX & MISC EXPENSE | F20: =F495 -> 5323783 | G20: =$G$495 -> 65908 | H20: =$H$495 -> 0 | I20: =$I$495 -> 5257875 | J20: =$J$495 -> 5323783 | K20: 0
A21: 11 | C21: TOTAL OP EXP EXCLUDING INC & REV TAX | F21: =SUM(F17:F20) -> 118004587.8 | G21: =SUM(G17:G20) -> 66026080.82 | H21: =SUM(H17:H20) -> 0 | I21: =SUM(I17:I20) -> 51978507 | J21: =SUM(J17:J20) -> 118004587.8 | K21: 0
A22: 12 | C22: NET FED INCOME TAX EXP ALLOWABLE | F22: =F557 -> 7394053.575 | G22: =$G$557 -> 706116 | H22: =$H$557 -> 0 | I22: =$I$557 -> 6687938 | J22: =$J$557 -> 7394054 | K22: -0.4251349447
A23: 13 | C23: NET STATE INCOME TAX EXP ALLOWABLE | F23: =F605 -> 1833223.274 | G23: =G605 -> 44861 | H23: =H605 -> 0 | I23: =I605 -> 1788362 | J23: =J605 -> 1833223 | K23: 0.2744731745
A24: 14 | C24: TOTAL OPERATING EXPENSE | F24: =SUM(F21:F23) -> 127231864.7 | G24: =SUM(G21:G23) -> 66777057.82 | H24: =SUM(H21:H23) -> 0 | I24: =SUM(I21:I23) -> 60454807 | J24: =SUM(J21:J23) -> 127231864.8 | K24: -0.1506617665
A25: 15
A26: 16 | B26: RETURN ON RATE BASE | F26: =F334 -> 44367379 | G26: =G334 -> 346214 | H26: =H334 -> 0 | I26: =I334 -> 44021165 | J26: =J334 -> 44367379 | K26: =F26-J26 -> 0
A27: 17 | B27: TOTAL OTHER OPERATING REVENUES | F27: =-F630 -> -1087776 | G27: =-$G$630 -> -55958 | H27: =-$H$630 -> 0 | I27: =-$I$630 -> -1031818 | J27: =-$J$630 -> -1087776 | K27: 0
A28: 18 | C28: TOTAL GAS COST OF SERVICE | F28: =SUM(F24:F27) -> 170511467.7 | G28: =SUM(G24:G27) -> 67067313.82 | H28: =SUM(H24:H27) -> 0 | I28: =SUM(I24:I27) -> 103444154 | J28: =SUM(J24:J27) -> 170511467.8 | K28: -0.1506617665
A29: 19 | B29: ADJUSTMENT FOR INTERCLASS SUBSIDIZATION | D29: =1-'WP FR-16(7)(v)Rate Incr (50.0%)'!I11 -> 0.5 | F29: =SUM(G29:I29) -> 0 | G29: ='WP FR-16(7)(v)Rate Incr (50.0%)'!Q20 -> 0 | H29: ='WP FR-16(7)(v)Rate Incr (50.0%)'!R20 -> 0 | I29: ='WP FR-16(7)(v)Rate Incr (50.0%)'!S20 -> 0 | J29: =SUM(G29:I29) -> 0 | K29: 0
A30: 20 | B30: REQUESTED REVENUES | F30: =F29+F28 -> 170511467.7 | G30: =G29+G28 -> 67067313.82 | H30: =H29+H28 -> 0 | I30: =I29+I28 -> 103444154 | J30: =SUM(G30:I30) -> 170511467.8 | K30: -0.1506617665
A31: 21 | B31: PROPOSED REVENUES | F31: =F745 -> 169657554 | G31: =G745 -> 67411733 | H31: =H745 -> 0 | I31: =I745 -> 102245821 | J31: =J745 -> 169657554 | K31: 0
A32: 22 | B32: DIFFERENCE (REQUESTED LESS PROPOSED) | F32: =F30-F31 -> 853913.6693 | G32: -344419.18 | H32: 0 | I32: 1198333 | J32: 853913.82 | K32: -0.1506617665
A33: 23
A34: 24 | B34: TOTAL RETURN EARNED | F34: =F654+F26 -> 45102595.61 | G34: =G654+G26 -> 638466.18 | H34: =H654+H26 -> 0 | I34: =I654+I26 -> 44464129 | J34: =J654+J26 -> 45102595.18 | K34: =F34-J34 -> 0.4251349643
A35: 25 | B35: RATE OF RETURN EARNED | F35: =IF(F331=0,0,ROUND(F34/F331,5)) -> 0.08144 | G35: 0.14771 | H35: 0 | I35: 0.08092 | J35: 0.08144 | K35: 0
A36: 26 | B36: TOTAL RATE OF RETURN ALLOWABLE | F36: =$F$688 -> 0.08011 | G36: =F688 -> 0.08011 | H36: =F688 -> 0.08011 | I36: =F688 -> 0.08011 | J36: =$F$688 -> 0.08011 | K36: =F688 -> 0.08011 | N36: Not Part of print range
A37: 27 | B37: RETURN EARNED ON COMMON EQUITY | F37: =IF(F670=0,0,(F35-$F$683-$F$684-$F$686)*$F$673/$F$670) -> 0.1100300916 | G37: =IF(F670=0,0,(G35-F683-F684-F686)*F673/F670) -> 0.2359008695 | H37: =IF(F670=0,0,(H35-F683-F684-F686)*F673/F670) -> -0.04465402127 | I37: =IF(F670=0,0,(I35-F683-F684-F686)*F673/F670) -> 0.1090424229 | J37: =IF(F670=0,0,(J35-F683-F684-F686)*F673/F670) -> 0.1100300916 | K37: =IF(F670=0,0,(K35-F683-F684-F686)*F673/F670) -> -0.04465402127 | N37: Not Filed
A38: 28 | B38: ALLOWED RETURN ON COMMON EQUITY | F38: =IF($F$670=0,0,(F36-$F$683-$F$684-$F$686)*$F$673/$F$670) -> 0.1075039389 | G38: =IF(F670=0,0,(G36-F683-F684-F686)*F673/F670) -> 0.1075039389 | H38: =IF(F670=0,0,(H36-F683-F684-F686)*F673/F670) -> 0.1075039389 | I38: =IF(F670=0,0,(I36-F683-F684-F686)*F673/F670) -> 0.1075039389 | J38: =IF($F$670=0,0,(J36-$F$683-$F$684-$F$686)*$F$673/$F$670) -> 0.1075039389 | K38: =IF(F670=0,0,(K36-F683-F684-F686)*F673/F670) -> 0.1075039389
A39: 29
A40: 30 | B40: PRESENT REVENUES | F40: =F744 -> 144124104 | G40: =G744 -> 57266271 | H40: =H744 -> 0 | I40: =I744 -> 86857833 | J40: =J744 -> 144124104 | K40: =F40-J40 -> 0
A41: 31 | B41: REVENUE INCREASE JUSTIFIED | F41: =F28-F40 -> 26387363.67 | G41: =G28-G40 -> 9801042.82 | H41: 0 | I41: 16586321 | J41: 26387363.82 | K41: -0.1506617665
A42: 32 | C42: PER UNIT PRES REV | F42: =IF(F40=0,0,ROUND(F41/F40,5)) -> 0.18309 | G42: =IF(G40=0,0,ROUND(G41/G40,5)) -> 0.17115 | H42: =IF(H40=0,0,ROUND(H41/H40,5)) -> 0 | I42: =IF(I40=0,0,ROUND(I41/I40,5)) -> 0.19096 | J42: 0.18309 | K42: 0
A43: 33 | B43: REVENUE INCREASE REQUESTED | F43: =F31-F40 -> 25533450 | G43: 10145462 | H43: 0 | I43: 15387988 | J43: 25533450 | K43: 0
A44: 34 | C44: PER UNIT PRES REV | F44: =IF(F40=0,0,ROUND(F43/F40,5)) -> 0.17716 | G44: =IF(G40=0,0,ROUND(G43/G40,5)) -> 0.17716 | H44: =IF(H40=0,0,ROUND(H43/H40,5)) -> 0 | I44: =IF(I40=0,0,ROUND(I43/I40,5)) -> 0.17716 | J44: 0.17716 | K44: 0
A46: =co_name -> DUKE ENERGY KENTUCKY, INC. | J46: =$J$1 -> FR-16(7)(v)-1
A47: =$A$2 -> FUNCTIONAL GAS COST OF SERVICE | J47: =$J$2 -> WITNESS RESPONSIBLE:
A48: =case_name -> CASE NO: 2025-00125 | J48: =Witness -> DOUGLAS J. HEITKAMP
A49: =data_filing -> DATA: 12 MONTH FORECASTED PERIOD | J49: ="PAGE "&Pages-16&" OF "&Pages -> PAGE 2 OF 18
A50: =type -> TYPE OF FILING: "X" ORIGINAL UPDATED REVISED
A53: LINE | F53: TOTAL | G53: FUNCTIONAL | J53: TOTAL | K53: ALL
A54: NO. | B54: GROSS GAS PLANT IN SERVICE | D54: ALLO | F54: GAS | G54: PRODUCTION | H54: STORAGE | I54: DISTRIBUTION | J54: AT ISSUE | K54: OTHER
C55: Schedule 2 | G55: =$G$10 -> 3 | H55: =$H$10 -> 4 | I55: =$I$10 -> 5
A56: 1 | B56: PRODUCTION PLANT
A57: 2 | C57: PRODUCTION PLANT | D57: K205 | F57: 0 | G57: =F57-SUM(H57:I57) -> 0 | H57: =ROUND(F57*VLOOKUP(D57,AllocTable_Functional,$H$10,FALSE),0) -> 0 | I57: =ROUND(F57*VLOOKUP(D57,AllocTable_Functional,$I$10,FALSE),0) -> 0 | J57: =SUM($G$57:$I$57) -> 0 | K57: =F57-$J$57 -> 0
A58: 3 | C58: GAS PRODUCTION -CPMPL NOT CLASS | D58: K205 | F58: 0 | G58: =F58-SUM(H58:I58) -> 0 | H58: =ROUND(F58*VLOOKUP(D58,AllocTable_Functional,$H$10,FALSE),0) -> 0 | I58: =ROUND(F58*VLOOKUP(D58,AllocTable_Functional,$I$10,FALSE),0) -> 0 | J58: =SUM($G$58:$I$58) -> 0 | K58: =F58-$J$58 -> 0
A59: 4 | C59: PRODUCTION PLANT IN SERVICE | F59: =SUM(F57:F58) -> 0 | G59: =SUM($G$57:$G$58) -> 0 | H59: =SUM($H$57:$H$58) -> 0 | I59: =SUM($I$57:$I$58) -> 0 | J59: =SUM($J$57:$J$58) -> 0 | K59: =SUM($K$57:$K$58) -> 0
A60: 5
A61: 6 | B61: TRANSMISSION PLANT
A62: 7 | C62: TRANSMISSION PLANT
A63: 8 | C63: TRANSMISSION PLANT IN SERVICE | F63: =SUM(F62) -> 0 | G63: =SUM($G$62) -> 0 | H63: =SUM($H$62) -> 0 | I63: =SUM($I$62) -> 0 | J63: =SUM($J$62) -> 0 | K63: =SUM($K$62) -> 0
A64: 9
A65: 10 | B65: TOTAL PROD & TRANS PLANT | F65: =F63+F59 -> 0 | G65: =$G$63+$G$59 -> 0 | H65: =$H$63+$H$59 -> 0 | I65: =$I$63+$I$59 -> 0 | J65: =$J$63+$J$59 -> 0 | K65: =$K$63+$K$59 -> 0
A66: 11
A67: 12 | B67: DISTRIBUTION PLANT
A68: 13 | C68: SYSTEM M&R - (2780, 2781) | D68: K203 | F68: 76523866 | G68: =F68-SUM(H68:I68) -> 0 | H68: =ROUND(F68*VLOOKUP(D68,AllocTable_Functional,$H$10,FALSE),0) -> 0 | I68: =ROUND(F68*VLOOKUP(D68,AllocTable_Functional,$I$10,FALSE),0) -> 76523866 | J68: =SUM(G68:I68) -> 76523866 | K68: =F68-J68 -> 0
A69: 14 | C69: DIST REG EQUIP & CITY GATE M&R- (2782, 2790) | D69: K203 | F69: 3953923 | G69: 0 | H69: 0 | I69: 3953923 | J69: 3953923 | K69: 0
A70: 15 | C70: LARGE IND M&R - (2850, 2851) | D70: K595 | F70: 567756 | G70: 0 | H70: 0 | I70: 567756 | J70: 567756 | K70: 0
A71: 16 | C71: MAINS - (2761, 2762, 2763, 2765) | D71: K415 | F71: 448188826 | G71: 0 | H71: 0 | I71: 448188826 | J71: 448188826 | K71: 0
A72: 17 | C72: SERVICES - (2801, 2802, 2803) | D72: K403 | F72: 254604525 | G72: 0 | H72: 0 | I72: 254604525 | J72: 254604525 | K72: 0
A73: 18 | C73: MTRS & MTR INST (2810, 2811, 2820, 2821) | D73: K413 | F73: 40779942 | G73: 0 | H73: 0 | I73: 40779942 | J73: 40779942 | K73: 0
A74: 19 | C74: LAND, R OF W, STRUCT & IMPROV | D74: K203 | F74: 18487900 | G74: 0 | H74: 0 | I74: 18487900 | J74: 18487900 | K74: 0
A75: 20 | C75: HOUSE REG & INSTALL (2830, 2840) | D75: K417 | F75: 15412723 | G75: 0 | H75: 0 | I75: 15412723 | J75: 15412723 | K75: 0
A76: 21 | C76: STREET LIGHTING EQUIPMENT & OTH | D76: K597 | F76: 90730 | G76: 0 | H76: 0 | I76: 90730 | J76: 90730 | K76: 0
A77: 22 | C77: ASSET RETIREMENT COST FOR DISTRIBUTION PLANT | D77: K203 | F77: 0 | G77: 0 | H77: 0 | I77: 0 | J77: 0 | K77: 0
A78: 23 | C78: DISTRIBUTION PLANT IN SERVICE | F78: =SUM(F68:F77) -> 858610191 | G78: 0 | H78: 0 | I78: 858610191 | J78: 858610191 | K78: 0
A79: 24
A80: 25 | B80: TOTAL TRANS & DIST PLANT | F80: =F78+F63 -> 858610191 | G80: =G78+$G$63 -> 0 | H80: =H78+$H$63 -> 0 | I80: =I78+$I$63 -> 858610191 | J80: =J78+$J$63 -> 858610191 | K80: =K78+$K$63 -> 0
A81: 26 | B81: TOTAL GROSS PTD PLANT | F81: =F78+F65 -> 858610191 | G81: 0 | H81: 0 | I81: 858610191 | J81: 858610191 | K81: 0
A82: 27
A83: 28 | B83: GENERAL & INTANGIBLE PLANT
A84: 29 | C84: PRODUCTION PLANT | D84: K201 | F84: ='WP FR-16(7)(v)-A&G WP'!D12 -> 0 | G84: =F84-SUM(H84:I84) -> 0 | H84: =ROUND(F84*VLOOKUP(D84,AllocTable_Functional,$H$10,FALSE),0) -> 0 | I84: =ROUND(F84*VLOOKUP(D84,AllocTable_Functional,$I$10,FALSE),0) -> 0 | J84: =SUM(G84:I84) -> 0 | K84: =F84-J84 -> 0
A85: 30 | C85: PRODUCTION PLANT COMMODITY | D85: P349 | F85: ='WP FR-16(7)(v)-A&G WP'!D13 -> 4286932 | G85: 4286932 | H85: 0 | I85: 0 | J85: 4286932 | K85: 0
A86: 31 | C86: DISTRIBUTION PLANT | D86: D349 | F86: ='WP FR-16(7)(v)-A&G WP'!D15 -> 32368897 | G86: 0 | H86: 0 | I86: 32368897 | J86: 32368897 | K86: 0
A87: 32 | C87: CUSTOMER ACCOUNTING | D87: CA19 | F87: ='WP FR-16(7)(v)-A&G WP'!D16 -> 11313346 | G87: 0 | H87: 0 | I87: 11313346 | J87: 11313346 | K87: 0
A88: 33 | C88: CUSTOMER SERVICE & INFORMATION | D88: CS19 | F88: ='WP FR-16(7)(v)-A&G WP'!D17 -> 3929181 | G88: 0 | H88: 0 | I88: 3929181 | J88: 3929181 | K88: 0
A89: 34 | C89: SALES | D89: SE19 | F89: ='WP FR-16(7)(v)-A&G WP'!D18 -> 0 | G89: 0 | H89: 0 | I89: 0 | J89: 0 | K89: 0
A90: 35 | C90: GEN & INTANG PLANT IN SERVICE | F90: =SUM(F84:F89) -> 51898356 | G90: 4286932 | H90: 0 | I90: 47611424 | J90: 51898356 | K90: 0
A91: 36
A92: 37 | B92: COMMON & OTHER PLANT
A93: 38 | C93: PRODUCTION PLANT | D93: K201 | F93: ='WP FR-16(7)(v)-A&G WP'!F12 -> 0 | G93: =F93-SUM(H93:I93) -> 0 | H93: =ROUND(F93*VLOOKUP(D93,AllocTable_Functional,$H$10,FALSE),0) -> 0 | I93: =ROUND(F93*VLOOKUP(D93,AllocTable_Functional,$I$10,FALSE),0) -> 0 | J93: =SUM(G93:I93) -> 0 | K93: =F93-J93 -> 0
A94: 39 | C94: PRODUCTION PLANT COMMODITY | D94: P349 | F94: ='WP FR-16(7)(v)-A&G WP'!F13 -> 1232086 | G94: 1232086 | H94: 0 | I94: 0 | J94: 1232086 | K94: 0
A95: 40 | C95: DISTRIBUTION PLANT | D95: D349 | F95: ='WP FR-16(7)(v)-A&G WP'!F15 -> 9302988 | G95: 0 | H95: 0 | I95: 9302988 | J95: 9302988 | K95: 0
A96: 41 | C96: CUSTOMER ACCOUNTING | D96: CA19 | F96: ='WP FR-16(7)(v)-A&G WP'!F16 -> 3251514 | G96: 0 | H96: 0 | I96: 3251514 | J96: 3251514 | K96: 0
A97: 42 | C97: CUSTOMER SERVICE & INFORMATION | D97: CS19 | F97: ='WP FR-16(7)(v)-A&G WP'!F17 -> 1129267 | G97: 0 | H97: 0 | I97: 1129267 | J97: 1129267 | K97: 0
A98: 43 | C98: SALES | D98: SE19 | F98: ='WP FR-16(7)(v)-A&G WP'!F18 -> 0 | G98: 0 | H98: 0 | I98: 0 | J98: 0 | K98: 0
A99: 44 | C99: COMMON & OTHER PLANT IN SERVICE | F99: =SUM(F93:F98) -> 14915855 | G99: 1232086 | H99: 0 | I99: 13683769 | J99: 14915855 | K99: 0
A100: 45
A101: 46 | B101: GROSS GAS PLANT IN SERVICE | F101: =F81+F90+F99 -> 925424402 | G101: 5519018 | H101: 0 | I101: 919905384 | J101: 925424402 | K101: 0
A103: =co_name -> DUKE ENERGY KENTUCKY, INC. | J103: =$J$1 -> FR-16(7)(v)-1
A104: =$A$2 -> FUNCTIONAL GAS COST OF SERVICE | J104: =$J$2 -> WITNESS RESPONSIBLE:
A105: =case_name -> CASE NO: 2025-00125 | J105: =Witness -> DOUGLAS J. HEITKAMP
A106: =data_filing -> DATA: 12 MONTH FORECASTED PERIOD | J106: ="PAGE "&Pages-15&" OF "&Pages -> PAGE 3 OF 18
A107: =type -> TYPE OF FILING: "X" ORIGINAL UPDATED REVISED
A110: LINE | F110: TOTAL | G110: FUNCTIONAL | J110: TOTAL | K110: ALL
A111: NO. | B111: DEPRECIATION RESERVE | D111: ALLO | F111: GAS | G111: PRODUCTION | H111: STORAGE | I111: DISTRIBUTION | J111: AT ISSUE | K111: OTHER
C112: Schedule 3 | G112: =$G$10 -> 3 | H112: =$H$10 -> 4 | I112: =$I$10 -> 5
A113: 1 | B113: PRODUCTION PLANT
A114: 2 | C114: PRODUCTION PLANT | D114: K205 | F114: 0 | G114: =F114-SUM(H114:I114) -> 0 | H114: =ROUND(F114*VLOOKUP(D114,AllocTable_Functional,$H$10,FALSE),0) -> 0 | I114: =ROUND(F114*VLOOKUP(D114,AllocTable_Functional,$I$10,FALSE),0) -> 0 | J114: =SUM(G114:I114) -> 0 | K114: =F114-J114 -> 0
A115: 3 | C115: TOTAL PROD DEPREC RESERVE | F115: =SUM(F114:F114) -> 0 | G115: 0 | H115: 0 | I115: 0 | J115: 0 | K115: 0
A116: 4
A117: 5 | B117: TRANSMISSION PLANT
A118: 6 | C118: TRANSMISSION PLANT
A119: 7 | C119: TOTAL TRANS DEPREC RESERVE | F119: =SUM(F118:F118) -> 0 | G119: 0 | H119: 0 | I119: 0 | J119: 0 | K119: 0
A120: 8
A121: 9 | B121: DISTRIBUTION PLANT
A122: 10 | C122: SYSTEM M&R - (2780, 2781) | D122: K203 | F122: 8217527 | G122: =F122-SUM(H122:I122) -> 0 | H122: =ROUND(F122*VLOOKUP(D122,AllocTable_Functional,$H$10,FALSE),0) -> 0 | I122: =ROUND(F122*VLOOKUP(D122,AllocTable_Functional,$I$10,FALSE),0) -> 8217527 | J122: =SUM(G122:I122) -> 8217527 | K122: =F122-J122 -> 0
A123: 11 | C123: DIST REG EQUIP & CITY GATE M&R- (2782, 2790) | D123: K203 | F123: 871719 | G123: 0 | H123: 0 | I123: 871719 | J123: 871719 | K123: 0
A124: 12 | C124: LARGE IND M&R - (2850, 2851) | D124: K595 | F124: 530247 | G124: 0 | H124: 0 | I124: 530247 | J124: 530247 | K124: 0
A125: 13 | C125: MAINS - (2761, 2762, 2763, 2765) | D125: K415 | F125: 126433521 | G125: 0 | H125: 0 | I125: 126433521 | J125: 126433521 | K125: 0
A126: 14 | C126: SERVICES - (2801, 2802, 2803) | D126: K403 | F126: 78494621 | G126: 0 | H126: 0 | I126: 78494621 | J126: 78494621 | K126: 0
A127: 15 | C127: MTRS & MTR INST (2810, 2811, 2820, 2821) | D127: K413 | F127: 8223154 | G127: 0 | H127: 0 | I127: 8223154 | J127: 8223154 | K127: 0
A128: 16 | C128: LAND, R OF W, STRUCT & IMPROV & OTH | D128: K203 | F128: 1394350 | G128: 0 | H128: 0 | I128: 1394350 | J128: 1394350 | K128: 0
A129: 17 | C129: HOUSE REG & INSTALL (2830, 2840) | D129: K417 | F129: 7017914 | G129: 0 | H129: 0 | I129: 7017914 | J129: 7017914 | K129: 0
A130: 18 | C130: STREET LIGHTING EQUIPMENT & OTH | D130: K597 | F130: -11164624 | G130: 0 | H130: 0 | I130: -11164624 | J130: -11164624 | K130: 0
A131: 19 | C131: TOTAL DIST DEPREC RESERVE | F131: =SUM(F121:F130) -> 220018429 | G131: 0 | H131: 0 | I131: 220018429 | J131: 220018429 | K131: 0
A132: 20
A133: 21 | B133: GENERAL & INTANGIBLE PLANT
A134: 22 | C134: PRODUCTION PLANT | D134: K201 | F134: ='WP FR-16(7)(v)-A&G WP'!E12 -> -1 | G134: =F134-SUM(H134:I134) -> -1 | H134: =ROUND(F134*VLOOKUP(D134,AllocTable_Functional,$H$10,FALSE),0) -> 0 | I134: =ROUND(F134*VLOOKUP(D134,AllocTable_Functional,$I$10,FALSE),0) -> 0 | J134: =SUM(G134:I134) -> -1 | K134: =F134-J134 -> 0
A135: 23 | C135: PRODUCTION PLANT COMMODITY | D135: P349 | F135: ='WP FR-16(7)(v)-A&G WP'!E13 -> 2049283 | G135: 2049283 | H135: 0 | I135: 0 | J135: 2049283 | K135: 0
A136: 24 | C136: DISTRIBUTION PLANT | D136: D349 | F136: ='WP FR-16(7)(v)-A&G WP'!E15 -> 15473310 | G136: 0 | H136: 0 | I136: 15473310 | J136: 15473310 | K136: 0
A137: 25 | C137: CUSTOMER ACCOUNTING | D137: CA19 | F137: ='WP FR-16(7)(v)-A&G WP'!E16 -> 5408121 | G137: 0 | H137: 0 | I137: 5408121 | J137: 5408121 | K137: 0
A138: 26 | C138: CUSTOMER SERVICE & INFORMATION | D138: CS19 | F138: ='WP FR-16(7)(v)-A&G WP'!E17 -> 1878267 | G138: 0 | H138: 0 | I138: 1878267 | J138: 1878267 | K138: 0
A139: 27 | C139: SALES | D139: SE19 | F139: ='WP FR-16(7)(v)-A&G WP'!E18 -> 0 | G139: 0 | H139: 0 | I139: 0 | J139: 0 | K139: 0
A140: 28 | C140: TOTAL GEN DEPREC RESERVE | F140: =SUM(F133:F139) -> 24808980 | G140: 2049282 | H140: 0 | I140: 22759698 | J140: 24808980 | K140: 0
A141: 29
A142: 30 | B142: COMMON & OTHER PLANT
A143: 31 | C143: PRODUCTION PLANT | D143: K201 | F143: ='WP FR-16(7)(v)-A&G WP'!G12 -> 0 | G143: =F143-SUM(H143:I143) -> 0 | H143: =ROUND(F143*VLOOKUP(D143,AllocTable_Functional,$H$10,FALSE),0) -> 0 | I143: =ROUND(F143*VLOOKUP(D143,AllocTable_Functional,$I$10,FALSE),0) -> 0 | J143: =SUM(G143:I143) -> 0 | K143: =F143-J143 -> 0
A144: 32 | C144: PRODUCTION PLANT COMMODITY | D144: P349 | F144: ='WP FR-16(7)(v)-A&G WP'!G13 -> 660866 | G144: 660866 | H144: 0 | I144: 0 | J144: 660866 | K144: 0
A145: 33 | C145: DISTRIBUTION PLANT | D145: D349 | F145: ='WP FR-16(7)(v)-A&G WP'!G15 -> 4989935 | G145: 0 | H145: 0 | I145: 4989935 | J145: 4989935 | K145: 0
A146: 34 | C146: CUSTOMER ACCOUNTING | D146: CA19 | F146: ='WP FR-16(7)(v)-A&G WP'!G16 -> 1744046 | G146: 0 | H146: 0 | I146: 1744046 | J146: 1744046 | K146: 0
A147: 35 | C147: CUSTOMER SERVICE & INFORMATION | D147: CS19 | F147: ='WP FR-16(7)(v)-A&G WP'!G17 -> 605716 | G147: 0 | H147: 0 | I147: 605716 | J147: 605716 | K147: 0
A148: 36 | C148: SALES | D148: SE19 | F148: ='WP FR-16(7)(v)-A&G WP'!G18 -> 0 | G148: 0 | H148: 0 | I148: 0 | J148: 0 | K148: 0
A149: 37 | C149: TOTAL COM & OTHER PLT RESERVE | F149: =SUM(F143:F148) -> 8000563 | G149: =SUM(G142:G148) -> 660866 | H149: =SUM(H142:H148) -> 0 | I149: =SUM(I142:I148) -> 7339697 | J149: =SUM(J142:J148) -> 8000563 | K149: =SUM(K142:K148) -> 0
A150: 38
A151: 39 | B151: TOTAL DEPRECIATION RESERVE | F151: =F149+F140+F131+F119+F115 -> 252827972 | G151: 2710148 | H151: 0 | I151: 250117824 | J151: 252827972 | K151: 0
A153: =co_name -> DUKE ENERGY KENTUCKY, INC. | J153: =$J$1 -> FR-16(7)(v)-1
A154: =$A$2 -> FUNCTIONAL GAS COST OF SERVICE | J154: =$J$2 -> WITNESS RESPONSIBLE:
A155: =case_name -> CASE NO: 2025-00125 | J155: =Witness -> DOUGLAS J. HEITKAMP
A156: =data_filing -> DATA: 12 MONTH FORECASTED PERIOD | J156: ="PAGE "&Pages-14&" OF "&Pages -> PAGE 4 OF 18
A157: =type -> TYPE OF FILING: "X" ORIGINAL UPDATED REVISED
A160: LINE | F160: TOTAL | G160: FUNCTIONAL | J160: TOTAL | K160: ALL
A161: NO. | B161: ="NET GAS PLANT" -> NET GAS PLANT | D161: ALLO | F161: GAS | G161: PRODUCTION | H161: STORAGE | I161: DISTRIBUTION | J161: AT ISSUE | K161: OTHER
C162: Schedule 4 | G162: =$G$10 -> 3 | H162: =$H$10 -> 4 | I162: =$I$10 -> 5
A163: 1 | B163: PRODUCTION PLANT
A164: 2 | C164: PRODUCTION PLANT IN SERVICE | F164: =F59 -> 0 | G164: =$G$59 -> 0 | H164: =$H$59 -> 0 | I164: =$I$59 -> 0 | J164: =$J$59 -> 0 | K164: =F164-J164 -> 0
A165: 3 | C165: TOTAL PROD DEPRC RESERVE | F165: =-F115 -> 0 | G165: =-G115 -> 0 | H165: =-H115 -> 0 | I165: =-I115 -> 0 | J165: =-J115 -> 0 | K165: =F165-J165 -> 0
A166: 4 | C166: NET PRODUCTION PLANT | F166: =SUM(F164:F165) -> 0 | G166: 0 | H166: 0 | I166: 0 | J166: 0 | K166: 0
A167: 5
A168: 6 | B168: TRANSMISSION PLANT
A169: 7 | C169: TRANSMISSION PLANT IN SERVICE | F169: =F63 -> 0 | G169: =$G$63 -> 0 | H169: =$H$63 -> 0 | I169: =$I$63 -> 0 | J169: =$J$63 -> 0 | K169: =F169-J169 -> 0
A170: 8 | C170: TOTAL TRANS DEPREC RESERVE | F170: =-F119 -> 0 | G170: =-G119 -> 0 | H170: =-H119 -> 0 | I170: =-I119 -> 0 | J170: =-J119 -> 0 | K170: =F170-J170 -> 0
A171: 9 | C171: NET TRANSMISSION PLANT | F171: =SUM(F168:F170) -> 0 | G171: 0 | H171: 0 | I171: 0 | J171: 0 | K171: 0
A172: 10
A173: 11 | B173: DISTRIBUTION PLANT
A174: 12 | C174: DISTRIBUTION PLANT IN SERVICE | F174: =F78 -> 858610191 | G174: =G78 -> 0 | H174: =H78 -> 0 | I174: =I78 -> 858610191 | J174: =J78 -> 858610191 | K174: =F174-J174 -> 0
A175: 13 | C175: TOTAL DIST DEPREC RESERVE | F175: =-F131 -> -220018429 | G175: =-G131 -> 0 | H175: =-H131 -> 0 | I175: =-I131 -> -220018429 | J175: =-J131 -> -220018429 | K175: =F175-J175 -> 0
A176: 14 | C176: NET DISTRIBUTION PLANT | F176: =SUM(F173:F175) -> 638591762 | G176: 0 | H176: 0 | I176: 638591762 | J176: 638591762 | K176: 0
A177: 15
A178: 16 | B178: NET PTD PLANT | F178: =F176+F171+F166 -> 638591762 | G178: 0 | H178: 0 | I178: 638591762 | J178: 638591762 | K178: 0
A179: 17 | B179: NET TRANS & DIST PLANT | F179: =F176+F171 -> 638591762 | G179: 0 | H179: 0 | I179: 638591762 | J179: 638591762 | K179: 0
A180: 18
A181: 19 | B181: GENERAL & INTANGIBLE PLANT
A182: 20 | C182: GEN & INTANG PLANT IN SERVICE | F182: =F90 -> 51898356 | G182: =G90 -> 4286932 | H182: =H90 -> 0 | I182: =I90 -> 47611424 | J182: =J90 -> 51898356 | K182: =F182-J182 -> 0
A183: 21 | C183: TOTAL GEN & INTG DEPREC RESERVE | F183: =-F140 -> -24808980 | G183: =-G140 -> -2049282 | H183: =-H140 -> 0 | I183: =-I140 -> -22759698 | J183: =-J140 -> -24808980 | K183: =F183-J183 -> 0
A184: 22 | C184: NET GENERAL & INTANG PLANT | F184: =SUM(F181:F183) -> 27089376 | G184: 2237650 | H184: 0 | I184: 24851726 | J184: 27089376 | K184: 0
A185: 23
A186: 24 | B186: COMMON & OTHER PLANT
A187: 25 | C187: COMMON & OTH PLT IN SERVICE | F187: =F99 -> 14915855 | G187: =G99 -> 1232086 | H187: =H99 -> 0 | I187: =I99 -> 13683769 | J187: =J99 -> 14915855 | K187: =F187-J187 -> 0
A188: 26 | C188: TOTAL COM & OTH DEPREC RESERVE | F188: =-F149 -> -8000563 | G188: =-G149 -> -660866 | H188: =-H149 -> 0 | I188: =-I149 -> -7339697 | J188: =-J149 -> -8000563 | K188: =F188-J188 -> 0
A189: 27 | C189: NET COMMON & OTHER PLANT | F189: =SUM(F186:F188) -> 6915292 | G189: 571220 | H189: 0 | I189: 6344072 | J189: 6915292 | K189: 0
A190: 28
A191: 29 | C191: ="NET GAS PLANT IN SERVICE" -> NET GAS PLANT IN SERVICE | F191: =F189+F184+F176+F171+F166 -> 672596430 | G191: 2808870 | H191: 0 | I191: 669787560 | J191: 672596430 | K191: 0
A193: =co_name -> DUKE ENERGY KENTUCKY, INC. | J193: =$J$1 -> FR-16(7)(v)-1
A194: =$A$2 -> FUNCTIONAL GAS COST OF SERVICE | J194: =$J$2 -> WITNESS RESPONSIBLE:
A195: =case_name -> CASE NO: 2025-00125 | J195: =Witness -> DOUGLAS J. HEITKAMP
A196: =data_filing -> DATA: 12 MONTH FORECASTED PERIOD | J196: ="PAGE "&Pages-13&" OF "&Pages -> PAGE 5 OF 18
A197: =type -> TYPE OF FILING: "X" ORIGINAL UPDATED REVISED
A200: LINE | F200: TOTAL | G200: FUNCTIONAL | J200: TOTAL | K200: ALL
A201: NO. | B201: SUBTRACTIVE RATE BASE ADJUSTMENTS | D201: ALLO | F201: GAS | G201: PRODUCTION | H201: STORAGE | I201: DISTRIBUTION | J201: AT ISSUE | K201: OTHER
C202: Schedule 5 | G202: =$G$10 -> 3 | H202: =$H$10 -> 4 | I202: =$I$10 -> 5
A203: 1 | B203: RATE BASE ADJUSTMENTS
A204: 2 | B204: ACCUMULATED DEFERRED INCOME TAXES
A205: 3 | B205: ACCUM DEF INC TAXES (282)
A206: 4 | C206: LIBERALIZED DEPRECIATION | D206: NP29 | F206: 73247627 | G206: =F206-SUM(H206:I206) -> 306175 | H206: =ROUND(F206*VLOOKUP(D206,AllocTable_Functional,$H$10,FALSE),0) -> 0 | I206: =ROUND(F206*VLOOKUP(D206,AllocTable_Functional,$I$10,FALSE),0) -> 72941452 | J206: =SUM(G206:I206) -> 73247627 | K206: =F206-J206 -> 0
A207: 5 | C207: LEASED METERS | D207: K413 | G207: 0 | H207: 0 | I207: 0 | J207: 0 | K207: 0
A208: 6 | C208: CONTRIB AID CONSTR | D208: D249 | G208: 0 | H208: 0 | I208: 0 | J208: 0 | K208: 0
A209: 7 | C209: CAPITALIZED INTEREST | D209: NP29 | G209: 0 | H209: 0 | I209: 0 | J209: 0 | K209: 0
A210: 8 | C210: AFUDC IN DEBT | D210: NP29 | G210: 0 | H210: 0 | I210: 0 | J210: 0 | K210: 0
A211: 9 | C211: CWIP DIFFERENCES | D211: NP29 | G211: 0 | H211: 0 | I211: 0 | J211: 0 | K211: 0
A212: 10 | C212: NON-CASH OVERHEADS | D212: AG39 | G212: 0 | H212: 0 | I212: 0 | J212: 0 | K212: 0
A213: 11 | C213: PLANT FAS 109 | D213: NP29 | G213: 0 | H213: 0 | I213: 0 | J213: 0 | K213: 0
A214: 12 | C214: MISCELLANEOUS | D214: NP29 | F214: =F215-SUM(F206:F213) -> 23057044 | G214: 96378 | H214: 0 | I214: 22960666 | J214: 23057044 | K214: 0
... 636 more rows

Sheet FR-16(7)(v)-2 PROD Classified
A1: =co_name -> DUKE ENERGY KENTUCKY, INC. | J1: FR-16(7)(v)-2
A2: PRODUCTION CLASSIFIED - GAS COST OF SERVICE | J2: WITNESS RESPONSIBLE:
A3: =case_name -> CASE NO: 2025-00125 | J3: =Witness -> DOUGLAS J. HEITKAMP
A4: =data_filing -> DATA: 12 MONTH FORECASTED PERIOD | J4: ="PAGE "&Pages-17&" OF "&Pages -> PAGE 1 OF 18
A5: =type -> TYPE OF FILING: "X" ORIGINAL UPDATED REVISED
A8: LINE | F8: TOTAL | G8: CLASSIFIED | J8: TOTAL | K8: ALL
A9: NO. | B9: SUMMARY OF RESULTS | D9: ALLO | F9: PRODUCTION | G9: DEMAND | H9: COMMODITY | I9: CUSTOMER | J9: AT ISSUE | K9: OTHER
C10: Schedule 1 | G10: 3 | H10: 4 | I10: 5
A11: 1 | B11: NET INCOME COMPUTATION
A12: 2 | C12: ='FR-16(7)(v)-1 Functional'!C12 -> GROSS GAS PLANT IN SERVICE | F12: =F101 -> 5519018 | G12: =G101 -> 0 | H12: =H101 -> 5519018 | I12: =I101 -> 0 | J12: =J101 -> 5519018 | K12: =F12-J12 -> 0
A13: 3 | C13: ='FR-16(7)(v)-1 Functional'!C13 -> TOTAL DEPRECIATION RESERVE | F13: =-F151 -> -2710148 | G13: =-G151 -> 0 | H13: =-H151 -> -2710148 | I13: =-I151 -> 0 | J13: =-J151 -> -2710148 | K13: =F13-J13 -> 0
A14: 4 | C14: ='FR-16(7)(v)-1 Functional'!C14 -> TOTAL RATE BASE ADJUSTMENTS | F14: =F326 -> 1513439 | G14: =G326 -> 0 | H14: =H326 -> 1513439 | I14: =I326 -> 0 | J14: =J326 -> 1513439 | K14: =F14-J14 -> 0
A15: 5 | C15: ='FR-16(7)(v)-1 Functional'!C15 -> TOTAL RATE BASE | F15: =SUM(F12:F14) -> 4322309 | G15: 0 | H15: 4322309 | I15: 0 | J15: 4322309 | K15: 0
A16: 6
A17: 7 | B17: OPERATING EXPENSES
A18: 8 | C18: ='FR-16(7)(v)-1 Functional'!C18 -> TOTAL O&M EXPENSE | F18: =F433 -> 65416645 | G18: =G433 -> 0 | H18: =H433 -> 65416645 | I18: =I433 -> 0 | J18: =J433 -> 65416645 | K18: =F18-J18 -> 0
A19: 9 | C19: ='FR-16(7)(v)-1 Functional'!C19 -> TOTAL DEPRECIATION EXPENSE | F19: =F465 -> 543527.82 | G19: =G465 -> -0.1800000001 | H19: =H465 -> 543528 | I19: =I465 -> 0 | J19: =J465 -> 543527.82 | K19: 0
A20: 10 | C20: ='FR-16(7)(v)-1 Functional'!C20 -> TOTAL OTHER TAX & MISC EXPENSE | F20: =F495 -> 65908 | G20: =$G$495 -> 0 | H20: =$H$495 -> 65908 | I20: =$I$495 -> 0 | J20: =$J$495 -> 65908 | K20: 0
A21: 11 | C21: ='FR-16(7)(v)-1 Functional'!C21 -> TOTAL OP EXP EXCLUDING INC & REV TAX | F21: =SUM(F17:F20) -> 66026080.82 | G21: =SUM(G17:G20) -> -0.1800000001 | H21: =SUM(H17:H20) -> 66026081 | I21: =SUM(I17:I20) -> 0 | J21: =SUM(J17:J20) -> 66026080.82 | K21: 0
A22: 12 | C22: ='FR-16(7)(v)-1 Functional'!C22 -> NET FED INCOME TAX EXP ALLOWABLE | F22: =F557 -> 706128 | G22: =$G$557 -> 0 | H22: =$H$557 -> 706128 | I22: =$I$557 -> 0 | J22: =$J$557 -> 706128 | K22: 0
A23: 13 | C23: ='FR-16(7)(v)-1 Functional'!C23 -> NET STATE INCOME TAX EXP ALLOWABLE | F23: =F605 -> 44864 | G23: =G605 -> 0 | H23: =H605 -> 44864 | I23: =I605 -> 0 | J23: =J605 -> 44864 | K23: 0
A24: 14 | C24: ='FR-16(7)(v)-1 Functional'!C24 -> TOTAL OPERATING EXPENSE | F24: =SUM(F21:F23) -> 66777072.82 | G24: =SUM(G21:G23) -> -0.1800000001 | H24: =SUM(H21:H23) -> 66777073 | I24: =SUM(I21:I23) -> 0 | J24: =SUM(J21:J23) -> 66777072.82 | K24: 0
A25: 15
A26: 16 | B26: RETURN ON RATE BASE | F26: =F334 -> 346261 | G26: =G334 -> 0 | H26: =H334 -> 346261 | I26: =I334 -> 0 | J26: =J334 -> 346261 | K26: =F26-J26 -> 0
A27: 17 | B27: TOTAL OTHER OPERATING REVENUES | F27: =-F630 -> -55958 | G27: =-$G$630 -> 0 | H27: =-$H$630 -> -55958 | I27: =-$I$630 -> 0 | J27: =-$J$630 -> -55958 | K27: 0
A28: 18 | C28: ='FR-16(7)(v)-1 Functional'!C28 -> TOTAL GAS COST OF SERVICE | F28: =SUM(F24:F27) -> 67067375.82 | G28: =SUM(G24:G27) -> -0.1800000001 | H28: =SUM(H24:H27) -> 67067376 | I28: =SUM(I24:I27) -> 0 | J28: =SUM(J24:J27) -> 67067375.82 | K28: 0
A29: 19 | B29: ADJUSTMENT FOR INTERCLASS SUBSIDIZATION | D29: =1-'WP FR-16(7)(v)Rate Incr (50.0%)'!I11 -> 0.5 | F29: ='WP FR-16(7)(v)Rate Incr (50.0%)'!Q20 -> 0 | G29: 0 | H29: 0 | I29: 0 | J29: =SUM(G29:I29) -> 0 | K29: 0
A30: 20 | B30: REQUESTED REVENUES | F30: =F29+F28 -> 67067375.82 | G30: =G29+G28 -> -0.1800000001 | H30: =H29+H28 -> 67067376 | I30: =I29+I28 -> 0 | J30: =J29+J28 -> 67067375.82 | K30: 0
A31: 21 | B31: PROPOSED REVENUES | F31: =F745 -> 67411733 | G31: =G745 -> 0 | H31: =H745 -> 67411733 | I31: =I745 -> 0 | J31: =J745 -> 67411733 | K31: 0
A32: 22 | B32: DIFFERENCE (REQUESTED LESS PROPOSED) | F32: =F30-F31 -> -344357.18 | G32: -0.1800000001 | H32: -344357 | I32: 0 | J32: -344357.18 | K32: 0
A33: 23
A34: 24 | B34: TOTAL RETURN EARNED | F34: =F654+F26 -> 638469.18 | G34: =G654+G26 -> 0.1800000001 | H34: =H654+H26 -> 638469 | I34: =I654+I26 -> 0 | J34: =J654+J26 -> 638469.18 | K34: =F34-J34 -> 0
A35: 25 | B35: RATE OF RETURN EARNED | F35: =IF(F331=0,0,ROUND(F34/F331,5)) -> 0.14771 | G35: 0 | H35: 0.14771 | I35: 0 | J35: 0.14771 | K35: 0
A36: 26 | B36: TOTAL RATE OF RETURN ALLOWABLE | F36: =$F$688 -> 0.08011 | G36: =F688 -> 0.08011 | H36: =F688 -> 0.08011 | I36: =F688 -> 0.08011 | J36: =$F$688 -> 0.08011 | K36: =F688 -> 0.08011 | N36: Not Part of print range
A37: 27 | B37: RETURN EARNED ON COMMON EQUITY | F37: =IF(F670=0,0,(F35-$F$683-$F$684-$F$686)*$F$673/$F$670) -> 0.2359008695 | G37: =IF(F670=0,0,(G35-F683-F684-F686)*F673/F670) -> -0.04465402127 | H37: =IF(F670=0,0,(H35-F683-F684-F686)*F673/F670) -> 0.2359008695 | I37: =IF(F670=0,0,(I35-F683-F684-F686)*F673/F670) -> -0.04465402127 | J37: =IF(F670=0,0,(J35-F683-F684-F686)*F673/F670) -> 0.2359008695 | K37: =IF(F670=0,0,(K35-F683-F684-F686)*F673/F670) -> -0.04465402127 | N37: Not Filed
A38: 28 | B38: ALLOWED RETURN ON COMMON EQUITY | F38: =IF($F$670=0,0,(F36-$F$683-$F$684-$F$686)*$F$673/$F$670) -> 0.1075039389 | G38: =IF(F670=0,0,(G36-F683-F684-F686)*F673/F670) -> 0.1075039389 | H38: =IF(F670=0,0,(H36-F683-F684-F686)*F673/F670) -> 0.1075039389 | I38: =IF(F670=0,0,(I36-F683-F684-F686)*F673/F670) -> 0.1075039389 | J38: =IF($F$670=0,0,(J36-$F$683-$F$684-$F$686)*$F$673/$F$670) -> 0.1075039389 | K38: =IF(F670=0,0,(K36-F683-F684-F686)*F673/F670) -> 0.1075039389
A39: 29
A40: 30 | B40: PRESENT REVENUES | F40: =F744 -> 57266271 | G40: =G744 -> 0 | H40: =H744 -> 57266271 | I40: =I744 -> 0 | J40: =J744 -> 57266271 | K40: =F40-J40 -> 0
A41: 31 | B41: REVENUE INCREASE JUSTIFIED | F41: =F28-F40 -> 9801104.82 | G41: -0.1800000001 | H41: 9801105 | I41: 0 | J41: 9801104.82 | K41: 0
A42: 32 | C42: PER UNIT PRES REV | F42: =IF(F40=0,0,ROUND(F41/F40,5)) -> 0.17115 | G42: 0 | H42: 0.17115 | I42: 0 | J42: 0.17115 | K42: 0
A43: 33 | B43: REVENUE INCREASE REQUESTED | F43: =F31-F40 -> 10145462 | G43: 0 | H43: 10145462 | I43: 0 | J43: 10145462 | K43: 0
A44: 34 | C44: PER UNIT PRES REV | F44: =IF(F40=0,0,ROUND(F43/F40,5)) -> 0.17716 | G44: 0 | H44: 0.17716 | I44: 0 | J44: 0.17716 | K44: 0
A46: =co_name -> DUKE ENERGY KENTUCKY, INC. | J46: =$J$1 -> FR-16(7)(v)-2
A47: =$A$2 -> PRODUCTION CLASSIFIED - GAS COST OF SERVICE | J47: =$J$2 -> WITNESS RESPONSIBLE:
A48: =case_name -> CASE NO: 2025-00125 | J48: =Witness -> DOUGLAS J. HEITKAMP
A49: =data_filing -> DATA: 12 MONTH FORECASTED PERIOD | J49: ="PAGE "&Pages-16&" OF "&Pages -> PAGE 2 OF 18
A50: =type -> TYPE OF FILING: "X" ORIGINAL UPDATED REVISED
A53: LINE | F53: =$F$8 -> TOTAL | G53: CLASSIFIED | J53: TOTAL | K53: ALL
A54: NO. | B54: GROSS GAS PLANT IN SERVICE | D54: ALLO | F54: =$F$9 -> PRODUCTION | G54: DEMAND | H54: COMMODITY | I54: CUSTOMER | J54: AT ISSUE | K54: OTHER
C55: Schedule 2 | G55: =$G$10 -> 3 | H55: =$H$10 -> 4 | I55: =$I$10 -> 5
A56: 1 | B56: PRODUCTION PLANT
A57: 2 | C57: ='FR-16(7)(v)-1 Functional'!C57 -> PRODUCTION PLANT | D57: ='FR-16(7)(v)-1 Functional'!D57 -> K205 | F57: ='FR-16(7)(v)-1 Functional'!G57 -> 0 | G57: =ROUND(F57*VLOOKUP(D57,AllocTable_Classified_Production,$G$10,FALSE),0) -> 0 | H57: =ROUND(F57*VLOOKUP(D57,AllocTable_Classified_Production,$H$10,FALSE),0) -> 0 | I57: =ROUND(F57*VLOOKUP(D57,AllocTable_Classified_Production,$I$10,FALSE),0) -> 0 | J57: =SUM($G$57:$I$57) -> 0 | K57: =F57-$J$57 -> 0
A58: 3 | C58: ='FR-16(7)(v)-1 Functional'!C58 -> GAS PRODUCTION -CPMPL NOT CLASS | D58: ='FR-16(7)(v)-1 Functional'!D58 -> K205 | F58: ='FR-16(7)(v)-1 Functional'!G58 -> 0 | G58: =ROUND(F58*VLOOKUP(D58,AllocTable_Classified_Production,$G$10,FALSE),0) -> 0 | H58: =ROUND(F58*VLOOKUP(D58,AllocTable_Classified_Production,$H$10,FALSE),0) -> 0 | I58: =ROUND(F58*VLOOKUP(D58,AllocTable_Classified_Production,$I$10,FALSE),0) -> 0 | J58: =SUM($G$58:$I$58) -> 0 | K58: =F58-$J$58 -> 0
A59: 4 | C59: ='FR-16(7)(v)-1 Functional'!C59 -> PRODUCTION PLANT IN SERVICE | F59: =SUM(F57:F58) -> 0 | G59: =SUM($G$57:$G$58) -> 0 | H59: =SUM($H$57:$H$58) -> 0 | I59: =SUM($I$57:$I$58) -> 0 | J59: =SUM($J$57:$J$58) -> 0 | K59: =SUM($K$57:$K$58) -> 0
A60: 5
A61: 6 | B61: TRANSMISSION PLANT
A62: 7 | C62: ='FR-16(7)(v)-1 Functional'!C62 -> TRANSMISSION PLANT
A63: 8 | C63: ='FR-16(7)(v)-1 Functional'!C63 -> TRANSMISSION PLANT IN SERVICE | F63: =SUM(F62) -> 0 | G63: =SUM($G$62) -> 0 | H63: =SUM($H$62) -> 0 | I63: =SUM($I$62) -> 0 | J63: =SUM($J$62) -> 0 | K63: =SUM($K$62) -> 0
A64: 9
A65: 10 | B65: TOTAL PROD & TRANS PLANT | F65: =F63+F59 -> 0 | G65: =$G$63+$G$59 -> 0 | H65: =$H$63+$H$59 -> 0 | I65: =$I$63+$I$59 -> 0 | J65: =$J$63+$J$59 -> 0 | K65: =$K$63+$K$59 -> 0
A66: 11
A67: 12 | B67: DISTRIBUTION PLANT
A68: 13 | C68: ='FR-16(7)(v)-1 Functional'!C68 -> SYSTEM M&R - (2780, 2781) | D68: ='FR-16(7)(v)-1 Functional'!D68 -> K203 | F68: ='FR-16(7)(v)-1 Functional'!G68 -> 0 | G68: =ROUND(F68*VLOOKUP(D68,AllocTable_Classified_Production,$G$10,FALSE),0) -> 0 | H68: =ROUND(F68*VLOOKUP(D68,AllocTable_Classified_Production,$H$10,FALSE),0) -> 0 | I68: =ROUND(F68*VLOOKUP(D68,AllocTable_Classified_Production,$I$10,FALSE),0) -> 0 | J68: =SUM(G68:I68) -> 0 | K68: =F68-J68 -> 0
A69: 14 | C69: ='FR-16(7)(v)-1 Functional'!C69 -> DIST REG EQUIP & CITY GATE M&R- (2782, 2790) | D69: ='FR-16(7)(v)-1 Functional'!D69 -> K203 | F69: ='FR-16(7)(v)-1 Functional'!G69 -> 0 | G69: 0 | H69: 0 | I69: 0 | J69: 0 | K69: 0
A70: 15 | C70: ='FR-16(7)(v)-1 Functional'!C70 -> LARGE IND M&R - (2850, 2851) | D70: ='FR-16(7)(v)-1 Functional'!D70 -> K595 | F70: ='FR-16(7)(v)-1 Functional'!G70 -> 0 | G70: 0 | H70: 0 | I70: 0 | J70: 0 | K70: 0
A71: 16 | C71: ='FR-16(7)(v)-1 Functional'!C71 -> MAINS - (2761, 2762, 2763, 2765) | D71: ='FR-16(7)(v)-1 Functional'!D71 -> K415 | F71: ='FR-16(7)(v)-1 Functional'!G71 -> 0 | G71: 0 | H71: 0 | I71: 0 | J71: 0 | K71: 0
A72: 17 | C72: ='FR-16(7)(v)-1 Functional'!C72 -> SERVICES - (2801, 2802, 2803) | D72: ='FR-16(7)(v)-1 Functional'!D72 -> K403 | F72: ='FR-16(7)(v)-1 Functional'!G72 -> 0 | G72: 0 | H72: 0 | I72: 0 | J72: 0 | K72: 0
A73: 18 | C73: ='FR-16(7)(v)-1 Functional'!C73 -> MTRS & MTR INST (2810, 2811, 2820, 2821) | D73: ='FR-16(7)(v)-1 Functional'!D73 -> K413 | F73: ='FR-16(7)(v)-1 Functional'!G73 -> 0 | G73: 0 | H73: 0 | I73: 0 | J73: 0 | K73: 0
A74: 19 | C74: ='FR-16(7)(v)-1 Functional'!C74 -> LAND, R OF W, STRUCT & IMPROV | D74: ='FR-16(7)(v)-1 Functional'!D74 -> K203 | F74: ='FR-16(7)(v)-1 Functional'!G74 -> 0 | G74: 0 | H74: 0 | I74: 0 | J74: 0 | K74: 0
A75: 20 | C75: ='FR-16(7)(v)-1 Functional'!C75 -> HOUSE REG & INSTALL (2830, 2840) | D75: ='FR-16(7)(v)-1 Functional'!D75 -> K417 | F75: ='FR-16(7)(v)-1 Functional'!G75 -> 0 | G75: 0 | H75: 0 | I75: 0 | J75: 0 | K75: 0
A76: 21 | C76: ='FR-16(7)(v)-1 Functional'!C76 -> STREET LIGHTING EQUIPMENT & OTH | D76: ='FR-16(7)(v)-1 Functional'!D76 -> K597 | F76: ='FR-16(7)(v)-1 Functional'!G76 -> 0 | G76: 0 | H76: 0 | I76: 0 | J76: 0 | K76: 0
A77: 22 | C77: ='FR-16(7)(v)-1 Functional'!C77 -> ASSET RETIREMENT COST FOR DISTRIBUTION PLANT | D77: ='FR-16(7)(v)-1 Functional'!D77 -> K203 | F77: ='FR-16(7)(v)-1 Functional'!G77 -> 0 | G77: 0 | H77: 0 | I77: 0 | J77: 0 | K77: 0
A78: 23 | C78: ='FR-16(7)(v)-1 Functional'!C78 -> DISTRIBUTION PLANT IN SERVICE | F78: =SUM(F68:F77) -> 0 | G78: 0 | H78: 0 | I78: 0 | J78: 0 | K78: 0
A79: 24
A80: 25 | B80: TOTAL TRANS & DIST PLANT | F80: =F78+F63 -> 0 | G80: =G78+$G$63 -> 0 | H80: =H78+$H$63 -> 0 | I80: =I78+$I$63 -> 0 | J80: =J78+$J$63 -> 0 | K80: =K78+$K$63 -> 0
A81: 26 | B81: TOTAL GROSS PTD PLANT | F81: =F78+F65 -> 0 | G81: 0 | H81: 0 | I81: 0 | J81: 0 | K81: 0
A82: 27
A83: 28 | B83: GENERAL & INTANGIBLE PLANT
A84: 29 | C84: ='FR-16(7)(v)-1 Functional'!C84 -> PRODUCTION PLANT | D84: ='FR-16(7)(v)-1 Functional'!D84 -> K201 | F84: ='FR-16(7)(v)-1 Functional'!G84 -> 0 | G84: =ROUND(F84*VLOOKUP(D84,AllocTable_Classified_Production,$G$10,FALSE),0) -> 0 | H84: =ROUND(F84*VLOOKUP(D84,AllocTable_Classified_Production,$H$10,FALSE),0) -> 0 | I84: =ROUND(F84*VLOOKUP(D84,AllocTable_Classified_Production,$I$10,FALSE),0) -> 0 | J84: =SUM(G84:I84) -> 0 | K84: =F84-J84 -> 0
A85: 30 | C85: ='FR-16(7)(v)-1 Functional'!C85 -> PRODUCTION PLANT COMMODITY | D85: ='FR-16(7)(v)-1 Functional'!D85 -> P349 | F85: ='FR-16(7)(v)-1 Functional'!G85 -> 4286932 | G85: 0 | H85: 4286932 | I85: 0 | J85: 4286932 | K85: 0
A86: 31 | C86: ='FR-16(7)(v)-1 Functional'!C86 -> DISTRIBUTION PLANT | D86: ='FR-16(7)(v)-1 Functional'!D86 -> D349 | F86: ='FR-16(7)(v)-1 Functional'!G86 -> 0 | G86: 0 | H86: 0 | I86: 0 | J86: 0 | K86: 0
A87: 32 | C87: ='FR-16(7)(v)-1 Functional'!C87 -> CUSTOMER ACCOUNTING | D87: ='FR-16(7)(v)-1 Functional'!D87 -> CA19 | F87: ='FR-16(7)(v)-1 Functional'!G87 -> 0 | G87: 0 | H87: 0 | I87: 0 | J87: 0 | K87: 0
A88: 33 | C88: ='FR-16(7)(v)-1 Functional'!C88 -> CUSTOMER SERVICE & INFORMATION | D88: ='FR-16(7)(v)-1 Functional'!D88 -> CS19 | F88: ='FR-16(7)(v)-1 Functional'!G88 -> 0 | G88: 0 | H88: 0 | I88: 0 | J88: 0 | K88: 0
A89: 34 | C89: ='FR-16(7)(v)-1 Functional'!C89 -> SALES | D89: ='FR-16(7)(v)-1 Functional'!D89 -> SE19 | F89: ='FR-16(7)(v)-1 Functional'!G89 -> 0 | G89: 0 | H89: 0 | I89: 0 | J89: 0 | K89: 0
A90: 35 | C90: ='FR-16(7)(v)-1 Functional'!C90 -> GEN & INTANG PLANT IN SERVICE | F90: =SUM(F84:F89) -> 4286932 | G90: 0 | H90: 4286932 | I90: 0 | J90: 4286932 | K90: 0
A91: 36
A92: 37 | B92: COMMON & OTHER PLANT
A93: 38 | C93: ='FR-16(7)(v)-1 Functional'!C93 -> PRODUCTION PLANT | D93: ='FR-16(7)(v)-1 Functional'!D93 -> K201 | F93: ='FR-16(7)(v)-1 Functional'!G93 -> 0 | G93: =ROUND(F93*VLOOKUP(D93,AllocTable_Classified_Production,$G$10,FALSE),0) -> 0 | H93: =ROUND(F93*VLOOKUP(D93,AllocTable_Classified_Production,$H$10,FALSE),0) -> 0 | I93: =ROUND(F93*VLOOKUP(D93,AllocTable_Classified_Production,$I$10,FALSE),0) -> 0 | J93: =SUM(G93:I93) -> 0 | K93: =F93-J93 -> 0
A94: 39 | C94: ='FR-16(7)(v)-1 Functional'!C94 -> PRODUCTION PLANT COMMODITY | D94: ='FR-16(7)(v)-1 Functional'!D94 -> P349 | F94: ='FR-16(7)(v)-1 Functional'!G94 -> 1232086 | G94: 0 | H94: 1232086 | I94: 0 | J94: 1232086 | K94: 0
A95: 40 | C95: ='FR-16(7)(v)-1 Functional'!C95 -> DISTRIBUTION PLANT | D95: ='FR-16(7)(v)-1 Functional'!D95 -> D349 | F95: ='FR-16(7)(v)-1 Functional'!G95 -> 0 | G95: 0 | H95: 0 | I95: 0 | J95: 0 | K95: 0
A96: 41 | C96: ='FR-16(7)(v)-1 Functional'!C96 -> CUSTOMER ACCOUNTING | D96: ='FR-16(7)(v)-1 Functional'!D96 -> CA19 | F96: ='FR-16(7)(v)-1 Functional'!G96 -> 0 | G96: 0 | H96: 0 | I96: 0 | J96: 0 | K96: 0
A97: 42 | C97: ='FR-16(7)(v)-1 Functional'!C97 -> CUSTOMER SERVICE & INFORMATION | D97: ='FR-16(7)(v)-1 Functional'!D97 -> CS19 | F97: ='FR-16(7)(v)-1 Functional'!G97 -> 0 | G97: 0 | H97: 0 | I97: 0 | J97: 0 | K97: 0
A98: 43 | C98: ='FR-16(7)(v)-1 Functional'!C98 -> SALES | D98: ='FR-16(7)(v)-1 Functional'!D98 -> SE19 | F98: ='FR-16(7)(v)-1 Functional'!G98 -> 0 | G98: 0 | H98: 0 | I98: 0 | J98: 0 | K98: 0
A99: 44 | C99: ='FR-16(7)(v)-1 Functional'!C99 -> COMMON & OTHER PLANT IN SERVICE | F99: =SUM(F93:F98) -> 1232086 | G99: 0 | H99: 1232086 | I99: 0 | J99: 1232086 | K99: 0
A100: 45
A101: 46 | B101: GROSS GAS PLANT IN SERVICE | F101: =F81+F90+F99 -> 5519018 | G101: 0 | H101: 5519018 | I101: 0 | J101: 5519018 | K101: 0
A103: =co_name -> DUKE ENERGY KENTUCKY, INC. | J103: =$J$1 -> FR-16(7)(v)-2
A104: =$A$2 -> PRODUCTION CLASSIFIED - GAS COST OF SERVICE | J104: =$J$2 -> WITNESS RESPONSIBLE:
A105: =case_name -> CASE NO: 2025-00125 | J105: =Witness -> DOUGLAS J. HEITKAMP
A106: =data_filing -> DATA: 12 MONTH FORECASTED PERIOD | J106: ="PAGE "&Pages-15&" OF "&Pages -> PAGE 3 OF 18
A107: =type -> TYPE OF FILING: "X" ORIGINAL UPDATED REVISED
A110: LINE | F110: =$F$8 -> TOTAL | G110: CLASSIFIED | J110: TOTAL | K110: ALL
A111: NO. | B111: DEPRECIATION RESERVE | D111: ALLO | F111: =$F$9 -> PRODUCTION | G111: DEMAND | H111: COMMODITY | I111: CUSTOMER | J111: AT ISSUE | K111: OTHER
C112: Schedule 3 | G112: =$G$10 -> 3 | H112: =$H$10 -> 4 | I112: =$I$10 -> 5
A113: 1 | B113: PRODUCTION PLANT
A114: 2 | C114: ='FR-16(7)(v)-1 Functional'!C114 -> PRODUCTION PLANT | D114: ='FR-16(7)(v)-1 Functional'!D114 -> K205 | F114: ='FR-16(7)(v)-1 Functional'!G114 -> 0 | G114: =F114-SUM(H114:I114) -> 0 | H114: =ROUND(F114*VLOOKUP(D114,AllocTable_Classified_Production,$H$10,FALSE),0) -> 0 | I114: =ROUND(F114*VLOOKUP(D114,AllocTable_Classified_Production,$I$10,FALSE),0) -> 0 | J114: =SUM(G114:I114) -> 0 | K114: =F114-J114 -> 0
A115: 3 | C115: ='FR-16(7)(v)-1 Functional'!C115 -> TOTAL PROD DEPREC RESERVE | F115: =SUM(F114:F114) -> 0 | G115: 0 | H115: 0 | I115: 0 | J115: 0 | K115: 0
A116: 4
A117: 5 | B117: TRANSMISSION PLANT
A118: 6 | C118: ='FR-16(7)(v)-1 Functional'!C118 -> TRANSMISSION PLANT
A119: 7 | C119: ='FR-16(7)(v)-1 Functional'!C119 -> TOTAL TRANS DEPREC RESERVE | F119: =SUM(F118:F118) -> 0 | G119: 0 | H119: 0 | I119: 0 | J119: 0 | K119: 0
A120: 8
A121: 9 | B121: DISTRIBUTION PLANT
A122: 10 | C122: ='FR-16(7)(v)-1 Functional'!C122 -> SYSTEM M&R - (2780, 2781) | D122: ='FR-16(7)(v)-1 Functional'!D122 -> K203 | F122: ='FR-16(7)(v)-1 Functional'!G122 -> 0 | G122: =F122-SUM(H122:I122) -> 0 | H122: =ROUND(F122*VLOOKUP(D122,AllocTable_Classified_Production,$H$10,FALSE),0) -> 0 | I122: =ROUND(F122*VLOOKUP(D122,AllocTable_Classified_Production,$I$10,FALSE),0) -> 0 | J122: =SUM(G122:I122) -> 0 | K122: =F122-J122 -> 0
A123: 11 | C123: ='FR-16(7)(v)-1 Functional'!C123 -> DIST REG EQUIP & CITY GATE M&R- (2782, 2790) | D123: ='FR-16(7)(v)-1 Functional'!D123 -> K203 | F123: ='FR-16(7)(v)-1 Functional'!G123 -> 0 | G123: 0 | H123: 0 | I123: 0 | J123: 0 | K123: 0
A124: 12 | C124: ='FR-16(7)(v)-1 Functional'!C124 -> LARGE IND M&R - (2850, 2851) | D124: ='FR-16(7)(v)-1 Functional'!D124 -> K595 | F124: ='FR-16(7)(v)-1 Functional'!G124 -> 0 | G124: 0 | H124: 0 | I124: 0 | J124: 0 | K124: 0
A125: 13 | C125: ='FR-16(7)(v)-1 Functional'!C125 -> MAINS - (2761, 2762, 2763, 2765) | D125: ='FR-16(7)(v)-1 Functional'!D125 -> K415 | F125: ='FR-16(7)(v)-1 Functional'!G125 -> 0 | G125: 0 | H125: 0 | I125: 0 | J125: 0 | K125: 0
A126: 14 | C126: ='FR-16(7)(v)-1 Functional'!C126 -> SERVICES - (2801, 2802, 2803) | D126: ='FR-16(7)(v)-1 Functional'!D126 -> K403 | F126: ='FR-16(7)(v)-1 Functional'!G126 -> 0 | G126: 0 | H126: 0 | I126: 0 | J126: 0 | K126: 0
A127: 15 | C127: ='FR-16(7)(v)-1 Functional'!C127 -> MTRS & MTR INST (2810, 2811, 2820, 2821) | D127: ='FR-16(7)(v)-1 Functional'!D127 -> K413 | F127: ='FR-16(7)(v)-1 Functional'!G127 -> 0 | G127: 0 | H127: 0 | I127: 0 | J127: 0 | K127: 0
A128: 16 | C128: ='FR-16(7)(v)-1 Functional'!C128 -> LAND, R OF W, STRUCT & IMPROV & OTH | D128: ='FR-16(7)(v)-1 Functional'!D128 -> K203 | F128: ='FR-16(7)(v)-1 Functional'!G128 -> 0 | G128: 0 | H128: 0 | I128: 0 | J128: 0 | K128: 0
A129: 17 | C129: ='FR-16(7)(v)-1 Functional'!C129 -> HOUSE REG & INSTALL (2830, 2840) | D129: ='FR-16(7)(v)-1 Functional'!D129 -> K417 | F129: ='FR-16(7)(v)-1 Functional'!G129 -> 0 | G129: 0 | H129: 0 | I129: 0 | J129: 0 | K129: 0
A130: 18 | C130: ='FR-16(7)(v)-1 Functional'!C130 -> STREET LIGHTING EQUIPMENT & OTH | D130: ='FR-16(7)(v)-1 Functional'!D130 -> K597 | F130: ='FR-16(7)(v)-1 Functional'!G130 -> 0 | G130: 0 | H130: 0 | I130: 0 | J130: 0 | K130: 0
A131: 19 | C131: ='FR-16(7)(v)-1 Functional'!C131 -> TOTAL DIST DEPREC RESERVE | F131: =SUM(F121:F130) -> 0 | G131: 0 | H131: 0 | I131: 0 | J131: 0 | K131: 0
A132: 20
A133: 21 | B133: GENERAL & INTANGIBLE PLANT
A134: 22 | C134: ='FR-16(7)(v)-1 Functional'!C134 -> PRODUCTION PLANT | D134: ='FR-16(7)(v)-1 Functional'!D134 -> K201 | F134: ='FR-16(7)(v)-1 Functional'!G134 -> -1 | G134: =F134-SUM(H134:I134) -> 0 | H134: =ROUND(F134*VLOOKUP(D134,AllocTable_Classified_Production,$H$10,FALSE),0) -> -1 | I134: =ROUND(F134*VLOOKUP(D134,AllocTable_Classified_Production,$I$10,FALSE),0) -> 0 | J134: =SUM(G134:I134) -> -1 | K134: =F134-J134 -> 0
A135: 23 | C135: ='FR-16(7)(v)-1 Functional'!C135 -> PRODUCTION PLANT COMMODITY | D135: ='FR-16(7)(v)-1 Functional'!D135 -> P349 | F135: ='FR-16(7)(v)-1 Functional'!G135 -> 2049283 | G135: 0 | H135: 2049283 | I135: 0 | J135: 2049283 | K135: 0
A136: 24 | C136: ='FR-16(7)(v)-1 Functional'!C136 -> DISTRIBUTION PLANT | D136: ='FR-16(7)(v)-1 Functional'!D136 -> D349 | F136: ='FR-16(7)(v)-1 Functional'!G136 -> 0 | G136: 0 | H136: 0 | I136: 0 | J136: 0 | K136: 0
A137: 25 | C137: ='FR-16(7)(v)-1 Functional'!C137 -> CUSTOMER ACCOUNTING | D137: ='FR-16(7)(v)-1 Functional'!D137 -> CA19 | F137: ='FR-16(7)(v)-1 Functional'!G137 -> 0 | G137: 0 | H137: 0 | I137: 0 | J137: 0 | K137: 0
A138: 26 | C138: ='FR-16(7)(v)-1 Functional'!C138 -> CUSTOMER SERVICE & INFORMATION | D138: ='FR-16(7)(v)-1 Functional'!D138 -> CS19 | F138: ='FR-16(7)(v)-1 Functional'!G138 -> 0 | G138: 0 | H138: 0 | I138: 0 | J138: 0 | K138: 0
A139: 27 | C139: ='FR-16(7)(v)-1 Functional'!C139 -> SALES | D139: ='FR-16(7)(v)-1 Functional'!D139 -> SE19 | F139: ='FR-16(7)(v)-1 Functional'!G139 -> 0 | G139: 0 | H139: 0 | I139: 0 | J139: 0 | K139: 0
A140: 28 | C140: ='FR-16(7)(v)-1 Functional'!C140 -> TOTAL GEN DEPREC RESERVE | F140: =SUM(F133:F139) -> 2049282 | G140: 0 | H140: 2049282 | I140: 0 | J140: 2049282 | K140: 0
A141: 29
A142: 30 | B142: COMMON & OTHER PLANT
A143: 31 | C143: ='FR-16(7)(v)-1 Functional'!C143 -> PRODUCTION PLANT | D143: ='FR-16(7)(v)-1 Functional'!D143 -> K201 | F143: ='FR-16(7)(v)-1 Functional'!G143 -> 0 | G143: =F143-SUM(H143:I143) -> 0 | H143: =ROUND(F143*VLOOKUP(D143,AllocTable_Classified_Production,$H$10,FALSE),0) -> 0 | I143: =ROUND(F143*VLOOKUP(D143,AllocTable_Classified_Production,$I$10,FALSE),0) -> 0 | J143: =SUM(G143:I143) -> 0 | K143: =F143-J143 -> 0
A144: 32 | C144: ='FR-16(7)(v)-1 Functional'!C144 -> PRODUCTION PLANT COMMODITY | D144: ='FR-16(7)(v)-1 Functional'!D144 -> P349 | F144: ='FR-16(7)(v)-1 Functional'!G144 -> 660866 | G144: 0 | H144: 660866 | I144: 0 | J144: 660866 | K144: 0
A145: 33 | C145: ='FR-16(7)(v)-1 Functional'!C145 -> DISTRIBUTION PLANT | D145: ='FR-16(7)(v)-1 Functional'!D145 -> D349 | F145: ='FR-16(7)(v)-1 Functional'!G145 -> 0 | G145: 0 | H145: 0 | I145: 0 | J145: 0 | K145: 0
A146: 34 | C146: ='FR-16(7)(v)-1 Functional'!C146 -> CUSTOMER ACCOUNTING | D146: ='FR-16(7)(v)-1 Functional'!D146 -> CA19 | F146: ='FR-16(7)(v)-1 Functional'!G146 -> 0 | G146: 0 | H146: 0 | I146: 0 | J146: 0 | K146: 0
A147: 35 | C147: ='FR-16(7)(v)-1 Functional'!C147 -> CUSTOMER SERVICE & INFORMATION | D147: ='FR-16(7)(v)-1 Functional'!D147 -> CS19 | F147: ='FR-16(7)(v)-1 Functional'!G147 -> 0 | G147: 0 | H147: 0 | I147: 0 | J147: 0 | K147: 0
A148: 36 | C148: ='FR-16(7)(v)-1 Functional'!C148 -> SALES | D148: ='FR-16(7)(v)-1 Functional'!D148 -> SE19 | F148: ='FR-16(7)(v)-1 Functional'!G148 -> 0 | G148: 0 | H148: 0 | I148: 0 | J148: 0 | K148: 0
A149: 37 | C149: ='FR-16(7)(v)-1 Functional'!C149 -> TOTAL COM & OTHER PLT RESERVE | F149: =SUM(F143:F148) -> 660866 | G149: =SUM(G142:G148) -> 0 | H149: =SUM(H142:H148) -> 660866 | I149: =SUM(I142:I148) -> 0 | J149: =SUM(J142:J148) -> 660866 | K149: =SUM(K142:K148) -> 0
A150: 38
A151: 39 | B151: TOTAL DEPRECIATION RESERVE | F151: =F149+F140+F131+F119+F115 -> 2710148 | G151: 0 | H151: 2710148 | I151: 0 | J151: 2710148 | K151: 0
A153: =co_name -> DUKE ENERGY KENTUCKY, INC. | J153: =$J$1 -> FR-16(7)(v)-2
A154: =$A$2 -> PRODUCTION CLASSIFIED - GAS COST OF SERVICE | J154: =$J$2 -> WITNESS RESPONSIBLE:
A155: =case_name -> CASE NO: 2025-00125 | J155: =Witness -> DOUGLAS J. HEITKAMP
A156: =data_filing -> DATA: 12 MONTH FORECASTED PERIOD | J156: ="PAGE "&Pages-14&" OF "&Pages -> PAGE 4 OF 18
A157: =type -> TYPE OF FILING: "X" ORIGINAL UPDATED REVISED
A160: LINE | F160: =$F$8 -> TOTAL | G160: CLASSIFIED | J160: TOTAL | K160: ALL
A161: NO. | B161: ="NET GAS PLANT" -> NET GAS PLANT | D161: ALLO | F161: =$F$9 -> PRODUCTION | G161: DEMAND | H161: COMMODITY | I161: CUSTOMER | J161: AT ISSUE | K161: OTHER
C162: Schedule 4 | G162: =$G$10 -> 3 | H162: =$H$10 -> 4 | I162: =$I$10 -> 5
A163: 1 | B163: PRODUCTION PLANT
A164: 2 | C164: ='FR-16(7)(v)-1 Functional'!C164 -> PRODUCTION PLANT IN SERVICE | F164: =F59 -> 0 | G164: =$G$59 -> 0 | H164: =$H$59 -> 0 | I164: =$I$59 -> 0 | J164: =$J$59 -> 0 | K164: =F164-J164 -> 0
A165: 3 | C165: ='FR-16(7)(v)-1 Functional'!C165 -> TOTAL PROD DEPRC RESERVE | F165: =-F115 -> 0 | G165: =-G115 -> 0 | H165: =-H115 -> 0 | I165: =-I115 -> 0 | J165: =-J115 -> 0 | K165: =F165-J165 -> 0
A166: 4 | C166: ='FR-16(7)(v)-1 Functional'!C166 -> NET PRODUCTION PLANT | F166: =SUM(F164:F165) -> 0 | G166: 0 | H166: 0 | I166: 0 | J166: 0 | K166: 0
A167: 5
A168: 6 | B168: TRANSMISSION PLANT
A169: 7 | C169: ='FR-16(7)(v)-1 Functional'!C169 -> TRANSMISSION PLANT IN SERVICE | F169: =F63 -> 0 | G169: =$G$63 -> 0 | H169: =$H$63 -> 0 | I169: =$I$63 -> 0 | J169: =$J$63 -> 0 | K169: =F169-J169 -> 0
A170: 8 | C170: ='FR-16(7)(v)-1 Functional'!C170 -> TOTAL TRANS DEPREC RESERVE | F170: =-F119 -> 0 | G170: =-G119 -> 0 | H170: =-H119 -> 0 | I170: =-I119 -> 0 | J170: =-J119 -> 0 | K170: =F170-J170 -> 0
A171: 9 | C171: ='FR-16(7)(v)-1 Functional'!C171 -> NET TRANSMISSION PLANT | F171: =SUM(F168:F170) -> 0 | G171: 0 | H171: 0 | I171: 0 | J171: 0 | K171: 0
A172: 10
A173: 11 | B173: DISTRIBUTION PLANT
A174: 12 | C174: ='FR-16(7)(v)-1 Functional'!C174 -> DISTRIBUTION PLANT IN SERVICE | F174: =F78 -> 0 | G174: =G78 -> 0 | H174: =H78 -> 0 | I174: =I78 -> 0 | J174: =J78 -> 0 | K174: =F174-J174 -> 0
A175: 13 | C175: ='FR-16(7)(v)-1 Functional'!C175 -> TOTAL DIST DEPREC RESERVE | F175: =-F131 -> 0 | G175: =-G131 -> 0 | H175: =-H131 -> 0 | I175: =-I131 -> 0 | J175: =-J131 -> 0 | K175: =F175-J175 -> 0
A176: 14 | C176: ='FR-16(7)(v)-1 Functional'!C176 -> NET DISTRIBUTION PLANT | F176: =SUM(F173:F175) -> 0 | G176: 0 | H176: 0 | I176: 0 | J176: 0 | K176: 0
A177: 15
A178: 16 | B178: NET PTD PLANT | F178: =F176+F171+F166 -> 0 | G178: 0 | H178: 0 | I178: 0 | J178: 0 | K178: 0
A179: 17 | B179: NET TRANS & DIST PLANT | F179: =F176+F171 -> 0 | G179: 0 | H179: 0 | I179: 0 | J179: 0 | K179: 0
A180: 18
A181: 19 | B181: GENERAL & INTANGIBLE PLANT
A182: 20 | C182: ='FR-16(7)(v)-1 Functional'!C182 -> GEN & INTANG PLANT IN SERVICE | F182: =F90 -> 4286932 | G182: =G90 -> 0 | H182: =H90 -> 4286932 | I182: =I90 -> 0 | J182: =J90 -> 4286932 | K182: =F182-J182 -> 0
A183: 21 | C183: ='FR-16(7)(v)-1 Functional'!C183 -> TOTAL GEN & INTG DEPREC RESERVE | F183: =-F140 -> -2049282 | G183: =-G140 -> 0 | H183: =-H140 -> -2049282 | I183: =-I140 -> 0 | J183: =-J140 -> -2049282 | K183: =F183-J183 -> 0
A184: 22 | C184: ='FR-16(7)(v)-1 Functional'!C184 -> NET GENERAL & INTANG PLANT | F184: =SUM(F181:F183) -> 2237650 | G184: 0 | H184: 2237650 | I184: 0 | J184: 2237650 | K184: 0
A185: 23
A186: 24 | B186: COMMON & OTHER PLANT
A187: 25 | C187: ='FR-16(7)(v)-1 Functional'!C187 -> COMMON & OTH PLT IN SERVICE | F187: =F99 -> 1232086 | G187: =G99 -> 0 | H187: =H99 -> 1232086 | I187: =I99 -> 0 | J187: =J99 -> 1232086 | K187: =F187-J187 -> 0
A188: 26 | C188: ='FR-16(7)(v)-1 Functional'!C188 -> TOTAL COM & OTH DEPREC RESERVE | F188: =-F149 -> -660866 | G188: =-G149 -> 0 | H188: =-H149 -> -660866 | I188: =-I149 -> 0 | J188: =-J149 -> -660866 | K188: =F188-J188 -> 0
A189: 27 | C189: ='FR-16(7)(v)-1 Functional'!C189 -> NET COMMON & OTHER PLANT | F189: =SUM(F186:F188) -> 571220 | G189: 0 | H189: 571220 | I189: 0 | J189: 571220 | K189: 0
A190: 28
A191: 29 | C191: ='FR-16(7)(v)-1 Functional'!C191 -> NET GAS PLANT IN SERVICE | F191: =F189+F184+F176+F171+F166 -> 2808870 | G191: 0 | H191: 2808870 | I191: 0 | J191: 2808870 | K191: 0
A193: =co_name -> DUKE ENERGY KENTUCKY, INC. | J193: =$J$1 -> FR-16(7)(v)-2
A194: =$A$2 -> PRODUCTION CLASSIFIED - GAS COST OF SERVICE | J194: =$J$2 -> WITNESS RESPONSIBLE:
A195: =case_name -> CASE NO: 2025-00125 | J195: =Witness -> DOUGLAS J. HEITKAMP
A196: =data_filing -> DATA: 12 MONTH FORECASTED PERIOD | J196: ="PAGE "&Pages-13&" OF "&Pages -> PAGE 5 OF 18
A197: =type -> TYPE OF FILING: "X" ORIGINAL UPDATED REVISED
A200: LINE | F200: =$F$8 -> TOTAL | G200: CLASSIFIED | J200: TOTAL | K200: ALL
A201: NO. | B201: SUBTRACTIVE RATE BASE ADJUSTMENTS | D201: ALLO | F201: =$F$9 -> PRODUCTION | G201: DEMAND | H201: COMMODITY | I201: CUSTOMER | J201: AT ISSUE | K201: OTHER
C202: Schedule 5 | G202: =$G$10 -> 3 | H202: =$H$10 -> 4 | I202: =$I$10 -> 5
A203: 1 | B203: RATE BASE ADJUSTMENTS
A204: 2 | B204: ACCUMULATED DEFERRED INCOME TAXES
A205: 3 | B205: ACCUM DEF INC TAXES (282)
A206: 4 | C206: ='FR-16(7)(v)-1 Functional'!C206 -> LIBERALIZED DEPRECIATION | D206: ='FR-16(7)(v)-1 Functional'!D206 -> NP29 | F206: ='FR-16(7)(v)-1 Functional'!G206 -> 306175 | G206: =F206-SUM(H206:I206) -> 0 | H206: =ROUND(F206*VLOOKUP(D206,AllocTable_Classified_Production,$H$10,FALSE),0) -> 306175 | I206: =ROUND(F206*VLOOKUP(D206,AllocTable_Classified_Production,$I$10,FALSE),0) -> 0 | J206: =SUM(G206:I206) -> 306175 | K206: =F206-J206 -> 0
A207: 5 | C207: ='FR-16(7)(v)-1 Functional'!C207 -> LEASED METERS | D207: ='FR-16(7)(v)-1 Functional'!D207 -> K413 | F207: ='FR-16(7)(v)-1 Functional'!G207 -> 0 | G207: 0 | H207: 0 | I207: 0 | J207: 0 | K207: 0
A208: 6 | C208: ='FR-16(7)(v)-1 Functional'!C208 -> CONTRIB AID CONSTR | D208: ='FR-16(7)(v)-1 Functional'!D208 -> D249 | F208: ='FR-16(7)(v)-1 Functional'!G208 -> 0 | G208: 0 | H208: 0 | I208: 0 | J208: 0 | K208: 0
A209: 7 | C209: ='FR-16(7)(v)-1 Functional'!C209 -> CAPITALIZED INTEREST | D209: ='FR-16(7)(v)-1 Functional'!D209 -> NP29 | F209: ='FR-16(7)(v)-1 Functional'!G209 -> 0 | G209: 0 | H209: 0 | I209: 0 | J209: 0 | K209: 0
A210: 8 | C210: ='FR-16(7)(v)-1 Functional'!C210 -> AFUDC IN DEBT | D210: ='FR-16(7)(v)-1 Functional'!D210 -> NP29 | F210: ='FR-16(7)(v)-1 Functional'!G210 -> 0 | G210: 0 | H210: 0 | I210: 0 | J210: 0 | K210: 0
A211: 9 | C211: ='FR-16(7)(v)-1 Functional'!C211 -> CWIP DIFFERENCES | D211: ='FR-16(7)(v)-1 Functional'!D211 -> NP29 | F211: ='FR-16(7)(v)-1 Functional'!G211 -> 0 | G211: 0 | H211: 0 | I211: 0 | J211: 0 | K211: 0
A212: 10 | C212: ='FR-16(7)(v)-1 Functional'!C212 -> NON-CASH OVERHEADS | D212: ='FR-16(7)(v)-1 Functional'!D212 -> AG39 | F212: ='FR-16(7)(v)-1 Functional'!G212 -> 0 | G212: 0 | H212: 0 | I212: 0 | J212: 0 | K212: 0
A213: 11 | C213: ='FR-16(7)(v)-1 Functional'!C213 -> PLANT FAS 109 | D213: ='FR-16(7)(v)-1 Functional'!D213 -> NP29 | F213: ='FR-16(7)(v)-1 Functional'!G213 -> 0 | G213: 0 | H213: 0 | I213: 0 | J213: 0 | K213: 0
A214: 12 | C214: ='FR-16(7)(v)-1 Functional'!C214 -> MISCELLANEOUS | D214: ='FR-16(7)(v)-1 Functional'!D214 -> NP29 | F214: ='FR-16(7)(v)-1 Functional'!G214 -> 96378 | G214: 0 | H214: 96378 | I214: 0 | J214: 96378 | K214: 0
... 636 more rows

Sheet FR-16(7)(v)-3 PROD Comm Alloc
A1: =co_name -> DUKE ENERGY KENTUCKY, INC. | K1: FR-16(7)(v)-3
A2: PRODUCTION COMMODITY ALLOCATED - GAS COST OF SERVICE | K2: WITNESS RESPONSIBLE:
A3: =case_name -> CASE NO: 2025-00125 | K3: =Witness -> DOUGLAS J. HEITKAMP
A4: =data_filing -> DATA: 12 MONTH FORECASTED PERIOD | K4: ="PAGE "&Pages-17&" OF "&Pages -> PAGE 1 OF 18
A5: =type -> TYPE OF FILING: "X" ORIGINAL UPDATED REVISED
F7: TOTAL
A8: LINE | F8: PRODUCTION | G8: RS | H8: GS | I8: FT-L | J8: INTERUPT | K8: TOTAL | L8: ALL
A9: NO. | B9: SUMMARY OF RESULTS | D9: ALLO | F9: COMMODITY | G9: RESIDENTIAL | H9: GEN SERV | I9: FIRM TRANS | J9: TRANS | K9: AT ISSUE | L9: OTHER
C10: Schedule 1 | G10: 3 | H10: 4 | I10: 5 | J10: 6
A11: 1 | B11: NET INCOME COMPUTATION
A12: 2 | C12: ='FR-16(7)(v)-1 Functional'!C12 -> GROSS GAS PLANT IN SERVICE | F12: =F101 -> 5519018 | G12: 3446902 | H12: 2064720 | I12: 4747 | J12: 2649 | K12: 5519018 | L12: =F12-K12 -> 0
A13: 3 | C13: ='FR-16(7)(v)-1 Functional'!C13 -> TOTAL DEPRECIATION RESERVE | F13: =-F151 -> -2710148 | G13: -1692623 | H13: -1013894 | I13: -2330 | J13: -1301 | K13: -2710148 | L13: =F13-K13 -> 0
A14: 4 | C14: ='FR-16(7)(v)-1 Functional'!C14 -> TOTAL RATE BASE ADJUSTMENTS | F14: =F326 -> 1513439 | G14: 946769 | H14: 567114 | I14: -285 | J14: -158 | K14: 1513440 | L14: =F14-K14 -> -1
A15: 5 | C15: ='FR-16(7)(v)-1 Functional'!C15 -> TOTAL RATE BASE | F15: =SUM(F12:F14) -> 4322309 | G15: 2701048 | H15: 1617940 | I15: 2132 | J15: 1190 | K15: 4322310 | L15: =F15-K15 -> -1
A16: 6
A17: 7 | B17: OPERATING EXPENSES
A18: 8 | C18: ='FR-16(7)(v)-1 Functional'!C18 -> TOTAL O&M EXPENSE | F18: =F433 -> 65416645 | G18: 40856529 | H18: 24473152 | I18: 55841 | J18: 31123 | K18: 65416645 | L18: =F18-K18 -> 0
A19: 9 | C19: ='FR-16(7)(v)-1 Functional'!C19 -> TOTAL DEPRECIATION EXPENSE | F19: =F465 -> 543528 | G19: 339461 | H19: 203339 | I19: 467 | J19: 261 | K19: 543528 | L19: 0
A20: 10 | C20: ='FR-16(7)(v)-1 Functional'!C20 -> TOTAL OTHER TAX & MISC EXPENSE | F20: =F495 -> 65908 | G20: =$G$495 -> 41200 | H20: =$H$495 -> 24681 | I20: =$I$495 -> 17 | J20: =$J$495 -> 10 | K20: =$K$495 -> 65908 | L20: 0
A21: 11 | C21: ='FR-16(7)(v)-1 Functional'!C21 -> TOTAL OP EXP EXCLUDING INC & REV TAX | F21: =SUM(F17:F20) -> 66026081 | G21: 41237190 | H21: 24701172 | I21: 56325 | J21: 31394 | K21: 66026081 | L21: 0
A22: 12 | C22: ='FR-16(7)(v)-1 Functional'!C22 -> NET FED INCOME TAX EXP ALLOWABLE | F22: =F557 -> 706128 | G22: =$G$557 -> 431578 | H22: =$H$557 -> 258515 | I22: =$I$557 -> 15701 | J22: =$J$557 -> 334 | K22: =$K$557 -> 706128 | L22: 0
A23: 13 | C23: ='FR-16(7)(v)-1 Functional'!C23 -> NET STATE INCOME TAX EXP ALLOWABLE | F23: =F605 -> 44864 | G23: =G605 -> 27530 | H23: 16491 | I23: 824 | J23: 19 | K23: 44864 | L23: 0
A24: 14 | C24: ='FR-16(7)(v)-1 Functional'!C24 -> TOTAL OPERATING EXPENSE | F24: =SUM(F21:F23) -> 66777073 | G24: 41696298 | H24: 24976178 | I24: 72850 | J24: 31747 | K24: 66777073 | L24: 0
A25: 15
A26: 16 | B26: RETURN ON RATE BASE | F26: =F334 -> 346261 | G26: 216382 | H26: 129613 | I26: 171 | J26: 95 | K26: 346261 | L26: =F26-K26 -> 0
A27: 17 | B27: TOTAL OTHER OPERATING REVENUES | F27: =-F630 -> -55958 | G27: =-$G$630 -> -34996 | H27: =-$H$630 -> -20962 | I27: =-$I$630 -> 0 | J27: =-$J$630 -> 0 | K27: =-$K$630 -> -55958 | L27: 0
A28: 18 | C28: ='FR-16(7)(v)-1 Functional'!C28 -> TOTAL GAS COST OF SERVICE | F28: =SUM(F24:F27) -> 67067376 | G28: 41877684 | H28: 25084829 | I28: 73021 | J28: 31842 | K28: 67067376 | L28: 0
A29: 19 | B29: ADJUSTMENT FOR INTERCLASS SUBSIDIZATION | D29: =1-'WP FR-16(7)(v)Rate Incr (50.0%)'!I11 -> 0.5 | F29: ='WP FR-16(7)(v)Rate Incr (50.0%)'!Q20 -> 0 | G29: ='WP FR-16(7)(v)Rate Incr (50.0%)'!Q15 -> -718 | H29: ='WP FR-16(7)(v)Rate Incr (50.0%)'!Q16 -> -10115 | I29: ='WP FR-16(7)(v)Rate Incr (50.0%)'!Q17 -> 7684 | J29: ='WP FR-16(7)(v)Rate Incr (50.0%)'!Q18 -> 3149 | K29: =SUM(G29:J29) -> 0 | L29: 0
A30: 20 | B30: REQUESTED REVENUES | F30: =F29+F28 -> 67067376 | G30: 41876966 | H30: 25074714 | I30: 80705 | J30: 34991 | K30: 67067376 | L30: 0
A31: 21 | B31: PROPOSED REVENUES | F31: =F745 -> 67411733 | G31: 44214571 | H31: 19363183 | I31: 3014309 | J31: 819670 | K31: 67411733 | L31: 0
A32: 22 | B32: DIFFERENCE (REQUESTED LESS PROPOSED) | F32: =F30-F31 -> -344357 | G32: =G30-G31 -> -2337605 | H32: 5711531 | I32: -2933604 | J32: -784679 | K32: -344357 | L32: 0
A33: 23
A34: 24 | B34: TOTAL RETURN EARNED | F34: =F654+F26 -> 638469 | G34: 1991468 | H34: -4153532 | I34: 2208958 | J34: 591571 | K34: 638465 | L34: =F34-K34 -> 4
A35: 25 | B35: RATE OF RETURN EARNED | F35: =IF(F331=0,0,ROUND(F34/F331,5)) -> 0.14771 | G35: 0.73729 | H35: -2.56717 | I35: 1036.09662 | J35: 497.11849 | K35: 0.14771 | L35: -4
A36: 26 | B36: TOTAL RATE OF RETURN ALLOWABLE | F36: =$F$688 -> 0.08011 | G36: 0.08011 | H36: 0.08011 | I36: 0.08011 | J36: 0.08011 | K36: 0.08011 | L36: 0.08011 | O36: Not Part of print range
A37: 27 | B37: RETURN EARNED ON COMMON EQUITY | F37: =IF($F$670=0,0,(F35-$F$683-$F$684-$F$686)*$F$673/$F$670) -> 0.2359008695 | G37: 1.355727235 | H37: -4.920641422 | I37: 1967.878805 | J37: 944.1637521 | K37: 0.2359008695 | L37: =IF(F670=0,0,(L35-F683-F684-F686)*F673/F670) -> -7.642105536 | O37: Not Filed
A38: 28 | B38: ALLOWED RETURN ON COMMON EQUITY | F38: 0.1075039389 | G38: 0.1075039389 | H38: 0.1075039389 | I38: 0.1075039389 | J38: 0.1075039389 | K38: 0.1075039389 | L38: =IF($F$670=0,0,(L36-$F$683-$F$684-$F$686)*$F$673/$F$670) -> 0.1075039389
A39: 29
A40: 30 | B40: PRESENT REVENUES | F40: =F744 -> 57266271 | G40: 37404507 | H40: 16160509 | I40: 2919593 | J40: 781662 | K40: 57266271 | L40: =F40-K40 -> 0
A41: 31 | B41: REVENUE INCREASE JUSTIFIED | F41: =F28-F40 -> 9801105 | G41: 4473177 | H41: 8924320 | I41: -2846572 | J41: -749820 | K41: 9801105 | L41: 0
A42: 32 | C42: PER UNIT PRES REV | F42: =IF(F40=0,0,ROUND(F41/F40,5)) -> 0.17115 | G42: 0.11959 | H42: 0.55223 | I42: -0.97499 | J42: -0.95926 | K42: 0.17115 | L42: 0
A43: 33 | B43: REVENUE INCREASE REQUESTED | F43: =F31-F40 -> 10145462 | G43: 6810064 | H43: 3202674 | I43: 94716 | J43: 38008 | K43: 10145462 | L43: 0
A44: 34 | C44: PER UNIT PRES REV | F44: =IF(F40=0,0,ROUND(F43/F40,5)) -> 0.17716 | G44: 0.18207 | H44: 0.19818 | I44: 0.03244 | J44: 0.04862 | K44: 0.17716 | L44: 0
A46: =co_name -> DUKE ENERGY KENTUCKY, INC. | K46: =$K$1 -> FR-16(7)(v)-3
A47: =$A$2 -> PRODUCTION COMMODITY ALLOCATED - GAS COST OF SERVICE | K47: =$K$2 -> WITNESS RESPONSIBLE:
A48: =case_name -> CASE NO: 2025-00125 | K48: =Witness -> DOUGLAS J. HEITKAMP
A49: =data_filing -> DATA: 12 MONTH FORECASTED PERIOD | K49: ="PAGE "&Pages-16&" OF "&Pages -> PAGE 2 OF 18
A50: =type -> TYPE OF FILING: "X" ORIGINAL UPDATED REVISED
F52: =$F$7 -> TOTAL
A53: LINE | F53: =$F$8 -> PRODUCTION | G53: RS/RFT/RSLI | H53: GS/FT SMALL | I53: GS/FT LARGE | J53: INTERUPT | K53: TOTAL | L53: ALL
A54: NO. | B54: GROSS GAS PLANT IN SERVICE | D54: ALLO | F54: =$F$9 -> COMMODITY | G54: RESIDENTIAL | H54: GEN SERV | I54: GEN SERV | J54: TRANS | K54: AT ISSUE | L54: OTHER
C55: Schedule 2 | G55: =$G$10 -> 3 | H55: =$H$10 -> 4 | I55: =$I$10 -> 5 | J55: =$J$10 -> 6
A56: 1 | B56: PRODUCTION PLANT
A57: 2 | C57: ='FR-16(7)(v)-1 Functional'!C57 -> PRODUCTION PLANT | D57: ='FR-16(7)(v)-1 Functional'!D57 -> K205 | F57: ='FR-16(7)(v)-2 PROD Classified'!H57 -> 0 | G57: =F57-SUM(H57:J57) -> 0 | H57: =ROUND($F$57*VLOOKUP($D$57,ALLOCTABLE_Prod_Commodity,$H$10,FALSE),0) -> 0 | I57: =ROUND(F57*VLOOKUP(D57,ALLOCTABLE_Prod_Commodity,$I$10,FALSE),0) -> 0 | J57: =ROUND(F57*VLOOKUP(D57,ALLOCTABLE_Prod_Commodity,$J$10,FALSE),0) -> 0 | K57: =SUM($G$57:$J$57) -> 0 | L57: =F57-$K$57 -> 0
A58: 3 | C58: ='FR-16(7)(v)-1 Functional'!C58 -> GAS PRODUCTION -CPMPL NOT CLASS | D58: ='FR-16(7)(v)-1 Functional'!D58 -> K205 | F58: ='FR-16(7)(v)-2 PROD Classified'!H58 -> 0 | G58: =F58-SUM(H58:J58) -> 0 | H58: =ROUND($F$58*VLOOKUP($D$58,ALLOCTABLE_Prod_Commodity,$H$10,FALSE),0) -> 0 | I58: =ROUND(F58*VLOOKUP(D58,ALLOCTABLE_Prod_Commodity,$I$10,FALSE),0) -> 0 | J58: =ROUND(F58*VLOOKUP(D58,ALLOCTABLE_Prod_Commodity,$J$10,FALSE),0) -> 0 | K58: =SUM($G$58:$J$58) -> 0 | L58: =F58-$K$58 -> 0
A59: 4 | C59: ='FR-16(7)(v)-1 Functional'!C59 -> PRODUCTION PLANT IN SERVICE | F59: =SUM(F57:F58) -> 0 | G59: =SUM($G$57:$G$58) -> 0 | H59: =SUM($H$57:$H$58) -> 0 | I59: =SUM($I$57:$I$58) -> 0 | J59: =SUM($J$57:$J$58) -> 0 | K59: =SUM($K$57:$K$58) -> 0 | L59: =SUM($L$57:$L$58) -> 0
A60: 5
A61: 6 | B61: TRANSMISSION PLANT
A62: 7 | C62: ='FR-16(7)(v)-1 Functional'!C62 -> TRANSMISSION PLANT
A63: 8 | C63: ='FR-16(7)(v)-1 Functional'!C63 -> TRANSMISSION PLANT IN SERVICE | F63: =SUM(F62) -> 0 | G63: =SUM($G$62) -> 0 | H63: =SUM($H$62) -> 0 | I63: =SUM($I$62) -> 0 | J63: =SUM($J$62) -> 0 | K63: =SUM($K$62) -> 0 | L63: =SUM($L$62) -> 0
A64: 9
A65: 10 | B65: TOTAL PROD & TRANS PLANT | F65: =F63+F59 -> 0 | G65: =$G$63+$G$59 -> 0 | H65: =$H$63+$H$59 -> 0 | I65: =$I$63+$I$59 -> 0 | J65: =$J$63+$J$59 -> 0 | K65: =$K$63+$K$59 -> 0 | L65: =$L$63+$L$59 -> 0
A66: 11
A67: 12 | B67: DISTRIBUTION PLANT
A68: 13 | C68: ='FR-16(7)(v)-1 Functional'!C68 -> SYSTEM M&R - (2780, 2781) | D68: ='FR-16(7)(v)-1 Functional'!D68 -> K203 | F68: ='FR-16(7)(v)-2 PROD Classified'!H68 -> 0 | G68: =F68-SUM(H68:J68) -> 0 | H68: =ROUND($F$68*VLOOKUP($D$68,ALLOCTABLE_Prod_Commodity,$H$10,FALSE),0) -> 0 | I68: =ROUND(F68*VLOOKUP(D68,ALLOCTABLE_Prod_Commodity,$I$10,FALSE),0) -> 0 | J68: =ROUND(F68*VLOOKUP(D68,ALLOCTABLE_Prod_Commodity,$J$10,FALSE),0) -> 0 | K68: =SUM(G68:J68) -> 0 | L68: =F68-K68 -> 0
A69: 14 | C69: ='FR-16(7)(v)-1 Functional'!C69 -> DIST REG EQUIP & CITY GATE M&R- (2782, 2790) | D69: ='FR-16(7)(v)-1 Functional'!D69 -> K203 | F69: ='FR-16(7)(v)-2 PROD Classified'!H69 -> 0 | G69: 0 | H69: =ROUND($F$69*VLOOKUP($D$69,ALLOCTABLE_Prod_Commodity,$H$10,FALSE),0) -> 0 | I69: 0 | J69: 0 | K69: 0 | L69: 0
A70: 15 | C70: ='FR-16(7)(v)-1 Functional'!C70 -> LARGE IND M&R - (2850, 2851) | D70: ='FR-16(7)(v)-1 Functional'!D70 -> K595 | F70: ='FR-16(7)(v)-2 PROD Classified'!H70 -> 0 | G70: 0 | H70: =ROUND($F$70*VLOOKUP($D$70,ALLOCTABLE_Prod_Commodity,$H$10,FALSE),0) -> 0 | I70: 0 | J70: 0 | K70: 0 | L70: 0
A71: 16 | C71: ='FR-16(7)(v)-1 Functional'!C71 -> MAINS - (2761, 2762, 2763, 2765) | D71: ='FR-16(7)(v)-1 Functional'!D71 -> K415 | F71: ='FR-16(7)(v)-2 PROD Classified'!H71 -> 0 | G71: 0 | H71: =ROUND($F$71*VLOOKUP($D$71,ALLOCTABLE_Prod_Commodity,$H$10,FALSE),0) -> 0 | I71: 0 | J71: 0 | K71: 0 | L71: 0
A72: 17 | C72: ='FR-16(7)(v)-1 Functional'!C72 -> SERVICES - (2801, 2802, 2803) | D72: ='FR-16(7)(v)-1 Functional'!D72 -> K403 | F72: ='FR-16(7)(v)-2 PROD Classified'!H72 -> 0 | G72: 0 | H72: =ROUND($F$72*VLOOKUP($D$72,ALLOCTABLE_Prod_Commodity,$H$10,FALSE),0) -> 0 | I72: 0 | J72: 0 | K72: 0 | L72: 0
A73: 18 | C73: ='FR-16(7)(v)-1 Functional'!C73 -> MTRS & MTR INST (2810, 2811, 2820, 2821) | D73: ='FR-16(7)(v)-1 Functional'!D73 -> K413 | F73: ='FR-16(7)(v)-2 PROD Classified'!H73 -> 0 | G73: 0 | H73: =ROUND($F$73*VLOOKUP($D$73,ALLOCTABLE_Prod_Commodity,$H$10,FALSE),0) -> 0 | I73: 0 | J73: 0 | K73: 0 | L73: 0
A74: 19 | C74: ='FR-16(7)(v)-1 Functional'!C74 -> LAND, R OF W, STRUCT & IMPROV | D74: ='FR-16(7)(v)-1 Functional'!D74 -> K203 | F74: ='FR-16(7)(v)-2 PROD Classified'!H74 -> 0 | G74: 0 | H74: =ROUND($F$74*VLOOKUP($D$74,ALLOCTABLE_Prod_Commodity,$H$10,FALSE),0) -> 0 | I74: 0 | J74: 0 | K74: 0 | L74: 0
A75: 20 | C75: ='FR-16(7)(v)-1 Functional'!C75 -> HOUSE REG & INSTALL (2830, 2840) | D75: ='FR-16(7)(v)-1 Functional'!D75 -> K417 | F75: ='FR-16(7)(v)-2 PROD Classified'!H75 -> 0 | G75: 0 | H75: =ROUND($F$75*VLOOKUP($D$75,ALLOCTABLE_Prod_Commodity,$H$10,FALSE),0) -> 0 | I75: 0 | J75: 0 | K75: 0 | L75: 0
A76: 21 | C76: ='FR-16(7)(v)-1 Functional'!C76 -> STREET LIGHTING EQUIPMENT & OTH | D76: ='FR-16(7)(v)-1 Functional'!D76 -> K597 | F76: ='FR-16(7)(v)-2 PROD Classified'!H76 -> 0 | G76: 0 | H76: =ROUND($F$76*VLOOKUP($D$76,ALLOCTABLE_Prod_Commodity,$H$10,FALSE),0) -> 0 | I76: 0 | J76: 0 | K76: 0 | L76: 0
A77: 22 | C77: ='FR-16(7)(v)-1 Functional'!C77 -> ASSET RETIREMENT COST FOR DISTRIBUTION PLANT | D77: ='FR-16(7)(v)-1 Functional'!D77 -> K203 | F77: ='FR-16(7)(v)-2 PROD Classified'!H77 -> 0 | G77: 0 | H77: =ROUND($F$77*VLOOKUP($D$77,ALLOCTABLE_Prod_Commodity,$H$10,FALSE),0) -> 0 | I77: 0 | J77: 0 | K77: 0 | L77: 0
A78: 23 | C78: ='FR-16(7)(v)-1 Functional'!C78 -> DISTRIBUTION PLANT IN SERVICE | F78: =SUM(F68:F77) -> 0 | G78: =SUM(G68:G77) -> 0 | H78: 0 | I78: 0 | J78: 0 | K78: 0 | L78: 0
A79: 24
A80: 25 | B80: TOTAL TRANS & DIST PLANT | F80: =F78+F63 -> 0 | G80: =G78+$G$63 -> 0 | H80: =H78+$H$63 -> 0 | I80: =I78+$I$63 -> 0 | J80: =J78+$J$63 -> 0 | K80: =K78+$K$63 -> 0 | L80: =L78+$L$63 -> 0
A81: 26 | B81: TOTAL GROSS PTD PLANT | F81: =F78+F65 -> 0 | G81: =G78+G65 -> 0 | H81: 0 | I81: 0 | J81: 0 | K81: 0 | L81: 0
A82: 27
A83: 28 | B83: GENERAL & INTANGIBLE PLANT
A84: 29 | C84: ='FR-16(7)(v)-1 Functional'!C84 -> PRODUCTION PLANT | D84: ='FR-16(7)(v)-1 Functional'!D84 -> K201 | F84: ='FR-16(7)(v)-2 PROD Classified'!H84 -> 0 | G84: =F84-SUM(H84:J84) -> 0 | H84: =ROUND($F$84*VLOOKUP($D$84,ALLOCTABLE_Prod_Commodity,$H$10,FALSE),0) -> 0 | I84: =ROUND(F84*VLOOKUP(D84,ALLOCTABLE_Prod_Commodity,$I$10,FALSE),0) -> 0 | J84: =ROUND(F84*VLOOKUP(D84,ALLOCTABLE_Prod_Commodity,$J$10,FALSE),0) -> 0 | K84: =SUM(G84:J84) -> 0 | L84: =F84-K84 -> 0
A85: 30 | C85: ='FR-16(7)(v)-1 Functional'!C85 -> PRODUCTION PLANT COMMODITY | D85: ='FR-16(7)(v)-1 Functional'!D85 -> P349 | F85: ='FR-16(7)(v)-2 PROD Classified'!H85 -> 4286932 | G85: 2677403 | H85: =ROUND($F$85*VLOOKUP($D$85,ALLOCTABLE_Prod_Commodity,$H$10,FALSE),0) -> 1603784 | I85: 3687 | J85: 2058 | K85: 4286932 | L85: 0
A86: 31 | C86: ='FR-16(7)(v)-1 Functional'!C86 -> DISTRIBUTION PLANT | D86: ='FR-16(7)(v)-1 Functional'!D86 -> D349 | F86: ='FR-16(7)(v)-2 PROD Classified'!H86 -> 0 | G86: 0 | H86: =ROUND($F$86*VLOOKUP($D$86,ALLOCTABLE_Prod_Commodity,$H$10,FALSE),0) -> 0 | I86: 0 | J86: 0 | K86: 0 | L86: 0
A87: 32 | C87: ='FR-16(7)(v)-1 Functional'!C87 -> CUSTOMER ACCOUNTING | D87: ='FR-16(7)(v)-1 Functional'!D87 -> CA19 | F87: ='FR-16(7)(v)-2 PROD Classified'!H87 -> 0 | G87: 0 | H87: =ROUND($F$87*VLOOKUP($D$87,ALLOCTABLE_Prod_Commodity,$H$10,FALSE),0) -> 0 | I87: 0 | J87: 0 | K87: 0 | L87: 0
A88: 33 | C88: ='FR-16(7)(v)-1 Functional'!C88 -> CUSTOMER SERVICE & INFORMATION | D88: ='FR-16(7)(v)-1 Functional'!D88 -> CS19 | F88: ='FR-16(7)(v)-2 PROD Classified'!H88 -> 0 | G88: 0 | H88: =ROUND($F$88*VLOOKUP($D$88,ALLOCTABLE_Prod_Commodity,$H$10,FALSE),0) -> 0 | I88: 0 | J88: 0 | K88: 0 | L88: 0
A89: 34 | C89: ='FR-16(7)(v)-1 Functional'!C89 -> SALES | D89: ='FR-16(7)(v)-1 Functional'!D89 -> SE19 | F89: ='FR-16(7)(v)-2 PROD Classified'!H89 -> 0 | G89: 0 | H89: =ROUND($F$89*VLOOKUP($D$89,ALLOCTABLE_Prod_Commodity,$H$10,FALSE),0) -> 0 | I89: 0 | J89: 0 | K89: 0 | L89: 0
A90: 35 | C90: ='FR-16(7)(v)-1 Functional'!C90 -> GEN & INTANG PLANT IN SERVICE | F90: =SUM(F84:F89) -> 4286932 | G90: =SUM(G84:G89) -> 2677403 | H90: 1603784 | I90: 3687 | J90: 2058 | K90: 4286932 | L90: 0
A91: 36
A92: 37 | B92: COMMON & OTHER PLANT
A93: 38 | C93: ='FR-16(7)(v)-1 Functional'!C93 -> PRODUCTION PLANT | D93: ='FR-16(7)(v)-1 Functional'!D93 -> K201 | F93: ='FR-16(7)(v)-2 PROD Classified'!H93 -> 0 | G93: =F93-SUM(H93:J93) -> 0 | H93: =ROUND($F$93*VLOOKUP($D$93,ALLOCTABLE_Prod_Commodity,$H$10,FALSE),0) -> 0 | I93: =ROUND(F93*VLOOKUP(D93,ALLOCTABLE_Prod_Commodity,$I$10,FALSE),0) -> 0 | J93: =ROUND(F93*VLOOKUP(D93,ALLOCTABLE_Prod_Commodity,$J$10,FALSE),0) -> 0 | K93: =SUM(G93:J93) -> 0 | L93: =F93-K93 -> 0
A94: 39 | C94: ='FR-16(7)(v)-1 Functional'!C94 -> PRODUCTION PLANT COMMODITY | D94: ='FR-16(7)(v)-1 Functional'!D94 -> P349 | F94: ='FR-16(7)(v)-2 PROD Classified'!H94 -> 1232086 | G94: 769499 | H94: =ROUND($F$94*VLOOKUP($D$94,ALLOCTABLE_Prod_Commodity,$H$10,FALSE),0) -> 460936 | I94: 1060 | J94: 591 | K94: 1232086 | L94: 0
A95: 40 | C95: ='FR-16(7)(v)-1 Functional'!C95 -> DISTRIBUTION PLANT | D95: ='FR-16(7)(v)-1 Functional'!D95 -> D349 | F95: ='FR-16(7)(v)-2 PROD Classified'!H95 -> 0 | G95: 0 | H95: =ROUND($F$95*VLOOKUP($D$95,ALLOCTABLE_Prod_Commodity,$H$10,FALSE),0) -> 0 | I95: 0 | J95: 0 | K95: 0 | L95: 0
A96: 41 | C96: ='FR-16(7)(v)-1 Functional'!C96 -> CUSTOMER ACCOUNTING | D96: ='FR-16(7)(v)-1 Functional'!D96 -> CA19 | F96: ='FR-16(7)(v)-2 PROD Classified'!H96 -> 0 | G96: 0 | H96: =ROUND($F$96*VLOOKUP($D$96,ALLOCTABLE_Prod_Commodity,$H$10,FALSE),0) -> 0 | I96: 0 | J96: 0 | K96: 0 | L96: 0
A97: 42 | C97: ='FR-16(7)(v)-1 Functional'!C97 -> CUSTOMER SERVICE & INFORMATION | D97: ='FR-16(7)(v)-1 Functional'!D97 -> CS19 | F97: ='FR-16(7)(v)-2 PROD Classified'!H97 -> 0 | G97: 0 | H97: =ROUND($F$97*VLOOKUP($D$97,ALLOCTABLE_Prod_Commodity,$H$10,FALSE),0) -> 0 | I97: 0 | J97: 0 | K97: 0 | L97: 0
A98: 43 | C98: ='FR-16(7)(v)-1 Functional'!C98 -> SALES | D98: ='FR-16(7)(v)-1 Functional'!D98 -> SE19 | F98: ='FR-16(7)(v)-2 PROD Classified'!H98 -> 0 | G98: 0 | H98: =ROUND($F$98*VLOOKUP($D$98,ALLOCTABLE_Prod_Commodity,$H$10,FALSE),0) -> 0 | I98: 0 | J98: 0 | K98: 0 | L98: 0
A99: 44 | C99: ='FR-16(7)(v)-1 Functional'!C99 -> COMMON & OTHER PLANT IN SERVICE | F99: =SUM(F93:F98) -> 1232086 | G99: =SUM(G93:G98) -> 769499 | H99: 460936 | I99: 1060 | J99: 591 | K99: 1232086 | L99: 0
A100: 45
A101: 46 | B101: GROSS GAS PLANT IN SERVICE | F101: =F81+F90+F99 -> 5519018 | G101: =G81+G90+G99 -> 3446902 | H101: 2064720 | I101: 4747 | J101: 2649 | K101: 5519018 | L101: 0
A103: =co_name -> DUKE ENERGY KENTUCKY, INC. | K103: =$K$1 -> FR-16(7)(v)-3
A104: =$A$2 -> PRODUCTION COMMODITY ALLOCATED - GAS COST OF SERVICE | K104: =$K$2 -> WITNESS RESPONSIBLE:
A105: =case_name -> CASE NO: 2025-00125 | K105: =Witness -> DOUGLAS J. HEITKAMP
A106: =data_filing -> DATA: 12 MONTH FORECASTED PERIOD | K106: ="PAGE "&Pages-15&" OF "&Pages -> PAGE 3 OF 18
A107: =type -> TYPE OF FILING: "X" ORIGINAL UPDATED REVISED
F109: =$F$7 -> TOTAL
A110: LINE | F110: =$F$8 -> PRODUCTION | G110: RS/RFT | H110: GS/FT SMALL | I110: GS/FT LARGE | J110: INTERUPT | K110: TOTAL | L110: ALL
A111: NO. | B111: DEPRECIATION RESERVE | D111: ALLO | F111: =$F$9 -> COMMODITY | G111: RESIDENTIAL | H111: GEN SERV | I111: GEN SERV | J111: TRANS | K111: AT ISSUE | L111: OTHER
C112: Schedule 3 | G112: =$G$10 -> 3 | H112: =$H$10 -> 4 | I112: =$I$10 -> 5 | J112: =$J$10 -> 6
A113: 1 | B113: PRODUCTION PLANT
A114: 2 | C114: ='FR-16(7)(v)-1 Functional'!C114 -> PRODUCTION PLANT | D114: ='FR-16(7)(v)-1 Functional'!D114 -> K205 | F114: ='FR-16(7)(v)-2 PROD Classified'!H114 -> 0 | G114: =F114-SUM(H114:J114) -> 0 | H114: =ROUND($F$114*VLOOKUP($D$114,ALLOCTABLE_Prod_Commodity,$H$10,FALSE),0) -> 0 | I114: =ROUND(F114*VLOOKUP(D114,ALLOCTABLE_Prod_Commodity,$I$10,FALSE),0) -> 0 | J114: =ROUND(F114*VLOOKUP(D114,ALLOCTABLE_Prod_Commodity,$J$10,FALSE),0) -> 0 | K114: =SUM(G114:J114) -> 0 | L114: =F114-K114 -> 0
A115: 3 | C115: ='FR-16(7)(v)-1 Functional'!C115 -> TOTAL PROD DEPREC RESERVE | F115: =SUM(F114:F114) -> 0 | G115: =SUM(G114:G114) -> 0 | H115: 0 | I115: 0 | J115: 0 | K115: 0 | L115: 0
A116: 4
A117: 5 | B117: TRANSMISSION PLANT
A118: 6 | C118: ='FR-16(7)(v)-1 Functional'!C118 -> TRANSMISSION PLANT
A119: 7 | C119: ='FR-16(7)(v)-1 Functional'!C119 -> TOTAL TRANS DEPREC RESERVE | F119: =SUM(F118:F118) -> 0 | G119: =SUM(G118:G118) -> 0 | H119: 0 | I119: 0 | J119: 0 | K119: 0 | L119: 0
A120: 8
A121: 9 | B121: DISTRIBUTION PLANT
A122: 10 | C122: ='FR-16(7)(v)-1 Functional'!C122 -> SYSTEM M&R - (2780, 2781) | D122: ='FR-16(7)(v)-1 Functional'!D122 -> K203 | F122: ='FR-16(7)(v)-2 PROD Classified'!H122 -> 0 | G122: =F122-SUM(H122:J122) -> 0 | H122: =ROUND($F$122*VLOOKUP($D$122,ALLOCTABLE_Prod_Commodity,$H$10,FALSE),0) -> 0 | I122: =ROUND(F122*VLOOKUP(D122,ALLOCTABLE_Prod_Commodity,$I$10,FALSE),0) -> 0 | J122: =ROUND(F122*VLOOKUP(D122,ALLOCTABLE_Prod_Commodity,$J$10,FALSE),0) -> 0 | K122: =SUM(G122:J122) -> 0 | L122: =F122-K122 -> 0
A123: 11 | C123: ='FR-16(7)(v)-1 Functional'!C123 -> DIST REG EQUIP & CITY GATE M&R- (2782, 2790) | D123: ='FR-16(7)(v)-1 Functional'!D123 -> K203 | F123: ='FR-16(7)(v)-2 PROD Classified'!H123 -> 0 | G123: 0 | H123: =ROUND($F$123*VLOOKUP($D$123,ALLOCTABLE_Prod_Commodity,$H$10,FALSE),0) -> 0 | I123: 0 | J123: 0 | K123: 0 | L123: 0
A124: 12 | C124: ='FR-16(7)(v)-1 Functional'!C124 -> LARGE IND M&R - (2850, 2851) | D124: ='FR-16(7)(v)-1 Functional'!D124 -> K595 | F124: ='FR-16(7)(v)-2 PROD Classified'!H124 -> 0 | G124: 0 | H124: =ROUND($F$124*VLOOKUP($D$124,ALLOCTABLE_Prod_Commodity,$H$10,FALSE),0) -> 0 | I124: 0 | J124: 0 | K124: 0 | L124: 0
A125: 13 | C125: ='FR-16(7)(v)-1 Functional'!C125 -> MAINS - (2761, 2762, 2763, 2765) | D125: ='FR-16(7)(v)-1 Functional'!D125 -> K415 | F125: ='FR-16(7)(v)-2 PROD Classified'!H125 -> 0 | G125: 0 | H125: =ROUND($F$125*VLOOKUP($D$125,ALLOCTABLE_Prod_Commodity,$H$10,FALSE),0) -> 0 | I125: 0 | J125: 0 | K125: 0 | L125: 0
A126: 14 | C126: ='FR-16(7)(v)-1 Functional'!C126 -> SERVICES - (2801, 2802, 2803) | D126: ='FR-16(7)(v)-1 Functional'!D126 -> K403 | F126: ='FR-16(7)(v)-2 PROD Classified'!H126 -> 0 | G126: 0 | H126: =ROUND($F$126*VLOOKUP($D$126,ALLOCTABLE_Prod_Commodity,$H$10,FALSE),0) -> 0 | I126: 0 | J126: 0 | K126: 0 | L126: 0
A127: 15 | C127: ='FR-16(7)(v)-1 Functional'!C127 -> MTRS & MTR INST (2810, 2811, 2820, 2821) | D127: ='FR-16(7)(v)-1 Functional'!D127 -> K413 | F127: ='FR-16(7)(v)-2 PROD Classified'!H127 -> 0 | G127: 0 | H127: =ROUND($F$127*VLOOKUP($D$127,ALLOCTABLE_Prod_Commodity,$H$10,FALSE),0) -> 0 | I127: 0 | J127: 0 | K127: 0 | L127: 0
A128: 16 | C128: ='FR-16(7)(v)-1 Functional'!C128 -> LAND, R OF W, STRUCT & IMPROV & OTH | D128: ='FR-16(7)(v)-1 Functional'!D128 -> K203 | F128: ='FR-16(7)(v)-2 PROD Classified'!H128 -> 0 | G128: 0 | H128: =ROUND($F$128*VLOOKUP($D$128,ALLOCTABLE_Prod_Commodity,$H$10,FALSE),0) -> 0 | I128: 0 | J128: 0 | K128: 0 | L128: 0
A129: 17 | C129: ='FR-16(7)(v)-1 Functional'!C129 -> HOUSE REG & INSTALL (2830, 2840) | D129: ='FR-16(7)(v)-1 Functional'!D129 -> K417 | F129: ='FR-16(7)(v)-2 PROD Classified'!H129 -> 0 | G129: 0 | H129: =ROUND($F$129*VLOOKUP($D$129,ALLOCTABLE_Prod_Commodity,$H$10,FALSE),0) -> 0 | I129: 0 | J129: 0 | K129: 0 | L129: 0
A130: 18 | C130: ='FR-16(7)(v)-1 Functional'!C130 -> STREET LIGHTING EQUIPMENT & OTH | D130: ='FR-16(7)(v)-1 Functional'!D130 -> K597 | F130: ='FR-16(7)(v)-2 PROD Classified'!H130 -> 0 | G130: 0 | H130: =ROUND($F$130*VLOOKUP($D$130,ALLOCTABLE_Prod_Commodity,$H$10,FALSE),0) -> 0 | I130: 0 | J130: 0 | K130: 0 | L130: 0
A131: 19 | C131: ='FR-16(7)(v)-1 Functional'!C131 -> TOTAL DIST DEPREC RESERVE | F131: =SUM(F121:F130) -> 0 | G131: =SUM(G121:G130) -> 0 | H131: 0 | I131: 0 | J131: 0 | K131: 0 | L131: 0
A132: 20
A133: 21 | B133: GENERAL & INTANGIBLE PLANT
A134: 22 | C134: ='FR-16(7)(v)-1 Functional'!C134 -> PRODUCTION PLANT | D134: ='FR-16(7)(v)-1 Functional'!D134 -> K201 | F134: ='FR-16(7)(v)-2 PROD Classified'!H134 -> -1 | G134: =F134-SUM(H134:J134) -> -1 | H134: =ROUND($F$134*VLOOKUP($D$134,ALLOCTABLE_Prod_Commodity,$H$10,FALSE),0) -> 0 | I134: =ROUND(F134*VLOOKUP(D134,ALLOCTABLE_Prod_Commodity,$I$10,FALSE),0) -> 0 | J134: =ROUND(F134*VLOOKUP(D134,ALLOCTABLE_Prod_Commodity,$J$10,FALSE),0) -> 0 | K134: =SUM(G134:J134) -> -1 | L134: =F134-K134 -> 0
A135: 23 | C135: ='FR-16(7)(v)-1 Functional'!C135 -> PRODUCTION PLANT COMMODITY | D135: ='FR-16(7)(v)-1 Functional'!D135 -> P349 | F135: ='FR-16(7)(v)-2 PROD Classified'!H135 -> 2049283 | G135: 1279880 | H135: =ROUND($F$135*VLOOKUP($D$135,ALLOCTABLE_Prod_Commodity,$H$10,FALSE),0) -> 766657 | I135: 1762 | J135: 984 | K135: 2049283 | L135: 0
A136: 24 | C136: ='FR-16(7)(v)-1 Functional'!C136 -> DISTRIBUTION PLANT | D136: ='FR-16(7)(v)-1 Functional'!D136 -> D349 | F136: ='FR-16(7)(v)-2 PROD Classified'!H136 -> 0 | G136: 0 | H136: =ROUND($F$136*VLOOKUP($D$136,ALLOCTABLE_Prod_Commodity,$H$10,FALSE),0) -> 0 | I136: 0 | J136: 0 | K136: 0 | L136: 0
A137: 25 | C137: ='FR-16(7)(v)-1 Functional'!C137 -> CUSTOMER ACCOUNTING | D137: ='FR-16(7)(v)-1 Functional'!D137 -> CA19 | F137: ='FR-16(7)(v)-2 PROD Classified'!H137 -> 0 | G137: 0 | H137: =ROUND($F$137*VLOOKUP($D$137,ALLOCTABLE_Prod_Commodity,$H$10,FALSE),0) -> 0 | I137: 0 | J137: 0 | K137: 0 | L137: 0
A138: 26 | C138: ='FR-16(7)(v)-1 Functional'!C138 -> CUSTOMER SERVICE & INFORMATION | D138: ='FR-16(7)(v)-1 Functional'!D138 -> CS19 | F138: ='FR-16(7)(v)-2 PROD Classified'!H138 -> 0 | G138: 0 | H138: =ROUND($F$138*VLOOKUP($D$138,ALLOCTABLE_Prod_Commodity,$H$10,FALSE),0) -> 0 | I138: 0 | J138: 0 | K138: 0 | L138: 0
A139: 27 | C139: ='FR-16(7)(v)-1 Functional'!C139 -> SALES | D139: ='FR-16(7)(v)-1 Functional'!D139 -> SE19 | F139: ='FR-16(7)(v)-2 PROD Classified'!H139 -> 0 | G139: 0 | H139: =ROUND($F$139*VLOOKUP($D$139,ALLOCTABLE_Prod_Commodity,$H$10,FALSE),0) -> 0 | I139: 0 | J139: 0 | K139: 0 | L139: 0
A140: 28 | C140: ='FR-16(7)(v)-1 Functional'!C140 -> TOTAL GEN DEPREC RESERVE | F140: =SUM(F133:F139) -> 2049282 | G140: =SUM(G133:G139) -> 1279879 | H140: 766657 | I140: 1762 | J140: 984 | K140: 2049282 | L140: 0
A141: 29
A142: 30 | B142: COMMON & OTHER PLANT
A143: 31 | C143: ='FR-16(7)(v)-1 Functional'!C143 -> PRODUCTION PLANT | D143: ='FR-16(7)(v)-1 Functional'!D143 -> K201 | F143: ='FR-16(7)(v)-2 PROD Classified'!H143 -> 0 | G143: =F143-SUM(H143:J143) -> 0 | H143: =ROUND($F$143*VLOOKUP($D$143,ALLOCTABLE_Prod_Commodity,$H$10,FALSE),0) -> 0 | I143: =ROUND(F143*VLOOKUP(D143,ALLOCTABLE_Prod_Commodity,$I$10,FALSE),0) -> 0 | J143: =ROUND(F143*VLOOKUP(D143,ALLOCTABLE_Prod_Commodity,$J$10,FALSE),0) -> 0 | K143: =SUM(G143:J143) -> 0 | L143: =F143-K143 -> 0
A144: 32 | C144: ='FR-16(7)(v)-1 Functional'!C144 -> PRODUCTION PLANT COMMODITY | D144: ='FR-16(7)(v)-1 Functional'!D144 -> P349 | F144: ='FR-16(7)(v)-2 PROD Classified'!H144 -> 660866 | G144: 412744 | H144: =ROUND($F$144*VLOOKUP($D$144,ALLOCTABLE_Prod_Commodity,$H$10,FALSE),0) -> 247237 | I144: 568 | J144: 317 | K144: 660866 | L144: 0
A145: 33 | C145: ='FR-16(7)(v)-1 Functional'!C145 -> DISTRIBUTION PLANT | D145: ='FR-16(7)(v)-1 Functional'!D145 -> D349 | F145: ='FR-16(7)(v)-2 PROD Classified'!H145 -> 0 | G145: 0 | H145: =ROUND($F$145*VLOOKUP($D$145,ALLOCTABLE_Prod_Commodity,$H$10,FALSE),0) -> 0 | I145: 0 | J145: 0 | K145: 0 | L145: 0
A146: 34 | C146: ='FR-16(7)(v)-1 Functional'!C146 -> CUSTOMER ACCOUNTING | D146: ='FR-16(7)(v)-1 Functional'!D146 -> CA19 | F146: ='FR-16(7)(v)-2 PROD Classified'!H146 -> 0 | G146: 0 | H146: =ROUND($F$146*VLOOKUP($D$146,ALLOCTABLE_Prod_Commodity,$H$10,FALSE),0) -> 0 | I146: 0 | J146: 0 | K146: 0 | L146: 0
A147: 35 | C147: ='FR-16(7)(v)-1 Functional'!C147 -> CUSTOMER SERVICE & INFORMATION | D147: ='FR-16(7)(v)-1 Functional'!D147 -> CS19 | F147: ='FR-16(7)(v)-2 PROD Classified'!H147 -> 0 | G147: 0 | H147: =ROUND($F$147*VLOOKUP($D$147,ALLOCTABLE_Prod_Commodity,$H$10,FALSE),0) -> 0 | I147: 0 | J147: 0 | K147: 0 | L147: 0
A148: 36 | C148: ='FR-16(7)(v)-1 Functional'!C148 -> SALES | D148: ='FR-16(7)(v)-1 Functional'!D148 -> SE19 | F148: ='FR-16(7)(v)-2 PROD Classified'!H148 -> 0 | G148: 0 | H148: =ROUND($F$148*VLOOKUP($D$148,ALLOCTABLE_Prod_Commodity,$H$10,FALSE),0) -> 0 | I148: 0 | J148: 0 | K148: 0 | L148: 0
A149: 37 | C149: ='FR-16(7)(v)-1 Functional'!C149 -> TOTAL COM & OTHER PLT RESERVE | F149: =SUM(F143:F148) -> 660866 | G149: =SUM(G142:G148) -> 412744 | H149: 247237 | I149: 568 | J149: 317 | K149: 660866 | L149: 0
A150: 38
A151: 39 | B151: TOTAL DEPRECIATION RESERVE | F151: =F149+F140+F131+F119+F115 -> 2710148 | G151: =G149+G140+G131+G119+G115 -> 1692623 | H151: 1013894 | I151: 2330 | J151: 1301 | K151: 2710148 | L151: 0
A153: =co_name -> DUKE ENERGY KENTUCKY, INC. | K153: =$K$1 -> FR-16(7)(v)-3
A154: =$A$2 -> PRODUCTION COMMODITY ALLOCATED - GAS COST OF SERVICE | K154: =$K$2 -> WITNESS RESPONSIBLE:
A155: =case_name -> CASE NO: 2025-00125 | K155: =Witness -> DOUGLAS J. HEITKAMP
A156: =data_filing -> DATA: 12 MONTH FORECASTED PERIOD | K156: ="PAGE "&Pages-14&" OF "&Pages -> PAGE 4 OF 18
A157: =type -> TYPE OF FILING: "X" ORIGINAL UPDATED REVISED
F159: =$F$7 -> TOTAL
A160: LINE | F160: =$F$8 -> PRODUCTION | G160: RS/RFT | H160: GS/FT SMALL | I160: GS/FT LARGE | J160: INTERUPT | K160: TOTAL | L160: ALL
A161: NO. | B161: ="NET GAS PLANT" -> NET GAS PLANT | D161: ALLO | F161: =$F$9 -> COMMODITY | G161: RESIDENTIAL | H161: GEN SERV | I161: GEN SERV | J161: TRANS | K161: AT ISSUE | L161: OTHER
C162: Schedule 4 | G162: =$G$10 -> 3 | H162: =$H$10 -> 4 | I162: =$I$10 -> 5 | J162: =$J$10 -> 6
A163: 1 | B163: PRODUCTION PLANT
A164: 2 | C164: ='FR-16(7)(v)-1 Functional'!C164 -> PRODUCTION PLANT IN SERVICE | F164: =F59 -> 0 | G164: =$G$59 -> 0 | H164: =$H$59 -> 0 | I164: =$I$59 -> 0 | J164: =$J$59 -> 0 | K164: =$K$59 -> 0 | L164: =F164-K164 -> 0
A165: 3 | C165: ='FR-16(7)(v)-1 Functional'!C165 -> TOTAL PROD DEPRC RESERVE | F165: =-F115 -> 0 | G165: 0 | H165: 0 | I165: 0 | J165: 0 | K165: 0 | L165: =F165-K165 -> 0
A166: 4 | C166: ='FR-16(7)(v)-1 Functional'!C166 -> NET PRODUCTION PLANT | F166: =SUM(F164:F165) -> 0 | G166: 0 | H166: 0 | I166: 0 | J166: 0 | K166: 0 | L166: 0
A167: 5
A168: 6 | B168: TRANSMISSION PLANT
A169: 7 | C169: ='FR-16(7)(v)-1 Functional'!C169 -> TRANSMISSION PLANT IN SERVICE | F169: =F63 -> 0 | G169: =$G$63 -> 0 | H169: =$H$63 -> 0 | I169: =$I$63 -> 0 | J169: =$J$63 -> 0 | K169: =$K$63 -> 0 | L169: =F169-K169 -> 0
A170: 8 | C170: ='FR-16(7)(v)-1 Functional'!C170 -> TOTAL TRANS DEPREC RESERVE | F170: =-F119 -> 0 | G170: 0 | H170: 0 | I170: 0 | J170: 0 | K170: 0 | L170: =F170-K170 -> 0
A171: 9 | C171: ='FR-16(7)(v)-1 Functional'!C171 -> NET TRANSMISSION PLANT | F171: =SUM(F168:F170) -> 0 | G171: 0 | H171: 0 | I171: 0 | J171: 0 | K171: 0 | L171: 0
A172: 10
A173: 11 | B173: DISTRIBUTION PLANT
A174: 12 | C174: ='FR-16(7)(v)-1 Functional'!C174 -> DISTRIBUTION PLANT IN SERVICE | F174: =F78 -> 0 | G174: 0 | H174: 0 | I174: 0 | J174: 0 | K174: 0 | L174: =F174-K174 -> 0
A175: 13 | C175: ='FR-16(7)(v)-1 Functional'!C175 -> TOTAL DIST DEPREC RESERVE | F175: =-F131 -> 0 | G175: 0 | H175: 0 | I175: 0 | J175: 0 | K175: 0 | L175: =F175-K175 -> 0
A176: 14 | C176: ='FR-16(7)(v)-1 Functional'!C176 -> NET DISTRIBUTION PLANT | F176: =SUM(F173:F175) -> 0 | G176: 0 | H176: 0 | I176: 0 | J176: 0 | K176: 0 | L176: 0
A177: 15
A178: 16 | B178: NET PTD PLANT | F178: =F176+F171+F166 -> 0 | G178: 0 | H178: 0 | I178: 0 | J178: 0 | K178: 0 | L178: 0
A179: 17 | B179: NET TRANS & DIST PLANT | F179: =F176+F171 -> 0 | G179: 0 | H179: 0 | I179: 0 | J179: 0 | K179: 0 | L179: 0
A180: 18
A181: 19 | B181: GENERAL & INTANGIBLE PLANT
A182: 20 | C182: ='FR-16(7)(v)-1 Functional'!C182 -> GEN & INTANG PLANT IN SERVICE | F182: =F90 -> 4286932 | G182: 2677403 | H182: 1603784 | I182: 3687 | J182: 2058 | K182: 4286932 | L182: =F182-K182 -> 0
A183: 21 | C183: ='FR-16(7)(v)-1 Functional'!C183 -> TOTAL GEN & INTG DEPREC RESERVE | F183: =-F140 -> -2049282 | G183: -1279879 | H183: -766657 | I183: -1762 | J183: -984 | K183: -2049282 | L183: =F183-K183 -> 0
A184: 22 | C184: ='FR-16(7)(v)-1 Functional'!C184 -> NET GENERAL & INTANG PLANT | F184: =SUM(F181:F183) -> 2237650 | G184: 1397524 | H184: 837127 | I184: 1925 | J184: 1074 | K184: 2237650 | L184: 0
A185: 23
A186: 24 | B186: COMMON & OTHER PLANT
A187: 25 | C187: ='FR-16(7)(v)-1 Functional'!C187 -> COMMON & OTH PLT IN SERVICE | F187: =F99 -> 1232086 | G187: 769499 | H187: 460936 | I187: 1060 | J187: 591 | K187: 1232086 | L187: =F187-K187 -> 0
A188: 26 | C188: ='FR-16(7)(v)-1 Functional'!C188 -> TOTAL COM & OTH DEPREC RESERVE | F188: =-F149 -> -660866 | G188: -412744 | H188: -247237 | I188: -568 | J188: -317 | K188: -660866 | L188: =F188-K188 -> 0
A189: 27 | C189: ='FR-16(7)(v)-1 Functional'!C189 -> NET COMMON & OTHER PLANT | F189: =SUM(F186:F188) -> 571220 | G189: 356755 | H189: 213699 | I189: 492 | J189: 274 | K189: 571220 | L189: 0
A190: 28
A191: 29 | C191: ='FR-16(7)(v)-1 Functional'!C191 -> NET GAS PLANT IN SERVICE | F191: =F189+F184+F176+F171+F166 -> 2808870 | G191: 1754279 | H191: 1050826 | I191: 2417 | J191: 1348 | K191: 2808870 | L191: 0
A193: =co_name -> DUKE ENERGY KENTUCKY, INC. | K193: =$K$1 -> FR-16(7)(v)-3
A194: =$A$2 -> PRODUCTION COMMODITY ALLOCATED - GAS COST OF SERVICE | K194: =$K$2 -> WITNESS RESPONSIBLE:
A195: =case_name -> CASE NO: 2025-00125 | K195: =Witness -> DOUGLAS J. HEITKAMP
A196: =data_filing -> DATA: 12 MONTH FORECASTED PERIOD | K196: ="PAGE "&Pages-13&" OF "&Pages -> PAGE 5 OF 18
A197: =type -> TYPE OF FILING: "X" ORIGINAL UPDATED REVISED
F199: =$F$7 -> TOTAL
A200: LINE | F200: =$F$8 -> PRODUCTION | G200: RS/RFT | H200: GS/FT SMALL | I200: GS/FT LARGE | J200: INTERUPT | K200: TOTAL | L200: ALL
A201: NO. | B201: SUBTRACTIVE RATE BASE ADJUSTMENTS | D201: ALLO | F201: =$F$9 -> COMMODITY | G201: RESIDENTIAL | H201: GEN SERV | I201: GEN SERV | J201: TRANS | K201: AT ISSUE | L201: OTHER
C202: Schedule 5 | G202: =$G$10 -> 3 | H202: =$H$10 -> 4 | I202: =$I$10 -> 5 | J202: =$J$10 -> 6
A203: 1 | B203: RATE BASE ADJUSTMENTS
A204: 2 | B204: ACCUMULATED DEFERRED INCOME TAXES
A205: 3 | B205: ACCUM DEF INC TAXES (282)
A206: 4 | C206: ='FR-16(7)(v)-1 Functional'!C206 -> LIBERALIZED DEPRECIATION | D206: ='FR-16(7)(v)-1 Functional'!D206 -> NP29 | F206: ='FR-16(7)(v)-2 PROD Classified'!H206 -> 306175 | G206: =F206-SUM(H206:J206) -> 191222 | H206: =ROUND($F$206*VLOOKUP($D$206,ALLOCTABLE_Prod_Commodity,$H$10,FALSE),0) -> 114543 | I206: =ROUND(F206*VLOOKUP(D206,ALLOCTABLE_Prod_Commodity,$I$10,FALSE),0) -> 263 | J206: =ROUND(F206*VLOOKUP(D206,ALLOCTABLE_Prod_Commodity,$J$10,FALSE),0) -> 147 | K206: =SUM(G206:J206) -> 306175 | L206: =F206-K206 -> 0
A207: 5 | C207: ='FR-16(7)(v)-1 Functional'!C207 -> LEASED METERS | D207: ='FR-16(7)(v)-1 Functional'!D207 -> K413 | F207: ='FR-16(7)(v)-2 PROD Classified'!H207 -> 0 | G207: 0 | H207: =ROUND($F$207*VLOOKUP($D$207,ALLOCTABLE_Prod_Commodity,$H$10,FALSE),0) -> 0 | I207: 0 | J207: 0 | K207: 0 | L207: 0
A208: 6 | C208: ='FR-16(7)(v)-1 Functional'!C208 -> CONTRIB AID CONSTR | D208: ='FR-16(7)(v)-1 Functional'!D208 -> D249 | F208: ='FR-16(7)(v)-2 PROD Classified'!H208 -> 0 | G208: 0 | H208: =ROUND($F$208*VLOOKUP($D$208,ALLOCTABLE_Prod_Commodity,$H$10,FALSE),0) -> 0 | I208: 0 | J208: 0 | K208: 0 | L208: 0
A209: 7 | C209: ='FR-16(7)(v)-1 Functional'!C209 -> CAPITALIZED INTEREST | D209: ='FR-16(7)(v)-1 Functional'!D209 -> NP29 | F209: ='FR-16(7)(v)-2 PROD Classified'!H209 -> 0 | G209: 0 | H209: =ROUND($F$209*VLOOKUP($D$209,ALLOCTABLE_Prod_Commodity,$H$10,FALSE),0) -> 0 | I209: 0 | J209: 0 | K209: 0 | L209: 0
... 654 more rows

Sheet FR-16(7)(v)-4 DISTR Classified
A1: =co_name -> DUKE ENERGY KENTUCKY, INC. | J1: FR-16(7)(v)-4
A2: DISTRIBUTION CLASSIFIED - GAS COST OF SERVICE | J2: WITNESS RESPONSIBLE:
A3: =case_name -> CASE NO: 2025-00125 | J3: =Witness -> DOUGLAS J. HEITKAMP
A4: =data_filing -> DATA: 12 MONTH FORECASTED PERIOD | J4: ="PAGE "&Pages-17&" OF "&Pages -> PAGE 1 OF 18
A5: =type -> TYPE OF FILING: "X" ORIGINAL UPDATED REVISED
A8: LINE | F8: TOTAL | G8: CLASSIFIED | J8: TOTAL | K8: ALL
A9: NO. | B9: SUMMARY OF RESULTS | D9: ALLO | F9: DISTRIBUTION | G9: DEMAND | H9: COMMODITY | I9: CUSTOMER | J9: AT ISSUE | K9: OTHER
C10: Schedule 1 | G10: 3 | H10: 4 | I10: 5
A11: 1 | B11: NET INCOME COMPUTATION
A12: 2 | C12: ='FR-16(7)(v)-1 Functional'!C12 -> GROSS GAS PLANT IN SERVICE | F12: =F101 -> 919905384 | G12: =G101 -> 521265419 | H12: =H101 -> 0 | I12: =I101 -> 398639965 | J12: =J101 -> 919905384 | K12: =F12-J12 -> 0
A13: 3 | C13: ='FR-16(7)(v)-1 Functional'!C13 -> TOTAL DEPRECIATION RESERVE | F13: =-F151 -> -250117824 | G13: =-G151 -> -124484675 | H13: =-H151 -> 0 | I13: =-I151 -> -125633149 | J13: =-J151 -> -250117824 | K13: =F13-J13 -> 0
A14: 4 | C14: ='FR-16(7)(v)-1 Functional'!C14 -> TOTAL RATE BASE ADJUSTMENTS | F14: =F326 -> -120278577 | G14: =G326 -> -71520849 | H14: =H326 -> 0 | I14: =I326 -> -48757728 | J14: =J326 -> -120278577 | K14: =F14-J14 -> 0
A15: 5 | C15: ='FR-16(7)(v)-1 Functional'!C15 -> TOTAL RATE BASE | F15: =SUM(F12:F14) -> 549508983 | G15: 325259895 | H15: 0 | I15: 224249088 | J15: 549508983 | K15: 0
A16: 6
A17: 7 | B17: OPERATING EXPENSES
A18: 8 | C18: ='FR-16(7)(v)-1 Functional'!C18 -> TOTAL O&M EXPENSE | F18: =F433 -> 20300603 | G18: =G433 -> 8906846 | H18: =H433 -> 0 | I18: =I433 -> 11393757 | J18: =J433 -> 20300603 | K18: =F18-J18 -> 0
A19: 9 | C19: ='FR-16(7)(v)-1 Functional'!C19 -> TOTAL DEPRECIATION EXPENSE | F19: =F465 -> 26420029 | G19: =G465 -> 14904740 | H19: =H465 -> 0 | I19: =I465 -> 11515289 | J19: =J465 -> 26420029 | K19: 0
A20: 10 | C20: ='FR-16(7)(v)-1 Functional'!C20 -> TOTAL OTHER TAX & MISC EXPENSE | F20: =F495 -> 5257875 | G20: =$G$495 -> 3039146 | H20: =$H$495 -> 0 | I20: =$I$495 -> 2218729 | J20: =$J$495 -> 5257875 | K20: 0
A21: 11 | C21: ='FR-16(7)(v)-1 Functional'!C21 -> TOTAL OP EXP EXCLUDING INC & REV TAX | F21: =SUM(F17:F20) -> 51978507 | G21: =SUM(G17:G20) -> 26850732 | H21: =SUM(H17:H20) -> 0 | I21: =SUM(I17:I20) -> 25127775 | J21: =SUM(J17:J20) -> 51978507 | K21: 0
A22: 12 | C22: ='FR-16(7)(v)-1 Functional'!C22 -> NET FED INCOME TAX EXP ALLOWABLE | F22: =F557 -> 6687938 | G22: =$G$557 -> 4081297 | H22: =$H$557 -> 0 | I22: =$I$557 -> 2606640 | J22: =$J$557 -> 6687937 | K22: 1
A23: 13 | C23: ='FR-16(7)(v)-1 Functional'!C23 -> NET STATE INCOME TAX EXP ALLOWABLE | F23: =F605 -> 1788362 | G23: =G605 -> 1071875 | H23: =H605 -> 0 | I23: =I605 -> 716487 | J23: =J605 -> 1788362 | K23: 0
A24: 14 | C24: ='FR-16(7)(v)-1 Functional'!C24 -> TOTAL OPERATING EXPENSE | F24: =SUM(F21:F23) -> 60454807 | G24: =SUM(G21:G23) -> 32003904 | H24: =SUM(H21:H23) -> 0 | I24: =SUM(I21:I23) -> 28450902 | J24: =SUM(J21:J23) -> 60454806 | K24: 1
A25: 15
A26: 16 | B26: RETURN ON RATE BASE | F26: =F334 -> 44021165 | G26: =G334 -> 26056570 | H26: =H334 -> 0 | I26: =I334 -> 17964594 | J26: =J334 -> 44021164 | K26: =F26-J26 -> 1
A27: 17 | B27: TOTAL OTHER OPERATING REVENUES | F27: =-F630 -> -1031818 | G27: =-$G$630 -> -276152 | H27: =-$H$630 -> 0 | I27: =-$I$630 -> -755666 | J27: =-$J$630 -> -1031818 | K27: 0
A28: 18 | C28: ='FR-16(7)(v)-1 Functional'!C28 -> TOTAL GAS COST OF SERVICE | F28: =SUM(F24:F27) -> 103444154 | G28: =SUM(G24:G27) -> 57784322 | H28: =SUM(H24:H27) -> 0 | I28: =SUM(I24:I27) -> 45659830 | J28: =SUM(J24:J27) -> 103444152 | K28: 2
A29: 19 | B29: ADJUSTMENT FOR INTERCLASS SUBSIDIZATION | D29: =1-'WP FR-16(7)(v)Rate Incr (50.0%)'!I11 -> 0.5 | F29: ='WP FR-16(7)(v)Rate Incr (50.0%)'!S20 -> 0 | G29: 0 | H29: 0 | I29: 0 | J29: =SUM(G29:I29) -> 0 | K29: 0
A30: 20 | B30: REQUESTED REVENUES | F30: =F28+F29 -> 103444154 | G30: 57784322 | H30: 0 | I30: 45659830 | J30: 103444152 | K30: 2
A31: 21 | B31: PROPOSED REVENUES | F31: =F745 -> 102245821 | G31: =G745 -> 57041921 | H31: =H745 -> 0 | I31: =I745 -> 45203900 | J31: =J745 -> 102245821 | K31: 0
A32: 22 | B32: DIFFERENCE (REQUESTED LESS PROPOSED) | F32: =F30-F31 -> 1198333 | G32: 742401 | H32: 0 | I32: 455930 | J32: 1198331 | K32: 2
A33: 23
A34: 24 | B34: TOTAL RETURN EARNED | F34: =F654+F26 -> 44464129 | G34: =G654+G26 -> 26303923 | H34: =H654+H26 -> 0 | I34: =I654+I26 -> 18160207 | J34: =J654+J26 -> 44464130 | K34: =F34-J34 -> -1
A35: 25 | B35: RATE OF RETURN EARNED | F35: =IF(F331=0,0,ROUND(F34/F331,5)) -> 0.08092 | G35: 0.08087 | H35: 0 | I35: 0.08098 | J35: 0.08092 | K35: 0
A36: 26 | B36: TOTAL RATE OF RETURN ALLOWABLE | F36: =$F$688 -> 0.08011 | G36: =F688 -> 0.08011 | H36: =F688 -> 0.08011 | I36: =F688 -> 0.08011 | J36: =$F$688 -> 0.08011 | K36: =F688 -> 0.08011 | N36: Not Part of print range
A37: 27 | B37: RETURN EARNED ON COMMON EQUITY | F37: =IF(F670=0,0,(F35-$F$683-$F$684-$F$686)*$F$673/$F$670) -> 0.1090424229 | G37: =IF(F670=0,0,(G35-F683-F684-F686)*F673/F670) -> 0.1089474547 | H37: =IF(F670=0,0,(H35-F683-F684-F686)*F673/F670) -> -0.04465402127 | I37: =IF(F670=0,0,(I35-F683-F684-F686)*F673/F670) -> 0.1091563846 | J37: =IF(F670=0,0,(J35-F683-F684-F686)*F673/F670) -> 0.1090424229 | K37: =IF(F670=0,0,(K35-F683-F684-F686)*F673/F670) -> -0.04465402127 | N37: Not Filed
A38: 28 | B38: ALLOWED RETURN ON COMMON EQUITY | F38: =IF($F$670=0,0,(F36-$F$683-$F$684-$F$686)*$F$673/$F$670) -> 0.1075039389 | G38: =IF(F670=0,0,(G36-F683-F684-F686)*F673/F670) -> 0.1075039389 | H38: =IF(F670=0,0,(H36-F683-F684-F686)*F673/F670) -> 0.1075039389 | I38: =IF(F670=0,0,(I36-F683-F684-F686)*F673/F670) -> 0.1075039389 | J38: =IF($F$670=0,0,(J36-$F$683-$F$684-$F$686)*$F$673/$F$670) -> 0.1075039389 | K38: =IF(F670=0,0,(K36-F683-F684-F686)*F673/F670) -> 0.1075039389
A39: 29
A40: 30 | B40: PRESENT REVENUES | F40: =F744 -> 86857833 | G40: =G744 -> 48457116 | H40: =H744 -> 0 | I40: =I744 -> 38400717 | J40: =J744 -> 86857833 | K40: =F40-J40 -> 0
A41: 31 | B41: REVENUE INCREASE JUSTIFIED | F41: =F28-F40 -> 16586321 | G41: 9327206 | H41: 0 | I41: 7259113 | J41: 16586319 | K41: 2
A42: 32 | C42: PER UNIT PRES REV | F42: =IF(F40=0,0,ROUND(F41/F40,5)) -> 0.19096 | G42: 0.19248 | H42: 0 | I42: 0.18904 | J42: 0.19096 | K42: 0
A43: 33 | B43: REVENUE INCREASE REQUESTED | F43: =F31-F40 -> 15387988 | G43: 8584805 | H43: 0 | I43: 6803183 | J43: 15387988 | K43: 0
A44: 34 | C44: PER UNIT PRES REV | F44: =IF(F40=0,0,ROUND(F43/F40,5)) -> 0.17716 | G44: 0.17716 | H44: 0 | I44: 0.17716 | J44: 0.17716 | K44: 0
A46: =co_name -> DUKE ENERGY KENTUCKY, INC. | J46: =$J$1 -> FR-16(7)(v)-4
A47: =$A$2 -> DISTRIBUTION CLASSIFIED - GAS COST OF SERVICE | J47: =$J$2 -> WITNESS RESPONSIBLE:
A48: =case_name -> CASE NO: 2025-00125 | J48: =Witness -> DOUGLAS J. HEITKAMP
A49: =data_filing -> DATA: 12 MONTH FORECASTED PERIOD | J49: ="PAGE "&Pages-16&" OF "&Pages -> PAGE 2 OF 18
A50: =type -> TYPE OF FILING: "X" ORIGINAL UPDATED REVISED
A53: LINE | F53: TOTAL | G53: CLASSIFIED | J53: TOTAL | K53: ALL
A54: NO. | B54: GROSS GAS PLANT IN SERVICE | D54: ALLO | F54: DISTRIBUTION | G54: DEMAND | H54: COMMODITY | I54: CUSTOMER | J54: AT ISSUE | K54: OTHER
C55: Schedule 2 | G55: =$G$10 -> 3 | H55: =$H$10 -> 4 | I55: =$I$10 -> 5
A56: 1 | B56: PRODUCTION PLANT
A57: 2 | C57: ='FR-16(7)(v)-1 Functional'!C57 -> PRODUCTION PLANT | D57: ='FR-16(7)(v)-1 Functional'!D57 -> K205 | F57: ='FR-16(7)(v)-1 Functional'!I57 -> 0 | G57: =ROUND(F57*VLOOKUP(D57,Alloctable_Classified_Distribution,$G$10,FALSE),0) -> 0 | H57: =ROUND(F57*VLOOKUP(D57,Alloctable_Classified_Distribution,$H$10,FALSE),0) -> 0 | I57: =ROUND(F57*VLOOKUP(D57,Alloctable_Classified_Distribution,$I$10,FALSE),0) -> 0 | J57: =SUM($G$57:$I$57) -> 0 | K57: =F57-$J$57 -> 0
A58: 3 | C58: ='FR-16(7)(v)-1 Functional'!C58 -> GAS PRODUCTION -CPMPL NOT CLASS | D58: ='FR-16(7)(v)-1 Functional'!D58 -> K205 | F58: ='FR-16(7)(v)-1 Functional'!I58 -> 0 | G58: =ROUND(F58*VLOOKUP(D58,Alloctable_Classified_Distribution,$G$10,FALSE),0) -> 0 | H58: =ROUND(F58*VLOOKUP(D58,Alloctable_Classified_Distribution,$H$10,FALSE),0) -> 0 | I58: =ROUND(F58*VLOOKUP(D58,Alloctable_Classified_Distribution,$I$10,FALSE),0) -> 0 | J58: =SUM($G$58:$I$58) -> 0 | K58: =F58-$J$58 -> 0
A59: 4 | C59: ='FR-16(7)(v)-1 Functional'!C59 -> PRODUCTION PLANT IN SERVICE | F59: =SUM(F57:F58) -> 0 | G59: =SUM($G$57:$G$58) -> 0 | H59: =SUM($H$57:$H$58) -> 0 | I59: =SUM($I$57:$I$58) -> 0 | J59: =SUM($J$57:$J$58) -> 0 | K59: =SUM($K$57:$K$58) -> 0
A60: 5
A61: 6 | B61: TRANSMISSION PLANT
A62: 7 | C62: ='FR-16(7)(v)-1 Functional'!C62 -> TRANSMISSION PLANT
A63: 8 | C63: ='FR-16(7)(v)-1 Functional'!C63 -> TRANSMISSION PLANT IN SERVICE | F63: =SUM(F62) -> 0 | G63: =SUM($G$62) -> 0 | H63: =SUM($H$62) -> 0 | I63: =SUM($I$62) -> 0 | J63: =SUM($J$62) -> 0 | K63: =SUM($K$62) -> 0
A64: 9
A65: 10 | B65: TOTAL PROD & TRANS PLANT | F65: =F63+F59 -> 0 | G65: =$G$63+$G$59 -> 0 | H65: =$H$63+$H$59 -> 0 | I65: =$I$63+$I$59 -> 0 | J65: =$J$63+$J$59 -> 0 | K65: =$K$63+$K$59 -> 0
A66: 11
A67: 12 | B67: DISTRIBUTION PLANT
A68: 13 | C68: ='FR-16(7)(v)-1 Functional'!C68 -> SYSTEM M&R - (2780, 2781) | D68: ='FR-16(7)(v)-1 Functional'!D68 -> K203 | F68: ='FR-16(7)(v)-1 Functional'!I68 -> 76523866 | G68: =ROUND(F68*VLOOKUP(D68,Alloctable_Classified_Distribution,$G$10,FALSE),0) -> 76523866 | H68: =ROUND(F68*VLOOKUP(D68,Alloctable_Classified_Distribution,$H$10,FALSE),0) -> 0 | I68: =ROUND(F68*VLOOKUP(D68,Alloctable_Classified_Distribution,$I$10,FALSE),0) -> 0 | J68: =SUM(G68:I68) -> 76523866 | K68: =F68-J68 -> 0
A69: 14 | C69: ='FR-16(7)(v)-1 Functional'!C69 -> DIST REG EQUIP & CITY GATE M&R- (2782, 2790) | D69: ='FR-16(7)(v)-1 Functional'!D69 -> K203 | F69: ='FR-16(7)(v)-1 Functional'!I69 -> 3953923 | G69: 3953923 | H69: 0 | I69: 0 | J69: 3953923 | K69: 0
A70: 15 | C70: ='FR-16(7)(v)-1 Functional'!C70 -> LARGE IND M&R - (2850, 2851) | D70: ='FR-16(7)(v)-1 Functional'!D70 -> K595 | F70: ='FR-16(7)(v)-1 Functional'!I70 -> 567756 | G70: 567756 | H70: 0 | I70: 0 | J70: 567756 | K70: 0
A71: 16 | C71: ='FR-16(7)(v)-1 Functional'!C71 -> MAINS - (2761, 2762, 2763, 2765) | D71: ='FR-16(7)(v)-1 Functional'!D71 -> K415 | F71: ='FR-16(7)(v)-1 Functional'!I71 -> 448188826 | G71: 394406167 | H71: 0 | I71: 53782659 | J71: 448188826 | K71: 0
A72: 17 | C72: ='FR-16(7)(v)-1 Functional'!C72 -> SERVICES - (2801, 2802, 2803) | D72: ='FR-16(7)(v)-1 Functional'!D72 -> K403 | F72: ='FR-16(7)(v)-1 Functional'!I72 -> 254604525 | G72: 0 | H72: 0 | I72: 254604525 | J72: 254604525 | K72: 0
A73: 18 | C73: ='FR-16(7)(v)-1 Functional'!C73 -> MTRS & MTR INST (2810, 2811, 2820, 2821) | D73: ='FR-16(7)(v)-1 Functional'!D73 -> K413 | F73: ='FR-16(7)(v)-1 Functional'!I73 -> 40779942 | G73: 0 | H73: 0 | I73: 40779942 | J73: 40779942 | K73: 0
A74: 19 | C74: ='FR-16(7)(v)-1 Functional'!C74 -> LAND, R OF W, STRUCT & IMPROV | D74: ='FR-16(7)(v)-1 Functional'!D74 -> K203 | F74: ='FR-16(7)(v)-1 Functional'!I74 -> 18487900 | G74: 18487900 | H74: 0 | I74: 0 | J74: 18487900 | K74: 0
A75: 20 | C75: ='FR-16(7)(v)-1 Functional'!C75 -> HOUSE REG & INSTALL (2830, 2840) | D75: ='FR-16(7)(v)-1 Functional'!D75 -> K417 | F75: ='FR-16(7)(v)-1 Functional'!I75 -> 15412723 | G75: 0 | H75: 0 | I75: 15412723 | J75: 15412723 | K75: 0
A76: 21 | C76: ='FR-16(7)(v)-1 Functional'!C76 -> STREET LIGHTING EQUIPMENT & OTH | D76: ='FR-16(7)(v)-1 Functional'!D76 -> K597 | F76: ='FR-16(7)(v)-1 Functional'!I76 -> 90730 | G76: 90730 | H76: 0 | I76: 0 | J76: 90730 | K76: 0
A77: 22 | C77: ='FR-16(7)(v)-1 Functional'!C77 -> ASSET RETIREMENT COST FOR DISTRIBUTION PLANT | D77: ='FR-16(7)(v)-1 Functional'!D77 -> K203 | F77: ='FR-16(7)(v)-1 Functional'!I77 -> 0 | G77: 0 | H77: 0 | I77: 0 | J77: 0 | K77: 0
A78: 23 | C78: ='FR-16(7)(v)-1 Functional'!C78 -> DISTRIBUTION PLANT IN SERVICE | F78: =SUM(F68:F77) -> 858610191 | G78: 494030342 | H78: 0 | I78: 364579849 | J78: 858610191 | K78: 0
A79: 24
A80: 25 | B80: TOTAL TRANS & DIST PLANT | F80: =F78+F63 -> 858610191 | G80: =G78+$G$63 -> 494030342 | H80: =H78+$H$63 -> 0 | I80: =I78+$I$63 -> 364579849 | J80: =J78+$J$63 -> 858610191 | K80: =K78+$K$63 -> 0
A81: 26 | B81: TOTAL GROSS PTD PLANT | F81: =F78+F65 -> 858610191 | G81: 494030342 | H81: 0 | I81: 364579849 | J81: 858610191 | K81: 0
A82: 27
A83: 28 | B83: GENERAL & INTANGIBLE PLANT
A84: 29 | C84: ='FR-16(7)(v)-1 Functional'!C84 -> PRODUCTION PLANT | D84: ='FR-16(7)(v)-1 Functional'!D84 -> K201 | F84: ='FR-16(7)(v)-1 Functional'!I84 -> 0 | G84: =ROUND(F84*VLOOKUP(D84,Alloctable_Classified_Distribution,$G$10,FALSE),0) -> 0 | H84: =ROUND(F84*VLOOKUP(D84,Alloctable_Classified_Distribution,$H$10,FALSE),0) -> 0 | I84: =ROUND(F84*VLOOKUP(D84,Alloctable_Classified_Distribution,$I$10,FALSE),0) -> 0 | J84: =SUM(G84:I84) -> 0 | K84: =F84-J84 -> 0
A85: 30 | C85: ='FR-16(7)(v)-1 Functional'!C85 -> PRODUCTION PLANT COMMODITY | D85: ='FR-16(7)(v)-1 Functional'!D85 -> P349 | F85: ='FR-16(7)(v)-1 Functional'!I85 -> 0 | G85: 0 | H85: 0 | I85: 0 | J85: 0 | K85: 0
A86: 31 | C86: ='FR-16(7)(v)-1 Functional'!C86 -> DISTRIBUTION PLANT | D86: ='FR-16(7)(v)-1 Functional'!D86 -> D349 | F86: ='FR-16(7)(v)-1 Functional'!I86 -> 32368897 | G86: 21155016 | H86: 0 | I86: 11213881 | J86: 32368897 | K86: 0
A87: 32 | C87: ='FR-16(7)(v)-1 Functional'!C87 -> CUSTOMER ACCOUNTING | D87: ='FR-16(7)(v)-1 Functional'!D87 -> CA19 | F87: ='FR-16(7)(v)-1 Functional'!I87 -> 11313346 | G87: 0 | H87: 0 | I87: 11313346 | J87: 11313346 | K87: 0
A88: 33 | C88: ='FR-16(7)(v)-1 Functional'!C88 -> CUSTOMER SERVICE & INFORMATION | D88: ='FR-16(7)(v)-1 Functional'!D88 -> CS19 | F88: ='FR-16(7)(v)-1 Functional'!I88 -> 3929181 | G88: 0 | H88: 0 | I88: 3929181 | J88: 3929181 | K88: 0
A89: 34 | C89: ='FR-16(7)(v)-1 Functional'!C89 -> SALES | D89: ='FR-16(7)(v)-1 Functional'!D89 -> SE19 | F89: ='FR-16(7)(v)-1 Functional'!I89 -> 0 | G89: 0 | H89: 0 | I89: 0 | J89: 0 | K89: 0
A90: 35 | C90: ='FR-16(7)(v)-1 Functional'!C90 -> GEN & INTANG PLANT IN SERVICE | F90: =SUM(F84:F89) -> 47611424 | G90: 21155016 | H90: 0 | I90: 26456408 | J90: 47611424 | K90: 0
A91: 36
A92: 37 | B92: COMMON & OTHER PLANT
A93: 38 | C93: ='FR-16(7)(v)-1 Functional'!C93 -> PRODUCTION PLANT | D93: ='FR-16(7)(v)-1 Functional'!D93 -> K201 | F93: ='FR-16(7)(v)-1 Functional'!I93 -> 0 | G93: =ROUND(F93*VLOOKUP(D93,Alloctable_Classified_Distribution,$G$10,FALSE),0) -> 0 | H93: =ROUND(F93*VLOOKUP(D93,Alloctable_Classified_Distribution,$H$10,FALSE),0) -> 0 | I93: =ROUND(F93*VLOOKUP(D93,Alloctable_Classified_Distribution,$I$10,FALSE),0) -> 0 | J93: =SUM(G93:I93) -> 0 | K93: =F93-J93 -> 0
A94: 39 | C94: ='FR-16(7)(v)-1 Functional'!C94 -> PRODUCTION PLANT COMMODITY | D94: ='FR-16(7)(v)-1 Functional'!D94 -> P349 | F94: ='FR-16(7)(v)-1 Functional'!I94 -> 0 | G94: 0 | H94: 0 | I94: 0 | J94: 0 | K94: 0
A95: 40 | C95: ='FR-16(7)(v)-1 Functional'!C95 -> DISTRIBUTION PLANT | D95: ='FR-16(7)(v)-1 Functional'!D95 -> D349 | F95: ='FR-16(7)(v)-1 Functional'!I95 -> 9302988 | G95: 6080061 | H95: 0 | I95: 3222927 | J95: 9302988 | K95: 0
A96: 41 | C96: ='FR-16(7)(v)-1 Functional'!C96 -> CUSTOMER ACCOUNTING | D96: ='FR-16(7)(v)-1 Functional'!D96 -> CA19 | F96: ='FR-16(7)(v)-1 Functional'!I96 -> 3251514 | G96: 0 | H96: 0 | I96: 3251514 | J96: 3251514 | K96: 0
A97: 42 | C97: ='FR-16(7)(v)-1 Functional'!C97 -> CUSTOMER SERVICE & INFORMATION | D97: ='FR-16(7)(v)-1 Functional'!D97 -> CS19 | F97: ='FR-16(7)(v)-1 Functional'!I97 -> 1129267 | G97: 0 | H97: 0 | I97: 1129267 | J97: 1129267 | K97: 0
A98: 43 | C98: ='FR-16(7)(v)-1 Functional'!C98 -> SALES | D98: ='FR-16(7)(v)-1 Functional'!D98 -> SE19 | F98: ='FR-16(7)(v)-1 Functional'!I98 -> 0 | G98: 0 | H98: 0 | I98: 0 | J98: 0 | K98: 0
A99: 44 | C99: ='FR-16(7)(v)-1 Functional'!C99 -> COMMON & OTHER PLANT IN SERVICE | F99: =SUM(F93:F98) -> 13683769 | G99: 6080061 | H99: 0 | I99: 7603708 | J99: 13683769 | K99: 0
A100: 45
A101: 46 | B101: GROSS GAS PLANT IN SERVICE | F101: =F81+F90+F99 -> 919905384 | G101: 521265419 | H101: 0 | I101: 398639965 | J101: 919905384 | K101: 0
A103: =co_name -> DUKE ENERGY KENTUCKY, INC. | J103: =$J$1 -> FR-16(7)(v)-4
A104: =$A$2 -> DISTRIBUTION CLASSIFIED - GAS COST OF SERVICE | J104: =$J$2 -> WITNESS RESPONSIBLE:
A105: =case_name -> CASE NO: 2025-00125 | J105: =Witness -> DOUGLAS J. HEITKAMP
A106: =data_filing -> DATA: 12 MONTH FORECASTED PERIOD | J106: ="PAGE "&Pages-15&" OF "&Pages -> PAGE 3 OF 18
A107: =type -> TYPE OF FILING: "X" ORIGINAL UPDATED REVISED
A110: LINE | F110: TOTAL | G110: CLASSIFIED | J110: TOTAL | K110: ALL
A111: NO. | B111: DEPRECIATION RESERVE | D111: ALLO | F111: DISTRIBUTION | G111: DEMAND | H111: COMMODITY | I111: CUSTOMER | J111: AT ISSUE | K111: OTHER
C112: Schedule 3 | G112: =$G$10 -> 3 | H112: =$H$10 -> 4 | I112: =$I$10 -> 5
A113: 1 | B113: PRODUCTION PLANT
A114: 2 | C114: ='FR-16(7)(v)-1 Functional'!C114 -> PRODUCTION PLANT | D114: ='FR-16(7)(v)-1 Functional'!D114 -> K205 | F114: ='FR-16(7)(v)-1 Functional'!I114 -> 0 | G114: =F114-SUM(H114:I114) -> 0 | H114: =ROUND(F114*VLOOKUP(D114,Alloctable_Classified_Distribution,$H$10,FALSE),0) -> 0 | I114: =ROUND(F114*VLOOKUP(D114,Alloctable_Classified_Distribution,$I$10,FALSE),0) -> 0 | J114: =SUM(G114:I114) -> 0 | K114: =F114-J114 -> 0
A115: 3 | C115: ='FR-16(7)(v)-1 Functional'!C115 -> TOTAL PROD DEPREC RESERVE | F115: =SUM(F114:F114) -> 0 | G115: 0 | H115: 0 | I115: 0 | J115: 0 | K115: 0
A116: 4
A117: 5 | B117: TRANSMISSION PLANT
A118: 6 | C118: ='FR-16(7)(v)-1 Functional'!C118 -> TRANSMISSION PLANT
A119: 7 | C119: ='FR-16(7)(v)-1 Functional'!C119 -> TOTAL TRANS DEPREC RESERVE | F119: =SUM(F118:F118) -> 0 | G119: 0 | H119: 0 | I119: 0 | J119: 0 | K119: 0
A120: 8
A121: 9 | B121: DISTRIBUTION PLANT
A122: 10 | C122: ='FR-16(7)(v)-1 Functional'!C122 -> SYSTEM M&R - (2780, 2781) | D122: ='FR-16(7)(v)-1 Functional'!D122 -> K203 | F122: ='FR-16(7)(v)-1 Functional'!I122 -> 8217527 | G122: =F122-SUM(H122:I122) -> 8217527 | H122: =ROUND(F122*VLOOKUP(D122,Alloctable_Classified_Distribution,$H$10,FALSE),0) -> 0 | I122: =ROUND(F122*VLOOKUP(D122,Alloctable_Classified_Distribution,$I$10,FALSE),0) -> 0 | J122: =SUM(G122:I122) -> 8217527 | K122: =F122-J122 -> 0
A123: 11 | C123: ='FR-16(7)(v)-1 Functional'!C123 -> DIST REG EQUIP & CITY GATE M&R- (2782, 2790) | D123: ='FR-16(7)(v)-1 Functional'!D123 -> K203 | F123: ='FR-16(7)(v)-1 Functional'!I123 -> 871719 | G123: 871719 | H123: 0 | I123: 0 | J123: 871719 | K123: 0
A124: 12 | C124: ='FR-16(7)(v)-1 Functional'!C124 -> LARGE IND M&R - (2850, 2851) | D124: ='FR-16(7)(v)-1 Functional'!D124 -> K595 | F124: ='FR-16(7)(v)-1 Functional'!I124 -> 530247 | G124: 530247 | H124: 0 | I124: 0 | J124: 530247 | K124: 0
A125: 13 | C125: ='FR-16(7)(v)-1 Functional'!C125 -> MAINS - (2761, 2762, 2763, 2765) | D125: ='FR-16(7)(v)-1 Functional'!D125 -> K415 | F125: ='FR-16(7)(v)-1 Functional'!I125 -> 126433521 | G125: 111261498 | H125: 0 | I125: 15172023 | J125: 126433521 | K125: 0
A126: 14 | C126: ='FR-16(7)(v)-1 Functional'!C126 -> SERVICES - (2801, 2802, 2803) | D126: ='FR-16(7)(v)-1 Functional'!D126 -> K403 | F126: ='FR-16(7)(v)-1 Functional'!I126 -> 78494621 | G126: 0 | H126: 0 | I126: 78494621 | J126: 78494621 | K126: 0
A127: 15 | C127: ='FR-16(7)(v)-1 Functional'!C127 -> MTRS & MTR INST (2810, 2811, 2820, 2821) | D127: ='FR-16(7)(v)-1 Functional'!D127 -> K413 | F127: ='FR-16(7)(v)-1 Functional'!I127 -> 8223154 | G127: 0 | H127: 0 | I127: 8223154 | J127: 8223154 | K127: 0
A128: 16 | C128: ='FR-16(7)(v)-1 Functional'!C128 -> LAND, R OF W, STRUCT & IMPROV & OTH | D128: ='FR-16(7)(v)-1 Functional'!D128 -> K203 | F128: ='FR-16(7)(v)-1 Functional'!I128 -> 1394350 | G128: 1394350 | H128: 0 | I128: 0 | J128: 1394350 | K128: 0
A129: 17 | C129: ='FR-16(7)(v)-1 Functional'!C129 -> HOUSE REG & INSTALL (2830, 2840) | D129: ='FR-16(7)(v)-1 Functional'!D129 -> K417 | F129: ='FR-16(7)(v)-1 Functional'!I129 -> 7017914 | G129: 0 | H129: 0 | I129: 7017914 | J129: 7017914 | K129: 0
A130: 18 | C130: ='FR-16(7)(v)-1 Functional'!C130 -> STREET LIGHTING EQUIPMENT & OTH | D130: ='FR-16(7)(v)-1 Functional'!D130 -> K597 | F130: ='FR-16(7)(v)-1 Functional'!I130 -> -11164624 | G130: -11164624 | H130: 0 | I130: 0 | J130: -11164624 | K130: 0
A131: 19 | C131: ='FR-16(7)(v)-1 Functional'!C131 -> TOTAL DIST DEPREC RESERVE | F131: =SUM(F121:F130) -> 220018429 | G131: 111110717 | H131: 0 | I131: 108907712 | J131: 220018429 | K131: 0
A132: 20
A133: 21 | B133: GENERAL & INTANGIBLE PLANT
A134: 22 | C134: ='FR-16(7)(v)-1 Functional'!C134 -> PRODUCTION PLANT | D134: ='FR-16(7)(v)-1 Functional'!D134 -> K201 | F134: ='FR-16(7)(v)-1 Functional'!I134 -> 0 | G134: =F134-SUM(H134:I134) -> 0 | H134: =ROUND(F134*VLOOKUP(D134,Alloctable_Classified_Distribution,$H$10,FALSE),0) -> 0 | I134: =ROUND(F134*VLOOKUP(D134,Alloctable_Classified_Distribution,$I$10,FALSE),0) -> 0 | J134: =SUM(G134:I134) -> 0 | K134: =F134-J134 -> 0
A135: 23 | C135: ='FR-16(7)(v)-1 Functional'!C135 -> PRODUCTION PLANT COMMODITY | D135: ='FR-16(7)(v)-1 Functional'!D135 -> P349 | F135: ='FR-16(7)(v)-1 Functional'!I135 -> 0 | G135: 0 | H135: 0 | I135: 0 | J135: 0 | K135: 0
A136: 24 | C136: ='FR-16(7)(v)-1 Functional'!C136 -> DISTRIBUTION PLANT | D136: ='FR-16(7)(v)-1 Functional'!D136 -> D349 | F136: ='FR-16(7)(v)-1 Functional'!I136 -> 15473310 | G136: 10112736 | H136: 0 | I136: 5360574 | J136: 15473310 | K136: 0
A137: 25 | C137: ='FR-16(7)(v)-1 Functional'!C137 -> CUSTOMER ACCOUNTING | D137: ='FR-16(7)(v)-1 Functional'!D137 -> CA19 | F137: ='FR-16(7)(v)-1 Functional'!I137 -> 5408121 | G137: 0 | H137: 0 | I137: 5408121 | J137: 5408121 | K137: 0
A138: 26 | C138: ='FR-16(7)(v)-1 Functional'!C138 -> CUSTOMER SERVICE & INFORMATION | D138: ='FR-16(7)(v)-1 Functional'!D138 -> CS19 | F138: ='FR-16(7)(v)-1 Functional'!I138 -> 1878267 | G138: 0 | H138: 0 | I138: 1878267 | J138: 1878267 | K138: 0
A139: 27 | C139: ='FR-16(7)(v)-1 Functional'!C139 -> SALES | D139: ='FR-16(7)(v)-1 Functional'!D139 -> SE19 | F139: ='FR-16(7)(v)-1 Functional'!I139 -> 0 | G139: 0 | H139: 0 | I139: 0 | J139: 0 | K139: 0
A140: 28 | C140: ='FR-16(7)(v)-1 Functional'!C140 -> TOTAL GEN DEPREC RESERVE | F140: =SUM(F133:F139) -> 22759698 | G140: 10112736 | H140: 0 | I140: 12646962 | J140: 22759698 | K140: 0
A141: 29
A142: 30 | B142: COMMON & OTHER PLANT
A143: 31 | C143: ='FR-16(7)(v)-1 Functional'!C143 -> PRODUCTION PLANT | D143: ='FR-16(7)(v)-1 Functional'!D143 -> K201 | F143: ='FR-16(7)(v)-1 Functional'!I143 -> 0 | G143: =F143-SUM(H143:I143) -> 0 | H143: =ROUND(F143*VLOOKUP(D143,Alloctable_Classified_Distribution,$H$10,FALSE),0) -> 0 | I143: =ROUND(F143*VLOOKUP(D143,Alloctable_Classified_Distribution,$I$10,FALSE),0) -> 0 | J143: =SUM(G143:I143) -> 0 | K143: =F143-J143 -> 0
A144: 32 | C144: ='FR-16(7)(v)-1 Functional'!C144 -> PRODUCTION PLANT COMMODITY | D144: ='FR-16(7)(v)-1 Functional'!D144 -> P349 | F144: ='FR-16(7)(v)-1 Functional'!I144 -> 0 | G144: 0 | H144: 0 | I144: 0 | J144: 0 | K144: 0
A145: 33 | C145: ='FR-16(7)(v)-1 Functional'!C145 -> DISTRIBUTION PLANT | D145: ='FR-16(7)(v)-1 Functional'!D145 -> D349 | F145: ='FR-16(7)(v)-1 Functional'!I145 -> 4989935 | G145: 3261222 | H145: 0 | I145: 1728713 | J145: 4989935 | K145: 0
A146: 34 | C146: ='FR-16(7)(v)-1 Functional'!C146 -> CUSTOMER ACCOUNTING | D146: ='FR-16(7)(v)-1 Functional'!D146 -> CA19 | F146: ='FR-16(7)(v)-1 Functional'!I146 -> 1744046 | G146: 0 | H146: 0 | I146: 1744046 | J146: 1744046 | K146: 0
A147: 35 | C147: ='FR-16(7)(v)-1 Functional'!C147 -> CUSTOMER SERVICE & INFORMATION | D147: ='FR-16(7)(v)-1 Functional'!D147 -> CS19 | F147: ='FR-16(7)(v)-1 Functional'!I147 -> 605716 | G147: 0 | H147: 0 | I147: 605716 | J147: 605716 | K147: 0
A148: 36 | C148: ='FR-16(7)(v)-1 Functional'!C148 -> SALES | D148: ='FR-16(7)(v)-1 Functional'!D148 -> SE19 | F148: ='FR-16(7)(v)-1 Functional'!I148 -> 0 | G148: 0 | H148: 0 | I148: 0 | J148: 0 | K148: 0
A149: 37 | C149: ='FR-16(7)(v)-1 Functional'!C149 -> TOTAL COM & OTHER PLT RESERVE | F149: =SUM(F143:F148) -> 7339697 | G149: =SUM(G142:G148) -> 3261222 | H149: =SUM(H142:H148) -> 0 | I149: =SUM(I142:I148) -> 4078475 | J149: =SUM(J142:J148) -> 7339697 | K149: =SUM(K142:K148) -> 0
A150: 38
A151: 39 | B151: TOTAL DEPRECIATION RESERVE | F151: =F149+F140+F131+F119+F115 -> 250117824 | G151: 124484675 | H151: 0 | I151: 125633149 | J151: 250117824 | K151: 0
A153: =co_name -> DUKE ENERGY KENTUCKY, INC. | J153: =$J$1 -> FR-16(7)(v)-4
A154: =$A$2 -> DISTRIBUTION CLASSIFIED - GAS COST OF SERVICE | J154: =$J$2 -> WITNESS RESPONSIBLE:
A155: =case_name -> CASE NO: 2025-00125 | J155: =Witness -> DOUGLAS J. HEITKAMP
A156: =data_filing -> DATA: 12 MONTH FORECASTED PERIOD | J156: ="PAGE "&Pages-14&" OF "&Pages -> PAGE 4 OF 18
A157: =type -> TYPE OF FILING: "X" ORIGINAL UPDATED REVISED
A160: LINE | F160: TOTAL | G160: CLASSIFIED | J160: TOTAL | K160: ALL
A161: NO. | B161: ="NET GAS PLANT" -> NET GAS PLANT | D161: ALLO | F161: DISTRIBUTION | G161: DEMAND | H161: COMMODITY | I161: CUSTOMER | J161: AT ISSUE | K161: OTHER
C162: Schedule 4 | G162: =$G$10 -> 3 | H162: =$H$10 -> 4 | I162: =$I$10 -> 5
A163: 1 | B163: PRODUCTION PLANT
A164: 2 | C164: ='FR-16(7)(v)-1 Functional'!C164 -> PRODUCTION PLANT IN SERVICE | F164: =F59 -> 0 | G164: =$G$59 -> 0 | H164: =$H$59 -> 0 | I164: =$I$59 -> 0 | J164: =$J$59 -> 0 | K164: =F164-J164 -> 0
A165: 3 | C165: ='FR-16(7)(v)-1 Functional'!C165 -> TOTAL PROD DEPRC RESERVE | F165: =-F115 -> 0 | G165: =-G115 -> 0 | H165: =-H115 -> 0 | I165: =-I115 -> 0 | J165: =-J115 -> 0 | K165: =F165-J165 -> 0
A166: 4 | C166: ='FR-16(7)(v)-1 Functional'!C166 -> NET PRODUCTION PLANT | F166: =SUM(F164:F165) -> 0 | G166: 0 | H166: 0 | I166: 0 | J166: 0 | K166: 0
A167: 5
A168: 6 | B168: TRANSMISSION PLANT
A169: 7 | C169: ='FR-16(7)(v)-1 Functional'!C169 -> TRANSMISSION PLANT IN SERVICE | F169: =F63 -> 0 | G169: =$G$63 -> 0 | H169: =$H$63 -> 0 | I169: =$I$63 -> 0 | J169: =$J$63 -> 0 | K169: =F169-J169 -> 0
A170: 8 | C170: ='FR-16(7)(v)-1 Functional'!C170 -> TOTAL TRANS DEPREC RESERVE | F170: =-F119 -> 0 | G170: =-G119 -> 0 | H170: =-H119 -> 0 | I170: =-I119 -> 0 | J170: =-J119 -> 0 | K170: =F170-J170 -> 0
A171: 9 | C171: ='FR-16(7)(v)-1 Functional'!C171 -> NET TRANSMISSION PLANT | F171: =SUM(F168:F170) -> 0 | G171: 0 | H171: 0 | I171: 0 | J171: 0 | K171: 0
A172: 10
A173: 11 | B173: DISTRIBUTION PLANT
A174: 12 | C174: ='FR-16(7)(v)-1 Functional'!C174 -> DISTRIBUTION PLANT IN SERVICE | F174: =F78 -> 858610191 | G174: =G78 -> 494030342 | H174: =H78 -> 0 | I174: =I78 -> 364579849 | J174: =J78 -> 858610191 | K174: =F174-J174 -> 0
A175: 13 | C175: ='FR-16(7)(v)-1 Functional'!C175 -> TOTAL DIST DEPREC RESERVE | F175: =-F131 -> -220018429 | G175: =-G131 -> -111110717 | H175: =-H131 -> 0 | I175: =-I131 -> -108907712 | J175: =-J131 -> -220018429 | K175: =F175-J175 -> 0
A176: 14 | C176: ='FR-16(7)(v)-1 Functional'!C176 -> NET DISTRIBUTION PLANT | F176: =SUM(F173:F175) -> 638591762 | G176: 382919625 | H176: 0 | I176: 255672137 | J176: 638591762 | K176: 0
A177: 15
A178: 16 | B178: NET PTD PLANT | F178: =F176+F171+F166 -> 638591762 | G178: 382919625 | H178: 0 | I178: 255672137 | J178: 638591762 | K178: 0
A179: 17 | B179: NET TRANS & DIST PLANT | F179: =F176+F171 -> 638591762 | G179: 382919625 | H179: 0 | I179: 255672137 | J179: 638591762 | K179: 0
A180: 18
A181: 19 | B181: GENERAL & INTANGIBLE PLANT
A182: 20 | C182: ='FR-16(7)(v)-1 Functional'!C182 -> GEN & INTANG PLANT IN SERVICE | F182: =F90 -> 47611424 | G182: =G90 -> 21155016 | H182: =H90 -> 0 | I182: =I90 -> 26456408 | J182: =J90 -> 47611424 | K182: =F182-J182 -> 0
A183: 21 | C183: ='FR-16(7)(v)-1 Functional'!C183 -> TOTAL GEN & INTG DEPREC RESERVE | F183: =-F140 -> -22759698 | G183: =-G140 -> -10112736 | H183: =-H140 -> 0 | I183: =-I140 -> -12646962 | J183: =-J140 -> -22759698 | K183: =F183-J183 -> 0
A184: 22 | C184: ='FR-16(7)(v)-1 Functional'!C184 -> NET GENERAL & INTANG PLANT | F184: =SUM(F181:F183) -> 24851726 | G184: 11042280 | H184: 0 | I184: 13809446 | J184: 24851726 | K184: 0
A185: 23
A186: 24 | B186: COMMON & OTHER PLANT
A187: 25 | C187: ='FR-16(7)(v)-1 Functional'!C187 -> COMMON & OTH PLT IN SERVICE | F187: =F99 -> 13683769 | G187: =G99 -> 6080061 | H187: =H99 -> 0 | I187: =I99 -> 7603708 | J187: =J99 -> 13683769 | K187: =F187-J187 -> 0
A188: 26 | C188: ='FR-16(7)(v)-1 Functional'!C188 -> TOTAL COM & OTH DEPREC RESERVE | F188: =-F149 -> -7339697 | G188: =-G149 -> -3261222 | H188: =-H149 -> 0 | I188: =-I149 -> -4078475 | J188: =-J149 -> -7339697 | K188: =F188-J188 -> 0
A189: 27 | C189: ='FR-16(7)(v)-1 Functional'!C189 -> NET COMMON & OTHER PLANT | F189: =SUM(F186:F188) -> 6344072 | G189: 2818839 | H189: 0 | I189: 3525233 | J189: 6344072 | K189: 0
A190: 28
A191: 29 | C191: ='FR-16(7)(v)-1 Functional'!C191 -> NET GAS PLANT IN SERVICE | F191: =F189+F184+F176+F171+F166 -> 669787560 | G191: 396780744 | H191: 0 | I191: 273006816 | J191: 669787560 | K191: 0
A193: =co_name -> DUKE ENERGY KENTUCKY, INC. | J193: =$J$1 -> FR-16(7)(v)-4
A194: =$A$2 -> DISTRIBUTION CLASSIFIED - GAS COST OF SERVICE | J194: =$J$2 -> WITNESS RESPONSIBLE:
A195: =case_name -> CASE NO: 2025-00125 | J195: =Witness -> DOUGLAS J. HEITKAMP
A196: =data_filing -> DATA: 12 MONTH FORECASTED PERIOD | J196: ="PAGE "&Pages-13&" OF "&Pages -> PAGE 5 OF 18
A197: =type -> TYPE OF FILING: "X" ORIGINAL UPDATED REVISED
A200: LINE | F200: TOTAL | G200: CLASSIFIED | J200: TOTAL | K200: ALL
A201: NO. | B201: SUBTRACTIVE RATE BASE ADJUSTMENTS | D201: ALLO | F201: DISTRIBUTION | G201: DEMAND | H201: COMMODITY | I201: CUSTOMER | J201: AT ISSUE | K201: OTHER
C202: Schedule 5 | G202: =$G$10 -> 3 | H202: =$H$10 -> 4 | I202: =$I$10 -> 5
A203: 1 | B203: RATE BASE ADJUSTMENTS
A204: 2 | B204: ACCUMULATED DEFERRED INCOME TAXES
A205: 3 | B205: ACCUM DEF INC TAXES (282)
A206: 4 | C206: ='FR-16(7)(v)-1 Functional'!C206 -> LIBERALIZED DEPRECIATION | D206: ='FR-16(7)(v)-1 Functional'!D206 -> NP29 | F206: ='FR-16(7)(v)-1 Functional'!I206 -> 72941452 | G206: =F206-SUM(H206:I206) -> 43210516 | H206: =ROUND(F206*VLOOKUP(D206,Alloctable_Classified_Distribution,$H$10,FALSE),0) -> 0 | I206: =ROUND(F206*VLOOKUP(D206,Alloctable_Classified_Distribution,$I$10,FALSE),0) -> 29730936 | J206: =SUM(G206:I206) -> 72941452 | K206: =F206-J206 -> 0
A207: 5 | C207: ='FR-16(7)(v)-1 Functional'!C207 -> LEASED METERS | D207: ='FR-16(7)(v)-1 Functional'!D207 -> K413 | F207: ='FR-16(7)(v)-1 Functional'!I207 -> 0 | G207: 0 | H207: 0 | I207: 0 | J207: 0 | K207: 0
A208: 6 | C208: ='FR-16(7)(v)-1 Functional'!C208 -> CONTRIB AID CONSTR | D208: ='FR-16(7)(v)-1 Functional'!D208 -> D249 | F208: ='FR-16(7)(v)-1 Functional'!I208 -> 0 | G208: 0 | H208: 0 | I208: 0 | J208: 0 | K208: 0
A209: 7 | C209: ='FR-16(7)(v)-1 Functional'!C209 -> CAPITALIZED INTEREST | D209: ='FR-16(7)(v)-1 Functional'!D209 -> NP29 | F209: ='FR-16(7)(v)-1 Functional'!I209 -> 0 | G209: 0 | H209: 0 | I209: 0 | J209: 0 | K209: 0
A210: 8 | C210: ='FR-16(7)(v)-1 Functional'!C210 -> AFUDC IN DEBT | D210: ='FR-16(7)(v)-1 Functional'!D210 -> NP29 | F210: ='FR-16(7)(v)-1 Functional'!I210 -> 0 | G210: 0 | H210: 0 | I210: 0 | J210: 0 | K210: 0
A211: 9 | C211: ='FR-16(7)(v)-1 Functional'!C211 -> CWIP DIFFERENCES | D211: ='FR-16(7)(v)-1 Functional'!D211 -> NP29 | F211: ='FR-16(7)(v)-1 Functional'!I211 -> 0 | G211: 0 | H211: 0 | I211: 0 | J211: 0 | K211: 0
A212: 10 | C212: ='FR-16(7)(v)-1 Functional'!C212 -> NON-CASH OVERHEADS | D212: ='FR-16(7)(v)-1 Functional'!D212 -> AG39 | F212: ='FR-16(7)(v)-1 Functional'!I212 -> 0 | G212: 0 | H212: 0 | I212: 0 | J212: 0 | K212: 0
A213: 11 | C213: ='FR-16(7)(v)-1 Functional'!C213 -> PLANT FAS 109 | D213: ='FR-16(7)(v)-1 Functional'!D213 -> NP29 | F213: ='FR-16(7)(v)-1 Functional'!I213 -> 0 | G213: 0 | H213: 0 | I213: 0 | J213: 0 | K213: 0
A214: 12 | C214: ='FR-16(7)(v)-1 Functional'!C214 -> MISCELLANEOUS | D214: ='FR-16(7)(v)-1 Functional'!D214 -> NP29 | F214: ='FR-16(7)(v)-1 Functional'!I214 -> 22960666 | G214: 13601899 | H214: 0 | I214: 9358767 | J214: 22960666 | K214: 0
... 636 more rows

Sheet FR-16(7)(v)-5 DISTR Dem Alloc
A1: =co_name -> DUKE ENERGY KENTUCKY, INC. | K1: FR-16(7)(v)-5
A2: DISTRIBUTION DEMAND ALLOCATED - GAS COST OF SERVICE | K2: WITNESS RESPONSIBLE:
A3: =case_name -> CASE NO: 2025-00125 | K3: =Witness -> DOUGLAS J. HEITKAMP
A4: =data_filing -> DATA: 12 MONTH FORECASTED PERIOD | K4: ="PAGE "&Pages-17&" OF "&Pages -> PAGE 1 OF 18
A5: =type -> TYPE OF FILING: "X" ORIGINAL UPDATED REVISED
F7: TOTAL
A8: LINE | F8: DISTRIBUTION | G8: RS | H8: GS | I8: FT-L | J8: INTERUPT | K8: TOTAL | L8: ALL
A9: NO. | B9: SUMMARY OF RESULTS | D9: ALLO | F9: DEMAND | G9: RESIDENTIAL | H9: GEN SERV | I9: FIRM TRANS | J9: TRANS | K9: AT ISSUE | L9: OTHER
C10: Schedule 1 | G10: 3 | H10: 4 | I10: 5 | J10: 6
A11: 1 | B11: NET INCOME COMPUTATION
A12: 2 | C12: ='FR-16(7)(v)-1 Functional'!C12 -> GROSS GAS PLANT IN SERVICE | F12: =F101 -> 521265419 | G12: 273823104 | H12: 162335481 | I12: 68611311 | J12: 16495523 | K12: 521265419 | L12: =F12-K12 -> 0
A13: 3 | C13: ='FR-16(7)(v)-1 Functional'!C13 -> TOTAL DEPRECIATION RESERVE | F13: =-F151 -> -124484675 | G13: -71684211 | H13: -30889812 | I13: -17683404 | J13: -4227248 | K13: -124484675 | L13: =F13-K13 -> 0
A14: 4 | C14: ='FR-16(7)(v)-1 Functional'!C14 -> TOTAL RATE BASE ADJUSTMENTS | F14: =F326 -> -71520849 | G14: -36303824 | H14: -23727275 | I14: -9243904 | J14: -2245846 | K14: -71520849 | L14: =F14-K14 -> 0
A15: 5 | C15: ='FR-16(7)(v)-1 Functional'!C15 -> TOTAL RATE BASE | F15: =SUM(F12:F14) -> 325259895 | G15: 165835069 | H15: 107718394 | I15: 41684003 | J15: 10022429 | K15: 325259895 | L15: =F15-K15 -> 0
A16: 6
A17: 7 | B17: OPERATING EXPENSES
A18: 8 | C18: ='FR-16(7)(v)-1 Functional'!C18 -> TOTAL O&M EXPENSE | F18: =F433 -> 8906846 | G18: 5509009 | H18: 2702437 | I18: 672407 | J18: 22993 | K18: 8906846 | L18: =F18-K18 -> 0
A19: 9 | C19: ='FR-16(7)(v)-1 Functional'!C19 -> TOTAL DEPRECIATION EXPENSE | F19: =F465 -> 14904740 | G19: 7837378 | H19: 4875231 | I19: 1794704 | J19: 397427 | K19: 14904740 | L19: 0
A20: 10 | C20: ='FR-16(7)(v)-1 Functional'!C20 -> TOTAL OTHER TAX & MISC EXPENSE | F20: =F495 -> 3039146 | G20: =$G$495 -> 1573044 | H20: =$H$495 -> 1000484 | I20: =$I$495 -> 378079 | J20: =$J$495 -> 87539 | K20: =$K$495 -> 3039146 | L20: 0
A21: 11 | C21: ='FR-16(7)(v)-1 Functional'!C21 -> TOTAL OP EXP EXCLUDING INC & REV TAX | F21: =SUM(F17:F20) -> 26850732 | G21: 14919431 | H21: 8578152 | I21: 2845190 | J21: 507959 | K21: 26850732 | L21: 0
A22: 12 | C22: ='FR-16(7)(v)-1 Functional'!C22 -> NET FED INCOME TAX EXP ALLOWABLE | F22: =F557 -> 4081297 | G22: =$G$557 -> 2040298 | H22: =$H$557 -> 1361991 | I22: =$I$557 -> 542699 | J22: =$J$557 -> 136309 | K22: =$K$557 -> 4081297 | L22: 0
A23: 13 | C23: ='FR-16(7)(v)-1 Functional'!C23 -> NET STATE INCOME TAX EXP ALLOWABLE | F23: =F605 -> 1071875 | G23: =G605 -> 542130 | H23: 356095 | I23: 139484 | J23: 34166 | K23: 1071875 | L23: 0
A24: 14 | C24: ='FR-16(7)(v)-1 Functional'!C24 -> TOTAL OPERATING EXPENSE | F24: =SUM(F21:F23) -> 32003904 | G24: 17501859 | H24: 10296238 | I24: 3527373 | J24: 678434 | K24: 32003904 | L24: 0
A25: 15
A26: 16 | B26: RETURN ON RATE BASE | F26: =F334 -> 26056570 | G26: 13285047 | H26: 8629321 | I26: 3339305 | J26: 802897 | K26: 26056570 | L26: =F26-K26 -> 0
A27: 17 | B27: TOTAL OTHER OPERATING REVENUES | F27: =-F630 -> -276152 | G27: =-$G$630 -> -170806 | H27: =-$H$630 -> -83787 | I27: =-$I$630 -> -20847 | J27: =-$J$630 -> -712 | K27: =-$K$630 -> -276152 | L27: 0
A28: 18 | C28: ='FR-16(7)(v)-1 Functional'!C28 -> TOTAL GAS COST OF SERVICE | F28: =SUM(F24:F27) -> 57784322 | G28: 30616100 | H28: 18841772 | I28: 6845831 | J28: 1480619 | K28: 57784322 | L28: 0
A29: 19 | B29: ADJUSTMENT FOR INTERCLASS SUBSIDIZATION | D29: =1-'WP FR-16(7)(v)Rate Incr (50.0%)'!I11 -> 0.5 | L29: 0
A30: 20 | B30: REQUESTED REVENUES | F30: =F29+F28 -> 57784322 | G30: 30616100 | H30: 18841772 | I30: 6845831 | J30: 1480619 | K30: 57784322 | L30: 0
A31: 21 | B31: PROPOSED REVENUES | F31: =F745 -> 57041921 | G31: 37413132 | H31: 16384583 | I31: 2550624 | J31: 693582 | K31: 57041921 | L31: 0
A32: 22 | B32: DIFFERENCE (REQUESTED LESS PROPOSED) | F32: =F30-F31 -> 742401 | G32: =G30-G31 -> -6797032 | H32: 2457189 | I32: 4295207 | J32: 787037 | K32: 742401 | L32: 0
A33: 23
A34: 24 | B34: TOTAL RETURN EARNED | F34: =F654+F26 -> 26303923 | G34: 18794918 | H34: 7051925 | I34: 219401 | J34: 237679 | K34: 26303923 | L34: =F34-K34 -> 0
A35: 25 | B35: RATE OF RETURN EARNED | F35: =IF(F331=0,0,ROUND(F34/F331,5)) -> 0.08087 | G35: 0.11334 | H35: 0.06547 | I35: 0.00526 | J35: 0.02371 | K35: 0.08087 | L35: 0
A36: 26 | B36: TOTAL RATE OF RETURN ALLOWABLE | F36: =$F$688 -> 0.08011 | G36: 0.08011 | H36: 0.08011 | I36: 0.08011 | J36: 0.08011 | K36: 0.08011 | L36: 0.08011 | O36: Not Part of print range
A37: 27 | B37: RETURN EARNED ON COMMON EQUITY | F37: =IF($F$670=0,0,(F35-$F$683-$F$684-$F$686)*$F$673/$F$670) -> 0.1089474547 | G37: 0.1706197674 | H37: 0.07969726638 | I37: -0.03466337253 | J37: 0.0003798725757 | K37: 0.1089474547 | L37: =IF(F670=0,0,(L35-F683-F684-F686)*F673/F670) -> -0.04465402127 | O37: Not Filed
A38: 28 | B38: ALLOWED RETURN ON COMMON EQUITY | F38: 0.1075039389 | G38: 0.1075039389 | H38: 0.1075039389 | I38: 0.1075039389 | J38: 0.1075039389 | K38: 0.1075039389 | L38: =IF($F$670=0,0,(L36-$F$683-$F$684-$F$686)*$F$673/$F$670) -> 0.1075039389
A39: 29
A40: 30 | B40: PRESENT REVENUES | F40: =F744 -> 48457116 | G40: 31650646 | H40: 13674571 | I40: 2470478 | J40: 661421 | K40: 48457116 | L40: =F40-K40 -> 0
A41: 31 | B41: REVENUE INCREASE JUSTIFIED | F41: =F28-F40 -> 9327206 | G41: -1034546 | H41: 5167201 | I41: 4375353 | J41: 819198 | K41: 9327206 | L41: 0
A42: 32 | C42: PER UNIT PRES REV | F42: =IF(F40=0,0,ROUND(F41/F40,5)) -> 0.19248 | G42: -0.03269 | H42: 0.37787 | I42: 1.77106 | J42: 1.23854 | K42: 0.19248 | L42: 0
A43: 33 | B43: REVENUE INCREASE REQUESTED | F43: =F31-F40 -> 8584805 | G43: 5762486 | H43: 2710012 | I43: 80146 | J43: 32161 | K43: 8584805 | L43: 0
A44: 34 | C44: PER UNIT PRES REV | F44: =IF(F40=0,0,ROUND(F43/F40,5)) -> 0.17716 | G44: 0.18207 | H44: 0.19818 | I44: 0.03244 | J44: 0.04862 | K44: 0.17716 | L44: 0
A46: =co_name -> DUKE ENERGY KENTUCKY, INC. | K46: =$K$1 -> FR-16(7)(v)-5
A47: =$A$2 -> DISTRIBUTION DEMAND ALLOCATED - GAS COST OF SERVICE | K47: =$K$2 -> WITNESS RESPONSIBLE:
A48: =case_name -> CASE NO: 2025-00125 | K48: =Witness -> DOUGLAS J. HEITKAMP
A49: =data_filing -> DATA: 12 MONTH FORECASTED PERIOD | K49: ="PAGE "&Pages-16&" OF "&Pages -> PAGE 2 OF 18
A50: =type -> TYPE OF FILING: "X" ORIGINAL UPDATED REVISED
F52: =$F$7 -> TOTAL
A53: LINE | F53: =$F$8 -> DISTRIBUTION | G53: RS/RFT/RSLI | H53: GS/FT SMALL | I53: GS/FT LARGE | J53: INTERUPT | K53: TOTAL | L53: ALL
A54: NO. | B54: GROSS GAS PLANT IN SERVICE | D54: ALLO | F54: =$F$9 -> DEMAND | G54: RESIDENTIAL | H54: GEN SERV | I54: GEN SERV | J54: TRANS | K54: AT ISSUE | L54: OTHER
C55: Schedule 2 | G55: =$G$10 -> 3 | H55: =$H$10 -> 4 | I55: =$I$10 -> 5 | J55: =$J$10 -> 6
A56: 1 | B56: PRODUCTION PLANT
A57: 2 | C57: ='FR-16(7)(v)-1 Functional'!C57 -> PRODUCTION PLANT | D57: ='FR-16(7)(v)-1 Functional'!D57 -> K205 | F57: ='FR-16(7)(v)-4 DISTR Classified'!G57 -> 0 | G57: =F57-SUM(H57:J57) -> 0 | H57: =ROUND($F$57*VLOOKUP($D$57,ALLOCTABLE_DISTR_DEMAND,$H$10,FALSE),0) -> 0 | I57: =ROUND(F57*VLOOKUP(D57,ALLOCTABLE_DISTR_DEMAND,$I$10,FALSE),0) -> 0 | J57: =ROUND(F57*VLOOKUP(D57,ALLOCTABLE_DISTR_DEMAND,$J$10,FALSE),0) -> 0 | K57: =SUM($G$57:$J$57) -> 0 | L57: =F57-$K$57 -> 0
A58: 3 | C58: ='FR-16(7)(v)-1 Functional'!C58 -> GAS PRODUCTION -CPMPL NOT CLASS | D58: ='FR-16(7)(v)-1 Functional'!D58 -> K205 | F58: ='FR-16(7)(v)-4 DISTR Classified'!G58 -> 0 | G58: =F58-SUM(H58:J58) -> 0 | H58: =ROUND($F$58*VLOOKUP($D$58,ALLOCTABLE_DISTR_DEMAND,$H$10,FALSE),0) -> 0 | I58: =ROUND(F58*VLOOKUP(D58,ALLOCTABLE_DISTR_DEMAND,$I$10,FALSE),0) -> 0 | J58: =ROUND(F58*VLOOKUP(D58,ALLOCTABLE_DISTR_DEMAND,$J$10,FALSE),0) -> 0 | K58: =SUM($G$58:$J$58) -> 0 | L58: =F58-$K$58 -> 0
A59: 4 | C59: ='FR-16(7)(v)-1 Functional'!C59 -> PRODUCTION PLANT IN SERVICE | F59: =SUM(F57:F58) -> 0 | G59: =SUM($G$57:$G$58) -> 0 | H59: =SUM($H$57:$H$58) -> 0 | I59: =SUM($I$57:$I$58) -> 0 | J59: =SUM($J$57:$J$58) -> 0 | K59: =SUM($K$57:$K$58) -> 0 | L59: =SUM($L$57:$L$58) -> 0
A60: 5
A61: 6 | B61: TRANSMISSION PLANT
A62: 7 | C62: ='FR-16(7)(v)-1 Functional'!C62 -> TRANSMISSION PLANT
A63: 8 | C63: ='FR-16(7)(v)-1 Functional'!C63 -> TRANSMISSION PLANT IN SERVICE | F63: =SUM(F62) -> 0 | G63: =SUM($G$62) -> 0 | H63: =SUM($H$62) -> 0 | I63: =SUM($I$62) -> 0 | J63: =SUM($J$62) -> 0 | K63: =SUM($K$62) -> 0 | L63: =SUM($L$62) -> 0
A64: 9
A65: 10 | B65: TOTAL PROD & TRANS PLANT | F65: =F63+F59 -> 0 | G65: =$G$63+$G$59 -> 0 | H65: =$H$63+$H$59 -> 0 | I65: =$I$63+$I$59 -> 0 | J65: =$J$63+$J$59 -> 0 | K65: =$K$63+$K$59 -> 0 | L65: =$L$63+$L$59 -> 0
A66: 11
A67: 12 | B67: DISTRIBUTION PLANT
A68: 13 | C68: ='FR-16(7)(v)-1 Functional'!C68 -> SYSTEM M&R - (2780, 2781) | D68: ='FR-16(7)(v)-1 Functional'!D68 -> K203 | F68: ='FR-16(7)(v)-4 DISTR Classified'!G68 -> 76523866 | G68: =F68-SUM(H68:J68) -> 39858220 | H68: =ROUND($F$68*VLOOKUP($D$68,ALLOCTABLE_DISTR_DEMAND,$H$10,FALSE),0) -> 23883099 | I68: =ROUND(F68*VLOOKUP(D68,ALLOCTABLE_DISTR_DEMAND,$I$10,FALSE),0) -> 10266442 | J68: =ROUND(F68*VLOOKUP(D68,ALLOCTABLE_DISTR_DEMAND,$J$10,FALSE),0) -> 2516105 | K68: =SUM(G68:J68) -> 76523866 | L68: =F68-K68 -> 0
A69: 14 | C69: ='FR-16(7)(v)-1 Functional'!C69 -> DIST REG EQUIP & CITY GATE M&R- (2782, 2790) | D69: ='FR-16(7)(v)-1 Functional'!D69 -> K203 | F69: ='FR-16(7)(v)-4 DISTR Classified'!G69 -> 3953923 | G69: 2059441 | H69: =ROUND($F$69*VLOOKUP($D$69,ALLOCTABLE_DISTR_DEMAND,$H$10,FALSE),0) -> 1234019 | I69: 530458 | J69: 130005 | K69: 3953923 | L69: 0
A70: 15 | C70: ='FR-16(7)(v)-1 Functional'!C70 -> LARGE IND M&R - (2850, 2851) | D70: ='FR-16(7)(v)-1 Functional'!D70 -> K595 | F70: ='FR-16(7)(v)-4 DISTR Classified'!G70 -> 567756 | G70: 0 | H70: =ROUND($F$70*VLOOKUP($D$70,ALLOCTABLE_DISTR_DEMAND,$H$10,FALSE),0) -> 0 | I70: 364567 | J70: 203189 | K70: 567756 | L70: 0
A71: 16 | C71: ='FR-16(7)(v)-1 Functional'!C71 -> MAINS - (2761, 2762, 2763, 2765) | D71: K203 | F71: ='FR-16(7)(v)-4 DISTR Classified'!G71 -> 394406167 | G71: 205430396 | H71: =ROUND($F$71*VLOOKUP($D$71,ALLOCTABLE_DISTR_DEMAND,$H$10,FALSE),0) -> 123094165 | I71: 52913531 | J71: 12968075 | K71: 394406167 | L71: 0
A72: 17 | C72: ='FR-16(7)(v)-1 Functional'!C72 -> SERVICES - (2801, 2802, 2803) | D72: ='FR-16(7)(v)-1 Functional'!D72 -> K403 | F72: ='FR-16(7)(v)-4 DISTR Classified'!G72 -> 0 | G72: 0 | H72: =ROUND($F$72*VLOOKUP($D$72,ALLOCTABLE_DISTR_DEMAND,$H$10,FALSE),0) -> 0 | I72: 0 | J72: 0 | K72: 0 | L72: 0
A73: 18 | C73: ='FR-16(7)(v)-1 Functional'!C73 -> MTRS & MTR INST (2810, 2811, 2820, 2821) | D73: ='FR-16(7)(v)-1 Functional'!D73 -> K413 | F73: ='FR-16(7)(v)-4 DISTR Classified'!G73 -> 0 | G73: 0 | H73: =ROUND($F$73*VLOOKUP($D$73,ALLOCTABLE_DISTR_DEMAND,$H$10,FALSE),0) -> 0 | I73: 0 | J73: 0 | K73: 0 | L73: 0
A74: 19 | C74: ='FR-16(7)(v)-1 Functional'!C74 -> LAND, R OF W, STRUCT & IMPROV | D74: ='FR-16(7)(v)-1 Functional'!D74 -> K203 | F74: ='FR-16(7)(v)-4 DISTR Classified'!G74 -> 18487900 | G74: 9629607 | H74: =ROUND($F$74*VLOOKUP($D$74,ALLOCTABLE_DISTR_DEMAND,$H$10,FALSE),0) -> 5770074 | I74: 2480337 | J74: 607882 | K74: 18487900 | L74: 0
A75: 20 | C75: ='FR-16(7)(v)-1 Functional'!C75 -> HOUSE REG & INSTALL (2830, 2840) | D75: ='FR-16(7)(v)-1 Functional'!D75 -> K417 | F75: ='FR-16(7)(v)-4 DISTR Classified'!G75 -> 0 | G75: 0 | H75: =ROUND($F$75*VLOOKUP($D$75,ALLOCTABLE_DISTR_DEMAND,$H$10,FALSE),0) -> 0 | I75: 0 | J75: 0 | K75: 0 | L75: 0
A76: 21 | C76: ='FR-16(7)(v)-1 Functional'!C76 -> STREET LIGHTING EQUIPMENT & OTH | D76: ='FR-16(7)(v)-1 Functional'!D76 -> K597 | F76: ='FR-16(7)(v)-4 DISTR Classified'!G76 -> 90730 | G76: 0 | H76: =ROUND($F$76*VLOOKUP($D$76,ALLOCTABLE_DISTR_DEMAND,$H$10,FALSE),0) -> 90730 | I76: 0 | J76: 0 | K76: 90730 | L76: 0
A77: 22 | C77: ='FR-16(7)(v)-1 Functional'!C77 -> ASSET RETIREMENT COST FOR DISTRIBUTION PLANT | D77: ='FR-16(7)(v)-1 Functional'!D77 -> K203 | F77: ='FR-16(7)(v)-4 DISTR Classified'!G77 -> 0 | G77: 0 | H77: =ROUND($F$77*VLOOKUP($D$77,ALLOCTABLE_DISTR_DEMAND,$H$10,FALSE),0) -> 0 | I77: 0 | J77: 0 | K77: 0 | L77: 0
A78: 23 | C78: ='FR-16(7)(v)-1 Functional'!C78 -> DISTRIBUTION PLANT IN SERVICE | F78: =SUM(F68:F77) -> 494030342 | G78: =SUM(G68:G77) -> 256977664 | H78: 154072087 | I78: 66555335 | J78: 16425256 | K78: 494030342 | L78: 0
A79: 24
A80: 25 | B80: TOTAL TRANS & DIST PLANT | F80: =F78+F63 -> 494030342 | G80: =G78+$G$63 -> 256977664 | H80: =H78+$H$63 -> 154072087 | I80: =I78+$I$63 -> 66555335 | J80: =J78+$J$63 -> 16425256 | K80: =K78+$K$63 -> 494030342 | L80: =L78+$L$63 -> 0
A81: 26 | B81: TOTAL GROSS PTD PLANT | F81: =F78+F65 -> 494030342 | G81: =G78+G65 -> 256977664 | H81: 154072087 | I81: 66555335 | J81: 16425256 | K81: 494030342 | L81: 0
A82: 27
A83: 28 | B83: GENERAL & INTANGIBLE PLANT
A84: 29 | C84: ='FR-16(7)(v)-1 Functional'!C84 -> PRODUCTION PLANT | D84: ='FR-16(7)(v)-1 Functional'!D84 -> K201 | F84: ='FR-16(7)(v)-4 DISTR Classified'!G84 -> 0 | G84: =F84-SUM(H84:J84) -> 0 | H84: =ROUND($F$84*VLOOKUP($D$84,ALLOCTABLE_DISTR_DEMAND,$H$10,FALSE),0) -> 0 | I84: =ROUND(F84*VLOOKUP(D84,ALLOCTABLE_DISTR_DEMAND,$I$10,FALSE),0) -> 0 | J84: =ROUND(F84*VLOOKUP(D84,ALLOCTABLE_DISTR_DEMAND,$J$10,FALSE),0) -> 0 | K84: =SUM(G84:J84) -> 0 | L84: =F84-K84 -> 0
A85: 30 | C85: ='FR-16(7)(v)-1 Functional'!C85 -> PRODUCTION PLANT COMMODITY | D85: ='FR-16(7)(v)-1 Functional'!D85 -> P349 | F85: ='FR-16(7)(v)-4 DISTR Classified'!G85 -> 0 | G85: 0 | H85: =ROUND($F$85*VLOOKUP($D$85,ALLOCTABLE_DISTR_DEMAND,$H$10,FALSE),0) -> 0 | I85: 0 | J85: 0 | K85: 0 | L85: 0
A86: 31 | C86: ='FR-16(7)(v)-1 Functional'!C86 -> DISTRIBUTION PLANT | D86: ='FR-16(7)(v)-1 Functional'!D86 -> D349 | F86: ='FR-16(7)(v)-4 DISTR Classified'!G86 -> 21155016 | G86: 13084801 | H86: =ROUND($F$86*VLOOKUP($D$86,ALLOCTABLE_DISTR_DEMAND,$H$10,FALSE),0) -> 6418643 | I86: 1596992 | J86: 54580 | K86: 21155016 | L86: 0
A87: 32 | C87: ='FR-16(7)(v)-1 Functional'!C87 -> CUSTOMER ACCOUNTING | D87: ='FR-16(7)(v)-1 Functional'!D87 -> CA19 | F87: ='FR-16(7)(v)-4 DISTR Classified'!G87 -> 0 | G87: 0 | H87: =ROUND($F$87*VLOOKUP($D$87,ALLOCTABLE_DISTR_DEMAND,$H$10,FALSE),0) -> 0 | I87: 0 | J87: 0 | K87: 0 | L87: 0
A88: 33 | C88: ='FR-16(7)(v)-1 Functional'!C88 -> CUSTOMER SERVICE & INFORMATION | D88: ='FR-16(7)(v)-1 Functional'!D88 -> CS19 | F88: ='FR-16(7)(v)-4 DISTR Classified'!G88 -> 0 | G88: 0 | H88: =ROUND($F$88*VLOOKUP($D$88,ALLOCTABLE_DISTR_DEMAND,$H$10,FALSE),0) -> 0 | I88: 0 | J88: 0 | K88: 0 | L88: 0
A89: 34 | C89: ='FR-16(7)(v)-1 Functional'!C89 -> SALES | D89: ='FR-16(7)(v)-1 Functional'!D89 -> SE19 | F89: ='FR-16(7)(v)-4 DISTR Classified'!G89 -> 0 | G89: 0 | H89: =ROUND($F$89*VLOOKUP($D$89,ALLOCTABLE_DISTR_DEMAND,$H$10,FALSE),0) -> 0 | I89: 0 | J89: 0 | K89: 0 | L89: 0
A90: 35 | C90: ='FR-16(7)(v)-1 Functional'!C90 -> GEN & INTANG PLANT IN SERVICE | F90: =SUM(F84:F89) -> 21155016 | G90: =SUM(G84:G89) -> 13084801 | H90: 6418643 | I90: 1596992 | J90: 54580 | K90: 21155016 | L90: 0
A91: 36
A92: 37 | B92: COMMON & OTHER PLANT
A93: 38 | C93: ='FR-16(7)(v)-1 Functional'!C93 -> PRODUCTION PLANT | D93: ='FR-16(7)(v)-1 Functional'!D93 -> K201 | F93: ='FR-16(7)(v)-4 DISTR Classified'!G93 -> 0 | G93: =F93-SUM(H93:J93) -> 0 | H93: =ROUND($F$93*VLOOKUP($D$93,ALLOCTABLE_DISTR_DEMAND,$H$10,FALSE),0) -> 0 | I93: =ROUND(F93*VLOOKUP(D93,ALLOCTABLE_DISTR_DEMAND,$I$10,FALSE),0) -> 0 | J93: =ROUND(F93*VLOOKUP(D93,ALLOCTABLE_DISTR_DEMAND,$J$10,FALSE),0) -> 0 | K93: =SUM(G93:J93) -> 0 | L93: =F93-K93 -> 0
A94: 39 | C94: ='FR-16(7)(v)-1 Functional'!C94 -> PRODUCTION PLANT COMMODITY | D94: ='FR-16(7)(v)-1 Functional'!D94 -> P349 | F94: ='FR-16(7)(v)-4 DISTR Classified'!G94 -> 0 | G94: 0 | H94: =ROUND($F$94*VLOOKUP($D$94,ALLOCTABLE_DISTR_DEMAND,$H$10,FALSE),0) -> 0 | I94: 0 | J94: 0 | K94: 0 | L94: 0
A95: 40 | C95: ='FR-16(7)(v)-1 Functional'!C95 -> DISTRIBUTION PLANT | D95: ='FR-16(7)(v)-1 Functional'!D95 -> D349 | F95: ='FR-16(7)(v)-4 DISTR Classified'!G95 -> 6080061 | G95: 3760639 | H95: =ROUND($F$95*VLOOKUP($D$95,ALLOCTABLE_DISTR_DEMAND,$H$10,FALSE),0) -> 1844751 | I95: 458984 | J95: 15687 | K95: 6080061 | L95: 0
A96: 41 | C96: ='FR-16(7)(v)-1 Functional'!C96 -> CUSTOMER ACCOUNTING | D96: ='FR-16(7)(v)-1 Functional'!D96 -> CA19 | F96: ='FR-16(7)(v)-4 DISTR Classified'!G96 -> 0 | G96: 0 | H96: =ROUND($F$96*VLOOKUP($D$96,ALLOCTABLE_DISTR_DEMAND,$H$10,FALSE),0) -> 0 | I96: 0 | J96: 0 | K96: 0 | L96: 0
A97: 42 | C97: ='FR-16(7)(v)-1 Functional'!C97 -> CUSTOMER SERVICE & INFORMATION | D97: ='FR-16(7)(v)-1 Functional'!D97 -> CS19 | F97: ='FR-16(7)(v)-4 DISTR Classified'!G97 -> 0 | G97: 0 | H97: =ROUND($F$97*VLOOKUP($D$97,ALLOCTABLE_DISTR_DEMAND,$H$10,FALSE),0) -> 0 | I97: 0 | J97: 0 | K97: 0 | L97: 0
A98: 43 | C98: ='FR-16(7)(v)-1 Functional'!C98 -> SALES | D98: ='FR-16(7)(v)-1 Functional'!D98 -> SE19 | F98: ='FR-16(7)(v)-4 DISTR Classified'!G98 -> 0 | G98: 0 | H98: =ROUND($F$98*VLOOKUP($D$98,ALLOCTABLE_DISTR_DEMAND,$H$10,FALSE),0) -> 0 | I98: 0 | J98: 0 | K98: 0 | L98: 0
A99: 44 | C99: ='FR-16(7)(v)-1 Functional'!C99 -> COMMON & OTHER PLANT IN SERVICE | F99: =SUM(F93:F98) -> 6080061 | G99: =SUM(G93:G98) -> 3760639 | H99: 1844751 | I99: 458984 | J99: 15687 | K99: 6080061 | L99: 0
A100: 45
A101: 46 | B101: GROSS GAS PLANT IN SERVICE | F101: =F81+F90+F99 -> 521265419 | G101: =G81+G90+G99 -> 273823104 | H101: 162335481 | I101: 68611311 | J101: 16495523 | K101: 521265419 | L101: 0
A103: =co_name -> DUKE ENERGY KENTUCKY, INC. | K103: =$K$1 -> FR-16(7)(v)-5
A104: =$A$2 -> DISTRIBUTION DEMAND ALLOCATED - GAS COST OF SERVICE | K104: =$K$2 -> WITNESS RESPONSIBLE:
A105: =case_name -> CASE NO: 2025-00125 | K105: =Witness -> DOUGLAS J. HEITKAMP
A106: =data_filing -> DATA: 12 MONTH FORECASTED PERIOD | K106: ="PAGE "&Pages-15&" OF "&Pages -> PAGE 3 OF 18
A107: =type -> TYPE OF FILING: "X" ORIGINAL UPDATED REVISED
F109: =$F$7 -> TOTAL
A110: LINE | F110: =$F$8 -> DISTRIBUTION | G110: RS/RFT | H110: GS/FT SMALL | I110: GS/FT LARGE | J110: INTERUPT | K110: TOTAL | L110: ALL
A111: NO. | B111: DEPRECIATION RESERVE | D111: ALLO | F111: =$F$9 -> DEMAND | G111: RESIDENTIAL | H111: GEN SERV | I111: GEN SERV | J111: TRANS | K111: AT ISSUE | L111: OTHER
C112: Schedule 3 | G112: =$G$10 -> 3 | H112: =$H$10 -> 4 | I112: =$I$10 -> 5 | J112: =$J$10 -> 6
A113: 1 | B113: PRODUCTION PLANT
A114: 2 | C114: ='FR-16(7)(v)-1 Functional'!C114 -> PRODUCTION PLANT | D114: ='FR-16(7)(v)-1 Functional'!D114 -> K205 | F114: ='FR-16(7)(v)-4 DISTR Classified'!G114 -> 0 | G114: =F114-SUM(H114:J114) -> 0 | H114: =ROUND($F$114*VLOOKUP($D$114,ALLOCTABLE_DISTR_DEMAND,$H$10,FALSE),0) -> 0 | I114: =ROUND(F114*VLOOKUP(D114,ALLOCTABLE_DISTR_DEMAND,$I$10,FALSE),0) -> 0 | J114: =ROUND(F114*VLOOKUP(D114,ALLOCTABLE_DISTR_DEMAND,$J$10,FALSE),0) -> 0 | K114: =SUM(G114:J114) -> 0 | L114: =F114-K114 -> 0
A115: 3 | C115: ='FR-16(7)(v)-1 Functional'!C115 -> TOTAL PROD DEPREC RESERVE | F115: =SUM(F114:F114) -> 0 | G115: =SUM(G114:G114) -> 0 | H115: 0 | I115: 0 | J115: 0 | K115: 0 | L115: 0
A116: 4
A117: 5 | B117: TRANSMISSION PLANT
A118: 6 | C118: ='FR-16(7)(v)-1 Functional'!C118 -> TRANSMISSION PLANT
A119: 7 | C119: ='FR-16(7)(v)-1 Functional'!C119 -> TOTAL TRANS DEPREC RESERVE | F119: =SUM(F118:F118) -> 0 | G119: =SUM(G118:G118) -> 0 | H119: 0 | I119: 0 | J119: 0 | K119: 0 | L119: 0
A120: 8
A121: 9 | B121: DISTRIBUTION PLANT
A122: 10 | C122: ='FR-16(7)(v)-1 Functional'!C122 -> SYSTEM M&R - (2780, 2781) | D122: ='FR-16(7)(v)-1 Functional'!D122 -> K203 | F122: ='FR-16(7)(v)-4 DISTR Classified'!G122 -> 8217527 | G122: =F122-SUM(H122:J122) -> 4280182 | H122: =ROUND($F$122*VLOOKUP($D$122,ALLOCTABLE_DISTR_DEMAND,$H$10,FALSE),0) -> 2564690 | I122: =ROUND(F122*VLOOKUP(D122,ALLOCTABLE_DISTR_DEMAND,$I$10,FALSE),0) -> 1102463 | J122: =ROUND(F122*VLOOKUP(D122,ALLOCTABLE_DISTR_DEMAND,$J$10,FALSE),0) -> 270192 | K122: =SUM(G122:J122) -> 8217527 | L122: =F122-K122 -> 0
A123: 11 | C123: ='FR-16(7)(v)-1 Functional'!C123 -> DIST REG EQUIP & CITY GATE M&R- (2782, 2790) | D123: ='FR-16(7)(v)-1 Functional'!D123 -> K203 | F123: ='FR-16(7)(v)-4 DISTR Classified'!G123 -> 871719 | G123: 454044 | H123: =ROUND($F$123*VLOOKUP($D$123,ALLOCTABLE_DISTR_DEMAND,$H$10,FALSE),0) -> 272063 | I123: 116950 | J123: 28662 | K123: 871719 | L123: 0
A124: 12 | C124: ='FR-16(7)(v)-1 Functional'!C124 -> LARGE IND M&R - (2850, 2851) | D124: ='FR-16(7)(v)-1 Functional'!D124 -> K595 | F124: ='FR-16(7)(v)-4 DISTR Classified'!G124 -> 530247 | G124: 0 | H124: =ROUND($F$124*VLOOKUP($D$124,ALLOCTABLE_DISTR_DEMAND,$H$10,FALSE),0) -> 0 | I124: 340482 | J124: 189765 | K124: 530247 | L124: 0
A125: 13 | C125: ='FR-16(7)(v)-1 Functional'!C125 -> MAINS - (2761, 2762, 2763, 2765) | D125: =D71 -> K203 | F125: ='FR-16(7)(v)-4 DISTR Classified'!G125 -> 111261498 | G125: 57951663 | H125: =ROUND($F$125*VLOOKUP($D$125,ALLOCTABLE_DISTR_DEMAND,$H$10,FALSE),0) -> 34724714 | I125: 14926843 | J125: 3658278 | K125: 111261498 | L125: 0
A126: 14 | C126: ='FR-16(7)(v)-1 Functional'!C126 -> SERVICES - (2801, 2802, 2803) | D126: ='FR-16(7)(v)-1 Functional'!D126 -> K403 | F126: ='FR-16(7)(v)-4 DISTR Classified'!G126 -> 0 | G126: 0 | H126: =ROUND($F$126*VLOOKUP($D$126,ALLOCTABLE_DISTR_DEMAND,$H$10,FALSE),0) -> 0 | I126: 0 | J126: 0 | K126: 0 | L126: 0
A127: 15 | C127: ='FR-16(7)(v)-1 Functional'!C127 -> MTRS & MTR INST (2810, 2811, 2820, 2821) | D127: ='FR-16(7)(v)-1 Functional'!D127 -> K413 | F127: ='FR-16(7)(v)-4 DISTR Classified'!G127 -> 0 | G127: 0 | H127: =ROUND($F$127*VLOOKUP($D$127,ALLOCTABLE_DISTR_DEMAND,$H$10,FALSE),0) -> 0 | I127: 0 | J127: 0 | K127: 0 | L127: 0
A128: 16 | C128: ='FR-16(7)(v)-1 Functional'!C128 -> LAND, R OF W, STRUCT & IMPROV & OTH | D128: ='FR-16(7)(v)-1 Functional'!D128 -> K203 | F128: ='FR-16(7)(v)-4 DISTR Classified'!G128 -> 1394350 | G128: 726261 | H128: =ROUND($F$128*VLOOKUP($D$128,ALLOCTABLE_DISTR_DEMAND,$H$10,FALSE),0) -> 435177 | I128: 187066 | J128: 45846 | K128: 1394350 | L128: 0
A129: 17 | C129: ='FR-16(7)(v)-1 Functional'!C129 -> HOUSE REG & INSTALL (2830, 2840) | D129: ='FR-16(7)(v)-1 Functional'!D129 -> K417 | F129: ='FR-16(7)(v)-4 DISTR Classified'!G129 -> 0 | G129: 0 | H129: =ROUND($F$129*VLOOKUP($D$129,ALLOCTABLE_DISTR_DEMAND,$H$10,FALSE),0) -> 0 | I129: 0 | J129: 0 | K129: 0 | L129: 0
A130: 18 | C130: ='FR-16(7)(v)-1 Functional'!C130 -> STREET LIGHTING EQUIPMENT & OTH | D130: ='FR-16(7)(v)-1 Functional'!D130 -> K597 | F130: ='FR-16(7)(v)-4 DISTR Classified'!G130 -> -11164624 | G130: 0 | H130: =ROUND($F$130*VLOOKUP($D$130,ALLOCTABLE_DISTR_DEMAND,$H$10,FALSE),0) -> -11164624 | I130: 0 | J130: 0 | K130: -11164624 | L130: 0
A131: 19 | C131: ='FR-16(7)(v)-1 Functional'!C131 -> TOTAL DIST DEPREC RESERVE | F131: =SUM(F121:F130) -> 111110717 | G131: =SUM(G121:G130) -> 63412150 | H131: 26832020 | I131: 16673804 | J131: 4192743 | K131: 111110717 | L131: 0
A132: 20
A133: 21 | B133: GENERAL & INTANGIBLE PLANT
A134: 22 | C134: ='FR-16(7)(v)-1 Functional'!C134 -> PRODUCTION PLANT | D134: ='FR-16(7)(v)-1 Functional'!D134 -> K201 | F134: ='FR-16(7)(v)-4 DISTR Classified'!G134 -> 0 | G134: =F134-SUM(H134:J134) -> 0 | H134: =ROUND($F$134*VLOOKUP($D$134,ALLOCTABLE_DISTR_DEMAND,$H$10,FALSE),0) -> 0 | I134: =ROUND(F134*VLOOKUP(D134,ALLOCTABLE_DISTR_DEMAND,$I$10,FALSE),0) -> 0 | J134: =ROUND(F134*VLOOKUP(D134,ALLOCTABLE_DISTR_DEMAND,$J$10,FALSE),0) -> 0 | K134: =SUM(G134:J134) -> 0 | L134: =F134-K134 -> 0
A135: 23 | C135: ='FR-16(7)(v)-1 Functional'!C135 -> PRODUCTION PLANT COMMODITY | D135: ='FR-16(7)(v)-1 Functional'!D135 -> P349 | F135: ='FR-16(7)(v)-4 DISTR Classified'!G135 -> 0 | G135: 0 | H135: =ROUND($F$135*VLOOKUP($D$135,ALLOCTABLE_DISTR_DEMAND,$H$10,FALSE),0) -> 0 | I135: 0 | J135: 0 | K135: 0 | L135: 0
A136: 24 | C136: ='FR-16(7)(v)-1 Functional'!C136 -> DISTRIBUTION PLANT | D136: ='FR-16(7)(v)-1 Functional'!D136 -> D349 | F136: ='FR-16(7)(v)-4 DISTR Classified'!G136 -> 10112736 | G136: 6254930 | H136: =ROUND($F$136*VLOOKUP($D$136,ALLOCTABLE_DISTR_DEMAND,$H$10,FALSE),0) -> 3068305 | I136: 763410 | J136: 26091 | K136: 10112736 | L136: 0
A137: 25 | C137: ='FR-16(7)(v)-1 Functional'!C137 -> CUSTOMER ACCOUNTING | D137: ='FR-16(7)(v)-1 Functional'!D137 -> CA19 | F137: ='FR-16(7)(v)-4 DISTR Classified'!G137 -> 0 | G137: 0 | H137: =ROUND($F$137*VLOOKUP($D$137,ALLOCTABLE_DISTR_DEMAND,$H$10,FALSE),0) -> 0 | I137: 0 | J137: 0 | K137: 0 | L137: 0
A138: 26 | C138: ='FR-16(7)(v)-1 Functional'!C138 -> CUSTOMER SERVICE & INFORMATION | D138: ='FR-16(7)(v)-1 Functional'!D138 -> CS19 | F138: ='FR-16(7)(v)-4 DISTR Classified'!G138 -> 0 | G138: 0 | H138: =ROUND($F$138*VLOOKUP($D$138,ALLOCTABLE_DISTR_DEMAND,$H$10,FALSE),0) -> 0 | I138: 0 | J138: 0 | K138: 0 | L138: 0
A139: 27 | C139: ='FR-16(7)(v)-1 Functional'!C139 -> SALES | D139: ='FR-16(7)(v)-1 Functional'!D139 -> SE19 | F139: ='FR-16(7)(v)-4 DISTR Classified'!G139 -> 0 | G139: 0 | H139: =ROUND($F$139*VLOOKUP($D$139,ALLOCTABLE_DISTR_DEMAND,$H$10,FALSE),0) -> 0 | I139: 0 | J139: 0 | K139: 0 | L139: 0
A140: 28 | C140: ='FR-16(7)(v)-1 Functional'!C140 -> TOTAL GEN DEPREC RESERVE | F140: =SUM(F133:F139) -> 10112736 | G140: =SUM(G133:G139) -> 6254930 | H140: 3068305 | I140: 763410 | J140: 26091 | K140: 10112736 | L140: 0
A141: 29
A142: 30 | B142: COMMON & OTHER PLANT
A143: 31 | C143: ='FR-16(7)(v)-1 Functional'!C143 -> PRODUCTION PLANT | D143: ='FR-16(7)(v)-1 Functional'!D143 -> K201 | F143: ='FR-16(7)(v)-4 DISTR Classified'!G143 -> 0 | G143: =F143-SUM(H143:J143) -> 0 | H143: =ROUND($F$143*VLOOKUP($D$143,ALLOCTABLE_DISTR_DEMAND,$H$10,FALSE),0) -> 0 | I143: =ROUND(F143*VLOOKUP(D143,ALLOCTABLE_DISTR_DEMAND,$I$10,FALSE),0) -> 0 | J143: =ROUND(F143*VLOOKUP(D143,ALLOCTABLE_DISTR_DEMAND,$J$10,FALSE),0) -> 0 | K143: =SUM(G143:J143) -> 0 | L143: =F143-K143 -> 0
A144: 32 | C144: ='FR-16(7)(v)-1 Functional'!C144 -> PRODUCTION PLANT COMMODITY | D144: ='FR-16(7)(v)-1 Functional'!D144 -> P349 | F144: ='FR-16(7)(v)-4 DISTR Classified'!G144 -> 0 | G144: 0 | H144: =ROUND($F$144*VLOOKUP($D$144,ALLOCTABLE_DISTR_DEMAND,$H$10,FALSE),0) -> 0 | I144: 0 | J144: 0 | K144: 0 | L144: 0
A145: 33 | C145: ='FR-16(7)(v)-1 Functional'!C145 -> DISTRIBUTION PLANT | D145: ='FR-16(7)(v)-1 Functional'!D145 -> D349 | F145: ='FR-16(7)(v)-4 DISTR Classified'!G145 -> 3261222 | G145: 2017131 | H145: =ROUND($F$145*VLOOKUP($D$145,ALLOCTABLE_DISTR_DEMAND,$H$10,FALSE),0) -> 989487 | I145: 246190 | J145: 8414 | K145: 3261222 | L145: 0
A146: 34 | C146: ='FR-16(7)(v)-1 Functional'!C146 -> CUSTOMER ACCOUNTING | D146: ='FR-16(7)(v)-1 Functional'!D146 -> CA19 | F146: ='FR-16(7)(v)-4 DISTR Classified'!G146 -> 0 | G146: 0 | H146: =ROUND($F$146*VLOOKUP($D$146,ALLOCTABLE_DISTR_DEMAND,$H$10,FALSE),0) -> 0 | I146: 0 | J146: 0 | K146: 0 | L146: 0
A147: 35 | C147: ='FR-16(7)(v)-1 Functional'!C147 -> CUSTOMER SERVICE & INFORMATION | D147: ='FR-16(7)(v)-1 Functional'!D147 -> CS19 | F147: ='FR-16(7)(v)-4 DISTR Classified'!G147 -> 0 | G147: 0 | H147: =ROUND($F$147*VLOOKUP($D$147,ALLOCTABLE_DISTR_DEMAND,$H$10,FALSE),0) -> 0 | I147: 0 | J147: 0 | K147: 0 | L147: 0
A148: 36 | C148: ='FR-16(7)(v)-1 Functional'!C148 -> SALES | D148: ='FR-16(7)(v)-1 Functional'!D148 -> SE19 | F148: ='FR-16(7)(v)-4 DISTR Classified'!G148 -> 0 | G148: 0 | H148: =ROUND($F$148*VLOOKUP($D$148,ALLOCTABLE_DISTR_DEMAND,$H$10,FALSE),0) -> 0 | I148: 0 | J148: 0 | K148: 0 | L148: 0
A149: 37 | C149: ='FR-16(7)(v)-1 Functional'!C149 -> TOTAL COM & OTHER PLT RESERVE | F149: =SUM(F143:F148) -> 3261222 | G149: =SUM(G142:G148) -> 2017131 | H149: 989487 | I149: 246190 | J149: 8414 | K149: 3261222 | L149: 0
A150: 38
A151: 39 | B151: TOTAL DEPRECIATION RESERVE | F151: =F149+F140+F131+F119+F115 -> 124484675 | G151: =G149+G140+G131+G119+G115 -> 71684211 | H151: 30889812 | I151: 17683404 | J151: 4227248 | K151: 124484675 | L151: 0
A153: =co_name -> DUKE ENERGY KENTUCKY, INC. | K153: =$K$1 -> FR-16(7)(v)-5
A154: =$A$2 -> DISTRIBUTION DEMAND ALLOCATED - GAS COST OF SERVICE | K154: =$K$2 -> WITNESS RESPONSIBLE:
A155: =case_name -> CASE NO: 2025-00125 | K155: =Witness -> DOUGLAS J. HEITKAMP
A156: =data_filing -> DATA: 12 MONTH FORECASTED PERIOD | K156: ="PAGE "&Pages-14&" OF "&Pages -> PAGE 4 OF 18
A157: =type -> TYPE OF FILING: "X" ORIGINAL UPDATED REVISED
F159: =$F$7 -> TOTAL
A160: LINE | F160: =$F$8 -> DISTRIBUTION | G160: RS/RFT | H160: GS/FT SMALL | I160: GS/FT LARGE | J160: INTERUPT | K160: TOTAL | L160: ALL
A161: NO. | B161: ="NET GAS PLANT" -> NET GAS PLANT | D161: ALLO | F161: =$F$9 -> DEMAND | G161: RESIDENTIAL | H161: GEN SERV | I161: GEN SERV | J161: TRANS | K161: AT ISSUE | L161: OTHER
C162: Schedule 4 | G162: =$G$10 -> 3 | H162: =$H$10 -> 4 | I162: =$I$10 -> 5 | J162: =$J$10 -> 6
A163: 1 | B163: PRODUCTION PLANT
A164: 2 | C164: ='FR-16(7)(v)-1 Functional'!C164 -> PRODUCTION PLANT IN SERVICE | F164: =F59 -> 0 | G164: =$G$59 -> 0 | H164: =$H$59 -> 0 | I164: =$I$59 -> 0 | J164: =$J$59 -> 0 | K164: =$K$59 -> 0 | L164: =F164-K164 -> 0
A165: 3 | C165: ='FR-16(7)(v)-1 Functional'!C165 -> TOTAL PROD DEPRC RESERVE | F165: =-F115 -> 0 | G165: 0 | H165: 0 | I165: 0 | J165: 0 | K165: 0 | L165: =F165-K165 -> 0
A166: 4 | C166: ='FR-16(7)(v)-1 Functional'!C166 -> NET PRODUCTION PLANT | F166: =SUM(F164:F165) -> 0 | G166: 0 | H166: 0 | I166: 0 | J166: 0 | K166: 0 | L166: 0
A167: 5
A168: 6 | B168: TRANSMISSION PLANT
A169: 7 | C169: ='FR-16(7)(v)-1 Functional'!C169 -> TRANSMISSION PLANT IN SERVICE | F169: =F63 -> 0 | G169: =$G$63 -> 0 | H169: =$H$63 -> 0 | I169: =$I$63 -> 0 | J169: =$J$63 -> 0 | K169: =$K$63 -> 0 | L169: =F169-K169 -> 0
A170: 8 | C170: ='FR-16(7)(v)-1 Functional'!C170 -> TOTAL TRANS DEPREC RESERVE | F170: =-F119 -> 0 | G170: 0 | H170: 0 | I170: 0 | J170: 0 | K170: 0 | L170: =F170-K170 -> 0
A171: 9 | C171: ='FR-16(7)(v)-1 Functional'!C171 -> NET TRANSMISSION PLANT | F171: =SUM(F168:F170) -> 0 | G171: 0 | H171: 0 | I171: 0 | J171: 0 | K171: 0 | L171: 0
A172: 10
A173: 11 | B173: DISTRIBUTION PLANT
A174: 12 | C174: ='FR-16(7)(v)-1 Functional'!C174 -> DISTRIBUTION PLANT IN SERVICE | F174: =F78 -> 494030342 | G174: 256977664 | H174: 154072087 | I174: 66555335 | J174: 16425256 | K174: 494030342 | L174: =F174-K174 -> 0
A175: 13 | C175: ='FR-16(7)(v)-1 Functional'!C175 -> TOTAL DIST DEPREC RESERVE | F175: =-F131 -> -111110717 | G175: -63412150 | H175: -26832020 | I175: -16673804 | J175: -4192743 | K175: -111110717 | L175: =F175-K175 -> 0
A176: 14 | C176: ='FR-16(7)(v)-1 Functional'!C176 -> NET DISTRIBUTION PLANT | F176: =SUM(F173:F175) -> 382919625 | G176: 193565514 | H176: 127240067 | I176: 49881531 | J176: 12232513 | K176: 382919625 | L176: 0
A177: 15
A178: 16 | B178: NET PTD PLANT | F178: =F176+F171+F166 -> 382919625 | G178: 193565514 | H178: 127240067 | I178: 49881531 | J178: 12232513 | K178: 382919625 | L178: 0
A179: 17 | B179: NET TRANS & DIST PLANT | F179: =F176+F171 -> 382919625 | G179: 193565514 | H179: 127240067 | I179: 49881531 | J179: 12232513 | K179: 382919625 | L179: 0
A180: 18
A181: 19 | B181: GENERAL & INTANGIBLE PLANT
A182: 20 | C182: ='FR-16(7)(v)-1 Functional'!C182 -> GEN & INTANG PLANT IN SERVICE | F182: =F90 -> 21155016 | G182: 13084801 | H182: 6418643 | I182: 1596992 | J182: 54580 | K182: 21155016 | L182: =F182-K182 -> 0
A183: 21 | C183: ='FR-16(7)(v)-1 Functional'!C183 -> TOTAL GEN & INTG DEPREC RESERVE | F183: =-F140 -> -10112736 | G183: -6254930 | H183: -3068305 | I183: -763410 | J183: -26091 | K183: -10112736 | L183: =F183-K183 -> 0
A184: 22 | C184: ='FR-16(7)(v)-1 Functional'!C184 -> NET GENERAL & INTANG PLANT | F184: =SUM(F181:F183) -> 11042280 | G184: 6829871 | H184: 3350338 | I184: 833582 | J184: 28489 | K184: 11042280 | L184: 0
A185: 23
A186: 24 | B186: COMMON & OTHER PLANT
A187: 25 | C187: ='FR-16(7)(v)-1 Functional'!C187 -> COMMON & OTH PLT IN SERVICE | F187: =F99 -> 6080061 | G187: 3760639 | H187: 1844751 | I187: 458984 | J187: 15687 | K187: 6080061 | L187: =F187-K187 -> 0
A188: 26 | C188: ='FR-16(7)(v)-1 Functional'!C188 -> TOTAL COM & OTH DEPREC RESERVE | F188: =-F149 -> -3261222 | G188: -2017131 | H188: -989487 | I188: -246190 | J188: -8414 | K188: -3261222 | L188: =F188-K188 -> 0
A189: 27 | C189: ='FR-16(7)(v)-1 Functional'!C189 -> NET COMMON & OTHER PLANT | F189: =SUM(F186:F188) -> 2818839 | G189: 1743508 | H189: 855264 | I189: 212794 | J189: 7273 | K189: 2818839 | L189: 0
A190: 28
A191: 29 | C191: ='FR-16(7)(v)-1 Functional'!C191 -> NET GAS PLANT IN SERVICE | F191: =F189+F184+F176+F171+F166 -> 396780744 | G191: 202138893 | H191: 131445669 | I191: 50927907 | J191: 12268275 | K191: 396780744 | L191: 0
A193: =co_name -> DUKE ENERGY KENTUCKY, INC. | K193: =$K$1 -> FR-16(7)(v)-5
A194: =$A$2 -> DISTRIBUTION DEMAND ALLOCATED - GAS COST OF SERVICE | K194: =$K$2 -> WITNESS RESPONSIBLE:
A195: =case_name -> CASE NO: 2025-00125 | K195: =Witness -> DOUGLAS J. HEITKAMP
A196: =data_filing -> DATA: 12 MONTH FORECASTED PERIOD | K196: ="PAGE "&Pages-13&" OF "&Pages -> PAGE 5 OF 18
A197: =type -> TYPE OF FILING: "X" ORIGINAL UPDATED REVISED
F199: =$F$7 -> TOTAL
A200: LINE | F200: =$F$8 -> DISTRIBUTION | G200: RS/RFT | H200: GS/FT SMALL | I200: GS/FT LARGE | J200: INTERUPT | K200: TOTAL | L200: ALL
A201: NO. | B201: SUBTRACTIVE RATE BASE ADJUSTMENTS | D201: ALLO | F201: =$F$9 -> DEMAND | G201: RESIDENTIAL | H201: GEN SERV | I201: GEN SERV | J201: TRANS | K201: AT ISSUE | L201: OTHER
C202: Schedule 5 | G202: =$G$10 -> 3 | H202: =$H$10 -> 4 | I202: =$I$10 -> 5 | J202: =$J$10 -> 6
A203: 1 | B203: RATE BASE ADJUSTMENTS
A204: 2 | B204: ACCUMULATED DEFERRED INCOME TAXES
A205: 3 | B205: ACCUM DEF INC TAXES (282)
A206: 4 | C206: ='FR-16(7)(v)-1 Functional'!C206 -> LIBERALIZED DEPRECIATION | D206: ='FR-16(7)(v)-1 Functional'!D206 -> NP29 | F206: ='FR-16(7)(v)-4 DISTR Classified'!G206 -> 43210516 | G206: =F206-SUM(H206:J206) -> 22013597 | H206: =ROUND($F$206*VLOOKUP($D$206,ALLOCTABLE_DISTR_DEMAND,$H$10,FALSE),0) -> 14314780 | I206: =ROUND(F206*VLOOKUP(D206,ALLOCTABLE_DISTR_DEMAND,$I$10,FALSE),0) -> 5546070 | J206: =ROUND(F206*VLOOKUP(D206,ALLOCTABLE_DISTR_DEMAND,$J$10,FALSE),0) -> 1336069 | K206: =SUM(G206:J206) -> 43210516 | L206: =F206-K206 -> 0
A207: 5 | C207: ='FR-16(7)(v)-1 Functional'!C207 -> LEASED METERS | D207: ='FR-16(7)(v)-1 Functional'!D207 -> K413 | F207: ='FR-16(7)(v)-4 DISTR Classified'!G207 -> 0 | G207: 0 | H207: =ROUND($F$207*VLOOKUP($D$207,ALLOCTABLE_DISTR_DEMAND,$H$10,FALSE),0) -> 0 | I207: 0 | J207: 0 | K207: 0 | L207: 0
A208: 6 | C208: ='FR-16(7)(v)-1 Functional'!C208 -> CONTRIB AID CONSTR | D208: ='FR-16(7)(v)-1 Functional'!D208 -> D249 | F208: ='FR-16(7)(v)-4 DISTR Classified'!G208 -> 0 | G208: 0 | H208: =ROUND($F$208*VLOOKUP($D$208,ALLOCTABLE_DISTR_DEMAND,$H$10,FALSE),0) -> 0 | I208: 0 | J208: 0 | K208: 0 | L208: 0
A209: 7 | C209: ='FR-16(7)(v)-1 Functional'!C209 -> CAPITALIZED INTEREST | D209: ='FR-16(7)(v)-1 Functional'!D209 -> NP29 | F209: ='FR-16(7)(v)-4 DISTR Classified'!G209 -> 0 | G209: 0 | H209: =ROUND($F$209*VLOOKUP($D$209,ALLOCTABLE_DISTR_DEMAND,$H$10,FALSE),0) -> 0 | I209: 0 | J209: 0 | K209: 0 | L209: 0
... 655 more rows

Sheet FR-16(7)(v)-6 DISTR Cust Alloc
A1: =co_name -> DUKE ENERGY KENTUCKY, INC. | K1: FR-16(7)(v)-6
A2: DISTRIBUTION CUSTOMER ALLOCATED - GAS COST OF SERVICE | K2: WITNESS RESPONSIBLE:
A3: =case_name -> CASE NO: 2025-00125 | K3: =Witness -> DOUGLAS J. HEITKAMP
A4: =data_filing -> DATA: 12 MONTH FORECASTED PERIOD | K4: ="PAGE "&Pages-17&" OF "&Pages -> PAGE 1 OF 18
A5: =type -> TYPE OF FILING: "X" ORIGINAL UPDATED REVISED
F7: TOTAL
A8: LINE | F8: DISTRIBUTION | G8: RS | H8: GS | I8: FT-L | J8: INTERUPT | K8: TOTAL | L8: ALL
A9: NO. | B9: SUMMARY OF RESULTS | D9: ALLO | F9: CUSTOMER | G9: RESIDENTIAL | H9: GEN SERV | I9: FIRM TRANS | J9: TRANS | K9: AT ISSUE | L9: OTHER
C10: Schedule 1 | G10: 3 | H10: 4 | I10: 5 | J10: 6
A11: 1 | B11: NET INCOME COMPUTATION
A12: 2 | C12: ='FR-16(7)(v)-1 Functional'!C12 -> GROSS GAS PLANT IN SERVICE | F12: =F101 -> 398639965 | G12: 336640112 | H12: 58045891 | I12: 3152939 | J12: 801023 | K12: 398639965 | L12: =F12-K12 -> 0
A13: 3 | C13: ='FR-16(7)(v)-1 Functional'!C13 -> TOTAL DEPRECIATION RESERVE | F13: =-F151 -> -125633149 | G13: -106234101 | H13: -18280630 | I13: -875718 | J13: -242700 | K13: -125633149 | L13: =F13-K13 -> 0
A14: 4 | C14: ='FR-16(7)(v)-1 Functional'!C14 -> TOTAL RATE BASE ADJUSTMENTS | F14: =F326 -> -48757728 | G14: -41127629 | H14: -7132349 | I14: -399463 | J14: -98287 | K14: -48757728 | L14: =F14-K14 -> 0
A15: 5 | C15: ='FR-16(7)(v)-1 Functional'!C15 -> TOTAL RATE BASE | F15: =SUM(F12:F14) -> 224249088 | G15: 189278382 | H15: 32632912 | I15: 1877758 | J15: 460036 | K15: 224249088 | L15: =F15-K15 -> 0
A16: 6
A17: 7 | B17: OPERATING EXPENSES
A18: 8 | C18: ='FR-16(7)(v)-1 Functional'!C18 -> TOTAL O&M EXPENSE | F18: =F433 -> 11393757 | G18: 9938748 | H18: 1289332 | I18: 133801 | J18: 31876 | K18: 11393757 | L18: =F18-K18 -> 0
A19: 9 | C19: ='FR-16(7)(v)-1 Functional'!C19 -> TOTAL DEPRECIATION EXPENSE | F19: =F465 -> 11515289 | G19: 9794011 | H19: 1589204 | I19: 106241 | J19: 25833 | K19: 11515289 | L19: 0
A20: 10 | C20: ='FR-16(7)(v)-1 Functional'!C20 -> TOTAL OTHER TAX & MISC EXPENSE | F20: =F495 -> 2218729 | G20: =$G$495 -> 1880155 | H20: =$H$495 -> 314255 | I20: =$I$495 -> 19540 | J20: =$J$495 -> 4779 | K20: =$K$495 -> 2218729 | L20: 0
A21: 11 | C21: ='FR-16(7)(v)-1 Functional'!C21 -> TOTAL OP EXP EXCLUDING INC & REV TAX | F21: =SUM(F17:F20) -> 25127775 | G21: 21612914 | H21: 3192791 | I21: 259582 | J21: 62488 | K21: 25127775 | L21: 0
A22: 12 | C22: ='FR-16(7)(v)-1 Functional'!C22 -> NET FED INCOME TAX EXP ALLOWABLE | F22: =F557 -> 2606640 | G22: =$G$557 -> 2187789 | H22: =$H$557 -> 393758 | I22: =$I$557 -> 20125 | J22: =$J$557 -> 4969 | K22: =$K$557 -> 2606641 | L22: -1
A23: 13 | C23: ='FR-16(7)(v)-1 Functional'!C23 -> NET STATE INCOME TAX EXP ALLOWABLE | F23: =F605 -> 716487 | G23: =G605 -> 603405 | H23: 105834 | I23: 5818 | J23: 1430 | K23: 716487 | L23: 0
A24: 14 | C24: ='FR-16(7)(v)-1 Functional'!C24 -> TOTAL OPERATING EXPENSE | F24: =SUM(F21:F23) -> 28450902 | G24: 24404108 | H24: 3692383 | I24: 285525 | J24: 68887 | K24: 28450903 | L24: -1
A25: 15
A26: 16 | B26: RETURN ON RATE BASE | F26: =F334 -> 17964594 | G26: 15163091 | H26: 2614223 | I26: 150427 | J26: 36853 | K26: 17964594 | L26: =F26-K26 -> 0
A27: 17 | B27: TOTAL OTHER OPERATING REVENUES | F27: =-F630 -> -755666 | G27: =-$G$630 -> -681745 | H27: =-$H$630 -> -68193 | I27: =-$I$630 -> -4666 | J27: =-$J$630 -> -1062 | K27: =-$K$630 -> -755666 | L27: 0
A28: 18 | C28: ='FR-16(7)(v)-1 Functional'!C28 -> TOTAL GAS COST OF SERVICE | F28: =SUM(F24:F27) -> 45659830 | G28: 38885454 | H28: 6238413 | I28: 431286 | J28: 104678 | K28: 45659831 | L28: -1
A29: 19 | B29: ADJUSTMENT FOR INTERCLASS SUBSIDIZATION | D29: =1-'WP FR-16(7)(v)Rate Incr (50.0%)'!I11 -> 0.5 | L29: 0
A30: 20 | B30: REQUESTED REVENUES | F30: =F28+F29 -> 45659830 | G30: 38885454 | H30: 6238413 | I30: 431286 | J30: 104678 | K30: 45659831 | L30: -1
A31: 21 | B31: PROPOSED REVENUES | F31: =F745 -> 45203900 | G31: 29648712 | H31: 12984259 | I31: 2021288 | J31: 549641 | K31: 45203900 | L31: 0
A32: 22 | B32: DIFFERENCE (REQUESTED LESS PROPOSED) | F32: =F30-F31 -> 455930 | G32: =G30-G31 -> 9236742 | H32: -6745846 | I32: -1590002 | J32: -444963 | K32: 455931 | L32: -1
A33: 23
A34: 24 | B34: TOTAL RETURN EARNED | F34: =F654+F26 -> 18160207 | G34: 8681613 | H34: 7758122 | I34: 1348487 | J34: 371983 | K34: 18160205 | L34: =F34-K34 -> 2
A35: 25 | B35: RATE OF RETURN EARNED | F35: =IF(F331=0,0,ROUND(F34/F331,5)) -> 0.08098 | G35: 0.04587 | H35: 0.23774 | I35: 0.71814 | J35: 0.8086 | K35: 0.08098 | L35: 0
A36: 26 | B36: TOTAL RATE OF RETURN ALLOWABLE | F36: =$F$688 -> 0.08011 | G36: 0.08011 | H36: 0.08011 | I36: 0.08011 | J36: 0.08011 | K36: 0.08011 | L36: 0.08011 | O36: Not Part of print range
A37: 27 | B37: RETURN EARNED ON COMMON EQUITY | F37: =IF($F$670=0,0,(F35-$F$683-$F$684-$F$686)*$F$673/$F$670) -> 0.1091563846 | G37: 0.04246975396 | H37: 0.4069005095 | I37: 1.319354436 | J37: 1.491170802 | K37: 0.1091563846 | L37: =IF(F670=0,0,(L35-F683-F684-F686)*F673/F670) -> -0.04465402127 | O37: Not Filed
A38: 28 | B38: ALLOWED RETURN ON COMMON EQUITY | F38: 0.1075039389 | G38: 0.1075039389 | H38: 0.1075039389 | I38: 0.1075039389 | J38: 0.1075039389 | K38: 0.1075039389 | L38: =IF($F$670=0,0,(L36-$F$683-$F$684-$F$686)*$F$673/$F$670) -> 0.1075039389
A39: 29
A40: 30 | B40: PRESENT REVENUES | F40: =F744 -> 38400717 | G40: 25082126 | H40: 10836661 | I40: 1957775 | J40: 524155 | K40: 38400717 | L40: =F40-K40 -> 0
A41: 31 | B41: REVENUE INCREASE JUSTIFIED | F41: =F28-F40 -> 7259113 | G41: 13803328 | H41: -4598248 | I41: -1526489 | J41: -419477 | K41: 7259114 | L41: -1
A42: 32 | C42: PER UNIT PRES REV | F42: =IF(F40=0,0,ROUND(F41/F40,5)) -> 0.18904 | G42: 0.55033 | H42: -0.42432 | I42: -0.77971 | J42: -0.80029 | K42: 0.18904 | L42: 0
A43: 33 | B43: REVENUE INCREASE REQUESTED | F43: =F31-F40 -> 6803183 | G43: 4566586 | H43: 2147598 | I43: 63513 | J43: 25486 | K43: 6803183 | L43: 0
A44: 34 | C44: PER UNIT PRES REV | F44: =IF(F40=0,0,ROUND(F43/F40,5)) -> 0.17716 | G44: 0.18207 | H44: 0.19818 | I44: 0.03244 | J44: 0.04862 | K44: 0.17716 | L44: 0
A46: =co_name -> DUKE ENERGY KENTUCKY, INC. | K46: =$K$1 -> FR-16(7)(v)-6
A47: =$A$2 -> DISTRIBUTION CUSTOMER ALLOCATED - GAS COST OF SERVICE | K47: =$K$2 -> WITNESS RESPONSIBLE:
A48: =case_name -> CASE NO: 2025-00125 | K48: =Witness -> DOUGLAS J. HEITKAMP
A49: =data_filing -> DATA: 12 MONTH FORECASTED PERIOD | K49: ="PAGE "&Pages-16&" OF "&Pages -> PAGE 2 OF 18
A50: =type -> TYPE OF FILING: "X" ORIGINAL UPDATED REVISED
F52: =$F$7 -> TOTAL
A53: LINE | F53: =$F$8 -> DISTRIBUTION | G53: =$G$8 -> RS | H53: =$H$8 -> GS | I53: =$I$8 -> FT-L | J53: =$J$8 -> INTERUPT | K53: TOTAL | L53: ALL
A54: NO. | B54: GROSS GAS PLANT IN SERVICE | D54: ALLO | F54: =$F$9 -> CUSTOMER | G54: =$G$9 -> RESIDENTIAL | H54: =$H$9 -> GEN SERV | I54: =$I$9 -> FIRM TRANS | J54: =$J$9 -> TRANS | K54: AT ISSUE | L54: OTHER
C55: Schedule 2 | G55: =$G$10 -> 3 | H55: =$H$10 -> 4 | I55: =$I$10 -> 5 | J55: =$J$10 -> 6
A56: 1 | B56: PRODUCTION PLANT
A57: 2 | C57: ='FR-16(7)(v)-1 Functional'!C57 -> PRODUCTION PLANT | D57: ='FR-16(7)(v)-1 Functional'!D57 -> K205 | F57: ='FR-16(7)(v)-4 DISTR Classified'!I57 -> 0 | G57: =F57-SUM(H57:J57) -> 0 | H57: =ROUND($F$57*VLOOKUP($D$57,ALLOCTABLE_DISTR_CUSTOMER,$H$10,FALSE),0) -> 0 | I57: =ROUND(F57*VLOOKUP(D57,ALLOCTABLE_DISTR_CUSTOMER,$I$10,FALSE),0) -> 0 | J57: =ROUND(F57*VLOOKUP(D57,ALLOCTABLE_DISTR_CUSTOMER,$J$10,FALSE),0) -> 0 | K57: =SUM($G$57:$J$57) -> 0 | L57: =F57-$K$57 -> 0
A58: 3 | C58: ='FR-16(7)(v)-1 Functional'!C58 -> GAS PRODUCTION -CPMPL NOT CLASS | D58: ='FR-16(7)(v)-1 Functional'!D58 -> K205 | F58: ='FR-16(7)(v)-4 DISTR Classified'!I58 -> 0 | G58: =F58-SUM(H58:J58) -> 0 | H58: =ROUND($F$58*VLOOKUP($D$58,ALLOCTABLE_DISTR_CUSTOMER,$H$10,FALSE),0) -> 0 | I58: =ROUND(F58*VLOOKUP(D58,ALLOCTABLE_DISTR_CUSTOMER,$I$10,FALSE),0) -> 0 | J58: =ROUND(F58*VLOOKUP(D58,ALLOCTABLE_DISTR_CUSTOMER,$J$10,FALSE),0) -> 0 | K58: =SUM($G$58:$J$58) -> 0 | L58: =F58-$K$58 -> 0
A59: 4 | C59: ='FR-16(7)(v)-1 Functional'!C59 -> PRODUCTION PLANT IN SERVICE | F59: =SUM(F57:F58) -> 0 | G59: =SUM($G$57:$G$58) -> 0 | H59: =SUM($H$57:$H$58) -> 0 | I59: =SUM($I$57:$I$58) -> 0 | J59: =SUM($J$57:$J$58) -> 0 | K59: =SUM($K$57:$K$58) -> 0 | L59: =SUM($L$57:$L$58) -> 0
A60: 5
A61: 6 | B61: TRANSMISSION PLANT
A62: 7 | C62: ='FR-16(7)(v)-1 Functional'!C62 -> TRANSMISSION PLANT
A63: 8 | C63: ='FR-16(7)(v)-1 Functional'!C63 -> TRANSMISSION PLANT IN SERVICE | F63: =SUM(F62) -> 0 | G63: =SUM($G$62) -> 0 | H63: =SUM($H$62) -> 0 | I63: =SUM($I$62) -> 0 | J63: =SUM($J$62) -> 0 | K63: =SUM($K$62) -> 0 | L63: =SUM($L$62) -> 0
A64: 9
A65: 10 | B65: TOTAL PROD & TRANS PLANT | F65: =F63+F59 -> 0 | G65: =$G$63+$G$59 -> 0 | H65: =$H$63+$H$59 -> 0 | I65: =$I$63+$I$59 -> 0 | J65: =$J$63+$J$59 -> 0 | K65: =$K$63+$K$59 -> 0 | L65: =$L$63+$L$59 -> 0
A66: 11
A67: 12 | B67: DISTRIBUTION PLANT
A68: 13 | C68: ='FR-16(7)(v)-1 Functional'!C68 -> SYSTEM M&R - (2780, 2781) | D68: ='FR-16(7)(v)-1 Functional'!D68 -> K203 | F68: ='FR-16(7)(v)-4 DISTR Classified'!I68 -> 0 | G68: =F68-SUM(H68:J68) -> 0 | H68: =ROUND($F$68*VLOOKUP($D$68,ALLOCTABLE_DISTR_CUSTOMER,$H$10,FALSE),0) -> 0 | I68: =ROUND(F68*VLOOKUP(D68,ALLOCTABLE_DISTR_CUSTOMER,$I$10,FALSE),0) -> 0 | J68: =ROUND(F68*VLOOKUP(D68,ALLOCTABLE_DISTR_CUSTOMER,$J$10,FALSE),0) -> 0 | K68: =SUM(G68:J68) -> 0 | L68: =F68-K68 -> 0
A69: 14 | C69: ='FR-16(7)(v)-1 Functional'!C69 -> DIST REG EQUIP & CITY GATE M&R- (2782, 2790) | D69: ='FR-16(7)(v)-1 Functional'!D69 -> K203 | F69: ='FR-16(7)(v)-4 DISTR Classified'!I69 -> 0 | G69: 0 | H69: =ROUND($F$69*VLOOKUP($D$69,ALLOCTABLE_DISTR_CUSTOMER,$H$10,FALSE),0) -> 0 | I69: 0 | J69: 0 | K69: 0 | L69: 0
A70: 15 | C70: ='FR-16(7)(v)-1 Functional'!C70 -> LARGE IND M&R - (2850, 2851) | D70: ='FR-16(7)(v)-1 Functional'!D70 -> K595 | F70: ='FR-16(7)(v)-4 DISTR Classified'!I70 -> 0 | G70: 0 | H70: =ROUND($F$70*VLOOKUP($D$70,ALLOCTABLE_DISTR_CUSTOMER,$H$10,FALSE),0) -> 0 | I70: 0 | J70: 0 | K70: 0 | L70: 0
A71: 16 | C71: ='FR-16(7)(v)-1 Functional'!C71 -> MAINS - (2761, 2762, 2763, 2765) | D71: K401 | F71: ='FR-16(7)(v)-4 DISTR Classified'!I71 -> 53782659 | G71: 49935585 | H71: =ROUND($F$71*VLOOKUP($D$71,ALLOCTABLE_DISTR_CUSTOMER,$H$10,FALSE),0) -> 3768551 | I71: 68842 | J71: 9681 | K71: 53782659 | L71: 0
A72: 17 | C72: ='FR-16(7)(v)-1 Functional'!C72 -> SERVICES - (2801, 2802, 2803) | D72: ='FR-16(7)(v)-1 Functional'!D72 -> K403 | F72: ='FR-16(7)(v)-4 DISTR Classified'!I72 -> 254604525 | G72: 219542936 | H72: =ROUND($F$72*VLOOKUP($D$72,ALLOCTABLE_DISTR_CUSTOMER,$H$10,FALSE),0) -> 33880224 | I72: 740899 | J72: 440466 | K72: 254604525 | L72: 0
A73: 18 | C73: ='FR-16(7)(v)-1 Functional'!C73 -> MTRS & MTR INST (2810, 2811, 2820, 2821) | D73: ='FR-16(7)(v)-1 Functional'!D73 -> K413 | F73: ='FR-16(7)(v)-4 DISTR Classified'!I73 -> 40779942 | G73: 28296387 | H73: =ROUND($F$73*VLOOKUP($D$73,ALLOCTABLE_DISTR_CUSTOMER,$H$10,FALSE),0) -> 10462502 | I73: 1788200 | J73: 232853 | K73: 40779942 | L73: 0
A74: 19 | C74: ='FR-16(7)(v)-1 Functional'!C74 -> LAND, R OF W, STRUCT & IMPROV | D74: ='FR-16(7)(v)-1 Functional'!D74 -> K203 | F74: ='FR-16(7)(v)-4 DISTR Classified'!I74 -> 0 | G74: 0 | H74: =ROUND($F$74*VLOOKUP($D$74,ALLOCTABLE_DISTR_CUSTOMER,$H$10,FALSE),0) -> 0 | I74: 0 | J74: 0 | K74: 0 | L74: 0
A75: 20 | C75: ='FR-16(7)(v)-1 Functional'!C75 -> HOUSE REG & INSTALL (2830, 2840) | D75: ='FR-16(7)(v)-1 Functional'!D75 -> K417 | F75: ='FR-16(7)(v)-4 DISTR Classified'!I75 -> 15412723 | G75: 9200625 | H75: =ROUND($F$75*VLOOKUP($D$75,ALLOCTABLE_DISTR_CUSTOMER,$H$10,FALSE),0) -> 6044716 | I75: 146729 | J75: 20653 | K75: 15412723 | L75: 0
A76: 21 | C76: ='FR-16(7)(v)-1 Functional'!C76 -> STREET LIGHTING EQUIPMENT & OTH | D76: ='FR-16(7)(v)-1 Functional'!D76 -> K597 | F76: ='FR-16(7)(v)-4 DISTR Classified'!I76 -> 0 | G76: 0 | H76: =ROUND($F$76*VLOOKUP($D$76,ALLOCTABLE_DISTR_CUSTOMER,$H$10,FALSE),0) -> 0 | I76: 0 | J76: 0 | K76: 0 | L76: 0
A77: 22 | C77: ='FR-16(7)(v)-1 Functional'!C77 -> ASSET RETIREMENT COST FOR DISTRIBUTION PLANT | D77: ='FR-16(7)(v)-1 Functional'!D77 -> K203 | F77: ='FR-16(7)(v)-4 DISTR Classified'!I77 -> 0 | G77: 0 | H77: =ROUND($F$77*VLOOKUP($D$77,ALLOCTABLE_DISTR_CUSTOMER,$H$10,FALSE),0) -> 0 | I77: 0 | J77: 0 | K77: 0 | L77: 0
A78: 23 | C78: ='FR-16(7)(v)-1 Functional'!C78 -> DISTRIBUTION PLANT IN SERVICE | F78: =SUM(F68:F77) -> 364579849 | G78: =SUM(G68:G77) -> 306975533 | H78: 54155993 | I78: 2744670 | J78: 703653 | K78: 364579849 | L78: 0
A79: 24
A80: 25 | B80: TOTAL TRANS & DIST PLANT | F80: =F78+F63 -> 364579849 | G80: =G78+$G$63 -> 306975533 | H80: =H78+$H$63 -> 54155993 | I80: =I78+$I$63 -> 2744670 | J80: =J78+$J$63 -> 703653 | K80: =K78+$K$63 -> 364579849 | L80: =L78+$L$63 -> 0
A81: 26 | B81: TOTAL GROSS PTD PLANT | F81: =F78+F65 -> 364579849 | G81: =G78+G65 -> 306975533 | H81: 54155993 | I81: 2744670 | J81: 703653 | K81: 364579849 | L81: 0
A82: 27
A83: 28 | B83: GENERAL & INTANGIBLE PLANT
A84: 29 | C84: ='FR-16(7)(v)-1 Functional'!C84 -> PRODUCTION PLANT | D84: ='FR-16(7)(v)-1 Functional'!D84 -> K201 | F84: ='FR-16(7)(v)-4 DISTR Classified'!I84 -> 0 | G84: =F84-SUM(H84:J84) -> 0 | H84: =ROUND($F$84*VLOOKUP($D$84,ALLOCTABLE_DISTR_CUSTOMER,$H$10,FALSE),0) -> 0 | I84: =ROUND(F84*VLOOKUP(D84,ALLOCTABLE_DISTR_CUSTOMER,$I$10,FALSE),0) -> 0 | J84: =ROUND(F84*VLOOKUP(D84,ALLOCTABLE_DISTR_CUSTOMER,$J$10,FALSE),0) -> 0 | K84: =SUM(G84:J84) -> 0 | L84: =F84-K84 -> 0
A85: 30 | C85: ='FR-16(7)(v)-1 Functional'!C85 -> PRODUCTION PLANT COMMODITY | D85: ='FR-16(7)(v)-1 Functional'!D85 -> P349 | F85: ='FR-16(7)(v)-4 DISTR Classified'!I85 -> 0 | G85: 0 | H85: =ROUND($F$85*VLOOKUP($D$85,ALLOCTABLE_DISTR_CUSTOMER,$H$10,FALSE),0) -> 0 | I85: 0 | J85: 0 | K85: 0 | L85: 0
A86: 31 | C86: ='FR-16(7)(v)-1 Functional'!C86 -> DISTRIBUTION PLANT | D86: ='FR-16(7)(v)-1 Functional'!D86 -> D349 | F86: ='FR-16(7)(v)-4 DISTR Classified'!I86 -> 11213881 | G86: 8889917 | H86: =ROUND($F$86*VLOOKUP($D$86,ALLOCTABLE_DISTR_CUSTOMER,$H$10,FALSE),0) -> 1953458 | I86: 297616 | J86: 72890 | K86: 11213881 | L86: 0
A87: 32 | C87: ='FR-16(7)(v)-1 Functional'!C87 -> CUSTOMER ACCOUNTING | D87: ='FR-16(7)(v)-1 Functional'!D87 -> CA19 | F87: ='FR-16(7)(v)-4 DISTR Classified'!I87 -> 11313346 | G87: 10504103 | H87: =ROUND($F$87*VLOOKUP($D$87,ALLOCTABLE_DISTR_CUSTOMER,$H$10,FALSE),0) -> 792726 | I87: 14481 | J87: 2036 | K87: 11313346 | L87: 0
A88: 33 | C88: ='FR-16(7)(v)-1 Functional'!C88 -> CUSTOMER SERVICE & INFORMATION | D88: ='FR-16(7)(v)-1 Functional'!D88 -> CS19 | F88: ='FR-16(7)(v)-4 DISTR Classified'!I88 -> 3929181 | G88: 3648127 | H88: =ROUND($F$88*VLOOKUP($D$88,ALLOCTABLE_DISTR_CUSTOMER,$H$10,FALSE),0) -> 275318 | I88: 5029 | J88: 707 | K88: 3929181 | L88: 0
A89: 34 | C89: ='FR-16(7)(v)-1 Functional'!C89 -> SALES | D89: ='FR-16(7)(v)-1 Functional'!D89 -> SE19 | F89: ='FR-16(7)(v)-4 DISTR Classified'!I89 -> 0 | G89: 0 | H89: =ROUND($F$89*VLOOKUP($D$89,ALLOCTABLE_DISTR_CUSTOMER,$H$10,FALSE),0) -> 0 | I89: 0 | J89: 0 | K89: 0 | L89: 0
A90: 35 | C90: ='FR-16(7)(v)-1 Functional'!C90 -> GEN & INTANG PLANT IN SERVICE | F90: =SUM(F84:F89) -> 26456408 | G90: =SUM(G84:G89) -> 23042147 | H90: 3021502 | I90: 317126 | J90: 75633 | K90: 26456408 | L90: 0
A91: 36
A92: 37 | B92: COMMON & OTHER PLANT
A93: 38 | C93: ='FR-16(7)(v)-1 Functional'!C93 -> PRODUCTION PLANT | D93: ='FR-16(7)(v)-1 Functional'!D93 -> K201 | F93: ='FR-16(7)(v)-4 DISTR Classified'!I93 -> 0 | G93: =F93-SUM(H93:J93) -> 0 | H93: =ROUND($F$93*VLOOKUP($D$93,ALLOCTABLE_DISTR_CUSTOMER,$H$10,FALSE),0) -> 0 | I93: =ROUND(F93*VLOOKUP(D93,ALLOCTABLE_DISTR_CUSTOMER,$I$10,FALSE),0) -> 0 | J93: =ROUND(F93*VLOOKUP(D93,ALLOCTABLE_DISTR_CUSTOMER,$J$10,FALSE),0) -> 0 | K93: =SUM(G93:J93) -> 0 | L93: =F93-K93 -> 0
A94: 39 | C94: ='FR-16(7)(v)-1 Functional'!C94 -> PRODUCTION PLANT COMMODITY | D94: ='FR-16(7)(v)-1 Functional'!D94 -> P349 | F94: ='FR-16(7)(v)-4 DISTR Classified'!I94 -> 0 | G94: 0 | H94: =ROUND($F$94*VLOOKUP($D$94,ALLOCTABLE_DISTR_CUSTOMER,$H$10,FALSE),0) -> 0 | I94: 0 | J94: 0 | K94: 0 | L94: 0
A95: 40 | C95: ='FR-16(7)(v)-1 Functional'!C95 -> DISTRIBUTION PLANT | D95: ='FR-16(7)(v)-1 Functional'!D95 -> D349 | F95: ='FR-16(7)(v)-4 DISTR Classified'!I95 -> 3222927 | G95: 2555008 | H95: =ROUND($F$95*VLOOKUP($D$95,ALLOCTABLE_DISTR_CUSTOMER,$H$10,FALSE),0) -> 561434 | I95: 85536 | J95: 20949 | K95: 3222927 | L95: 0
A96: 41 | C96: ='FR-16(7)(v)-1 Functional'!C96 -> CUSTOMER ACCOUNTING | D96: ='FR-16(7)(v)-1 Functional'!D96 -> CA19 | F96: ='FR-16(7)(v)-4 DISTR Classified'!I96 -> 3251514 | G96: 3018933 | H96: =ROUND($F$96*VLOOKUP($D$96,ALLOCTABLE_DISTR_CUSTOMER,$H$10,FALSE),0) -> 227834 | I96: 4162 | J96: 585 | K96: 3251514 | L96: 0
A97: 42 | C97: ='FR-16(7)(v)-1 Functional'!C97 -> CUSTOMER SERVICE & INFORMATION | D97: ='FR-16(7)(v)-1 Functional'!D97 -> CS19 | F97: ='FR-16(7)(v)-4 DISTR Classified'!I97 -> 1129267 | G97: 1048491 | H97: =ROUND($F$97*VLOOKUP($D$97,ALLOCTABLE_DISTR_CUSTOMER,$H$10,FALSE),0) -> 79128 | I97: 1445 | J97: 203 | K97: 1129267 | L97: 0
A98: 43 | C98: ='FR-16(7)(v)-1 Functional'!C98 -> SALES | D98: ='FR-16(7)(v)-1 Functional'!D98 -> SE19 | F98: ='FR-16(7)(v)-4 DISTR Classified'!I98 -> 0 | G98: 0 | H98: =ROUND($F$98*VLOOKUP($D$98,ALLOCTABLE_DISTR_CUSTOMER,$H$10,FALSE),0) -> 0 | I98: 0 | J98: 0 | K98: 0 | L98: 0
A99: 44 | C99: ='FR-16(7)(v)-1 Functional'!C99 -> COMMON & OTHER PLANT IN SERVICE | F99: =SUM(F93:F98) -> 7603708 | G99: =SUM(G93:G98) -> 6622432 | H99: 868396 | I99: 91143 | J99: 21737 | K99: 7603708 | L99: 0
A100: 45
A101: 46 | B101: GROSS GAS PLANT IN SERVICE | F101: =F81+F90+F99 -> 398639965 | G101: =G81+G90+G99 -> 336640112 | H101: 58045891 | I101: 3152939 | J101: 801023 | K101: 398639965 | L101: 0
A103: =co_name -> DUKE ENERGY KENTUCKY, INC. | K103: =$K$1 -> FR-16(7)(v)-6
A104: =$A$2 -> DISTRIBUTION CUSTOMER ALLOCATED - GAS COST OF SERVICE | K104: =$K$2 -> WITNESS RESPONSIBLE:
A105: =case_name -> CASE NO: 2025-00125 | K105: =Witness -> DOUGLAS J. HEITKAMP
A106: =data_filing -> DATA: 12 MONTH FORECASTED PERIOD | K106: ="PAGE "&Pages-15&" OF "&Pages -> PAGE 3 OF 18
A107: =type -> TYPE OF FILING: "X" ORIGINAL UPDATED REVISED
F109: =$F$7 -> TOTAL
A110: LINE | F110: =$F$8 -> DISTRIBUTION | G110: =$G$8 -> RS | H110: =$H$8 -> GS | I110: =$I$8 -> FT-L | J110: =$J$8 -> INTERUPT | K110: TOTAL | L110: ALL
A111: NO. | B111: DEPRECIATION RESERVE | D111: ALLO | F111: =$F$9 -> CUSTOMER | G111: =$G$9 -> RESIDENTIAL | H111: =$H$9 -> GEN SERV | I111: =$I$9 -> FIRM TRANS | J111: =$J$9 -> TRANS | K111: AT ISSUE | L111: OTHER
C112: Schedule 3 | G112: =$G$10 -> 3 | H112: =$H$10 -> 4 | I112: =$I$10 -> 5 | J112: =$J$10 -> 6
A113: 1 | B113: PRODUCTION PLANT
A114: 2 | C114: ='FR-16(7)(v)-1 Functional'!C114 -> PRODUCTION PLANT | D114: ='FR-16(7)(v)-1 Functional'!D114 -> K205 | F114: ='FR-16(7)(v)-4 DISTR Classified'!I114 -> 0 | G114: =F114-SUM(H114:J114) -> 0 | H114: =ROUND($F$114*VLOOKUP($D$114,ALLOCTABLE_DISTR_CUSTOMER,$H$10,FALSE),0) -> 0 | I114: =ROUND(F114*VLOOKUP(D114,ALLOCTABLE_DISTR_CUSTOMER,$I$10,FALSE),0) -> 0 | J114: =ROUND(F114*VLOOKUP(D114,ALLOCTABLE_DISTR_CUSTOMER,$J$10,FALSE),0) -> 0 | K114: =SUM(G114:J114) -> 0 | L114: =F114-K114 -> 0
A115: 3 | C115: ='FR-16(7)(v)-1 Functional'!C115 -> TOTAL PROD DEPREC RESERVE | F115: =SUM(F114:F114) -> 0 | G115: =SUM(G114:G114) -> 0 | H115: 0 | I115: 0 | J115: 0 | K115: 0 | L115: 0
A116: 4
A117: 5 | B117: TRANSMISSION PLANT
A118: 6 | C118: ='FR-16(7)(v)-1 Functional'!C118 -> TRANSMISSION PLANT
A119: 7 | C119: ='FR-16(7)(v)-1 Functional'!C119 -> TOTAL TRANS DEPREC RESERVE | F119: =SUM(F118:F118) -> 0 | G119: =SUM(G118:G118) -> 0 | H119: 0 | I119: 0 | J119: 0 | K119: 0 | L119: 0
A120: 8
A121: 9 | B121: DISTRIBUTION PLANT
A122: 10 | C122: ='FR-16(7)(v)-1 Functional'!C122 -> SYSTEM M&R - (2780, 2781) | D122: ='FR-16(7)(v)-1 Functional'!D122 -> K203 | F122: ='FR-16(7)(v)-4 DISTR Classified'!I122 -> 0 | G122: =F122-SUM(H122:J122) -> 0 | H122: =ROUND($F$122*VLOOKUP($D$122,ALLOCTABLE_DISTR_CUSTOMER,$H$10,FALSE),0) -> 0 | I122: =ROUND(F122*VLOOKUP(D122,ALLOCTABLE_DISTR_CUSTOMER,$I$10,FALSE),0) -> 0 | J122: =ROUND(F122*VLOOKUP(D122,ALLOCTABLE_DISTR_CUSTOMER,$J$10,FALSE),0) -> 0 | K122: =SUM(G122:J122) -> 0 | L122: =F122-K122 -> 0
A123: 11 | C123: ='FR-16(7)(v)-1 Functional'!C123 -> DIST REG EQUIP & CITY GATE M&R- (2782, 2790) | D123: ='FR-16(7)(v)-1 Functional'!D123 -> K203 | F123: ='FR-16(7)(v)-4 DISTR Classified'!I123 -> 0 | G123: 0 | H123: =ROUND($F$123*VLOOKUP($D$123,ALLOCTABLE_DISTR_CUSTOMER,$H$10,FALSE),0) -> 0 | I123: 0 | J123: 0 | K123: 0 | L123: 0
A124: 12 | C124: ='FR-16(7)(v)-1 Functional'!C124 -> LARGE IND M&R - (2850, 2851) | D124: ='FR-16(7)(v)-1 Functional'!D124 -> K595 | F124: ='FR-16(7)(v)-4 DISTR Classified'!I124 -> 0 | G124: 0 | H124: =ROUND($F$124*VLOOKUP($D$124,ALLOCTABLE_DISTR_CUSTOMER,$H$10,FALSE),0) -> 0 | I124: 0 | J124: 0 | K124: 0 | L124: 0
A125: 13 | C125: ='FR-16(7)(v)-1 Functional'!C125 -> MAINS - (2761, 2762, 2763, 2765) | D125: =D71 -> K401 | F125: ='FR-16(7)(v)-4 DISTR Classified'!I125 -> 15172023 | G125: 14086768 | H125: =ROUND($F$125*VLOOKUP($D$125,ALLOCTABLE_DISTR_CUSTOMER,$H$10,FALSE),0) -> 1063104 | I125: 19420 | J125: 2731 | K125: 15172023 | L125: 0
A126: 14 | C126: ='FR-16(7)(v)-1 Functional'!C126 -> SERVICES - (2801, 2802, 2803) | D126: ='FR-16(7)(v)-1 Functional'!D126 -> K403 | F126: ='FR-16(7)(v)-4 DISTR Classified'!I126 -> 78494621 | G126: 67685127 | H126: =ROUND($F$126*VLOOKUP($D$126,ALLOCTABLE_DISTR_CUSTOMER,$H$10,FALSE),0) -> 10445279 | I126: 228419 | J126: 135796 | K126: 78494621 | L126: 0
A127: 15 | C127: ='FR-16(7)(v)-1 Functional'!C127 -> MTRS & MTR INST (2810, 2811, 2820, 2821) | D127: ='FR-16(7)(v)-1 Functional'!D127 -> K413 | F127: ='FR-16(7)(v)-4 DISTR Classified'!I127 -> 8223154 | G127: 5705883 | H127: =ROUND($F$127*VLOOKUP($D$127,ALLOCTABLE_DISTR_CUSTOMER,$H$10,FALSE),0) -> 2109732 | I127: 360585 | J127: 46954 | K127: 8223154 | L127: 0
A128: 16 | C128: ='FR-16(7)(v)-1 Functional'!C128 -> LAND, R OF W, STRUCT & IMPROV & OTH | D128: ='FR-16(7)(v)-1 Functional'!D128 -> K203 | F128: ='FR-16(7)(v)-4 DISTR Classified'!I128 -> 0 | G128: 0 | H128: =ROUND($F$128*VLOOKUP($D$128,ALLOCTABLE_DISTR_CUSTOMER,$H$10,FALSE),0) -> 0 | I128: 0 | J128: 0 | K128: 0 | L128: 0
A129: 17 | C129: ='FR-16(7)(v)-1 Functional'!C129 -> HOUSE REG & INSTALL (2830, 2840) | D129: ='FR-16(7)(v)-1 Functional'!D129 -> K417 | F129: ='FR-16(7)(v)-4 DISTR Classified'!I129 -> 7017914 | G129: 4189343 | H129: =ROUND($F$129*VLOOKUP($D$129,ALLOCTABLE_DISTR_CUSTOMER,$H$10,FALSE),0) -> 2752356 | I129: 66811 | J129: 9404 | K129: 7017914 | L129: 0
A130: 18 | C130: ='FR-16(7)(v)-1 Functional'!C130 -> STREET LIGHTING EQUIPMENT & OTH | D130: ='FR-16(7)(v)-1 Functional'!D130 -> K597 | F130: ='FR-16(7)(v)-4 DISTR Classified'!I130 -> 0 | G130: 0 | H130: =ROUND($F$130*VLOOKUP($D$130,ALLOCTABLE_DISTR_CUSTOMER,$H$10,FALSE),0) -> 0 | I130: 0 | J130: 0 | K130: 0 | L130: 0
A131: 19 | C131: ='FR-16(7)(v)-1 Functional'!C131 -> TOTAL DIST DEPREC RESERVE | F131: =SUM(F121:F130) -> 108907712 | G131: =SUM(G121:G130) -> 91667121 | H131: 16370471 | I131: 675235 | J131: 194885 | K131: 108907712 | L131: 0
A132: 20
A133: 21 | B133: GENERAL & INTANGIBLE PLANT
A134: 22 | C134: ='FR-16(7)(v)-1 Functional'!C134 -> PRODUCTION PLANT | D134: ='FR-16(7)(v)-1 Functional'!D134 -> K201 | F134: ='FR-16(7)(v)-4 DISTR Classified'!I134 -> 0 | G134: =F134-SUM(H134:J134) -> 0 | H134: =ROUND($F$134*VLOOKUP($D$134,ALLOCTABLE_DISTR_CUSTOMER,$H$10,FALSE),0) -> 0 | I134: =ROUND(F134*VLOOKUP(D134,ALLOCTABLE_DISTR_CUSTOMER,$I$10,FALSE),0) -> 0 | J134: =ROUND(F134*VLOOKUP(D134,ALLOCTABLE_DISTR_CUSTOMER,$J$10,FALSE),0) -> 0 | K134: =SUM(G134:J134) -> 0 | L134: =F134-K134 -> 0
A135: 23 | C135: ='FR-16(7)(v)-1 Functional'!C135 -> PRODUCTION PLANT COMMODITY | D135: ='FR-16(7)(v)-1 Functional'!D135 -> P349 | F135: ='FR-16(7)(v)-4 DISTR Classified'!I135 -> 0 | G135: 0 | H135: =ROUND($F$135*VLOOKUP($D$135,ALLOCTABLE_DISTR_CUSTOMER,$H$10,FALSE),0) -> 0 | I135: 0 | J135: 0 | K135: 0 | L135: 0
A136: 24 | C136: ='FR-16(7)(v)-1 Functional'!C136 -> DISTRIBUTION PLANT | D136: ='FR-16(7)(v)-1 Functional'!D136 -> D349 | F136: ='FR-16(7)(v)-4 DISTR Classified'!I136 -> 5360574 | G136: 4249648 | H136: =ROUND($F$136*VLOOKUP($D$136,ALLOCTABLE_DISTR_CUSTOMER,$H$10,FALSE),0) -> 933812 | I136: 142270 | J136: 34844 | K136: 5360574 | L136: 0
A137: 25 | C137: ='FR-16(7)(v)-1 Functional'!C137 -> CUSTOMER ACCOUNTING | D137: ='FR-16(7)(v)-1 Functional'!D137 -> CA19 | F137: ='FR-16(7)(v)-4 DISTR Classified'!I137 -> 5408121 | G137: 5021279 | H137: =ROUND($F$137*VLOOKUP($D$137,ALLOCTABLE_DISTR_CUSTOMER,$H$10,FALSE),0) -> 378947 | I137: 6922 | J137: 973 | K137: 5408121 | L137: 0
A138: 26 | C138: ='FR-16(7)(v)-1 Functional'!C138 -> CUSTOMER SERVICE & INFORMATION | D138: ='FR-16(7)(v)-1 Functional'!D138 -> CS19 | F138: ='FR-16(7)(v)-4 DISTR Classified'!I138 -> 1878267 | G138: 1743915 | H138: =ROUND($F$138*VLOOKUP($D$138,ALLOCTABLE_DISTR_CUSTOMER,$H$10,FALSE),0) -> 131610 | I138: 2404 | J138: 338 | K138: 1878267 | L138: 0
A139: 27 | C139: ='FR-16(7)(v)-1 Functional'!C139 -> SALES | D139: ='FR-16(7)(v)-1 Functional'!D139 -> SE19 | F139: ='FR-16(7)(v)-4 DISTR Classified'!I139 -> 0 | G139: 0 | H139: =ROUND($F$139*VLOOKUP($D$139,ALLOCTABLE_DISTR_CUSTOMER,$H$10,FALSE),0) -> 0 | I139: 0 | J139: 0 | K139: 0 | L139: 0
A140: 28 | C140: ='FR-16(7)(v)-1 Functional'!C140 -> TOTAL GEN DEPREC RESERVE | F140: =SUM(F133:F139) -> 12646962 | G140: =SUM(G133:G139) -> 11014842 | H140: 1444369 | I140: 151596 | J140: 36155 | K140: 12646962 | L140: 0
A141: 29
A142: 30 | B142: COMMON & OTHER PLANT
A143: 31 | C143: ='FR-16(7)(v)-1 Functional'!C143 -> PRODUCTION PLANT | D143: ='FR-16(7)(v)-1 Functional'!D143 -> K201 | F143: ='FR-16(7)(v)-4 DISTR Classified'!I143 -> 0 | G143: =F143-SUM(H143:J143) -> 0 | H143: =ROUND($F$143*VLOOKUP($D$143,ALLOCTABLE_DISTR_CUSTOMER,$H$10,FALSE),0) -> 0 | I143: =ROUND(F143*VLOOKUP(D143,ALLOCTABLE_DISTR_CUSTOMER,$I$10,FALSE),0) -> 0 | J143: =ROUND(F143*VLOOKUP(D143,ALLOCTABLE_DISTR_CUSTOMER,$J$10,FALSE),0) -> 0 | K143: =SUM(G143:J143) -> 0 | L143: =F143-K143 -> 0
A144: 32 | C144: ='FR-16(7)(v)-1 Functional'!C144 -> PRODUCTION PLANT COMMODITY | D144: ='FR-16(7)(v)-1 Functional'!D144 -> P349 | F144: ='FR-16(7)(v)-4 DISTR Classified'!I144 -> 0 | G144: 0 | H144: =ROUND($F$144*VLOOKUP($D$144,ALLOCTABLE_DISTR_CUSTOMER,$H$10,FALSE),0) -> 0 | I144: 0 | J144: 0 | K144: 0 | L144: 0
A145: 33 | C145: ='FR-16(7)(v)-1 Functional'!C145 -> DISTRIBUTION PLANT | D145: ='FR-16(7)(v)-1 Functional'!D145 -> D349 | F145: ='FR-16(7)(v)-4 DISTR Classified'!I145 -> 1728713 | G145: 1370454 | H145: =ROUND($F$145*VLOOKUP($D$145,ALLOCTABLE_DISTR_CUSTOMER,$H$10,FALSE),0) -> 301142 | I145: 45880 | J145: 11237 | K145: 1728713 | L145: 0
A146: 34 | C146: ='FR-16(7)(v)-1 Functional'!C146 -> CUSTOMER ACCOUNTING | D146: ='FR-16(7)(v)-1 Functional'!D146 -> CA19 | F146: ='FR-16(7)(v)-4 DISTR Classified'!I146 -> 1744046 | G146: 1619295 | H146: =ROUND($F$146*VLOOKUP($D$146,ALLOCTABLE_DISTR_CUSTOMER,$H$10,FALSE),0) -> 122205 | I146: 2232 | J146: 314 | K146: 1744046 | L146: 0
A147: 35 | C147: ='FR-16(7)(v)-1 Functional'!C147 -> CUSTOMER SERVICE & INFORMATION | D147: ='FR-16(7)(v)-1 Functional'!D147 -> CS19 | F147: ='FR-16(7)(v)-4 DISTR Classified'!I147 -> 605716 | G147: 562389 | H147: =ROUND($F$147*VLOOKUP($D$147,ALLOCTABLE_DISTR_CUSTOMER,$H$10,FALSE),0) -> 42443 | I147: 775 | J147: 109 | K147: 605716 | L147: 0
A148: 36 | C148: ='FR-16(7)(v)-1 Functional'!C148 -> SALES | D148: ='FR-16(7)(v)-1 Functional'!D148 -> SE19 | F148: ='FR-16(7)(v)-4 DISTR Classified'!I148 -> 0 | G148: 0 | H148: =ROUND($F$148*VLOOKUP($D$148,ALLOCTABLE_DISTR_CUSTOMER,$H$10,FALSE),0) -> 0 | I148: 0 | J148: 0 | K148: 0 | L148: 0
A149: 37 | C149: ='FR-16(7)(v)-1 Functional'!C149 -> TOTAL COM & OTHER PLT RESERVE | F149: =SUM(F143:F148) -> 4078475 | G149: =SUM(G142:G148) -> 3552138 | H149: 465790 | I149: 48887 | J149: 11660 | K149: 4078475 | L149: 0
A150: 38
A151: 39 | B151: TOTAL DEPRECIATION RESERVE | F151: =F149+F140+F131+F119+F115 -> 125633149 | G151: =G149+G140+G131+G119+G115 -> 106234101 | H151: 18280630 | I151: 875718 | J151: 242700 | K151: 125633149 | L151: 0
A153: =co_name -> DUKE ENERGY KENTUCKY, INC. | K153: =$K$1 -> FR-16(7)(v)-6
A154: =$A$2 -> DISTRIBUTION CUSTOMER ALLOCATED - GAS COST OF SERVICE | K154: =$K$2 -> WITNESS RESPONSIBLE:
A155: =case_name -> CASE NO: 2025-00125 | K155: =Witness -> DOUGLAS J. HEITKAMP
A156: =data_filing -> DATA: 12 MONTH FORECASTED PERIOD | K156: ="PAGE "&Pages-14&" OF "&Pages -> PAGE 4 OF 18
A157: =type -> TYPE OF FILING: "X" ORIGINAL UPDATED REVISED
F159: =$F$7 -> TOTAL
A160: LINE | F160: =$F$8 -> DISTRIBUTION | G160: =$G$8 -> RS | H160: =$H$8 -> GS | I160: =$I$8 -> FT-L | J160: =$J$8 -> INTERUPT | K160: TOTAL | L160: ALL
A161: NO. | B161: ="NET GAS PLANT" -> NET GAS PLANT | D161: ALLO | F161: =$F$9 -> CUSTOMER | G161: =$G$9 -> RESIDENTIAL | H161: =$H$9 -> GEN SERV | I161: =$I$9 -> FIRM TRANS | J161: =$J$9 -> TRANS | K161: AT ISSUE | L161: OTHER
C162: Schedule 4 | G162: =$G$10 -> 3 | H162: =$H$10 -> 4 | I162: =$I$10 -> 5 | J162: =$J$10 -> 6
A163: 1 | B163: PRODUCTION PLANT
A164: 2 | C164: ='FR-16(7)(v)-1 Functional'!C164 -> PRODUCTION PLANT IN SERVICE | F164: =F59 -> 0 | G164: =$G$59 -> 0 | H164: =$H$59 -> 0 | I164: =$I$59 -> 0 | J164: =$J$59 -> 0 | K164: =$K$59 -> 0 | L164: =F164-K164 -> 0
A165: 3 | C165: ='FR-16(7)(v)-1 Functional'!C165 -> TOTAL PROD DEPRC RESERVE | F165: =-F115 -> 0 | G165: 0 | H165: 0 | I165: 0 | J165: 0 | K165: 0 | L165: =F165-K165 -> 0
A166: 4 | C166: ='FR-16(7)(v)-1 Functional'!C166 -> NET PRODUCTION PLANT | F166: =SUM(F164:F165) -> 0 | G166: 0 | H166: 0 | I166: 0 | J166: 0 | K166: 0 | L166: 0
A167: 5
A168: 6 | B168: TRANSMISSION PLANT
A169: 7 | C169: ='FR-16(7)(v)-1 Functional'!C169 -> TRANSMISSION PLANT IN SERVICE | F169: =F63 -> 0 | G169: =$G$63 -> 0 | H169: =$H$63 -> 0 | I169: =$I$63 -> 0 | J169: =$J$63 -> 0 | K169: =$K$63 -> 0 | L169: =F169-K169 -> 0
A170: 8 | C170: ='FR-16(7)(v)-1 Functional'!C170 -> TOTAL TRANS DEPREC RESERVE | F170: =-F119 -> 0 | G170: 0 | H170: 0 | I170: 0 | J170: 0 | K170: 0 | L170: =F170-K170 -> 0
A171: 9 | C171: ='FR-16(7)(v)-1 Functional'!C171 -> NET TRANSMISSION PLANT | F171: =SUM(F168:F170) -> 0 | G171: 0 | H171: 0 | I171: 0 | J171: 0 | K171: 0 | L171: 0
A172: 10
A173: 11 | B173: DISTRIBUTION PLANT
A174: 12 | C174: ='FR-16(7)(v)-1 Functional'!C174 -> DISTRIBUTION PLANT IN SERVICE | F174: =F78 -> 364579849 | G174: 306975533 | H174: 54155993 | I174: 2744670 | J174: 703653 | K174: 364579849 | L174: =F174-K174 -> 0
A175: 13 | C175: ='FR-16(7)(v)-1 Functional'!C175 -> TOTAL DIST DEPREC RESERVE | F175: =-F131 -> -108907712 | G175: -91667121 | H175: -16370471 | I175: -675235 | J175: -194885 | K175: -108907712 | L175: =F175-K175 -> 0
A176: 14 | C176: ='FR-16(7)(v)-1 Functional'!C176 -> NET DISTRIBUTION PLANT | F176: =SUM(F173:F175) -> 255672137 | G176: 215308412 | H176: 37785522 | I176: 2069435 | J176: 508768 | K176: 255672137 | L176: 0
A177: 15
A178: 16 | B178: NET PTD PLANT | F178: =F176+F171+F166 -> 255672137 | G178: 215308412 | H178: 37785522 | I178: 2069435 | J178: 508768 | K178: 255672137 | L178: 0
A179: 17 | B179: NET TRANS & DIST PLANT | F179: =F176+F171 -> 255672137 | G179: 215308412 | H179: 37785522 | I179: 2069435 | J179: 508768 | K179: 255672137 | L179: 0
A180: 18
A181: 19 | B181: GENERAL & INTANGIBLE PLANT
A182: 20 | C182: ='FR-16(7)(v)-1 Functional'!C182 -> GEN & INTANG PLANT IN SERVICE | F182: =F90 -> 26456408 | G182: 23042147 | H182: 3021502 | I182: 317126 | J182: 75633 | K182: 26456408 | L182: =F182-K182 -> 0
A183: 21 | C183: ='FR-16(7)(v)-1 Functional'!C183 -> TOTAL GEN & INTG DEPREC RESERVE | F183: =-F140 -> -12646962 | G183: -11014842 | H183: -1444369 | I183: -151596 | J183: -36155 | K183: -12646962 | L183: =F183-K183 -> 0
A184: 22 | C184: ='FR-16(7)(v)-1 Functional'!C184 -> NET GENERAL & INTANG PLANT | F184: =SUM(F181:F183) -> 13809446 | G184: 12027305 | H184: 1577133 | I184: 165530 | J184: 39478 | K184: 13809446 | L184: 0
A185: 23
A186: 24 | B186: COMMON & OTHER PLANT
A187: 25 | C187: ='FR-16(7)(v)-1 Functional'!C187 -> COMMON & OTH PLT IN SERVICE | F187: =F99 -> 7603708 | G187: 6622432 | H187: 868396 | I187: 91143 | J187: 21737 | K187: 7603708 | L187: =F187-K187 -> 0
A188: 26 | C188: ='FR-16(7)(v)-1 Functional'!C188 -> TOTAL COM & OTH DEPREC RESERVE | F188: =-F149 -> -4078475 | G188: -3552138 | H188: -465790 | I188: -48887 | J188: -11660 | K188: -4078475 | L188: =F188-K188 -> 0
A189: 27 | C189: ='FR-16(7)(v)-1 Functional'!C189 -> NET COMMON & OTHER PLANT | F189: =SUM(F186:F188) -> 3525233 | G189: 3070294 | H189: 402606 | I189: 42256 | J189: 10077 | K189: 3525233 | L189: 0
A190: 28
A191: 29 | C191: ='FR-16(7)(v)-1 Functional'!C191 -> NET GAS PLANT IN SERVICE | F191: =F189+F184+F176+F171+F166 -> 273006816 | G191: 230406011 | H191: 39765261 | I191: 2277221 | J191: 558323 | K191: 273006816 | L191: 0
A193: =co_name -> DUKE ENERGY KENTUCKY, INC. | K193: =$K$1 -> FR-16(7)(v)-6
A194: =$A$2 -> DISTRIBUTION CUSTOMER ALLOCATED - GAS COST OF SERVICE | K194: =$K$2 -> WITNESS RESPONSIBLE:
A195: =case_name -> CASE NO: 2025-00125 | K195: =Witness -> DOUGLAS J. HEITKAMP
A196: =data_filing -> DATA: 12 MONTH FORECASTED PERIOD | K196: ="PAGE "&Pages-13&" OF "&Pages -> PAGE 5 OF 18
A197: =type -> TYPE OF FILING: "X" ORIGINAL UPDATED REVISED
F199: =$F$7 -> TOTAL
A200: LINE | F200: =$F$8 -> DISTRIBUTION | G200: =$G$8 -> RS | H200: =$H$8 -> GS | I200: =$I$8 -> FT-L | J200: =$J$8 -> INTERUPT | K200: TOTAL | L200: ALL
A201: NO. | B201: SUBTRACTIVE RATE BASE ADJUSTMENTS | D201: ALLO | F201: =$F$9 -> CUSTOMER | G201: =$G$9 -> RESIDENTIAL | H201: =$H$9 -> GEN SERV | I201: =$I$9 -> FIRM TRANS | J201: =$J$9 -> TRANS | K201: AT ISSUE | L201: OTHER
C202: Schedule 5 | G202: =$G$10 -> 3 | H202: =$H$10 -> 4 | I202: =$I$10 -> 5 | J202: =$J$10 -> 6
A203: 1 | B203: RATE BASE ADJUSTMENTS
A204: 2 | B204: ACCUMULATED DEFERRED INCOME TAXES
A205: 3 | B205: ACCUM DEF INC TAXES (282)
A206: 4 | C206: ='FR-16(7)(v)-1 Functional'!C206 -> LIBERALIZED DEPRECIATION | D206: ='FR-16(7)(v)-1 Functional'!D206 -> NP29 | F206: ='FR-16(7)(v)-4 DISTR Classified'!I206 -> 29730936 | G206: =F206-SUM(H206:J206) -> 25091424 | H206: =ROUND($F$206*VLOOKUP($D$206,ALLOCTABLE_DISTR_CUSTOMER,$H$10,FALSE),0) -> 4330608 | I206: =ROUND(F206*VLOOKUP(D206,ALLOCTABLE_DISTR_CUSTOMER,$I$10,FALSE),0) -> 247956 | J206: =ROUND(F206*VLOOKUP(D206,ALLOCTABLE_DISTR_CUSTOMER,$J$10,FALSE),0) -> 60948 | K206: =SUM(G206:J206) -> 29730936 | L206: =F206-K206 -> 0
A207: 5 | C207: ='FR-16(7)(v)-1 Functional'!C207 -> LEASED METERS | D207: ='FR-16(7)(v)-1 Functional'!D207 -> K413 | F207: ='FR-16(7)(v)-4 DISTR Classified'!I207 -> 0 | G207: 0 | H207: =ROUND($F$207*VLOOKUP($D$207,ALLOCTABLE_DISTR_CUSTOMER,$H$10,FALSE),0) -> 0 | I207: 0 | J207: 0 | K207: 0 | L207: 0
A208: 6 | C208: ='FR-16(7)(v)-1 Functional'!C208 -> CONTRIB AID CONSTR | D208: ='FR-16(7)(v)-1 Functional'!D208 -> D249 | F208: ='FR-16(7)(v)-4 DISTR Classified'!I208 -> 0 | G208: 0 | H208: =ROUND($F$208*VLOOKUP($D$208,ALLOCTABLE_DISTR_CUSTOMER,$H$10,FALSE),0) -> 0 | I208: 0 | J208: 0 | K208: 0 | L208: 0
A209: 7 | C209: ='FR-16(7)(v)-1 Functional'!C209 -> CAPITALIZED INTEREST | D209: ='FR-16(7)(v)-1 Functional'!D209 -> NP29 | F209: ='FR-16(7)(v)-4 DISTR Classified'!I209 -> 0 | G209: 0 | H209: =ROUND($F$209*VLOOKUP($D$209,ALLOCTABLE_DISTR_CUSTOMER,$H$10,FALSE),0) -> 0 | I209: 0 | J209: 0 | K209: 0 | L209: 0
... 655 more rows

Sheet FR-16(7)(v)-7 STOR Classified (hidden)
A1: =co_name -> DUKE ENERGY KENTUCKY, INC. | J1: FR-16(7)(v)-7
A2: STORAGE CLASSIFIED - GAS COST OF SERVICE | J2: WITNESS RESPONSIBLE:
A3: =case_name -> CASE NO: 2025-00125 | J3: =Witness -> DOUGLAS J. HEITKAMP
A4: =data_filing -> DATA: 12 MONTH FORECASTED PERIOD | J4: ="PAGE "&Pages2-14&" OF "&Pages2 -> PAGE 1 OF 15
A5: =type -> TYPE OF FILING: "X" ORIGINAL UPDATED REVISED
A8: LINE | F8: TOTAL | G8: CLASSIFIED | J8: TOTAL | K8: ALL
A9: NO. | B9: SUMMARY OF RESULTS | D9: ALLO | F9: STORAGE | G9: DEMAND | H9: COMMODITY | I9: CUSTOMER | J9: AT ISSUE | K9: OTHER
C10: Schedule 1 | G10: 3 | H10: 4 | I10: 5
A11: 1 | B11: NET INCOME COMPUTATION
A12: 2 | C12: ='FR-16(7)(v)-1 Functional'!C12 -> GROSS GAS PLANT IN SERVICE | F12: =F101 -> 0 | G12: 0 | H12: 0 | I12: 0 | J12: 0 | K12: 0
A13: 3 | C13: ='FR-16(7)(v)-1 Functional'!C13 -> TOTAL DEPRECIATION RESERVE | F13: =-F151 -> 0 | G13: 0 | H13: 0 | I13: 0 | J13: 0 | K13: 0
A14: 4 | C14: ='FR-16(7)(v)-1 Functional'!C14 -> TOTAL RATE BASE ADJUSTMENTS | F14: =F326 -> 0 | G14: 0 | H14: 0 | I14: 0 | J14: 0 | K14: 0
A15: 5 | C15: ='FR-16(7)(v)-1 Functional'!C15 -> TOTAL RATE BASE | F15: =SUM(F12:F14) -> 0 | G15: 0 | H15: 0 | I15: 0 | J15: 0 | K15: 0
A16: 6
A17: 7 | B17: OPERATING EXPENSES
A18: 8 | C18: ='FR-16(7)(v)-1 Functional'!C18 -> TOTAL O&M EXPENSE | F18: =F433 -> 0 | G18: 0 | H18: 0 | I18: 0 | J18: 0 | K18: 0
A19: 9 | C19: ='FR-16(7)(v)-1 Functional'!C19 -> TOTAL DEPRECIATION EXPENSE | F19: =F465 -> 0 | G19: 0 | H19: 0 | I19: 0 | J19: 0 | K19: 0
A20: 10 | C20: ='FR-16(7)(v)-1 Functional'!C20 -> TOTAL OTHER TAX & MISC EXPENSE | F20: =F495 -> 0 | G20: =$G$495 -> 0 | H20: =$H$495 -> 0 | I20: =$I$495 -> 0 | J20: =$J$495 -> 0 | K20: =$K$495 -> 0
A21: 11 | C21: ='FR-16(7)(v)-1 Functional'!C21 -> TOTAL OP EXP EXCLUDING INC & REV TAX | F21: =SUM(F17:F20) -> 0 | G21: 0 | H21: 0 | I21: 0 | J21: 0 | K21: 0
A22: 12 | C22: ='FR-16(7)(v)-1 Functional'!C22 -> NET FED INCOME TAX EXP ALLOWABLE | F22: =F557 -> 0 | G22: =$G$557 -> 0 | H22: =$H$557 -> 0 | I22: =$I$557 -> 0 | J22: =$J$557 -> 0 | K22: =$K$557 -> 0
A23: 13 | C23: ='FR-16(7)(v)-1 Functional'!C23 -> NET STATE INCOME TAX EXP ALLOWABLE | F23: =F605 -> 0 | G23: =G605 -> 0 | H23: =H605 -> 0 | I23: =I605 -> 0 | J23: =J605 -> 0 | K23: =K646 -> 0
A24: 14 | C24: ='FR-16(7)(v)-1 Functional'!C24 -> TOTAL OPERATING EXPENSE | F24: =SUM(F21:F23) -> 0 | G24: 0 | H24: 0 | I24: 0 | J24: 0 | K24: 0
A25: 15
A26: 16 | B26: RETURN ON RATE BASE | F26: =F334 -> 0 | G26: 0 | H26: 0 | I26: 0 | J26: 0 | K26: 0
A27: 17 | B27: TOTAL OTHER OPERATING REVENUES | F27: =-F630 -> 0 | G27: =-$G$630 -> 0 | H27: =-$H$630 -> 0 | I27: =-$I$630 -> 0 | J27: =-$J$630 -> 0 | K27: =-$K$630 -> 0
A28: 18 | C28: ='FR-16(7)(v)-1 Functional'!C28 -> TOTAL GAS COST OF SERVICE | F28: =SUM(F24:F27) -> 0 | G28: 0 | H28: 0 | I28: 0 | J28: 0 | K28: 0
A29: 19 | B29: ADJUSTMENT FOR INTERCLASS SUBSIDIZATION | D29: =1-'WP FR-16(7)(v)Rate Incr (50.0%)'!I11 -> 0.5 | F29: ='WP FR-16(7)(v)Rate Incr (50.0%)'!R20 -> 0 | G29: 0 | H29: 0 | I29: 0 | K29: =$K$495 -> 0
A30: 20 | B30: REQUESTED REVENUES | F30: =F28+F29 -> 0 | G30: 0 | H30: 0 | I30: 0 | J30: 0 | K30: 0
A31: 21 | B31: PROPOSED REVENUES | F31: =F745 -> 0 | G31: =G745 -> 0 | H31: =H745 -> 0 | I31: =I745 -> 0 | J31: =K745 -> 0 | K31: =L745 -> 0
A32: 22 | B32: DIFFERENCE (REQUESTED LESS PROPOSED) | F32: =F30-F31 -> 0 | G32: 0 | H32: 0 | I32: 0 | J32: 0 | K32: 0
A33: 23
A34: 24 | B34: TOTAL RETURN EARNED | F34: =F654+F26 -> 0 | G34: 0 | H34: 0 | I34: 0 | J34: 0 | K34: 0
A35: 25 | B35: RATE OF RETURN EARNED | F35: =IF(F331=0,0,ROUND(F34/F331,5)) -> 0 | G35: 0 | H35: 0 | I35: 0 | J35: 0 | K35: 0
A36: 26 | B36: TOTAL RATE OF RETURN ALLOWABLE | F36: =$F$688 -> 0.0801 | G36: =F688 -> 0.0801 | H36: =F688 -> 0.0801 | I36: =F688 -> 0.0801 | J36: =$F$688 -> 0.0801 | K36: =F688 -> 0.0801 | N36: Not Part of print range
A37: 27 | B37: RETURN EARNED ON COMMON EQUITY | F37: =IF(F670=0,0,(F35-$F$683-$F$684-$F$686)*$F$673/$F$670) -> -0.04463502765 | G37: =IF(F670=0,0,(G35-F683-F684-F686)*F673/F670) -> -0.04463502765 | H37: =IF(F670=0,0,(H35-F683-F684-F686)*F673/F670) -> -0.04463502765 | I37: =IF(F670=0,0,(I35-F683-F684-F686)*F673/F670) -> -0.04463502765 | J37: =IF(F670=0,0,(J35-F683-F684-F686)*F673/F670) -> -0.04463502765 | K37: =IF(F670=0,0,(K35-F683-F684-F686)*F673/F670) -> -0.04463502765 | N37: Not Filed
A38: 28 | B38: ALLOWED RETURN ON COMMON EQUITY | F38: =IF(F670=0,0,(F36-$F$683-$F$684-$F$686)*$F$673/$F$670) -> 0.1075039389 | G38: =IF(F670=0,0,(G36-F683-F684-F686)*F673/F670) -> 0.1075039389 | H38: =IF(F670=0,0,(H36-F683-F684-F686)*F673/F670) -> 0.1075039389 | I38: =IF(F670=0,0,(I36-F683-F684-F686)*F673/F670) -> 0.1075039389 | J38: =IF($F$670=0,0,(J36-$F$683-$F$684-$F$686)*$F$673/$F$670) -> 0.1075039389 | K38: =IF(F670=0,0,(K36-F683-F684-F686)*F673/F670) -> 0.1075039389
A39: 29
A40: 30 | B40: PRESENT REVENUES | F40: =F744 -> 0 | G40: =G744 -> 0 | H40: =H744 -> 0 | I40: =I744 -> 0 | J40: =K744 -> 0 | K40: =L744 -> 0
A41: 31 | B41: REVENUE INCREASE JUSTIFIED | F41: =F28-F40 -> 0 | G41: 0 | H41: 0 | I41: 0 | J41: 0 | K41: 0
A42: 32 | C42: PER UNIT PRES REV | F42: =IF(F40=0,0,ROUND(F41/F40,5)) -> 0 | G42: 0 | H42: 0 | I42: 0 | J42: 0 | K42: 0
A43: 33 | B43: REVENUE INCREASE REQUESTED | F43: =F31-F40 -> 0 | G43: 0 | H43: 0 | I43: 0 | J43: 0 | K43: 0
A44: 34 | C44: PER UNIT PRES REV | F44: =IF(F40=0,0,ROUND(F43/F40,5)) -> 0 | G44: 0 | H44: 0 | I44: 0 | J44: 0 | K44: 0
A46: =co_name -> DUKE ENERGY KENTUCKY, INC. | J46: =$J$1 -> FR-16(7)(v)-7
A47: =$A$2 -> STORAGE CLASSIFIED - GAS COST OF SERVICE | J47: =$J$2 -> WITNESS RESPONSIBLE:
A48: =case_name -> CASE NO: 2025-00125 | J48: =Witness -> DOUGLAS J. HEITKAMP
A49: =data_filing -> DATA: 12 MONTH FORECASTED PERIOD | J49: ="PAGE "&Pages2-13&" OF "&Pages2 -> PAGE 2 OF 15
A50: =type -> TYPE OF FILING: "X" ORIGINAL UPDATED REVISED
A53: LINE | F53: =$F$8 -> TOTAL | G53: CLASSIFIED | J53: TOTAL | K53: ALL
A54: NO. | B54: GROSS GAS PLANT IN SERVICE | D54: ALLO | F54: =$F$9 -> STORAGE | G54: DEMAND | H54: COMMODITY | I54: CUSTOMER | J54: AT ISSUE | K54: OTHER
C55: Schedule 2 | G55: =$G$10 -> 3 | H55: =$H$10 -> 4 | I55: =$I$10 -> 5
A56: 1 | B56: PRODUCTION PLANT
A57: 2 | C57: ='FR-16(7)(v)-1 Functional'!C57 -> PRODUCTION PLANT | D57: ='FR-16(7)(v)-1 Functional'!D57 -> K205 | F57: ='FR-16(7)(v)-1 Functional'!H57 -> 0 | G57: =ROUND(F57*VLOOKUP(D57,AllocTable_Classified_Storage,$G$10,FALSE),0) -> 0 | H57: =ROUND(F57*VLOOKUP(D57,AllocTable_Classified_Storage,$H$10,FALSE),0) -> 0 | I57: =ROUND(F57*VLOOKUP(D57,AllocTable_Classified_Storage,$I$10,FALSE),0) -> 0 | J57: =SUM($G$57:$I$57) -> 0 | K57: =F57-$J$57 -> 0
A58: 3 | C58: ='FR-16(7)(v)-1 Functional'!C58 -> GAS PRODUCTION -CPMPL NOT CLASS | D58: ='FR-16(7)(v)-1 Functional'!D58 -> K205 | F58: ='FR-16(7)(v)-1 Functional'!H58 -> 0 | G58: =ROUND(F58*VLOOKUP(D58,AllocTable_Classified_Storage,$G$10,FALSE),0) -> 0 | H58: =ROUND(F58*VLOOKUP(D58,AllocTable_Classified_Storage,$H$10,FALSE),0) -> 0 | I58: =ROUND(F58*VLOOKUP(D58,AllocTable_Classified_Storage,$I$10,FALSE),0) -> 0 | J58: =SUM($G$58:$I$58) -> 0 | K58: =F58-$J$58 -> 0
A59: 4 | C59: ='FR-16(7)(v)-1 Functional'!C59 -> PRODUCTION PLANT IN SERVICE | F59: =SUM(F57:F58) -> 0 | G59: =SUM($G$57:$G$58) -> 0 | H59: =SUM($H$57:$H$58) -> 0 | I59: =SUM($I$57:$I$58) -> 0 | J59: =SUM($J$57:$J$58) -> 0 | K59: =SUM($K$57:$K$58) -> 0
A60: 5
A61: 6 | B61: TRANSMISSION PLANT
A62: 7 | C62: ='FR-16(7)(v)-1 Functional'!C62 -> TRANSMISSION PLANT
A63: 8 | C63: ='FR-16(7)(v)-1 Functional'!C63 -> TRANSMISSION PLANT IN SERVICE | F63: =SUM(F62) -> 0 | G63: =SUM($G$62) -> 0 | H63: =SUM($H$62) -> 0 | I63: =SUM($I$62) -> 0 | J63: =SUM($J$62) -> 0 | K63: =SUM($K$62) -> 0
A64: 9
A65: 10 | B65: TOTAL PROD & TRANS PLANT | F65: =F63+F59 -> 0 | G65: =$G$63+$G$59 -> 0 | H65: =$H$63+$H$59 -> 0 | I65: =$I$63+$I$59 -> 0 | J65: =$J$63+$J$59 -> 0 | K65: =$K$63+$K$59 -> 0
A66: 11
A67: 12 | B67: DISTRIBUTION PLANT
A68: 13 | C68: ='FR-16(7)(v)-1 Functional'!C68 -> SYSTEM M&R - (2780, 2781) | D68: ='FR-16(7)(v)-1 Functional'!D68 -> K203 | F68: ='FR-16(7)(v)-1 Functional'!H68 -> 0 | G68: =ROUND(F68*VLOOKUP(D68,AllocTable_Classified_Storage,$G$10,FALSE),0) -> 0 | H68: =ROUND(F68*VLOOKUP(D68,AllocTable_Classified_Storage,$H$10,FALSE),0) -> 0 | I68: =ROUND(F68*VLOOKUP(D68,AllocTable_Classified_Storage,$I$10,FALSE),0) -> 0 | J68: =SUM(G68:I68) -> 0 | K68: =F68-J68 -> 0
A69: 14 | C69: ='FR-16(7)(v)-1 Functional'!C69 -> DIST REG EQUIP & CITY GATE M&R- (2782, 2790) | D69: ='FR-16(7)(v)-1 Functional'!D69 -> K203 | F69: ='FR-16(7)(v)-1 Functional'!H69 -> 0 | G69: 0 | H69: 0 | I69: 0 | J69: 0 | K69: 0
A70: 15 | C70: ='FR-16(7)(v)-1 Functional'!C70 -> LARGE IND M&R - (2850, 2851) | D70: ='FR-16(7)(v)-1 Functional'!D70 -> K595 | F70: ='FR-16(7)(v)-1 Functional'!H70 -> 0 | G70: 0 | H70: 0 | I70: 0 | J70: 0 | K70: 0
A71: 16 | C71: ='FR-16(7)(v)-1 Functional'!C71 -> MAINS - (2761, 2762, 2763, 2765) | D71: ='FR-16(7)(v)-1 Functional'!D71 -> K415 | F71: ='FR-16(7)(v)-1 Functional'!H71 -> 0 | G71: 0 | H71: 0 | I71: 0 | J71: 0 | K71: 0
A72: 17 | C72: ='FR-16(7)(v)-1 Functional'!C72 -> SERVICES - (2801, 2802, 2803) | D72: ='FR-16(7)(v)-1 Functional'!D72 -> K403 | F72: ='FR-16(7)(v)-1 Functional'!H72 -> 0 | G72: 0 | H72: 0 | I72: 0 | J72: 0 | K72: 0
A73: 18 | C73: ='FR-16(7)(v)-1 Functional'!C73 -> MTRS & MTR INST (2810, 2811, 2820, 2821) | D73: ='FR-16(7)(v)-1 Functional'!D73 -> K413 | F73: ='FR-16(7)(v)-1 Functional'!H73 -> 0 | G73: 0 | H73: 0 | I73: 0 | J73: 0 | K73: 0
A74: 19 | C74: ='FR-16(7)(v)-1 Functional'!C74 -> LAND, R OF W, STRUCT & IMPROV | D74: ='FR-16(7)(v)-1 Functional'!D74 -> K203 | F74: ='FR-16(7)(v)-1 Functional'!H74 -> 0 | G74: 0 | H74: 0 | I74: 0 | J74: 0 | K74: 0
A75: 20 | C75: ='FR-16(7)(v)-1 Functional'!C75 -> HOUSE REG & INSTALL (2830, 2840) | D75: ='FR-16(7)(v)-1 Functional'!D75 -> K417 | F75: ='FR-16(7)(v)-1 Functional'!H75 -> 0 | G75: 0 | H75: 0 | I75: 0 | J75: 0 | K75: 0
A76: 21 | C76: ='FR-16(7)(v)-1 Functional'!C76 -> STREET LIGHTING EQUIPMENT & OTH | D76: ='FR-16(7)(v)-1 Functional'!D76 -> K597 | F76: ='FR-16(7)(v)-1 Functional'!H76 -> 0 | G76: 0 | H76: 0 | I76: 0 | J76: 0 | K76: 0
A77: 22 | C77: ='FR-16(7)(v)-1 Functional'!C77 -> ASSET RETIREMENT COST FOR DISTRIBUTION PLANT | D77: ='FR-16(7)(v)-1 Functional'!D77 -> K203 | F77: ='FR-16(7)(v)-1 Functional'!H77 -> 0 | G77: 0 | H77: 0 | I77: 0 | J77: 0 | K77: 0
A78: 23 | C78: ='FR-16(7)(v)-1 Functional'!C78 -> DISTRIBUTION PLANT IN SERVICE | F78: =SUM(F68:F77) -> 0 | G78: 0 | H78: 0 | I78: 0 | J78: 0 | K78: 0
A79: 24
A80: 25 | B80: TOTAL TRANS & DIST PLANT | F80: =F78+F63 -> 0 | G80: =G78+$G$63 -> 0 | H80: =H78+$H$63 -> 0 | I80: =I78+$I$63 -> 0 | J80: =J78+$J$63 -> 0 | K80: =K78+$K$63 -> 0
A81: 26 | B81: TOTAL GROSS PTD PLANT | F81: =F78+F65 -> 0 | G81: 0 | H81: 0 | I81: 0 | J81: 0 | K81: 0
A82: 27
A83: 28 | B83: GENERAL & INTANGIBLE PLANT
A84: 29 | C84: ='FR-16(7)(v)-1 Functional'!C84 -> PRODUCTION PLANT | D84: ='FR-16(7)(v)-1 Functional'!D84 -> K201 | F84: ='FR-16(7)(v)-1 Functional'!H84 -> 0 | G84: =ROUND(F84*VLOOKUP(D84,AllocTable_Classified_Storage,$G$10,FALSE),0) -> 0 | H84: =ROUND(F84*VLOOKUP(D84,AllocTable_Classified_Storage,$H$10,FALSE),0) -> 0 | I84: =ROUND(F84*VLOOKUP(D84,AllocTable_Classified_Storage,$I$10,FALSE),0) -> 0 | J84: =SUM(G84:I84) -> 0 | K84: =F84-J84 -> 0
A85: 30 | C85: ='FR-16(7)(v)-1 Functional'!C85 -> PRODUCTION PLANT COMMODITY | D85: ='FR-16(7)(v)-1 Functional'!D85 -> P349 | F85: ='FR-16(7)(v)-1 Functional'!H85 -> 0 | G85: 0 | H85: 0 | I85: 0 | J85: 0 | K85: 0
A86: 31 | C86: ='FR-16(7)(v)-1 Functional'!C86 -> DISTRIBUTION PLANT | D86: ='FR-16(7)(v)-1 Functional'!D86 -> D349 | F86: ='FR-16(7)(v)-1 Functional'!H86 -> 0 | G86: 0 | H86: 0 | I86: 0 | J86: 0 | K86: 0
A87: 32 | C87: ='FR-16(7)(v)-1 Functional'!C87 -> CUSTOMER ACCOUNTING | D87: ='FR-16(7)(v)-1 Functional'!D87 -> CA19 | F87: ='FR-16(7)(v)-1 Functional'!H87 -> 0 | G87: 0 | H87: 0 | I87: 0 | J87: 0 | K87: 0
A88: 33 | C88: ='FR-16(7)(v)-1 Functional'!C88 -> CUSTOMER SERVICE & INFORMATION | D88: ='FR-16(7)(v)-1 Functional'!D88 -> CS19 | F88: ='FR-16(7)(v)-1 Functional'!H88 -> 0 | G88: 0 | H88: 0 | I88: 0 | J88: 0 | K88: 0
A89: 34 | C89: ='FR-16(7)(v)-1 Functional'!C89 -> SALES | D89: ='FR-16(7)(v)-1 Functional'!D89 -> SE19 | F89: ='FR-16(7)(v)-1 Functional'!H89 -> 0 | G89: 0 | H89: 0 | I89: 0 | J89: 0 | K89: 0
A90: 35 | C90: ='FR-16(7)(v)-1 Functional'!C90 -> GEN & INTANG PLANT IN SERVICE | F90: =SUM(F84:F89) -> 0 | G90: 0 | H90: 0 | I90: 0 | J90: 0 | K90: 0
A91: 36
A92: 37 | B92: COMMON & OTHER PLANT
A93: 38 | C93: ='FR-16(7)(v)-1 Functional'!C93 -> PRODUCTION PLANT | D93: ='FR-16(7)(v)-1 Functional'!D93 -> K201 | F93: ='FR-16(7)(v)-1 Functional'!H93 -> 0 | G93: =ROUND(F93*VLOOKUP(D93,AllocTable_Classified_Storage,$G$10,FALSE),0) -> 0 | H93: =ROUND(F93*VLOOKUP(D93,AllocTable_Classified_Storage,$H$10,FALSE),0) -> 0 | I93: =ROUND(F93*VLOOKUP(D93,AllocTable_Classified_Storage,$I$10,FALSE),0) -> 0 | J93: =SUM(G93:I93) -> 0 | K93: =F93-J93 -> 0
A94: 39 | C94: ='FR-16(7)(v)-1 Functional'!C94 -> PRODUCTION PLANT COMMODITY | D94: ='FR-16(7)(v)-1 Functional'!D94 -> P349 | F94: ='FR-16(7)(v)-1 Functional'!H94 -> 0 | G94: 0 | H94: 0 | I94: 0 | J94: 0 | K94: 0
A95: 40 | C95: ='FR-16(7)(v)-1 Functional'!C95 -> DISTRIBUTION PLANT | D95: ='FR-16(7)(v)-1 Functional'!D95 -> D349 | F95: ='FR-16(7)(v)-1 Functional'!H95 -> 0 | G95: 0 | H95: 0 | I95: 0 | J95: 0 | K95: 0
A96: 41 | C96: ='FR-16(7)(v)-1 Functional'!C96 -> CUSTOMER ACCOUNTING | D96: ='FR-16(7)(v)-1 Functional'!D96 -> CA19 | F96: ='FR-16(7)(v)-1 Functional'!H96 -> 0 | G96: 0 | H96: 0 | I96: 0 | J96: 0 | K96: 0
A97: 42 | C97: ='FR-16(7)(v)-1 Functional'!C97 -> CUSTOMER SERVICE & INFORMATION | D97: ='FR-16(7)(v)-1 Functional'!D97 -> CS19 | F97: ='FR-16(7)(v)-1 Functional'!H97 -> 0 | G97: 0 | H97: 0 | I97: 0 | J97: 0 | K97: 0
A98: 43 | C98: ='FR-16(7)(v)-1 Functional'!C98 -> SALES | D98: ='FR-16(7)(v)-1 Functional'!D98 -> SE19 | F98: ='FR-16(7)(v)-1 Functional'!H98 -> 0 | G98: 0 | H98: 0 | I98: 0 | J98: 0 | K98: 0
A99: 44 | C99: ='FR-16(7)(v)-1 Functional'!C99 -> COMMON & OTHER PLANT IN SERVICE | F99: =SUM(F93:F98) -> 0 | G99: 0 | H99: 0 | I99: 0 | J99: 0 | K99: 0
A100: 45
A101: 46 | B101: GROSS GAS PLANT IN SERVICE | F101: =F81+F90+F99 -> 0 | G101: 0 | H101: 0 | I101: 0 | J101: 0 | K101: 0
A103: =co_name -> DUKE ENERGY KENTUCKY, INC. | J103: =$J$1 -> FR-16(7)(v)-7
A104: =$A$2 -> STORAGE CLASSIFIED - GAS COST OF SERVICE | J104: =$J$2 -> WITNESS RESPONSIBLE:
A105: =case_name -> CASE NO: 2025-00125 | J105: =Witness -> DOUGLAS J. HEITKAMP
A106: =data_filing -> DATA: 12 MONTH FORECASTED PERIOD | J106: ="PAGE "&Pages2-12&" OF "&Pages2 -> PAGE 3 OF 15
A107: =type -> TYPE OF FILING: "X" ORIGINAL UPDATED REVISED
A110: LINE | F110: =$F$8 -> TOTAL | G110: CLASSIFIED | J110: TOTAL | K110: ALL
A111: NO. | B111: DEPRECIATION RESERVE | D111: ALLO | F111: =$F$9 -> STORAGE | G111: DEMAND | H111: COMMODITY | I111: CUSTOMER | J111: AT ISSUE | K111: OTHER
C112: Schedule 3 | G112: =$G$10 -> 3 | H112: =$H$10 -> 4 | I112: =$I$10 -> 5
A113: 1 | B113: PRODUCTION PLANT
A114: 2 | C114: ='FR-16(7)(v)-1 Functional'!C114 -> PRODUCTION PLANT | D114: ='FR-16(7)(v)-1 Functional'!D114 -> K205 | F114: ='FR-16(7)(v)-1 Functional'!H114 -> 0 | G114: =F114-SUM(H114:I114) -> 0 | H114: =ROUND(F114*VLOOKUP(D114,AllocTable_Classified_Storage,$H$10,FALSE),0) -> 0 | I114: =ROUND(F114*VLOOKUP(D114,AllocTable_Classified_Storage,$I$10,FALSE),0) -> 0 | J114: =SUM(G114:I114) -> 0 | K114: =F114-J114 -> 0
A115: 3 | C115: ='FR-16(7)(v)-1 Functional'!C115 -> TOTAL PROD DEPREC RESERVE | F115: =SUM(F114:F114) -> 0 | G115: 0 | H115: 0 | I115: 0 | J115: 0 | K115: 0
A116: 4
A117: 5 | B117: TRANSMISSION PLANT
A118: 6 | C118: ='FR-16(7)(v)-1 Functional'!C118 -> TRANSMISSION PLANT
A119: 7 | C119: ='FR-16(7)(v)-1 Functional'!C119 -> TOTAL TRANS DEPREC RESERVE | F119: =SUM(F118:F118) -> 0 | G119: 0 | H119: 0 | I119: 0 | J119: 0 | K119: 0
A120: 8
A121: 9 | B121: DISTRIBUTION PLANT
A122: 10 | C122: ='FR-16(7)(v)-1 Functional'!C122 -> SYSTEM M&R - (2780, 2781) | D122: ='FR-16(7)(v)-1 Functional'!D122 -> K203 | F122: ='FR-16(7)(v)-1 Functional'!H122 -> 0 | G122: =F122-SUM(H122:I122) -> 0 | H122: =ROUND(F122*VLOOKUP(D122,AllocTable_Classified_Storage,$H$10,FALSE),0) -> 0 | I122: =ROUND(F122*VLOOKUP(D122,AllocTable_Classified_Storage,$I$10,FALSE),0) -> 0 | J122: =SUM(G122:I122) -> 0 | K122: =F122-J122 -> 0
A123: 11 | C123: ='FR-16(7)(v)-1 Functional'!C123 -> DIST REG EQUIP & CITY GATE M&R- (2782, 2790) | D123: ='FR-16(7)(v)-1 Functional'!D123 -> K203 | F123: ='FR-16(7)(v)-1 Functional'!H123 -> 0 | G123: 0 | H123: 0 | I123: 0 | J123: 0 | K123: 0
A124: 12 | C124: ='FR-16(7)(v)-1 Functional'!C124 -> LARGE IND M&R - (2850, 2851) | D124: ='FR-16(7)(v)-1 Functional'!D124 -> K595 | F124: ='FR-16(7)(v)-1 Functional'!H124 -> 0 | G124: 0 | H124: 0 | I124: 0 | J124: 0 | K124: 0
A125: 13 | C125: ='FR-16(7)(v)-1 Functional'!C125 -> MAINS - (2761, 2762, 2763, 2765) | D125: ='FR-16(7)(v)-1 Functional'!D125 -> K415 | F125: ='FR-16(7)(v)-1 Functional'!H125 -> 0 | G125: 0 | H125: 0 | I125: 0 | J125: 0 | K125: 0
A126: 14 | C126: ='FR-16(7)(v)-1 Functional'!C126 -> SERVICES - (2801, 2802, 2803) | D126: ='FR-16(7)(v)-1 Functional'!D126 -> K403 | F126: ='FR-16(7)(v)-1 Functional'!H126 -> 0 | G126: 0 | H126: 0 | I126: 0 | J126: 0 | K126: 0
A127: 15 | C127: ='FR-16(7)(v)-1 Functional'!C127 -> MTRS & MTR INST (2810, 2811, 2820, 2821) | D127: ='FR-16(7)(v)-1 Functional'!D127 -> K413 | F127: ='FR-16(7)(v)-1 Functional'!H127 -> 0 | G127: 0 | H127: 0 | I127: 0 | J127: 0 | K127: 0
A128: 16 | C128: ='FR-16(7)(v)-1 Functional'!C128 -> LAND, R OF W, STRUCT & IMPROV & OTH | D128: ='FR-16(7)(v)-1 Functional'!D128 -> K203 | F128: ='FR-16(7)(v)-1 Functional'!H128 -> 0 | G128: 0 | H128: 0 | I128: 0 | J128: 0 | K128: 0
A129: 17 | C129: ='FR-16(7)(v)-1 Functional'!C129 -> HOUSE REG & INSTALL (2830, 2840) | D129: ='FR-16(7)(v)-1 Functional'!D129 -> K417 | F129: ='FR-16(7)(v)-1 Functional'!H129 -> 0 | G129: 0 | H129: 0 | I129: 0 | J129: 0 | K129: 0
A130: 18 | C130: ='FR-16(7)(v)-1 Functional'!C130 -> STREET LIGHTING EQUIPMENT & OTH | D130: ='FR-16(7)(v)-1 Functional'!D130 -> K597 | F130: ='FR-16(7)(v)-1 Functional'!H130 -> 0 | G130: 0 | H130: 0 | I130: 0 | J130: 0 | K130: 0
A131: 19 | C131: ='FR-16(7)(v)-1 Functional'!C131 -> TOTAL DIST DEPREC RESERVE | F131: =SUM(F121:F130) -> 0 | G131: 0 | H131: 0 | I131: 0 | J131: 0 | K131: 0
A132: 20
A133: 21 | B133: GENERAL & INTANGIBLE PLANT
A134: 22 | C134: ='FR-16(7)(v)-1 Functional'!C134 -> PRODUCTION PLANT | D134: ='FR-16(7)(v)-1 Functional'!D134 -> K201 | F134: ='FR-16(7)(v)-1 Functional'!H134 -> 0 | G134: =F134-SUM(H134:I134) -> 0 | H134: =ROUND(F134*VLOOKUP(D134,AllocTable_Classified_Storage,$H$10,FALSE),0) -> 0 | I134: =ROUND(F134*VLOOKUP(D134,AllocTable_Classified_Storage,$I$10,FALSE),0) -> 0 | J134: =SUM(G134:I134) -> 0 | K134: =F134-J134 -> 0
A135: 23 | C135: ='FR-16(7)(v)-1 Functional'!C135 -> PRODUCTION PLANT COMMODITY | D135: ='FR-16(7)(v)-1 Functional'!D135 -> P349 | F135: ='FR-16(7)(v)-1 Functional'!H135 -> 0 | G135: 0 | H135: 0 | I135: 0 | J135: 0 | K135: 0
A136: 24 | C136: ='FR-16(7)(v)-1 Functional'!C136 -> DISTRIBUTION PLANT | D136: ='FR-16(7)(v)-1 Functional'!D136 -> D349 | F136: ='FR-16(7)(v)-1 Functional'!H136 -> 0 | G136: 0 | H136: 0 | I136: 0 | J136: 0 | K136: 0
A137: 25 | C137: ='FR-16(7)(v)-1 Functional'!C137 -> CUSTOMER ACCOUNTING | D137: ='FR-16(7)(v)-1 Functional'!D137 -> CA19 | F137: ='FR-16(7)(v)-1 Functional'!H137 -> 0 | G137: 0 | H137: 0 | I137: 0 | J137: 0 | K137: 0
A138: 26 | C138: ='FR-16(7)(v)-1 Functional'!C138 -> CUSTOMER SERVICE & INFORMATION | D138: ='FR-16(7)(v)-1 Functional'!D138 -> CS19 | F138: ='FR-16(7)(v)-1 Functional'!H138 -> 0 | G138: 0 | H138: 0 | I138: 0 | J138: 0 | K138: 0
A139: 27 | C139: ='FR-16(7)(v)-1 Functional'!C139 -> SALES | D139: ='FR-16(7)(v)-1 Functional'!D139 -> SE19 | F139: ='FR-16(7)(v)-1 Functional'!H139 -> 0 | G139: 0 | H139: 0 | I139: 0 | J139: 0 | K139: 0
A140: 28 | C140: ='FR-16(7)(v)-1 Functional'!C140 -> TOTAL GEN DEPREC RESERVE | F140: =SUM(F133:F139) -> 0 | G140: 0 | H140: 0 | I140: 0 | J140: 0 | K140: 0
A141: 29
A142: 30 | B142: COMMON & OTHER PLANT
A143: 31 | C143: ='FR-16(7)(v)-1 Functional'!C143 -> PRODUCTION PLANT | D143: ='FR-16(7)(v)-1 Functional'!D143 -> K201 | F143: ='FR-16(7)(v)-1 Functional'!H143 -> 0 | G143: =F143-SUM(H143:I143) -> 0 | H143: =ROUND(F143*VLOOKUP(D143,AllocTable_Classified_Storage,$H$10,FALSE),0) -> 0 | I143: =ROUND(F143*VLOOKUP(D143,AllocTable_Classified_Storage,$I$10,FALSE),0) -> 0 | J143: =SUM(G143:I143) -> 0 | K143: =F143-J143 -> 0
A144: 32 | C144: ='FR-16(7)(v)-1 Functional'!C144 -> PRODUCTION PLANT COMMODITY | D144: ='FR-16(7)(v)-1 Functional'!D144 -> P349 | F144: ='FR-16(7)(v)-1 Functional'!H144 -> 0 | G144: 0 | H144: 0 | I144: 0 | J144: 0 | K144: 0
A145: 33 | C145: ='FR-16(7)(v)-1 Functional'!C145 -> DISTRIBUTION PLANT | D145: ='FR-16(7)(v)-1 Functional'!D145 -> D349 | F145: ='FR-16(7)(v)-1 Functional'!H145 -> 0 | G145: 0 | H145: 0 | I145: 0 | J145: 0 | K145: 0
A146: 34 | C146: ='FR-16(7)(v)-1 Functional'!C146 -> CUSTOMER ACCOUNTING | D146: ='FR-16(7)(v)-1 Functional'!D146 -> CA19 | F146: ='FR-16(7)(v)-1 Functional'!H146 -> 0 | G146: 0 | H146: 0 | I146: 0 | J146: 0 | K146: 0
A147: 35 | C147: ='FR-16(7)(v)-1 Functional'!C147 -> CUSTOMER SERVICE & INFORMATION | D147: ='FR-16(7)(v)-1 Functional'!D147 -> CS19 | F147: ='FR-16(7)(v)-1 Functional'!H147 -> 0 | G147: 0 | H147: 0 | I147: 0 | J147: 0 | K147: 0
A148: 36 | C148: ='FR-16(7)(v)-1 Functional'!C148 -> SALES | D148: ='FR-16(7)(v)-1 Functional'!D148 -> SE19 | F148: ='FR-16(7)(v)-1 Functional'!H148 -> 0 | G148: 0 | H148: 0 | I148: 0 | J148: 0 | K148: 0
A149: 37 | C149: ='FR-16(7)(v)-1 Functional'!C149 -> TOTAL COM & OTHER PLT RESERVE | F149: =SUM(F143:F148) -> 0 | G149: =SUM(G142:G148) -> 0 | H149: =SUM(H142:H148) -> 0 | I149: =SUM(I142:I148) -> 0 | J149: =SUM(J142:J148) -> 0 | K149: =SUM(K142:K148) -> 0
A150: 38
A151: 39 | B151: TOTAL DEPRECIATION RESERVE | F151: =F149+F140+F131+F119+F115 -> 0 | G151: 0 | H151: 0 | I151: 0 | J151: 0 | K151: 0
A153: =co_name -> DUKE ENERGY KENTUCKY, INC. | J153: =$J$1 -> FR-16(7)(v)-7
A154: =$A$2 -> STORAGE CLASSIFIED - GAS COST OF SERVICE | J154: =$J$2 -> WITNESS RESPONSIBLE:
A155: =case_name -> CASE NO: 2025-00125 | J155: =Witness -> DOUGLAS J. HEITKAMP
A156: =data_filing -> DATA: 12 MONTH FORECASTED PERIOD | J156: ="PAGE "&Pages2-11&" OF "&Pages2 -> PAGE 4 OF 15
A157: =type -> TYPE OF FILING: "X" ORIGINAL UPDATED REVISED
A160: LINE | F160: =$F$8 -> TOTAL | G160: CLASSIFIED | J160: TOTAL | K160: ALL
A161: NO. | B161: ="NET GAS PLANT" -> NET GAS PLANT | D161: ALLO | F161: =$F$9 -> STORAGE | G161: DEMAND | H161: COMMODITY | I161: CUSTOMER | J161: AT ISSUE | K161: OTHER
C162: Schedule 4 | G162: =$G$10 -> 3 | H162: =$H$10 -> 4 | I162: =$I$10 -> 5
A163: 1 | B163: PRODUCTION PLANT
A164: 2 | C164: ='FR-16(7)(v)-1 Functional'!C164 -> PRODUCTION PLANT IN SERVICE | F164: =F59 -> 0 | G164: =$G$59 -> 0 | H164: =$H$59 -> 0 | I164: =$I$59 -> 0 | J164: =$J$59 -> 0 | K164: =F164-J164 -> 0
A165: 3 | C165: ='FR-16(7)(v)-1 Functional'!C165 -> TOTAL PROD DEPRC RESERVE | F165: =-F115 -> 0 | G165: =-G115 -> 0 | H165: =-H115 -> 0 | I165: =-I115 -> 0 | J165: =-J115 -> 0 | K165: =F165-J165 -> 0
A166: 4 | C166: ='FR-16(7)(v)-1 Functional'!C166 -> NET PRODUCTION PLANT | F166: =SUM(F164:F165) -> 0 | G166: 0 | H166: 0 | I166: 0 | J166: 0 | K166: 0
A167: 5
A168: 6 | B168: TRANSMISSION PLANT
A169: 7 | C169: ='FR-16(7)(v)-1 Functional'!C169 -> TRANSMISSION PLANT IN SERVICE | F169: =F63 -> 0 | G169: =$G$63 -> 0 | H169: =$H$63 -> 0 | I169: =$I$63 -> 0 | J169: =$J$63 -> 0 | K169: =F169-J169 -> 0
A170: 8 | C170: ='FR-16(7)(v)-1 Functional'!C170 -> TOTAL TRANS DEPREC RESERVE | F170: =-F119 -> 0 | G170: =-G119 -> 0 | H170: =-H119 -> 0 | I170: =-I119 -> 0 | J170: =-J119 -> 0 | K170: =F170-J170 -> 0
A171: 9 | C171: ='FR-16(7)(v)-1 Functional'!C171 -> NET TRANSMISSION PLANT | F171: =SUM(F168:F170) -> 0 | G171: 0 | H171: 0 | I171: 0 | J171: 0 | K171: 0
A172: 10
A173: 11 | B173: DISTRIBUTION PLANT
A174: 12 | C174: ='FR-16(7)(v)-1 Functional'!C174 -> DISTRIBUTION PLANT IN SERVICE | F174: =F78 -> 0 | G174: =G78 -> 0 | H174: =H78 -> 0 | I174: =I78 -> 0 | J174: =J78 -> 0 | K174: =F174-J174 -> 0
A175: 13 | C175: ='FR-16(7)(v)-1 Functional'!C175 -> TOTAL DIST DEPREC RESERVE | F175: =-F131 -> 0 | G175: =-G131 -> 0 | H175: =-H131 -> 0 | I175: =-I131 -> 0 | J175: =-J131 -> 0 | K175: =F175-J175 -> 0
A176: 14 | C176: ='FR-16(7)(v)-1 Functional'!C176 -> NET DISTRIBUTION PLANT | F176: =SUM(F173:F175) -> 0 | G176: 0 | H176: 0 | I176: 0 | J176: 0 | K176: 0
A177: 15
A178: 16 | B178: NET PTD PLANT | F178: =F176+F171+F166 -> 0 | G178: 0 | H178: 0 | I178: 0 | J178: 0 | K178: 0
A179: 17 | B179: NET TRANS & DIST PLANT | F179: =F176+F171 -> 0 | G179: 0 | H179: 0 | I179: 0 | J179: 0 | K179: 0
A180: 18
A181: 19 | B181: GENERAL & INTANGIBLE PLANT
A182: 20 | C182: ='FR-16(7)(v)-1 Functional'!C182 -> GEN & INTANG PLANT IN SERVICE | F182: =F90 -> 0 | G182: =G90 -> 0 | H182: =H90 -> 0 | I182: =I90 -> 0 | J182: =J90 -> 0 | K182: =F182-J182 -> 0
A183: 21 | C183: ='FR-16(7)(v)-1 Functional'!C183 -> TOTAL GEN & INTG DEPREC RESERVE | F183: =-F140 -> 0 | G183: =-G140 -> 0 | H183: =-H140 -> 0 | I183: =-I140 -> 0 | J183: =-J140 -> 0 | K183: =F183-J183 -> 0
A184: 22 | C184: ='FR-16(7)(v)-1 Functional'!C184 -> NET GENERAL & INTANG PLANT | F184: =SUM(F181:F183) -> 0 | G184: 0 | H184: 0 | I184: 0 | J184: 0 | K184: 0
A185: 23
A186: 24 | B186: COMMON & OTHER PLANT
A187: 25 | C187: ='FR-16(7)(v)-1 Functional'!C187 -> COMMON & OTH PLT IN SERVICE | F187: =F99 -> 0 | G187: =G99 -> 0 | H187: =H99 -> 0 | I187: =I99 -> 0 | J187: =J99 -> 0 | K187: =F187-J187 -> 0
A188: 26 | C188: ='FR-16(7)(v)-1 Functional'!C188 -> TOTAL COM & OTH DEPREC RESERVE | F188: =-F149 -> 0 | G188: =-G149 -> 0 | H188: =-H149 -> 0 | I188: =-I149 -> 0 | J188: =-J149 -> 0 | K188: =F188-J188 -> 0
A189: 27 | C189: ='FR-16(7)(v)-1 Functional'!C189 -> NET COMMON & OTHER PLANT | F189: =SUM(F186:F188) -> 0 | G189: 0 | H189: 0 | I189: 0 | J189: 0 | K189: 0
A190: 28
A191: 29 | C191: ='FR-16(7)(v)-1 Functional'!C191 -> NET GAS PLANT IN SERVICE | F191: =F189+F184+F176+F171+F166 -> 0 | G191: 0 | H191: 0 | I191: 0 | J191: 0 | K191: 0
A193: =co_name -> DUKE ENERGY KENTUCKY, INC. | J193: =$J$1 -> FR-16(7)(v)-7
A194: =$A$2 -> STORAGE CLASSIFIED - GAS COST OF SERVICE | J194: =$J$2 -> WITNESS RESPONSIBLE:
A195: =case_name -> CASE NO: 2025-00125 | J195: =Witness -> DOUGLAS J. HEITKAMP
A196: =data_filing -> DATA: 12 MONTH FORECASTED PERIOD | J196: ="PAGE "&Pages2-10&" OF "&Pages2 -> PAGE 5 OF 15
A197: =type -> TYPE OF FILING: "X" ORIGINAL UPDATED REVISED
A200: LINE | F200: =$F$8 -> TOTAL | G200: CLASSIFIED | J200: TOTAL | K200: ALL
A201: NO. | B201: SUBTRACTIVE RATE BASE ADJUSTMENTS | D201: ALLO | F201: =$F$9 -> STORAGE | G201: DEMAND | H201: COMMODITY | I201: CUSTOMER | J201: AT ISSUE | K201: OTHER
C202: Schedule 5 | G202: =$G$10 -> 3 | H202: =$H$10 -> 4 | I202: =$I$10 -> 5
A203: 1 | B203: RATE BASE ADJUSTMENTS
A204: 2 | B204: ACCUMULATED DEFERRED INCOME TAXES
A205: 3 | B205: ACCUM DEF INC TAXES (282)
A206: 4 | C206: ='FR-16(7)(v)-1 Functional'!C206 -> LIBERALIZED DEPRECIATION | D206: ='FR-16(7)(v)-1 Functional'!D206 -> NP29 | F206: ='FR-16(7)(v)-1 Functional'!H206 -> 0 | G206: =F206-SUM(H206:I206) -> 0 | H206: =ROUND(F206*VLOOKUP(D206,AllocTable_Classified_Storage,$H$10,FALSE),0) -> 0 | I206: =ROUND(F206*VLOOKUP(D206,AllocTable_Classified_Storage,$I$10,FALSE),0) -> 0 | J206: =SUM(G206:I206) -> 0 | K206: =F206-J206 -> 0
A207: 5 | C207: ='FR-16(7)(v)-1 Functional'!C207 -> LEASED METERS | D207: ='FR-16(7)(v)-1 Functional'!D207 -> K413 | F207: ='FR-16(7)(v)-1 Functional'!H207 -> 0 | G207: 0 | H207: 0 | I207: 0 | J207: 0 | K207: 0
A208: 6 | C208: ='FR-16(7)(v)-1 Functional'!C208 -> CONTRIB AID CONSTR | D208: ='FR-16(7)(v)-1 Functional'!D208 -> D249 | F208: ='FR-16(7)(v)-1 Functional'!H208 -> 0 | G208: 0 | H208: 0 | I208: 0 | J208: 0 | K208: 0
A209: 7 | C209: ='FR-16(7)(v)-1 Functional'!C209 -> CAPITALIZED INTEREST | D209: ='FR-16(7)(v)-1 Functional'!D209 -> NP29 | F209: ='FR-16(7)(v)-1 Functional'!H209 -> 0 | G209: 0 | H209: 0 | I209: 0 | J209: 0 | K209: 0
A210: 8 | C210: ='FR-16(7)(v)-1 Functional'!C210 -> AFUDC IN DEBT | D210: ='FR-16(7)(v)-1 Functional'!D210 -> NP29 | F210: ='FR-16(7)(v)-1 Functional'!H210 -> 0 | G210: 0 | H210: 0 | I210: 0 | J210: 0 | K210: 0
A211: 9 | C211: ='FR-16(7)(v)-1 Functional'!C211 -> CWIP DIFFERENCES | D211: ='FR-16(7)(v)-1 Functional'!D211 -> NP29 | F211: ='FR-16(7)(v)-1 Functional'!H211 -> 0 | G211: 0 | H211: 0 | I211: 0 | J211: 0 | K211: 0
A212: 10 | C212: ='FR-16(7)(v)-1 Functional'!C212 -> NON-CASH OVERHEADS | D212: ='FR-16(7)(v)-1 Functional'!D212 -> AG39 | F212: ='FR-16(7)(v)-1 Functional'!H212 -> 0 | G212: 0 | H212: 0 | I212: 0 | J212: 0 | K212: 0
A213: 11 | C213: ='FR-16(7)(v)-1 Functional'!C213 -> PLANT FAS 109 | D213: ='FR-16(7)(v)-1 Functional'!D213 -> NP29 | F213: ='FR-16(7)(v)-1 Functional'!H213 -> 0 | G213: 0 | H213: 0 | I213: 0 | J213: 0 | K213: 0
A214: 12 | C214: ='FR-16(7)(v)-1 Functional'!C214 -> MISCELLANEOUS | D214: ='FR-16(7)(v)-1 Functional'!D214 -> NP29 | F214: ='FR-16(7)(v)-1 Functional'!H214 -> 0 | G214: 0 | H214: 0 | I214: 0 | J214: 0 | K214: 0
... 636 more rows

Sheet FR-16(7)(v)-8 TOT CLASS Alloc
A1: =co_name -> DUKE ENERGY KENTUCKY, INC. | K1: FR-16(7)(v)-8
A2: TOTAL CLASS ALLOCATED - GAS COST OF SERVICE | K2: WITNESS RESPONSIBLE:
A3: =case_name -> CASE NO: 2025-00125 | K3: =Witness -> DOUGLAS J. HEITKAMP
A4: =data_filing -> DATA: 12 MONTH FORECASTED PERIOD | K4: ="PAGE "&Pages2-14&" OF "&Pages2 -> PAGE 1 OF 15
A5: =type -> TYPE OF FILING: "X" ORIGINAL UPDATED REVISED
F7: TOTAL
A8: LINE | F8: CLASS | G8: RS | H8: GS | I8: FT-L | J8: INTERUPT | K8: TOTAL | L8: ALL
A9: NO. | B9: SUMMARY OF RESULTS | D9: ALLO | F9: ALLOCATED | G9: RESIDENTIAL | H9: GEN SERV | I9: FIRM TRANS | J9: TRANS | K9: AT ISSUE | L9: OTHER
C10: Schedule 1 | G10: 3 | H10: 4 | I10: 5 | J10: 6
A11: 1 | B11: NET INCOME COMPUTATION
A12: 2 | C12: ='FR-16(7)(v)-1 Functional'!C12 -> GROSS GAS PLANT IN SERVICE | F12: =F101 -> 925424402 | G12: 613910118 | H12: 222446092 | I12: 71768997 | J12: 17299195 | K12: 925424402 | L12: =F12-K12 -> 0 | P12: =H12+I12 -> 294215089
A13: 3 | C13: ='FR-16(7)(v)-1 Functional'!C13 -> TOTAL DEPRECIATION RESERVE | F13: =-F151 -> -252827972 | G13: -179610935 | H13: -50184336 | I13: -18561452 | J13: -4471249 | K13: -252827972 | L13: =F13-K13 -> 0 | P13: =H13+I13 -> -68745788
A14: 4 | C14: ='FR-16(7)(v)-1 Functional'!C14 -> TOTAL RATE BASE ADJUSTMENTS | F14: =F326 -> -118765138 | G14: -76484684 | H14: -30292510 | I14: -9643652 | J14: -2344291 | K14: -118765137 | L14: =F14-K14 -> -1 | P14: =H14+I14 -> -39936162
A15: 5 | C15: ='FR-16(7)(v)-1 Functional'!C15 -> TOTAL RATE BASE | F15: =SUM(F12:F14) -> 553831292 | G15: 357814499 | H15: 141969246 | I15: 43563893 | J15: 10483655 | K15: 553831293 | L15: =F15-K15 -> -1 | P15: =H15+I15 -> 185533139
A16: 6
A17: 7 | B17: OPERATING EXPENSES
A18: 8 | C18: ='FR-16(7)(v)-1 Functional'!C18 -> TOTAL O&M EXPENSE | F18: =F433 -> 85717248 | G18: 56304286 | H18: 28464921 | I18: 862049 | J18: 85992 | K18: 85717248 | L18: =F18-K18 -> 0 | P18: =H18+I18 -> 29326970
A19: 9 | C19: ='FR-16(7)(v)-1 Functional'!C19 -> TOTAL DEPRECIATION EXPENSE | F19: =F465 -> 26963556.82 | G19: 17970850 | H19: 6667774 | I19: 1901412 | J19: 423521 | K19: 26963557 | L19: -0.1799999997 | P19: 8569186
A20: 10 | C20: ='FR-16(7)(v)-1 Functional'!C20 -> TOTAL OTHER TAX & MISC EXPENSE | F20: =F495 -> 5323783 | G20: =$G$495 -> 3494399 | H20: =$H$495 -> 1339420 | I20: =$I$495 -> 397636 | J20: =$J$495 -> 92328 | K20: =$K$495 -> 5323783 | L20: 0 | P20: 1737056
A21: 11 | C21: ='FR-16(7)(v)-1 Functional'!C21 -> TOTAL OP EXP EXCLUDING INC & REV TAX | F21: =SUM(F17:F20) -> 118004587.8 | G21: 77769535 | H21: 36472115 | I21: 3161097 | J21: 601841 | K21: 118004588 | L21: -0.1800000072 | P21: 39633212
A22: 12 | C22: ='FR-16(7)(v)-1 Functional'!C22 -> NET FED INCOME TAX EXP ALLOWABLE | F22: =F557 -> 7394066 | G22: =$G$557 -> 4659665 | H22: =$H$557 -> 2014264 | I22: =$I$557 -> 578525 | J22: =$J$557 -> 141612 | K22: =$K$557 -> 7394066 | L22: 0 | P22: 2592789
A23: 13 | C23: ='FR-16(7)(v)-1 Functional'!C23 -> NET STATE INCOME TAX EXP ALLOWABLE | F23: =F605 -> 1833226 | G23: =G605 -> 1173066 | H23: 478420 | I23: 146125 | J23: 35615 | K23: 1833226 | L23: 0 | P23: 624545
A24: 14 | C24: ='FR-16(7)(v)-1 Functional'!C24 -> TOTAL OPERATING EXPENSE | F24: =SUM(F21:F23) -> 127231879.8 | G24: 83602266 | H24: 38964799 | I24: 3885747 | J24: 779068 | K24: 127231880 | L24: -0.1800000072 | P24: 42850546
A25: 15
A26: 16 | B26: RETURN ON RATE BASE | F26: =F334 -> 44367425 | G26: 28664520 | H26: 11373156 | I26: 3489903 | J26: 839846 | K26: 44367425 | L26: =F26-K26 -> 0 | P26: =H26+I26 -> 14863059
A27: 17 | B27: TOTAL OTHER OPERATING REVENUES | F27: =-F630 -> -1087776 | G27: =-$G$630 -> -887547 | H27: =-$H$630 -> -172942 | I27: =-$I$630 -> -25513 | J27: =-$J$630 -> -1774 | K27: =-$K$630 -> -1087776 | L27: 0 | P27: =H27+I27 -> -198455
A28: 18 | C28: ='FR-16(7)(v)-1 Functional'!C28 -> TOTAL GAS COST OF SERVICE | F28: =SUM(F24:F27) -> 170511528.8 | G28: 111379239 | H28: 50165013 | I28: 7350137 | J28: 1617140 | K28: 170511529 | L28: -0.1800000072 | P28: =H28+I28 -> 57515150
A29: 19 | B29: ADJUSTMENT FOR INTERCLASS SUBSIDIZATION | D29: =1-'WP FR-16(7)(v)Rate Incr (50.0%)'!I11 -> 0.5 | F29: ='WP FR-16(7)(v)Rate Incr (50.0%)'!H20-'WP FR-16(7)(v)Rate Incr (50.0%)'!I20 -> 0 | G29: ='WP FR-16(7)(v)Rate Incr (50.0%)'!H15-'WP FR-16(7)(v)Rate Incr (50.0%)'!I15 -> -92086 | H29: ='WP FR-16(7)(v)Rate Incr (50.0%)'!H16-'WP FR-16(7)(v)Rate Incr (50.0%)'!I16 -> -1296761 | I29: ='WP FR-16(7)(v)Rate Incr (50.0%)'!H17-'WP FR-16(7)(v)Rate Incr (50.0%)'!I17 -> 985155 | J29: ='WP FR-16(7)(v)Rate Incr (50.0%)'!H18-'WP FR-16(7)(v)Rate Incr (50.0%)'!I18 -> 403692 | K29: =SUM(G29:J29) -> 0 | L29: 0
A30: 20 | B30: REQUESTED REVENUES | F30: =F28+F29 -> 170511528.8 | G30: 111287153 | H30: 48868252 | I30: 8335292 | J30: 2020832 | K30: 170511529 | L30: -0.1800000072
A31: 21 | B31: PROPOSED REVENUES | F31: =SUM(G31:J31) -> 169657554 | G31: ='FR-16(7)(v)-6 DISTR Cust Alloc'!G31+'FR-16(7)(v)-5 DISTR Dem Alloc'!G31+'FR-16(7)(v)-3 PROD Comm Alloc'!G31 -> 111276415 | H31: ='FR-16(7)(v)-6 DISTR Cust Alloc'!H31+'FR-16(7)(v)-5 DISTR Dem Alloc'!H31+'FR-16(7)(v)-3 PROD Comm Alloc'!H31 -> 48732025 | I31: ='FR-16(7)(v)-6 DISTR Cust Alloc'!I31+'FR-16(7)(v)-5 DISTR Dem Alloc'!I31+'FR-16(7)(v)-3 PROD Comm Alloc'!I31 -> 7586221 | J31: ='FR-16(7)(v)-6 DISTR Cust Alloc'!J31+'FR-16(7)(v)-5 DISTR Dem Alloc'!J31+'FR-16(7)(v)-3 PROD Comm Alloc'!J31 -> 2062893 | K31: =SUM(G31:J31) -> 169657554 | L31: 0 | P31: =H31+I31 -> 56318246
A32: 22 | B32: DIFFERENCE (REQUESTED LESS PROPOSED) | F32: =F30-F31 -> 853974.82 | G32: 10738 | H32: 136227 | I32: 749071 | J32: -42061 | K32: 853975 | L32: -0.1800000072 | P32: =H32+I32 -> 885298
A33: 23
A34: 24 | B34: TOTAL RETURN EARNED | F34: =F654+F26 -> 45102598.18 | G34: 29468005 | H34: 10656514 | I34: 3776846 | J34: 1201233 | K34: 45102598 | L34: =F34-K34 -> 0.1800000072 | P34: =H34+I34 -> 14433360
A35: 25 | B35: RATE OF RETURN EARNED | F35: =IF(F331=0,0,ROUND(F34/F331,5)) -> 0.08144 | G35: 0.08236 | H35: 0.07506 | I35: 0.0867 | J35: 0.11458 | K35: 0.08144 | L35: -0.18
A36: 26 | B36: TOTAL RATE OF RETURN ALLOWABLE | F36: =$F$688 -> 0.08011 | G36: 0.08011 | H36: 0.08011 | I36: 0.08011 | J36: 0.08011 | K36: 0.08011 | L36: =IF(L35=0,0,$F$688) -> 0.08011
A37: 27 | B37: RETURN EARNED ON COMMON EQUITY | F37: =IF($F$670=0,0,(F35-$F$683-$F$684-$F$686)*$F$673/$F$670) -> 0.1100300916 | G37: 0.1117775054 | H37: 0.09791215639 | I37: 0.1200207403 | J37: 0.1729749774 | K37: 0.1100300916 | L37: =IF(OR(F670=0,L35=0)=TRUE,0,(L35-F683-F684-F686)*F673/F670) -> -0.3865393394
A38: 28 | B38: ALLOWED RETURN ON COMMON EQUITY | F38: 0.1075039389 | G38: 0.1075039389 | H38: 0.1075039389 | I38: 0.1075039389 | J38: 0.1075039389 | K38: 0.1075039389 | L38: =IF(OR($F$670=0,L36=0)=TRUE,0,(L36-$F$683-$F$684-$F$686)*$F$673/$F$670) -> 0.1075039389
A39: 29
A40: 30 | B40: PRESENT REVENUES (SCHEDULE E-4) | F40: =SUM(G40:J40) -> 144124104 | G40: ='FR-16(7)(v)-3 PROD Comm Alloc'!G761 -> 94137279 | H40: ='FR-16(7)(v)-3 PROD Comm Alloc'!H761 -> 40671741 | I40: ='FR-16(7)(v)-3 PROD Comm Alloc'!I761 -> 7347846 | J40: ='FR-16(7)(v)-3 PROD Comm Alloc'!J761 -> 1967238 | K40: =SUM(G40:J40) -> 144124104 | L40: =F40-K40 -> 0
A41: 31 | B41: REVENUE INCREASE JUSTIFIED | F41: =F28-F40 -> 26387424.82 | G41: 17241960 | H41: 9493272 | I41: 2291 | J41: -350098 | K41: 26387425 | L41: -0.1800000072
A42: 32 | C42: PER UNIT PRES REV | F42: =IF(F40=0,0,ROUND(F41/F40,5)) -> 0.18309 | G42: 0.18316 | H42: 0.23341 | I42: 0.00031 | J42: -0.17796 | K42: 0.18309 | L42: 0
A43: 33 | B43: REVENUE INCREASE REQUESTED | F43: =F31-F40 -> 25533450 | G43: 17139136 | H43: 8060284 | I43: 238375 | J43: 95655 | K43: 25533450 | L43: 0
A44: 34 | C44: PER UNIT PRES REV | F44: =IF(F40=0,0,ROUND(F43/F40,5)) -> 0.17716 | G44: 0.18207 | H44: 0.19818 | I44: 0.03244 | J44: 0.04862 | K44: 0.17716 | L44: 0
A46: =co_name -> DUKE ENERGY KENTUCKY, INC. | K46: =$K$1 -> FR-16(7)(v)-8
A47: =$A$2 -> TOTAL CLASS ALLOCATED - GAS COST OF SERVICE | K47: =$K$2 -> WITNESS RESPONSIBLE:
A48: =case_name -> CASE NO: 2025-00125 | K48: =Witness -> DOUGLAS J. HEITKAMP
A49: =data_filing -> DATA: 12 MONTH FORECASTED PERIOD | K49: ="PAGE "&Pages2-13&" OF "&Pages2 -> PAGE 2 OF 15
A50: =type -> TYPE OF FILING: "X" ORIGINAL UPDATED REVISED
F52: =$F$7 -> TOTAL
A53: LINE | F53: =$F$8 -> CLASS | G53: RS | H53: GS | I53: FT-L | J53: INTERUPT | K53: TOTAL | L53: ALL
A54: NO. | B54: GROSS GAS PLANT IN SERVICE | D54: ALLO | F54: =$F$9 -> ALLOCATED | G54: RESIDENTIAL | H54: GEN SERV | I54: FIRM TRANS | J54: TRANS | K54: AT ISSUE | L54: OTHER
C55: Schedule 2 | G55: =$G$10 -> 3 | H55: =$H$10 -> 4 | I55: =$I$10 -> 5 | J55: =$J$10 -> 6
A56: 1 | B56: PRODUCTION PLANT
A57: 2 | C57: ='FR-16(7)(v)-1 Functional'!C57 -> PRODUCTION PLANT | D57: ='FR-16(7)(v)-1 Functional'!D57 -> K205 | F57: ='FR-16(7)(v)-1 Functional'!F57 -> 0 | G57: ='FR-16(7)(v)-6 DISTR Cust Alloc'!$G$57+'FR-16(7)(v)-5 DISTR Dem Alloc'!$G$57+'FR-16(7)(v)-3 PROD Comm Alloc'!$G$57 -> 0 | H57: ='FR-16(7)(v)-6 DISTR Cust Alloc'!$H$57+'FR-16(7)(v)-5 DISTR Dem Alloc'!$H$57+'FR-16(7)(v)-3 PROD Comm Alloc'!$H$57 -> 0 | I57: ='FR-16(7)(v)-6 DISTR Cust Alloc'!$I$57+'FR-16(7)(v)-5 DISTR Dem Alloc'!$I$57+'FR-16(7)(v)-3 PROD Comm Alloc'!$I$57 -> 0 | J57: ='FR-16(7)(v)-6 DISTR Cust Alloc'!$J$57+'FR-16(7)(v)-5 DISTR Dem Alloc'!$J$57+'FR-16(7)(v)-3 PROD Comm Alloc'!$J$57 -> 0 | K57: =SUM($G$57:$J$57) -> 0 | L57: =F57-$K$57 -> 0
A58: 3 | C58: ='FR-16(7)(v)-1 Functional'!C58 -> GAS PRODUCTION -CPMPL NOT CLASS | D58: ='FR-16(7)(v)-1 Functional'!D58 -> K205 | F58: ='FR-16(7)(v)-1 Functional'!F58 -> 0 | G58: ='FR-16(7)(v)-6 DISTR Cust Alloc'!$G$58+'FR-16(7)(v)-5 DISTR Dem Alloc'!$G$58+'FR-16(7)(v)-3 PROD Comm Alloc'!$G$58 -> 0 | H58: ='FR-16(7)(v)-6 DISTR Cust Alloc'!$H$58+'FR-16(7)(v)-5 DISTR Dem Alloc'!$H$58+'FR-16(7)(v)-3 PROD Comm Alloc'!$H$58 -> 0 | I58: ='FR-16(7)(v)-6 DISTR Cust Alloc'!$I$58+'FR-16(7)(v)-5 DISTR Dem Alloc'!$I$58+'FR-16(7)(v)-3 PROD Comm Alloc'!$I$58 -> 0 | J58: ='FR-16(7)(v)-6 DISTR Cust Alloc'!$J$58+'FR-16(7)(v)-5 DISTR Dem Alloc'!$J$58+'FR-16(7)(v)-3 PROD Comm Alloc'!$J$58 -> 0 | K58: =SUM($G$58:$J$58) -> 0 | L58: =F58-$K$58 -> 0
A59: 4 | C59: ='FR-16(7)(v)-1 Functional'!C59 -> PRODUCTION PLANT IN SERVICE | F59: =SUM(F57:F58) -> 0 | G59: =SUM($G$57:$G$58) -> 0 | H59: =SUM($H$57:$H$58) -> 0 | I59: =SUM($I$57:$I$58) -> 0 | J59: =SUM($J$57:$J$58) -> 0 | K59: =SUM($K$57:$K$58) -> 0 | L59: =SUM($L$57:$L$58) -> 0
A60: 5
A61: 6 | B61: TRANSMISSION PLANT
A62: 7 | C62: ='FR-16(7)(v)-1 Functional'!C62 -> TRANSMISSION PLANT
A63: 8 | C63: ='FR-16(7)(v)-1 Functional'!C63 -> TRANSMISSION PLANT IN SERVICE | F63: =SUM(F62) -> 0 | G63: =SUM($G$62) -> 0 | H63: =SUM($H$62) -> 0 | I63: =SUM($I$62) -> 0 | J63: =SUM($J$62) -> 0 | K63: =SUM($K$62) -> 0 | L63: =SUM($L$62) -> 0
A64: 9
A65: 10 | B65: TOTAL PROD & TRANS PLANT | F65: =F63+F59 -> 0 | G65: =$G$63+$G$59 -> 0 | H65: =$H$63+$H$59 -> 0 | I65: =$I$63+$I$59 -> 0 | J65: =$J$63+$J$59 -> 0 | K65: =$K$63+$K$59 -> 0 | L65: =$L$63+$L$59 -> 0
A66: 11
A67: 12 | B67: DISTRIBUTION PLANT
A68: 13 | C68: ='FR-16(7)(v)-1 Functional'!C68 -> SYSTEM M&R - (2780, 2781) | D68: ='FR-16(7)(v)-1 Functional'!D68 -> K203 | F68: ='FR-16(7)(v)-1 Functional'!F68 -> 76523866 | G68: ='FR-16(7)(v)-6 DISTR Cust Alloc'!G68+'FR-16(7)(v)-5 DISTR Dem Alloc'!G68+'FR-16(7)(v)-3 PROD Comm Alloc'!G68 -> 39858220 | H68: ='FR-16(7)(v)-6 DISTR Cust Alloc'!H68+'FR-16(7)(v)-5 DISTR Dem Alloc'!H68+'FR-16(7)(v)-3 PROD Comm Alloc'!H68 -> 23883099 | I68: ='FR-16(7)(v)-6 DISTR Cust Alloc'!I68+'FR-16(7)(v)-5 DISTR Dem Alloc'!I68+'FR-16(7)(v)-3 PROD Comm Alloc'!I68 -> 10266442 | J68: ='FR-16(7)(v)-6 DISTR Cust Alloc'!J68+'FR-16(7)(v)-5 DISTR Dem Alloc'!J68+'FR-16(7)(v)-3 PROD Comm Alloc'!J68 -> 2516105 | K68: =SUM(G68:J68) -> 76523866 | L68: =F68-K68 -> 0
A69: 14 | C69: ='FR-16(7)(v)-1 Functional'!C69 -> DIST REG EQUIP & CITY GATE M&R- (2782, 2790) | D69: ='FR-16(7)(v)-1 Functional'!D69 -> K203 | F69: ='FR-16(7)(v)-1 Functional'!F69 -> 3953923 | G69: ='FR-16(7)(v)-6 DISTR Cust Alloc'!G69+'FR-16(7)(v)-5 DISTR Dem Alloc'!G69+'FR-16(7)(v)-3 PROD Comm Alloc'!G69 -> 2059441 | H69: ='FR-16(7)(v)-6 DISTR Cust Alloc'!H69+'FR-16(7)(v)-5 DISTR Dem Alloc'!H69+'FR-16(7)(v)-3 PROD Comm Alloc'!H69 -> 1234019 | I69: ='FR-16(7)(v)-6 DISTR Cust Alloc'!I69+'FR-16(7)(v)-5 DISTR Dem Alloc'!I69+'FR-16(7)(v)-3 PROD Comm Alloc'!I69 -> 530458 | J69: ='FR-16(7)(v)-6 DISTR Cust Alloc'!J69+'FR-16(7)(v)-5 DISTR Dem Alloc'!J69+'FR-16(7)(v)-3 PROD Comm Alloc'!J69 -> 130005 | K69: 3953923 | L69: 0
A70: 15 | C70: ='FR-16(7)(v)-1 Functional'!C70 -> LARGE IND M&R - (2850, 2851) | D70: ='FR-16(7)(v)-1 Functional'!D70 -> K595 | F70: ='FR-16(7)(v)-1 Functional'!F70 -> 567756 | G70: ='FR-16(7)(v)-6 DISTR Cust Alloc'!G70+'FR-16(7)(v)-5 DISTR Dem Alloc'!G70+'FR-16(7)(v)-3 PROD Comm Alloc'!G70 -> 0 | H70: ='FR-16(7)(v)-6 DISTR Cust Alloc'!H70+'FR-16(7)(v)-5 DISTR Dem Alloc'!H70+'FR-16(7)(v)-3 PROD Comm Alloc'!H70 -> 0 | I70: ='FR-16(7)(v)-6 DISTR Cust Alloc'!I70+'FR-16(7)(v)-5 DISTR Dem Alloc'!I70+'FR-16(7)(v)-3 PROD Comm Alloc'!I70 -> 364567 | J70: ='FR-16(7)(v)-6 DISTR Cust Alloc'!J70+'FR-16(7)(v)-5 DISTR Dem Alloc'!J70+'FR-16(7)(v)-3 PROD Comm Alloc'!J70 -> 203189 | K70: 567756 | L70: 0
A71: 16 | C71: ='FR-16(7)(v)-1 Functional'!C71 -> MAINS - (2761, 2762, 2763, 2765) | D71: ='FR-16(7)(v)-1 Functional'!D71 -> K415 | F71: ='FR-16(7)(v)-1 Functional'!F71 -> 448188826 | G71: ='FR-16(7)(v)-6 DISTR Cust Alloc'!G71+'FR-16(7)(v)-5 DISTR Dem Alloc'!G71+'FR-16(7)(v)-3 PROD Comm Alloc'!G71 -> 255365981 | H71: ='FR-16(7)(v)-6 DISTR Cust Alloc'!H71+'FR-16(7)(v)-5 DISTR Dem Alloc'!H71+'FR-16(7)(v)-3 PROD Comm Alloc'!H71 -> 126862716 | I71: ='FR-16(7)(v)-6 DISTR Cust Alloc'!I71+'FR-16(7)(v)-5 DISTR Dem Alloc'!I71+'FR-16(7)(v)-3 PROD Comm Alloc'!I71 -> 52982373 | J71: ='FR-16(7)(v)-6 DISTR Cust Alloc'!J71+'FR-16(7)(v)-5 DISTR Dem Alloc'!J71+'FR-16(7)(v)-3 PROD Comm Alloc'!J71 -> 12977756 | K71: 448188826 | L71: 0
A72: 17 | C72: ='FR-16(7)(v)-1 Functional'!C72 -> SERVICES - (2801, 2802, 2803) | D72: ='FR-16(7)(v)-1 Functional'!D72 -> K403 | F72: ='FR-16(7)(v)-1 Functional'!F72 -> 254604525 | G72: ='FR-16(7)(v)-6 DISTR Cust Alloc'!G72+'FR-16(7)(v)-5 DISTR Dem Alloc'!G72+'FR-16(7)(v)-3 PROD Comm Alloc'!G72 -> 219542936 | H72: ='FR-16(7)(v)-6 DISTR Cust Alloc'!H72+'FR-16(7)(v)-5 DISTR Dem Alloc'!H72+'FR-16(7)(v)-3 PROD Comm Alloc'!H72 -> 33880224 | I72: ='FR-16(7)(v)-6 DISTR Cust Alloc'!I72+'FR-16(7)(v)-5 DISTR Dem Alloc'!I72+'FR-16(7)(v)-3 PROD Comm Alloc'!I72 -> 740899 | J72: ='FR-16(7)(v)-6 DISTR Cust Alloc'!J72+'FR-16(7)(v)-5 DISTR Dem Alloc'!J72+'FR-16(7)(v)-3 PROD Comm Alloc'!J72 -> 440466 | K72: 254604525 | L72: 0
A73: 18 | C73: ='FR-16(7)(v)-1 Functional'!C73 -> MTRS & MTR INST (2810, 2811, 2820, 2821) | D73: ='FR-16(7)(v)-1 Functional'!D73 -> K413 | F73: ='FR-16(7)(v)-1 Functional'!F73 -> 40779942 | G73: ='FR-16(7)(v)-6 DISTR Cust Alloc'!G73+'FR-16(7)(v)-5 DISTR Dem Alloc'!G73+'FR-16(7)(v)-3 PROD Comm Alloc'!G73 -> 28296387 | H73: ='FR-16(7)(v)-6 DISTR Cust Alloc'!H73+'FR-16(7)(v)-5 DISTR Dem Alloc'!H73+'FR-16(7)(v)-3 PROD Comm Alloc'!H73 -> 10462502 | I73: ='FR-16(7)(v)-6 DISTR Cust Alloc'!I73+'FR-16(7)(v)-5 DISTR Dem Alloc'!I73+'FR-16(7)(v)-3 PROD Comm Alloc'!I73 -> 1788200 | J73: ='FR-16(7)(v)-6 DISTR Cust Alloc'!J73+'FR-16(7)(v)-5 DISTR Dem Alloc'!J73+'FR-16(7)(v)-3 PROD Comm Alloc'!J73 -> 232853 | K73: 40779942 | L73: 0
A74: 19 | C74: ='FR-16(7)(v)-1 Functional'!C74 -> LAND, R OF W, STRUCT & IMPROV | D74: ='FR-16(7)(v)-1 Functional'!D74 -> K203 | F74: ='FR-16(7)(v)-1 Functional'!F74 -> 18487900 | G74: ='FR-16(7)(v)-6 DISTR Cust Alloc'!G74+'FR-16(7)(v)-5 DISTR Dem Alloc'!G74+'FR-16(7)(v)-3 PROD Comm Alloc'!G74 -> 9629607 | H74: ='FR-16(7)(v)-6 DISTR Cust Alloc'!H74+'FR-16(7)(v)-5 DISTR Dem Alloc'!H74+'FR-16(7)(v)-3 PROD Comm Alloc'!H74 -> 5770074 | I74: ='FR-16(7)(v)-6 DISTR Cust Alloc'!I74+'FR-16(7)(v)-5 DISTR Dem Alloc'!I74+'FR-16(7)(v)-3 PROD Comm Alloc'!I74 -> 2480337 | J74: ='FR-16(7)(v)-6 DISTR Cust Alloc'!J74+'FR-16(7)(v)-5 DISTR Dem Alloc'!J74+'FR-16(7)(v)-3 PROD Comm Alloc'!J74 -> 607882 | K74: 18487900 | L74: 0
A75: 20 | C75: ='FR-16(7)(v)-1 Functional'!C75 -> HOUSE REG & INSTALL (2830, 2840) | D75: ='FR-16(7)(v)-1 Functional'!D75 -> K417 | F75: ='FR-16(7)(v)-1 Functional'!F75 -> 15412723 | G75: ='FR-16(7)(v)-6 DISTR Cust Alloc'!G75+'FR-16(7)(v)-5 DISTR Dem Alloc'!G75+'FR-16(7)(v)-3 PROD Comm Alloc'!G75 -> 9200625 | H75: ='FR-16(7)(v)-6 DISTR Cust Alloc'!H75+'FR-16(7)(v)-5 DISTR Dem Alloc'!H75+'FR-16(7)(v)-3 PROD Comm Alloc'!H75 -> 6044716 | I75: ='FR-16(7)(v)-6 DISTR Cust Alloc'!I75+'FR-16(7)(v)-5 DISTR Dem Alloc'!I75+'FR-16(7)(v)-3 PROD Comm Alloc'!I75 -> 146729 | J75: ='FR-16(7)(v)-6 DISTR Cust Alloc'!J75+'FR-16(7)(v)-5 DISTR Dem Alloc'!J75+'FR-16(7)(v)-3 PROD Comm Alloc'!J75 -> 20653 | K75: 15412723 | L75: 0
A76: 21 | C76: ='FR-16(7)(v)-1 Functional'!C76 -> STREET LIGHTING EQUIPMENT & OTH | D76: ='FR-16(7)(v)-1 Functional'!D76 -> K597 | F76: ='FR-16(7)(v)-1 Functional'!F76 -> 90730 | G76: ='FR-16(7)(v)-6 DISTR Cust Alloc'!G76+'FR-16(7)(v)-5 DISTR Dem Alloc'!G76+'FR-16(7)(v)-3 PROD Comm Alloc'!G76 -> 0 | H76: ='FR-16(7)(v)-6 DISTR Cust Alloc'!H76+'FR-16(7)(v)-5 DISTR Dem Alloc'!H76+'FR-16(7)(v)-3 PROD Comm Alloc'!H76 -> 90730 | I76: ='FR-16(7)(v)-6 DISTR Cust Alloc'!I76+'FR-16(7)(v)-5 DISTR Dem Alloc'!I76+'FR-16(7)(v)-3 PROD Comm Alloc'!I76 -> 0 | J76: ='FR-16(7)(v)-6 DISTR Cust Alloc'!J76+'FR-16(7)(v)-5 DISTR Dem Alloc'!J76+'FR-16(7)(v)-3 PROD Comm Alloc'!J76 -> 0 | K76: 90730 | L76: 0
A77: 22 | C77: ='FR-16(7)(v)-1 Functional'!C77 -> ASSET RETIREMENT COST FOR DISTRIBUTION PLANT | D77: ='FR-16(7)(v)-1 Functional'!D77 -> K203 | F77: ='FR-16(7)(v)-1 Functional'!F77 -> 0 | G77: ='FR-16(7)(v)-6 DISTR Cust Alloc'!G77+'FR-16(7)(v)-5 DISTR Dem Alloc'!G77+'FR-16(7)(v)-3 PROD Comm Alloc'!G77 -> 0 | H77: ='FR-16(7)(v)-6 DISTR Cust Alloc'!H77+'FR-16(7)(v)-5 DISTR Dem Alloc'!H77+'FR-16(7)(v)-3 PROD Comm Alloc'!H77 -> 0 | I77: ='FR-16(7)(v)-6 DISTR Cust Alloc'!I77+'FR-16(7)(v)-5 DISTR Dem Alloc'!I77+'FR-16(7)(v)-3 PROD Comm Alloc'!I77 -> 0 | J77: ='FR-16(7)(v)-6 DISTR Cust Alloc'!J77+'FR-16(7)(v)-5 DISTR Dem Alloc'!J77+'FR-16(7)(v)-3 PROD Comm Alloc'!J77 -> 0 | K77: 0 | L77: 0
A78: 23 | C78: ='FR-16(7)(v)-1 Functional'!C78 -> DISTRIBUTION PLANT IN SERVICE | F78: =SUM(F68:F77) -> 858610191 | G78: 563953197 | H78: 208228080 | I78: 69300005 | J78: 17128909 | K78: 858610191 | L78: 0
A79: 24
A80: 25 | B80: TOTAL TRANS & DIST PLANT | F80: =F78+F63 -> 858610191 | G80: =G78+$G$63 -> 563953197 | H80: =H78+$H$63 -> 208228080 | I80: =I78+$I$63 -> 69300005 | J80: =J78+$J$63 -> 17128909 | K80: =K78+$K$63 -> 858610191 | L80: =L78+$L$63 -> 0
A81: 26 | B81: TOTAL GROSS PTD PLANT | F81: =F78+F65 -> 858610191 | G81: 563953197 | H81: 208228080 | I81: 69300005 | J81: 17128909 | K81: 858610191 | L81: 0
A82: 27
A83: 28 | B83: GENERAL & INTANGIBLE PLANT
A84: 29 | C84: ='FR-16(7)(v)-1 Functional'!C84 -> PRODUCTION PLANT | D84: ='FR-16(7)(v)-1 Functional'!D84 -> K201 | F84: ='FR-16(7)(v)-1 Functional'!F84 -> 0 | G84: ='FR-16(7)(v)-6 DISTR Cust Alloc'!G84+'FR-16(7)(v)-5 DISTR Dem Alloc'!G84+'FR-16(7)(v)-3 PROD Comm Alloc'!G84 -> 0 | H84: ='FR-16(7)(v)-6 DISTR Cust Alloc'!H84+'FR-16(7)(v)-5 DISTR Dem Alloc'!H84+'FR-16(7)(v)-3 PROD Comm Alloc'!H84 -> 0 | I84: ='FR-16(7)(v)-6 DISTR Cust Alloc'!I84+'FR-16(7)(v)-5 DISTR Dem Alloc'!I84+'FR-16(7)(v)-3 PROD Comm Alloc'!I84 -> 0 | J84: ='FR-16(7)(v)-6 DISTR Cust Alloc'!J84+'FR-16(7)(v)-5 DISTR Dem Alloc'!J84+'FR-16(7)(v)-3 PROD Comm Alloc'!J84 -> 0 | K84: =SUM(G84:J84) -> 0 | L84: =F84-K84 -> 0
A85: 30 | C85: ='FR-16(7)(v)-1 Functional'!C85 -> PRODUCTION PLANT COMMODITY | D85: ='FR-16(7)(v)-1 Functional'!D85 -> P349 | F85: ='FR-16(7)(v)-1 Functional'!F85 -> 4286932 | G85: ='FR-16(7)(v)-6 DISTR Cust Alloc'!G85+'FR-16(7)(v)-5 DISTR Dem Alloc'!G85+'FR-16(7)(v)-3 PROD Comm Alloc'!G85 -> 2677403 | H85: ='FR-16(7)(v)-6 DISTR Cust Alloc'!H85+'FR-16(7)(v)-5 DISTR Dem Alloc'!H85+'FR-16(7)(v)-3 PROD Comm Alloc'!H85 -> 1603784 | I85: ='FR-16(7)(v)-6 DISTR Cust Alloc'!I85+'FR-16(7)(v)-5 DISTR Dem Alloc'!I85+'FR-16(7)(v)-3 PROD Comm Alloc'!I85 -> 3687 | J85: ='FR-16(7)(v)-6 DISTR Cust Alloc'!J85+'FR-16(7)(v)-5 DISTR Dem Alloc'!J85+'FR-16(7)(v)-3 PROD Comm Alloc'!J85 -> 2058 | K85: 4286932 | L85: 0
A86: 31 | C86: ='FR-16(7)(v)-1 Functional'!C86 -> DISTRIBUTION PLANT | D86: ='FR-16(7)(v)-1 Functional'!D86 -> D349 | F86: ='FR-16(7)(v)-1 Functional'!F86 -> 32368897 | G86: ='FR-16(7)(v)-6 DISTR Cust Alloc'!G86+'FR-16(7)(v)-5 DISTR Dem Alloc'!G86+'FR-16(7)(v)-3 PROD Comm Alloc'!G86 -> 21974718 | H86: ='FR-16(7)(v)-6 DISTR Cust Alloc'!H86+'FR-16(7)(v)-5 DISTR Dem Alloc'!H86+'FR-16(7)(v)-3 PROD Comm Alloc'!H86 -> 8372101 | I86: ='FR-16(7)(v)-6 DISTR Cust Alloc'!I86+'FR-16(7)(v)-5 DISTR Dem Alloc'!I86+'FR-16(7)(v)-3 PROD Comm Alloc'!I86 -> 1894608 | J86: ='FR-16(7)(v)-6 DISTR Cust Alloc'!J86+'FR-16(7)(v)-5 DISTR Dem Alloc'!J86+'FR-16(7)(v)-3 PROD Comm Alloc'!J86 -> 127470 | K86: 32368897 | L86: 0
A87: 32 | C87: ='FR-16(7)(v)-1 Functional'!C87 -> CUSTOMER ACCOUNTING | D87: ='FR-16(7)(v)-1 Functional'!D87 -> CA19 | F87: ='FR-16(7)(v)-1 Functional'!F87 -> 11313346 | G87: ='FR-16(7)(v)-6 DISTR Cust Alloc'!G87+'FR-16(7)(v)-5 DISTR Dem Alloc'!G87+'FR-16(7)(v)-3 PROD Comm Alloc'!G87 -> 10504103 | H87: ='FR-16(7)(v)-6 DISTR Cust Alloc'!H87+'FR-16(7)(v)-5 DISTR Dem Alloc'!H87+'FR-16(7)(v)-3 PROD Comm Alloc'!H87 -> 792726 | I87: ='FR-16(7)(v)-6 DISTR Cust Alloc'!I87+'FR-16(7)(v)-5 DISTR Dem Alloc'!I87+'FR-16(7)(v)-3 PROD Comm Alloc'!I87 -> 14481 | J87: ='FR-16(7)(v)-6 DISTR Cust Alloc'!J87+'FR-16(7)(v)-5 DISTR Dem Alloc'!J87+'FR-16(7)(v)-3 PROD Comm Alloc'!J87 -> 2036 | K87: 11313346 | L87: 0
A88: 33 | C88: ='FR-16(7)(v)-1 Functional'!C88 -> CUSTOMER SERVICE & INFORMATION | D88: ='FR-16(7)(v)-1 Functional'!D88 -> CS19 | F88: ='FR-16(7)(v)-1 Functional'!F88 -> 3929181 | G88: ='FR-16(7)(v)-6 DISTR Cust Alloc'!G88+'FR-16(7)(v)-5 DISTR Dem Alloc'!G88+'FR-16(7)(v)-3 PROD Comm Alloc'!G88 -> 3648127 | H88: ='FR-16(7)(v)-6 DISTR Cust Alloc'!H88+'FR-16(7)(v)-5 DISTR Dem Alloc'!H88+'FR-16(7)(v)-3 PROD Comm Alloc'!H88 -> 275318 | I88: ='FR-16(7)(v)-6 DISTR Cust Alloc'!I88+'FR-16(7)(v)-5 DISTR Dem Alloc'!I88+'FR-16(7)(v)-3 PROD Comm Alloc'!I88 -> 5029 | J88: ='FR-16(7)(v)-6 DISTR Cust Alloc'!J88+'FR-16(7)(v)-5 DISTR Dem Alloc'!J88+'FR-16(7)(v)-3 PROD Comm Alloc'!J88 -> 707 | K88: 3929181 | L88: 0
A89: 34 | C89: ='FR-16(7)(v)-1 Functional'!C89 -> SALES | D89: ='FR-16(7)(v)-1 Functional'!D89 -> SE19 | F89: ='FR-16(7)(v)-1 Functional'!F89 -> 0 | G89: ='FR-16(7)(v)-6 DISTR Cust Alloc'!G89+'FR-16(7)(v)-5 DISTR Dem Alloc'!G89+'FR-16(7)(v)-3 PROD Comm Alloc'!G89 -> 0 | H89: ='FR-16(7)(v)-6 DISTR Cust Alloc'!H89+'FR-16(7)(v)-5 DISTR Dem Alloc'!H89+'FR-16(7)(v)-3 PROD Comm Alloc'!H89 -> 0 | I89: ='FR-16(7)(v)-6 DISTR Cust Alloc'!I89+'FR-16(7)(v)-5 DISTR Dem Alloc'!I89+'FR-16(7)(v)-3 PROD Comm Alloc'!I89 -> 0 | J89: ='FR-16(7)(v)-6 DISTR Cust Alloc'!J89+'FR-16(7)(v)-5 DISTR Dem Alloc'!J89+'FR-16(7)(v)-3 PROD Comm Alloc'!J89 -> 0 | K89: 0 | L89: 0
A90: 35 | C90: ='FR-16(7)(v)-1 Functional'!C90 -> GEN & INTANG PLANT IN SERVICE | F90: =SUM(F84:F89) -> 51898356 | G90: 38804351 | H90: 11043929 | I90: 1917805 | J90: 132271 | K90: 51898356 | L90: 0
A91: 36
A92: 37 | B92: COMMON & OTHER PLANT
A93: 38 | C93: ='FR-16(7)(v)-1 Functional'!C93 -> PRODUCTION PLANT | D93: ='FR-16(7)(v)-1 Functional'!D93 -> K201 | F93: ='FR-16(7)(v)-1 Functional'!F93 -> 0 | G93: ='FR-16(7)(v)-6 DISTR Cust Alloc'!G93+'FR-16(7)(v)-5 DISTR Dem Alloc'!G93+'FR-16(7)(v)-3 PROD Comm Alloc'!G93 -> 0 | H93: ='FR-16(7)(v)-6 DISTR Cust Alloc'!H93+'FR-16(7)(v)-5 DISTR Dem Alloc'!H93+'FR-16(7)(v)-3 PROD Comm Alloc'!H93 -> 0 | I93: ='FR-16(7)(v)-6 DISTR Cust Alloc'!I93+'FR-16(7)(v)-5 DISTR Dem Alloc'!I93+'FR-16(7)(v)-3 PROD Comm Alloc'!I93 -> 0 | J93: ='FR-16(7)(v)-6 DISTR Cust Alloc'!J93+'FR-16(7)(v)-5 DISTR Dem Alloc'!J93+'FR-16(7)(v)-3 PROD Comm Alloc'!J93 -> 0 | K93: =SUM(G93:J93) -> 0 | L93: =F93-K93 -> 0
A94: 39 | C94: ='FR-16(7)(v)-1 Functional'!C94 -> PRODUCTION PLANT COMMODITY | D94: ='FR-16(7)(v)-1 Functional'!D94 -> P349 | F94: ='FR-16(7)(v)-1 Functional'!F94 -> 1232086 | G94: ='FR-16(7)(v)-6 DISTR Cust Alloc'!G94+'FR-16(7)(v)-5 DISTR Dem Alloc'!G94+'FR-16(7)(v)-3 PROD Comm Alloc'!G94 -> 769499 | H94: ='FR-16(7)(v)-6 DISTR Cust Alloc'!H94+'FR-16(7)(v)-5 DISTR Dem Alloc'!H94+'FR-16(7)(v)-3 PROD Comm Alloc'!H94 -> 460936 | I94: ='FR-16(7)(v)-6 DISTR Cust Alloc'!I94+'FR-16(7)(v)-5 DISTR Dem Alloc'!I94+'FR-16(7)(v)-3 PROD Comm Alloc'!I94 -> 1060 | J94: ='FR-16(7)(v)-6 DISTR Cust Alloc'!J94+'FR-16(7)(v)-5 DISTR Dem Alloc'!J94+'FR-16(7)(v)-3 PROD Comm Alloc'!J94 -> 591 | K94: 1232086 | L94: 0
A95: 40 | C95: ='FR-16(7)(v)-1 Functional'!C95 -> DISTRIBUTION PLANT | D95: ='FR-16(7)(v)-1 Functional'!D95 -> D349 | F95: ='FR-16(7)(v)-1 Functional'!F95 -> 9302988 | G95: ='FR-16(7)(v)-6 DISTR Cust Alloc'!G95+'FR-16(7)(v)-5 DISTR Dem Alloc'!G95+'FR-16(7)(v)-3 PROD Comm Alloc'!G95 -> 6315647 | H95: ='FR-16(7)(v)-6 DISTR Cust Alloc'!H95+'FR-16(7)(v)-5 DISTR Dem Alloc'!H95+'FR-16(7)(v)-3 PROD Comm Alloc'!H95 -> 2406185 | I95: ='FR-16(7)(v)-6 DISTR Cust Alloc'!I95+'FR-16(7)(v)-5 DISTR Dem Alloc'!I95+'FR-16(7)(v)-3 PROD Comm Alloc'!I95 -> 544520 | J95: ='FR-16(7)(v)-6 DISTR Cust Alloc'!J95+'FR-16(7)(v)-5 DISTR Dem Alloc'!J95+'FR-16(7)(v)-3 PROD Comm Alloc'!J95 -> 36636 | K95: 9302988 | L95: 0
A96: 41 | C96: ='FR-16(7)(v)-1 Functional'!C96 -> CUSTOMER ACCOUNTING | D96: ='FR-16(7)(v)-1 Functional'!D96 -> CA19 | F96: ='FR-16(7)(v)-1 Functional'!F96 -> 3251514 | G96: ='FR-16(7)(v)-6 DISTR Cust Alloc'!G96+'FR-16(7)(v)-5 DISTR Dem Alloc'!G96+'FR-16(7)(v)-3 PROD Comm Alloc'!G96 -> 3018933 | H96: ='FR-16(7)(v)-6 DISTR Cust Alloc'!H96+'FR-16(7)(v)-5 DISTR Dem Alloc'!H96+'FR-16(7)(v)-3 PROD Comm Alloc'!H96 -> 227834 | I96: ='FR-16(7)(v)-6 DISTR Cust Alloc'!I96+'FR-16(7)(v)-5 DISTR Dem Alloc'!I96+'FR-16(7)(v)-3 PROD Comm Alloc'!I96 -> 4162 | J96: ='FR-16(7)(v)-6 DISTR Cust Alloc'!J96+'FR-16(7)(v)-5 DISTR Dem Alloc'!J96+'FR-16(7)(v)-3 PROD Comm Alloc'!J96 -> 585 | K96: 3251514 | L96: 0
A97: 42 | C97: ='FR-16(7)(v)-1 Functional'!C97 -> CUSTOMER SERVICE & INFORMATION | D97: ='FR-16(7)(v)-1 Functional'!D97 -> CS19 | F97: ='FR-16(7)(v)-1 Functional'!F97 -> 1129267 | G97: ='FR-16(7)(v)-6 DISTR Cust Alloc'!G97+'FR-16(7)(v)-5 DISTR Dem Alloc'!G97+'FR-16(7)(v)-3 PROD Comm Alloc'!G97 -> 1048491 | H97: ='FR-16(7)(v)-6 DISTR Cust Alloc'!H97+'FR-16(7)(v)-5 DISTR Dem Alloc'!H97+'FR-16(7)(v)-3 PROD Comm Alloc'!H97 -> 79128 | I97: ='FR-16(7)(v)-6 DISTR Cust Alloc'!I97+'FR-16(7)(v)-5 DISTR Dem Alloc'!I97+'FR-16(7)(v)-3 PROD Comm Alloc'!I97 -> 1445 | J97: ='FR-16(7)(v)-6 DISTR Cust Alloc'!J97+'FR-16(7)(v)-5 DISTR Dem Alloc'!J97+'FR-16(7)(v)-3 PROD Comm Alloc'!J97 -> 203 | K97: 1129267 | L97: 0
A98: 43 | C98: ='FR-16(7)(v)-1 Functional'!C98 -> SALES | D98: ='FR-16(7)(v)-1 Functional'!D98 -> SE19 | F98: ='FR-16(7)(v)-1 Functional'!F98 -> 0 | G98: ='FR-16(7)(v)-6 DISTR Cust Alloc'!G98+'FR-16(7)(v)-5 DISTR Dem Alloc'!G98+'FR-16(7)(v)-3 PROD Comm Alloc'!G98 -> 0 | H98: ='FR-16(7)(v)-6 DISTR Cust Alloc'!H98+'FR-16(7)(v)-5 DISTR Dem Alloc'!H98+'FR-16(7)(v)-3 PROD Comm Alloc'!H98 -> 0 | I98: ='FR-16(7)(v)-6 DISTR Cust Alloc'!I98+'FR-16(7)(v)-5 DISTR Dem Alloc'!I98+'FR-16(7)(v)-3 PROD Comm Alloc'!I98 -> 0 | J98: ='FR-16(7)(v)-6 DISTR Cust Alloc'!J98+'FR-16(7)(v)-5 DISTR Dem Alloc'!J98+'FR-16(7)(v)-3 PROD Comm Alloc'!J98 -> 0 | K98: 0 | L98: 0
A99: 44 | C99: ='FR-16(7)(v)-1 Functional'!C99 -> COMMON & OTHER PLANT IN SERVICE | F99: =SUM(F93:F98) -> 14915855 | G99: 11152570 | H99: 3174083 | I99: 551187 | J99: 38015 | K99: 14915855 | L99: 0
A100: 45
A101: 46 | B101: GROSS GAS PLANT IN SERVICE | F101: =F81+F90+F99 -> 925424402 | G101: 613910118 | H101: 222446092 | I101: 71768997 | J101: 17299195 | K101: 925424402 | L101: 0
A103: =co_name -> DUKE ENERGY KENTUCKY, INC. | K103: =$K$1 -> FR-16(7)(v)-8
A104: =$A$2 -> TOTAL CLASS ALLOCATED - GAS COST OF SERVICE | K104: =$K$2 -> WITNESS RESPONSIBLE:
A105: =case_name -> CASE NO: 2025-00125 | K105: =Witness -> DOUGLAS J. HEITKAMP
A106: =data_filing -> DATA: 12 MONTH FORECASTED PERIOD | K106: ="PAGE "&Pages2-12&" OF "&Pages2 -> PAGE 3 OF 15
A107: =type -> TYPE OF FILING: "X" ORIGINAL UPDATED REVISED
F109: =$F$7 -> TOTAL
A110: LINE | F110: =$F$8 -> CLASS | G110: RS | H110: GS | I110: FT-L | J110: INTERUPT | K110: TOTAL | L110: ALL
A111: NO. | B111: DEPRECIATION RESERVE | D111: ALLO | F111: =$F$9 -> ALLOCATED | G111: RESIDENTIAL | H111: GEN SERV | I111: FIRM TRANS | J111: TRANS | K111: AT ISSUE | L111: OTHER
C112: Schedule 3 | G112: =$G$10 -> 3 | H112: =$H$10 -> 4 | I112: =$I$10 -> 5 | J112: =$J$10 -> 6
A113: 1 | B113: PRODUCTION PLANT
A114: 2 | C114: ='FR-16(7)(v)-1 Functional'!C114 -> PRODUCTION PLANT | D114: ='FR-16(7)(v)-1 Functional'!D114 -> K205 | F114: ='FR-16(7)(v)-1 Functional'!F114 -> 0 | G114: ='FR-16(7)(v)-6 DISTR Cust Alloc'!G114+'FR-16(7)(v)-5 DISTR Dem Alloc'!G114+'FR-16(7)(v)-3 PROD Comm Alloc'!G114 -> 0 | H114: ='FR-16(7)(v)-6 DISTR Cust Alloc'!H114+'FR-16(7)(v)-5 DISTR Dem Alloc'!H114+'FR-16(7)(v)-3 PROD Comm Alloc'!H114 -> 0 | I114: ='FR-16(7)(v)-6 DISTR Cust Alloc'!I114+'FR-16(7)(v)-5 DISTR Dem Alloc'!I114+'FR-16(7)(v)-3 PROD Comm Alloc'!I114 -> 0 | J114: ='FR-16(7)(v)-6 DISTR Cust Alloc'!J114+'FR-16(7)(v)-5 DISTR Dem Alloc'!J114+'FR-16(7)(v)-3 PROD Comm Alloc'!J114 -> 0 | K114: =SUM(G114:J114) -> 0 | L114: =F114-K114 -> 0
A115: 3 | C115: ='FR-16(7)(v)-1 Functional'!C115 -> TOTAL PROD DEPREC RESERVE | F115: =SUM(F114:F114) -> 0 | G115: 0 | H115: 0 | I115: 0 | J115: 0 | K115: 0 | L115: 0
A116: 4
A117: 5 | B117: TRANSMISSION PLANT
A118: 6 | C118: ='FR-16(7)(v)-1 Functional'!C118 -> TRANSMISSION PLANT
A119: 7 | C119: ='FR-16(7)(v)-1 Functional'!C119 -> TOTAL TRANS DEPREC RESERVE | F119: =SUM(F118:F118) -> 0 | G119: 0 | H119: 0 | I119: 0 | J119: 0 | K119: 0 | L119: 0
A120: 8
A121: 9 | B121: DISTRIBUTION PLANT
A122: 10 | C122: ='FR-16(7)(v)-1 Functional'!C122 -> SYSTEM M&R - (2780, 2781) | D122: ='FR-16(7)(v)-1 Functional'!D122 -> K203 | F122: ='FR-16(7)(v)-1 Functional'!F122 -> 8217527 | G122: ='FR-16(7)(v)-6 DISTR Cust Alloc'!G122+'FR-16(7)(v)-5 DISTR Dem Alloc'!G122+'FR-16(7)(v)-3 PROD Comm Alloc'!G122 -> 4280182 | H122: ='FR-16(7)(v)-6 DISTR Cust Alloc'!H122+'FR-16(7)(v)-5 DISTR Dem Alloc'!H122+'FR-16(7)(v)-3 PROD Comm Alloc'!H122 -> 2564690 | I122: ='FR-16(7)(v)-6 DISTR Cust Alloc'!I122+'FR-16(7)(v)-5 DISTR Dem Alloc'!I122+'FR-16(7)(v)-3 PROD Comm Alloc'!I122 -> 1102463 | J122: ='FR-16(7)(v)-6 DISTR Cust Alloc'!J122+'FR-16(7)(v)-5 DISTR Dem Alloc'!J122+'FR-16(7)(v)-3 PROD Comm Alloc'!J122 -> 270192 | K122: =SUM(G122:J122) -> 8217527 | L122: =F122-K122 -> 0
A123: 11 | C123: ='FR-16(7)(v)-1 Functional'!C123 -> DIST REG EQUIP & CITY GATE M&R- (2782, 2790) | D123: ='FR-16(7)(v)-1 Functional'!D123 -> K203 | F123: ='FR-16(7)(v)-1 Functional'!F123 -> 871719 | G123: ='FR-16(7)(v)-6 DISTR Cust Alloc'!G123+'FR-16(7)(v)-5 DISTR Dem Alloc'!G123+'FR-16(7)(v)-3 PROD Comm Alloc'!G123 -> 454044 | H123: ='FR-16(7)(v)-6 DISTR Cust Alloc'!H123+'FR-16(7)(v)-5 DISTR Dem Alloc'!H123+'FR-16(7)(v)-3 PROD Comm Alloc'!H123 -> 272063 | I123: ='FR-16(7)(v)-6 DISTR Cust Alloc'!I123+'FR-16(7)(v)-5 DISTR Dem Alloc'!I123+'FR-16(7)(v)-3 PROD Comm Alloc'!I123 -> 116950 | J123: ='FR-16(7)(v)-6 DISTR Cust Alloc'!J123+'FR-16(7)(v)-5 DISTR Dem Alloc'!J123+'FR-16(7)(v)-3 PROD Comm Alloc'!J123 -> 28662 | K123: 871719 | L123: 0
A124: 12 | C124: ='FR-16(7)(v)-1 Functional'!C124 -> LARGE IND M&R - (2850, 2851) | D124: ='FR-16(7)(v)-1 Functional'!D124 -> K595 | F124: ='FR-16(7)(v)-1 Functional'!F124 -> 530247 | G124: ='FR-16(7)(v)-6 DISTR Cust Alloc'!G124+'FR-16(7)(v)-5 DISTR Dem Alloc'!G124+'FR-16(7)(v)-3 PROD Comm Alloc'!G124 -> 0 | H124: ='FR-16(7)(v)-6 DISTR Cust Alloc'!H124+'FR-16(7)(v)-5 DISTR Dem Alloc'!H124+'FR-16(7)(v)-3 PROD Comm Alloc'!H124 -> 0 | I124: ='FR-16(7)(v)-6 DISTR Cust Alloc'!I124+'FR-16(7)(v)-5 DISTR Dem Alloc'!I124+'FR-16(7)(v)-3 PROD Comm Alloc'!I124 -> 340482 | J124: ='FR-16(7)(v)-6 DISTR Cust Alloc'!J124+'FR-16(7)(v)-5 DISTR Dem Alloc'!J124+'FR-16(7)(v)-3 PROD Comm Alloc'!J124 -> 189765 | K124: 530247 | L124: 0
A125: 13 | C125: ='FR-16(7)(v)-1 Functional'!C125 -> MAINS - (2761, 2762, 2763, 2765) | D125: ='FR-16(7)(v)-1 Functional'!D125 -> K415 | F125: ='FR-16(7)(v)-1 Functional'!F125 -> 126433521 | G125: ='FR-16(7)(v)-6 DISTR Cust Alloc'!G125+'FR-16(7)(v)-5 DISTR Dem Alloc'!G125+'FR-16(7)(v)-3 PROD Comm Alloc'!G125 -> 72038431 | H125: ='FR-16(7)(v)-6 DISTR Cust Alloc'!H125+'FR-16(7)(v)-5 DISTR Dem Alloc'!H125+'FR-16(7)(v)-3 PROD Comm Alloc'!H125 -> 35787818 | I125: ='FR-16(7)(v)-6 DISTR Cust Alloc'!I125+'FR-16(7)(v)-5 DISTR Dem Alloc'!I125+'FR-16(7)(v)-3 PROD Comm Alloc'!I125 -> 14946263 | J125: ='FR-16(7)(v)-6 DISTR Cust Alloc'!J125+'FR-16(7)(v)-5 DISTR Dem Alloc'!J125+'FR-16(7)(v)-3 PROD Comm Alloc'!J125 -> 3661009 | K125: 126433521 | L125: 0
A126: 14 | C126: ='FR-16(7)(v)-1 Functional'!C126 -> SERVICES - (2801, 2802, 2803) | D126: ='FR-16(7)(v)-1 Functional'!D126 -> K403 | F126: ='FR-16(7)(v)-1 Functional'!F126 -> 78494621 | G126: ='FR-16(7)(v)-6 DISTR Cust Alloc'!G126+'FR-16(7)(v)-5 DISTR Dem Alloc'!G126+'FR-16(7)(v)-3 PROD Comm Alloc'!G126 -> 67685127 | H126: ='FR-16(7)(v)-6 DISTR Cust Alloc'!H126+'FR-16(7)(v)-5 DISTR Dem Alloc'!H126+'FR-16(7)(v)-3 PROD Comm Alloc'!H126 -> 10445279 | I126: ='FR-16(7)(v)-6 DISTR Cust Alloc'!I126+'FR-16(7)(v)-5 DISTR Dem Alloc'!I126+'FR-16(7)(v)-3 PROD Comm Alloc'!I126 -> 228419 | J126: ='FR-16(7)(v)-6 DISTR Cust Alloc'!J126+'FR-16(7)(v)-5 DISTR Dem Alloc'!J126+'FR-16(7)(v)-3 PROD Comm Alloc'!J126 -> 135796 | K126: 78494621 | L126: 0
A127: 15 | C127: ='FR-16(7)(v)-1 Functional'!C127 -> MTRS & MTR INST (2810, 2811, 2820, 2821) | D127: ='FR-16(7)(v)-1 Functional'!D127 -> K413 | F127: ='FR-16(7)(v)-1 Functional'!F127 -> 8223154 | G127: ='FR-16(7)(v)-6 DISTR Cust Alloc'!G127+'FR-16(7)(v)-5 DISTR Dem Alloc'!G127+'FR-16(7)(v)-3 PROD Comm Alloc'!G127 -> 5705883 | H127: ='FR-16(7)(v)-6 DISTR Cust Alloc'!H127+'FR-16(7)(v)-5 DISTR Dem Alloc'!H127+'FR-16(7)(v)-3 PROD Comm Alloc'!H127 -> 2109732 | I127: ='FR-16(7)(v)-6 DISTR Cust Alloc'!I127+'FR-16(7)(v)-5 DISTR Dem Alloc'!I127+'FR-16(7)(v)-3 PROD Comm Alloc'!I127 -> 360585 | J127: ='FR-16(7)(v)-6 DISTR Cust Alloc'!J127+'FR-16(7)(v)-5 DISTR Dem Alloc'!J127+'FR-16(7)(v)-3 PROD Comm Alloc'!J127 -> 46954 | K127: 8223154 | L127: 0
A128: 16 | C128: ='FR-16(7)(v)-1 Functional'!C128 -> LAND, R OF W, STRUCT & IMPROV & OTH | D128: ='FR-16(7)(v)-1 Functional'!D128 -> K203 | F128: ='FR-16(7)(v)-1 Functional'!F128 -> 1394350 | G128: ='FR-16(7)(v)-6 DISTR Cust Alloc'!G128+'FR-16(7)(v)-5 DISTR Dem Alloc'!G128+'FR-16(7)(v)-3 PROD Comm Alloc'!G128 -> 726261 | H128: ='FR-16(7)(v)-6 DISTR Cust Alloc'!H128+'FR-16(7)(v)-5 DISTR Dem Alloc'!H128+'FR-16(7)(v)-3 PROD Comm Alloc'!H128 -> 435177 | I128: ='FR-16(7)(v)-6 DISTR Cust Alloc'!I128+'FR-16(7)(v)-5 DISTR Dem Alloc'!I128+'FR-16(7)(v)-3 PROD Comm Alloc'!I128 -> 187066 | J128: ='FR-16(7)(v)-6 DISTR Cust Alloc'!J128+'FR-16(7)(v)-5 DISTR Dem Alloc'!J128+'FR-16(7)(v)-3 PROD Comm Alloc'!J128 -> 45846 | K128: 1394350 | L128: 0
A129: 17 | C129: ='FR-16(7)(v)-1 Functional'!C129 -> HOUSE REG & INSTALL (2830, 2840) | D129: ='FR-16(7)(v)-1 Functional'!D129 -> K417 | F129: ='FR-16(7)(v)-1 Functional'!F129 -> 7017914 | G129: ='FR-16(7)(v)-6 DISTR Cust Alloc'!G129+'FR-16(7)(v)-5 DISTR Dem Alloc'!G129+'FR-16(7)(v)-3 PROD Comm Alloc'!G129 -> 4189343 | H129: ='FR-16(7)(v)-6 DISTR Cust Alloc'!H129+'FR-16(7)(v)-5 DISTR Dem Alloc'!H129+'FR-16(7)(v)-3 PROD Comm Alloc'!H129 -> 2752356 | I129: ='FR-16(7)(v)-6 DISTR Cust Alloc'!I129+'FR-16(7)(v)-5 DISTR Dem Alloc'!I129+'FR-16(7)(v)-3 PROD Comm Alloc'!I129 -> 66811 | J129: ='FR-16(7)(v)-6 DISTR Cust Alloc'!J129+'FR-16(7)(v)-5 DISTR Dem Alloc'!J129+'FR-16(7)(v)-3 PROD Comm Alloc'!J129 -> 9404 | K129: 7017914 | L129: 0
A130: 18 | C130: ='FR-16(7)(v)-1 Functional'!C130 -> STREET LIGHTING EQUIPMENT & OTH | D130: ='FR-16(7)(v)-1 Functional'!D130 -> K597 | F130: ='FR-16(7)(v)-1 Functional'!F130 -> -11164624 | G130: ='FR-16(7)(v)-6 DISTR Cust Alloc'!G130+'FR-16(7)(v)-5 DISTR Dem Alloc'!G130+'FR-16(7)(v)-3 PROD Comm Alloc'!G130 -> 0 | H130: ='FR-16(7)(v)-6 DISTR Cust Alloc'!H130+'FR-16(7)(v)-5 DISTR Dem Alloc'!H130+'FR-16(7)(v)-3 PROD Comm Alloc'!H130 -> -11164624 | I130: ='FR-16(7)(v)-6 DISTR Cust Alloc'!I130+'FR-16(7)(v)-5 DISTR Dem Alloc'!I130+'FR-16(7)(v)-3 PROD Comm Alloc'!I130 -> 0 | J130: ='FR-16(7)(v)-6 DISTR Cust Alloc'!J130+'FR-16(7)(v)-5 DISTR Dem Alloc'!J130+'FR-16(7)(v)-3 PROD Comm Alloc'!J130 -> 0 | K130: -11164624 | L130: 0
A131: 19 | C131: ='FR-16(7)(v)-1 Functional'!C131 -> TOTAL DIST DEPREC RESERVE | F131: =SUM(F121:F130) -> 220018429 | G131: 155079271 | H131: 43202491 | I131: 17349039 | J131: 4387628 | K131: 220018429 | L131: 0
A132: 20
A133: 21 | B133: GENERAL & INTANGIBLE PLANT
A134: 22 | C134: ='FR-16(7)(v)-1 Functional'!C134 -> PRODUCTION PLANT | D134: ='FR-16(7)(v)-1 Functional'!D134 -> K201 | F134: ='FR-16(7)(v)-1 Functional'!F134 -> -1 | G134: ='FR-16(7)(v)-6 DISTR Cust Alloc'!G134+'FR-16(7)(v)-5 DISTR Dem Alloc'!G134+'FR-16(7)(v)-3 PROD Comm Alloc'!G134 -> -1 | H134: ='FR-16(7)(v)-6 DISTR Cust Alloc'!H134+'FR-16(7)(v)-5 DISTR Dem Alloc'!H134+'FR-16(7)(v)-3 PROD Comm Alloc'!H134 -> 0 | I134: ='FR-16(7)(v)-6 DISTR Cust Alloc'!I134+'FR-16(7)(v)-5 DISTR Dem Alloc'!I134+'FR-16(7)(v)-3 PROD Comm Alloc'!I134 -> 0 | J134: ='FR-16(7)(v)-6 DISTR Cust Alloc'!J134+'FR-16(7)(v)-5 DISTR Dem Alloc'!J134+'FR-16(7)(v)-3 PROD Comm Alloc'!J134 -> 0 | K134: =SUM(G134:J134) -> -1 | L134: =F134-K134 -> 0
A135: 23 | C135: ='FR-16(7)(v)-1 Functional'!C135 -> PRODUCTION PLANT COMMODITY | D135: ='FR-16(7)(v)-1 Functional'!D135 -> P349 | F135: ='FR-16(7)(v)-1 Functional'!F135 -> 2049283 | G135: ='FR-16(7)(v)-6 DISTR Cust Alloc'!G135+'FR-16(7)(v)-5 DISTR Dem Alloc'!G135+'FR-16(7)(v)-3 PROD Comm Alloc'!G135 -> 1279880 | H135: ='FR-16(7)(v)-6 DISTR Cust Alloc'!H135+'FR-16(7)(v)-5 DISTR Dem Alloc'!H135+'FR-16(7)(v)-3 PROD Comm Alloc'!H135 -> 766657 | I135: ='FR-16(7)(v)-6 DISTR Cust Alloc'!I135+'FR-16(7)(v)-5 DISTR Dem Alloc'!I135+'FR-16(7)(v)-3 PROD Comm Alloc'!I135 -> 1762 | J135: ='FR-16(7)(v)-6 DISTR Cust Alloc'!J135+'FR-16(7)(v)-5 DISTR Dem Alloc'!J135+'FR-16(7)(v)-3 PROD Comm Alloc'!J135 -> 984 | K135: 2049283 | L135: 0
A136: 24 | C136: ='FR-16(7)(v)-1 Functional'!C136 -> DISTRIBUTION PLANT | D136: ='FR-16(7)(v)-1 Functional'!D136 -> D349 | F136: ='FR-16(7)(v)-1 Functional'!F136 -> 15473310 | G136: ='FR-16(7)(v)-6 DISTR Cust Alloc'!G136+'FR-16(7)(v)-5 DISTR Dem Alloc'!G136+'FR-16(7)(v)-3 PROD Comm Alloc'!G136 -> 10504578 | H136: ='FR-16(7)(v)-6 DISTR Cust Alloc'!H136+'FR-16(7)(v)-5 DISTR Dem Alloc'!H136+'FR-16(7)(v)-3 PROD Comm Alloc'!H136 -> 4002117 | I136: ='FR-16(7)(v)-6 DISTR Cust Alloc'!I136+'FR-16(7)(v)-5 DISTR Dem Alloc'!I136+'FR-16(7)(v)-3 PROD Comm Alloc'!I136 -> 905680 | J136: ='FR-16(7)(v)-6 DISTR Cust Alloc'!J136+'FR-16(7)(v)-5 DISTR Dem Alloc'!J136+'FR-16(7)(v)-3 PROD Comm Alloc'!J136 -> 60935 | K136: 15473310 | L136: 0
A137: 25 | C137: ='FR-16(7)(v)-1 Functional'!C137 -> CUSTOMER ACCOUNTING | D137: ='FR-16(7)(v)-1 Functional'!D137 -> CA19 | F137: ='FR-16(7)(v)-1 Functional'!F137 -> 5408121 | G137: ='FR-16(7)(v)-6 DISTR Cust Alloc'!G137+'FR-16(7)(v)-5 DISTR Dem Alloc'!G137+'FR-16(7)(v)-3 PROD Comm Alloc'!G137 -> 5021279 | H137: ='FR-16(7)(v)-6 DISTR Cust Alloc'!H137+'FR-16(7)(v)-5 DISTR Dem Alloc'!H137+'FR-16(7)(v)-3 PROD Comm Alloc'!H137 -> 378947 | I137: ='FR-16(7)(v)-6 DISTR Cust Alloc'!I137+'FR-16(7)(v)-5 DISTR Dem Alloc'!I137+'FR-16(7)(v)-3 PROD Comm Alloc'!I137 -> 6922 | J137: ='FR-16(7)(v)-6 DISTR Cust Alloc'!J137+'FR-16(7)(v)-5 DISTR Dem Alloc'!J137+'FR-16(7)(v)-3 PROD Comm Alloc'!J137 -> 973 | K137: 5408121 | L137: 0
A138: 26 | C138: ='FR-16(7)(v)-1 Functional'!C138 -> CUSTOMER SERVICE & INFORMATION | D138: ='FR-16(7)(v)-1 Functional'!D138 -> CS19 | F138: ='FR-16(7)(v)-1 Functional'!F138 -> 1878267 | G138: ='FR-16(7)(v)-6 DISTR Cust Alloc'!G138+'FR-16(7)(v)-5 DISTR Dem Alloc'!G138+'FR-16(7)(v)-3 PROD Comm Alloc'!G138 -> 1743915 | H138: ='FR-16(7)(v)-6 DISTR Cust Alloc'!H138+'FR-16(7)(v)-5 DISTR Dem Alloc'!H138+'FR-16(7)(v)-3 PROD Comm Alloc'!H138 -> 131610 | I138: ='FR-16(7)(v)-6 DISTR Cust Alloc'!I138+'FR-16(7)(v)-5 DISTR Dem Alloc'!I138+'FR-16(7)(v)-3 PROD Comm Alloc'!I138 -> 2404 | J138: ='FR-16(7)(v)-6 DISTR Cust Alloc'!J138+'FR-16(7)(v)-5 DISTR Dem Alloc'!J138+'FR-16(7)(v)-3 PROD Comm Alloc'!J138 -> 338 | K138: 1878267 | L138: 0
A139: 27 | C139: ='FR-16(7)(v)-1 Functional'!C139 -> SALES | D139: ='FR-16(7)(v)-1 Functional'!D139 -> SE19 | F139: ='FR-16(7)(v)-1 Functional'!F139 -> 0 | G139: ='FR-16(7)(v)-6 DISTR Cust Alloc'!G139+'FR-16(7)(v)-5 DISTR Dem Alloc'!G139+'FR-16(7)(v)-3 PROD Comm Alloc'!G139 -> 0 | H139: ='FR-16(7)(v)-6 DISTR Cust Alloc'!H139+'FR-16(7)(v)-5 DISTR Dem Alloc'!H139+'FR-16(7)(v)-3 PROD Comm Alloc'!H139 -> 0 | I139: ='FR-16(7)(v)-6 DISTR Cust Alloc'!I139+'FR-16(7)(v)-5 DISTR Dem Alloc'!I139+'FR-16(7)(v)-3 PROD Comm Alloc'!I139 -> 0 | J139: ='FR-16(7)(v)-6 DISTR Cust Alloc'!J139+'FR-16(7)(v)-5 DISTR Dem Alloc'!J139+'FR-16(7)(v)-3 PROD Comm Alloc'!J139 -> 0 | K139: 0 | L139: 0
A140: 28 | C140: ='FR-16(7)(v)-1 Functional'!C140 -> TOTAL GEN DEPREC RESERVE | F140: =SUM(F133:F139) -> 24808980 | G140: 18549651 | H140: 5279331 | I140: 916768 | J140: 63230 | K140: 24808980 | L140: 0
A141: 29
A142: 30 | B142: COMMON & OTHER PLANT
A143: 31 | C143: ='FR-16(7)(v)-1 Functional'!C143 -> PRODUCTION PLANT | D143: ='FR-16(7)(v)-1 Functional'!D143 -> K201 | F143: ='FR-16(7)(v)-1 Functional'!F143 -> 0 | G143: ='FR-16(7)(v)-6 DISTR Cust Alloc'!G143+'FR-16(7)(v)-5 DISTR Dem Alloc'!G143+'FR-16(7)(v)-3 PROD Comm Alloc'!G143 -> 0 | H143: ='FR-16(7)(v)-6 DISTR Cust Alloc'!H143+'FR-16(7)(v)-5 DISTR Dem Alloc'!H143+'FR-16(7)(v)-3 PROD Comm Alloc'!H143 -> 0 | I143: ='FR-16(7)(v)-6 DISTR Cust Alloc'!I143+'FR-16(7)(v)-5 DISTR Dem Alloc'!I143+'FR-16(7)(v)-3 PROD Comm Alloc'!I143 -> 0 | J143: ='FR-16(7)(v)-6 DISTR Cust Alloc'!J143+'FR-16(7)(v)-5 DISTR Dem Alloc'!J143+'FR-16(7)(v)-3 PROD Comm Alloc'!J143 -> 0 | K143: =SUM(G143:J143) -> 0 | L143: =F143-K143 -> 0
A144: 32 | C144: ='FR-16(7)(v)-1 Functional'!C144 -> PRODUCTION PLANT COMMODITY | D144: ='FR-16(7)(v)-1 Functional'!D144 -> P349 | F144: ='FR-16(7)(v)-1 Functional'!F144 -> 660866 | G144: ='FR-16(7)(v)-6 DISTR Cust Alloc'!G144+'FR-16(7)(v)-5 DISTR Dem Alloc'!G144+'FR-16(7)(v)-3 PROD Comm Alloc'!G144 -> 412744 | H144: ='FR-16(7)(v)-6 DISTR Cust Alloc'!H144+'FR-16(7)(v)-5 DISTR Dem Alloc'!H144+'FR-16(7)(v)-3 PROD Comm Alloc'!H144 -> 247237 | I144: ='FR-16(7)(v)-6 DISTR Cust Alloc'!I144+'FR-16(7)(v)-5 DISTR Dem Alloc'!I144+'FR-16(7)(v)-3 PROD Comm Alloc'!I144 -> 568 | J144: ='FR-16(7)(v)-6 DISTR Cust Alloc'!J144+'FR-16(7)(v)-5 DISTR Dem Alloc'!J144+'FR-16(7)(v)-3 PROD Comm Alloc'!J144 -> 317 | K144: 660866 | L144: 0
A145: 33 | C145: ='FR-16(7)(v)-1 Functional'!C145 -> DISTRIBUTION PLANT | D145: ='FR-16(7)(v)-1 Functional'!D145 -> D349 | F145: ='FR-16(7)(v)-1 Functional'!F145 -> 4989935 | G145: ='FR-16(7)(v)-6 DISTR Cust Alloc'!G145+'FR-16(7)(v)-5 DISTR Dem Alloc'!G145+'FR-16(7)(v)-3 PROD Comm Alloc'!G145 -> 3387585 | H145: ='FR-16(7)(v)-6 DISTR Cust Alloc'!H145+'FR-16(7)(v)-5 DISTR Dem Alloc'!H145+'FR-16(7)(v)-3 PROD Comm Alloc'!H145 -> 1290629 | I145: ='FR-16(7)(v)-6 DISTR Cust Alloc'!I145+'FR-16(7)(v)-5 DISTR Dem Alloc'!I145+'FR-16(7)(v)-3 PROD Comm Alloc'!I145 -> 292070 | J145: ='FR-16(7)(v)-6 DISTR Cust Alloc'!J145+'FR-16(7)(v)-5 DISTR Dem Alloc'!J145+'FR-16(7)(v)-3 PROD Comm Alloc'!J145 -> 19651 | K145: 4989935 | L145: 0
A146: 34 | C146: ='FR-16(7)(v)-1 Functional'!C146 -> CUSTOMER ACCOUNTING | D146: ='FR-16(7)(v)-1 Functional'!D146 -> CA19 | F146: ='FR-16(7)(v)-1 Functional'!F146 -> 1744046 | G146: ='FR-16(7)(v)-6 DISTR Cust Alloc'!G146+'FR-16(7)(v)-5 DISTR Dem Alloc'!G146+'FR-16(7)(v)-3 PROD Comm Alloc'!G146 -> 1619295 | H146: ='FR-16(7)(v)-6 DISTR Cust Alloc'!H146+'FR-16(7)(v)-5 DISTR Dem Alloc'!H146+'FR-16(7)(v)-3 PROD Comm Alloc'!H146 -> 122205 | I146: ='FR-16(7)(v)-6 DISTR Cust Alloc'!I146+'FR-16(7)(v)-5 DISTR Dem Alloc'!I146+'FR-16(7)(v)-3 PROD Comm Alloc'!I146 -> 2232 | J146: ='FR-16(7)(v)-6 DISTR Cust Alloc'!J146+'FR-16(7)(v)-5 DISTR Dem Alloc'!J146+'FR-16(7)(v)-3 PROD Comm Alloc'!J146 -> 314 | K146: 1744046 | L146: 0
A147: 35 | C147: ='FR-16(7)(v)-1 Functional'!C147 -> CUSTOMER SERVICE & INFORMATION | D147: ='FR-16(7)(v)-1 Functional'!D147 -> CS19 | F147: ='FR-16(7)(v)-1 Functional'!F147 -> 605716 | G147: ='FR-16(7)(v)-6 DISTR Cust Alloc'!G147+'FR-16(7)(v)-5 DISTR Dem Alloc'!G147+'FR-16(7)(v)-3 PROD Comm Alloc'!G147 -> 562389 | H147: ='FR-16(7)(v)-6 DISTR Cust Alloc'!H147+'FR-16(7)(v)-5 DISTR Dem Alloc'!H147+'FR-16(7)(v)-3 PROD Comm Alloc'!H147 -> 42443 | I147: ='FR-16(7)(v)-6 DISTR Cust Alloc'!I147+'FR-16(7)(v)-5 DISTR Dem Alloc'!I147+'FR-16(7)(v)-3 PROD Comm Alloc'!I147 -> 775 | J147: ='FR-16(7)(v)-6 DISTR Cust Alloc'!J147+'FR-16(7)(v)-5 DISTR Dem Alloc'!J147+'FR-16(7)(v)-3 PROD Comm Alloc'!J147 -> 109 | K147: 605716 | L147: 0
A148: 36 | C148: ='FR-16(7)(v)-1 Functional'!C148 -> SALES | D148: ='FR-16(7)(v)-1 Functional'!D148 -> SE19 | F148: ='FR-16(7)(v)-1 Functional'!F148 -> 0 | G148: ='FR-16(7)(v)-6 DISTR Cust Alloc'!G148+'FR-16(7)(v)-5 DISTR Dem Alloc'!G148+'FR-16(7)(v)-3 PROD Comm Alloc'!G148 -> 0 | H148: ='FR-16(7)(v)-6 DISTR Cust Alloc'!H148+'FR-16(7)(v)-5 DISTR Dem Alloc'!H148+'FR-16(7)(v)-3 PROD Comm Alloc'!H148 -> 0 | I148: ='FR-16(7)(v)-6 DISTR Cust Alloc'!I148+'FR-16(7)(v)-5 DISTR Dem Alloc'!I148+'FR-16(7)(v)-3 PROD Comm Alloc'!I148 -> 0 | J148: ='FR-16(7)(v)-6 DISTR Cust Alloc'!J148+'FR-16(7)(v)-5 DISTR Dem Alloc'!J148+'FR-16(7)(v)-3 PROD Comm Alloc'!J148 -> 0 | K148: 0 | L148: 0
A149: 37 | C149: ='FR-16(7)(v)-1 Functional'!C149 -> TOTAL COM & OTHER PLT RESERVE | F149: =SUM(F143:F148) -> 8000563 | G149: =SUM(G142:G148) -> 5982013 | H149: 1702514 | I149: 295645 | J149: 20391 | K149: 8000563 | L149: 0
A150: 38
A151: 39 | B151: TOTAL DEPRECIATION RESERVE | F151: =F149+F140+F131+F119+F115 -> 252827972 | G151: 179610935 | H151: 50184336 | I151: 18561452 | J151: 4471249 | K151: 252827972 | L151: 0
A153: =co_name -> DUKE ENERGY KENTUCKY, INC. | K153: =$K$1 -> FR-16(7)(v)-8
A154: =$A$2 -> TOTAL CLASS ALLOCATED - GAS COST OF SERVICE | K154: =$K$2 -> WITNESS RESPONSIBLE:
A155: =case_name -> CASE NO: 2025-00125 | K155: =Witness -> DOUGLAS J. HEITKAMP
A156: =data_filing -> DATA: 12 MONTH FORECASTED PERIOD | K156: ="PAGE "&Pages2-11&" OF "&Pages2 -> PAGE 4 OF 15
A157: =type -> TYPE OF FILING: "X" ORIGINAL UPDATED REVISED
F159: =$F$7 -> TOTAL
A160: LINE | F160: =$F$8 -> CLASS | G160: RS | H160: GS | I160: FT-L | J160: INTERUPT | K160: TOTAL | L160: ALL
A161: NO. | B161: ="NET GAS PLANT" -> NET GAS PLANT | D161: ALLO | F161: =$F$9 -> ALLOCATED | G161: RESIDENTIAL | H161: GEN SERV | I161: FIRM TRANS | J161: TRANS | K161: AT ISSUE | L161: OTHER
C162: Schedule 4 | G162: =$G$10 -> 3 | H162: =$H$10 -> 4 | I162: =$I$10 -> 5 | J162: =$J$10 -> 6
A163: 1 | B163: PRODUCTION PLANT
A164: 2 | C164: ='FR-16(7)(v)-1 Functional'!C164 -> PRODUCTION PLANT IN SERVICE | F164: =F59 -> 0 | G164: =$G$59 -> 0 | H164: =$H$59 -> 0 | I164: =$I$59 -> 0 | J164: =$J$59 -> 0 | K164: =$K$59 -> 0 | L164: =F164-K164 -> 0
A165: 3 | C165: ='FR-16(7)(v)-1 Functional'!C165 -> TOTAL PROD DEPRC RESERVE | F165: =-F115 -> 0 | G165: 0 | H165: 0 | I165: 0 | J165: 0 | K165: 0 | L165: =F165-K165 -> 0
A166: 4 | C166: ='FR-16(7)(v)-1 Functional'!C166 -> NET PRODUCTION PLANT | F166: =SUM(F164:F165) -> 0 | G166: 0 | H166: 0 | I166: 0 | J166: 0 | K166: 0 | L166: 0
A167: 5
A168: 6 | B168: TRANSMISSION PLANT
A169: 7 | C169: ='FR-16(7)(v)-1 Functional'!C169 -> TRANSMISSION PLANT IN SERVICE | F169: =F63 -> 0 | G169: =$G$63 -> 0 | H169: =$H$63 -> 0 | I169: =$I$63 -> 0 | J169: =$J$63 -> 0 | K169: =$K$63 -> 0 | L169: =F169-K169 -> 0
A170: 8 | C170: ='FR-16(7)(v)-1 Functional'!C170 -> TOTAL TRANS DEPREC RESERVE | F170: =-F119 -> 0 | G170: 0 | H170: 0 | I170: 0 | J170: 0 | K170: 0 | L170: =F170-K170 -> 0
A171: 9 | C171: ='FR-16(7)(v)-1 Functional'!C171 -> NET TRANSMISSION PLANT | F171: =SUM(F168:F170) -> 0 | G171: 0 | H171: 0 | I171: 0 | J171: 0 | K171: 0 | L171: 0
A172: 10
A173: 11 | B173: DISTRIBUTION PLANT
A174: 12 | C174: ='FR-16(7)(v)-1 Functional'!C174 -> DISTRIBUTION PLANT IN SERVICE | F174: =F78 -> 858610191 | G174: 563953197 | H174: 208228080 | I174: 69300005 | J174: 17128909 | K174: 858610191 | L174: =F174-K174 -> 0
A175: 13 | C175: ='FR-16(7)(v)-1 Functional'!C175 -> TOTAL DIST DEPREC RESERVE | F175: =-F131 -> -220018429 | G175: -155079271 | H175: -43202491 | I175: -17349039 | J175: -4387628 | K175: -220018429 | L175: =F175-K175 -> 0
A176: 14 | C176: ='FR-16(7)(v)-1 Functional'!C176 -> NET DISTRIBUTION PLANT | F176: =SUM(F173:F175) -> 638591762 | G176: 408873926 | H176: 165025589 | I176: 51950966 | J176: 12741281 | K176: 638591762 | L176: 0
A177: 15
A178: 16 | B178: NET PTD PLANT | F178: =F176+F171+F166 -> 638591762 | G178: 408873926 | H178: 165025589 | I178: 51950966 | J178: 12741281 | K178: 638591762 | L178: 0
A179: 17 | B179: NET TRANS & DIST PLANT | F179: =F176+F171 -> 638591762 | G179: 408873926 | H179: 165025589 | I179: 51950966 | J179: 12741281 | K179: 638591762 | L179: 0
A180: 18
A181: 19 | B181: GENERAL & INTANGIBLE PLANT
A182: 20 | C182: ='FR-16(7)(v)-1 Functional'!C182 -> GEN & INTANG PLANT IN SERVICE | F182: =F90 -> 51898356 | G182: 38804351 | H182: 11043929 | I182: 1917805 | J182: 132271 | K182: 51898356 | L182: =F182-K182 -> 0
A183: 21 | C183: ='FR-16(7)(v)-1 Functional'!C183 -> TOTAL GEN & INTG DEPREC RESERVE | F183: =-F140 -> -24808980 | G183: -18549651 | H183: -5279331 | I183: -916768 | J183: -63230 | K183: -24808980 | L183: =F183-K183 -> 0
A184: 22 | C184: ='FR-16(7)(v)-1 Functional'!C184 -> NET GENERAL & INTANG PLANT | F184: =SUM(F181:F183) -> 27089376 | G184: 20254700 | H184: 5764598 | I184: 1001037 | J184: 69041 | K184: 27089376 | L184: 0
A185: 23
A186: 24 | B186: COMMON & OTHER PLANT
A187: 25 | C187: ='FR-16(7)(v)-1 Functional'!C187 -> COMMON & OTH PLT IN SERVICE | F187: =F99 -> 14915855 | G187: 11152570 | H187: 3174083 | I187: 551187 | J187: 38015 | K187: 14915855 | L187: =F187-K187 -> 0
A188: 26 | C188: ='FR-16(7)(v)-1 Functional'!C188 -> TOTAL COM & OTH DEPREC RESERVE | F188: =-F149 -> -8000563 | G188: -5982013 | H188: -1702514 | I188: -295645 | J188: -20391 | K188: -8000563 | L188: =F188-K188 -> 0
A189: 27 | C189: ='FR-16(7)(v)-1 Functional'!C189 -> NET COMMON & OTHER PLANT | F189: =SUM(F186:F188) -> 6915292 | G189: 5170557 | H189: 1471569 | I189: 255542 | J189: 17624 | K189: 6915292 | L189: 0
A190: 28
A191: 29 | C191: ='FR-16(7)(v)-1 Functional'!C191 -> NET GAS PLANT IN SERVICE | F191: =F189+F184+F176+F171+F166 -> 672596430 | G191: 434299183 | H191: 172261756 | I191: 53207545 | J191: 12827946 | K191: 672596430 | L191: 0
A193: =co_name -> DUKE ENERGY KENTUCKY, INC. | K193: =$K$1 -> FR-16(7)(v)-8
A194: =$A$2 -> TOTAL CLASS ALLOCATED - GAS COST OF SERVICE | K194: =$K$2 -> WITNESS RESPONSIBLE:
A195: =case_name -> CASE NO: 2025-00125 | K195: =Witness -> DOUGLAS J. HEITKAMP
A196: =data_filing -> DATA: 12 MONTH FORECASTED PERIOD | K196: ="PAGE "&Pages2-10&" OF "&Pages2 -> PAGE 5 OF 15
A197: =type -> TYPE OF FILING: "X" ORIGINAL UPDATED REVISED
F199: =$F$7 -> TOTAL
A200: LINE | F200: =$F$8 -> CLASS | G200: RS | H200: GS | I200: FT-L | J200: INTERUPT | K200: TOTAL | L200: ALL
A201: NO. | B201: SUBTRACTIVE RATE BASE ADJUSTMENTS | D201: ALLO | F201: =$F$9 -> ALLOCATED | G201: RESIDENTIAL | H201: GEN SERV | I201: FIRM TRANS | J201: TRANS | K201: AT ISSUE | L201: OTHER
C202: Schedule 5 | G202: =$G$10 -> 3 | H202: =$H$10 -> 4 | I202: =$I$10 -> 5 | J202: =$J$10 -> 6
A203: 1 | B203: RATE BASE ADJUSTMENTS
A204: 2 | B204: ACCUMULATED DEFERRED INCOME TAXES
A205: 3 | B205: ACCUM DEF INC TAXES (282)
A206: 4 | C206: ='FR-16(7)(v)-1 Functional'!C206 -> LIBERALIZED DEPRECIATION | D206: ='FR-16(7)(v)-1 Functional'!D206 -> NP29 | F206: ='FR-16(7)(v)-1 Functional'!F206 -> 73247627 | G206: ='FR-16(7)(v)-6 DISTR Cust Alloc'!G206+'FR-16(7)(v)-5 DISTR Dem Alloc'!G206+'FR-16(7)(v)-3 PROD Comm Alloc'!G206 -> 47296243 | H206: ='FR-16(7)(v)-6 DISTR Cust Alloc'!H206+'FR-16(7)(v)-5 DISTR Dem Alloc'!H206+'FR-16(7)(v)-3 PROD Comm Alloc'!H206 -> 18759931 | I206: ='FR-16(7)(v)-6 DISTR Cust Alloc'!I206+'FR-16(7)(v)-5 DISTR Dem Alloc'!I206+'FR-16(7)(v)-3 PROD Comm Alloc'!I206 -> 5794289 | J206: ='FR-16(7)(v)-6 DISTR Cust Alloc'!J206+'FR-16(7)(v)-5 DISTR Dem Alloc'!J206+'FR-16(7)(v)-3 PROD Comm Alloc'!J206 -> 1397164 | K206: =SUM(G206:J206) -> 73247627 | L206: =F206-K206 -> 0
A207: 5 | C207: ='FR-16(7)(v)-1 Functional'!C207 -> LEASED METERS | D207: ='FR-16(7)(v)-1 Functional'!D207 -> K413 | F207: ='FR-16(7)(v)-1 Functional'!F207 -> 0 | G207: ='FR-16(7)(v)-6 DISTR Cust Alloc'!G207+'FR-16(7)(v)-5 DISTR Dem Alloc'!G207+'FR-16(7)(v)-3 PROD Comm Alloc'!G207 -> 0 | H207: ='FR-16(7)(v)-6 DISTR Cust Alloc'!H207+'FR-16(7)(v)-5 DISTR Dem Alloc'!H207+'FR-16(7)(v)-3 PROD Comm Alloc'!H207 -> 0 | I207: ='FR-16(7)(v)-6 DISTR Cust Alloc'!I207+'FR-16(7)(v)-5 DISTR Dem Alloc'!I207+'FR-16(7)(v)-3 PROD Comm Alloc'!I207 -> 0 | J207: ='FR-16(7)(v)-6 DISTR Cust Alloc'!J207+'FR-16(7)(v)-5 DISTR Dem Alloc'!J207+'FR-16(7)(v)-3 PROD Comm Alloc'!J207 -> 0 | K207: 0 | L207: 0
A208: 6 | C208: ='FR-16(7)(v)-1 Functional'!C208 -> CONTRIB AID CONSTR | D208: ='FR-16(7)(v)-1 Functional'!D208 -> D249 | F208: ='FR-16(7)(v)-1 Functional'!F208 -> 0 | G208: ='FR-16(7)(v)-6 DISTR Cust Alloc'!G208+'FR-16(7)(v)-5 DISTR Dem Alloc'!G208+'FR-16(7)(v)-3 PROD Comm Alloc'!G208 -> 0 | H208: ='FR-16(7)(v)-6 DISTR Cust Alloc'!H208+'FR-16(7)(v)-5 DISTR Dem Alloc'!H208+'FR-16(7)(v)-3 PROD Comm Alloc'!H208 -> 0 | I208: ='FR-16(7)(v)-6 DISTR Cust Alloc'!I208+'FR-16(7)(v)-5 DISTR Dem Alloc'!I208+'FR-16(7)(v)-3 PROD Comm Alloc'!I208 -> 0 | J208: ='FR-16(7)(v)-6 DISTR Cust Alloc'!J208+'FR-16(7)(v)-5 DISTR Dem Alloc'!J208+'FR-16(7)(v)-3 PROD Comm Alloc'!J208 -> 0 | K208: 0 | L208: 0
A209: 7 | C209: ='FR-16(7)(v)-1 Functional'!C209 -> CAPITALIZED INTEREST | D209: ='FR-16(7)(v)-1 Functional'!D209 -> NP29 | F209: ='FR-16(7)(v)-1 Functional'!F209 -> 0 | G209: ='FR-16(7)(v)-6 DISTR Cust Alloc'!G209+'FR-16(7)(v)-5 DISTR Dem Alloc'!G209+'FR-16(7)(v)-3 PROD Comm Alloc'!G209 -> 0 | H209: ='FR-16(7)(v)-6 DISTR Cust Alloc'!H209+'FR-16(7)(v)-5 DISTR Dem Alloc'!H209+'FR-16(7)(v)-3 PROD Comm Alloc'!H209 -> 0 | I209: ='FR-16(7)(v)-6 DISTR Cust Alloc'!I209+'FR-16(7)(v)-5 DISTR Dem Alloc'!I209+'FR-16(7)(v)-3 PROD Comm Alloc'!I209 -> 0 | J209: ='FR-16(7)(v)-6 DISTR Cust Alloc'!J209+'FR-16(7)(v)-5 DISTR Dem Alloc'!J209+'FR-16(7)(v)-3 PROD Comm Alloc'!J209 -> 0 | K209: 0 | L209: 0
... 502 more rows

Sheet FR-16(7)(v)-9 RES Classified
A1: =co_name -> DUKE ENERGY KENTUCKY, INC. | J1: FR-16(7)(v)-9
A2: RESIDENTIAL CLASSIFIED - GAS COST OF SERVICE | J2: WITNESS RESPONSIBLE:
A3: =case_name -> CASE NO: 2025-00125 | J3: =Witness -> DOUGLAS J. HEITKAMP
A4: =data_filing -> DATA: 12 MONTH FORECASTED PERIOD | J4: ="PAGE "&Pages2-14&" OF "&Pages2 -> PAGE 1 OF 15
A5: =type -> TYPE OF FILING: "X" ORIGINAL UPDATED REVISED
A8: LINE | F8: TOTAL | G8: CLASSIFIED | J8: TOTAL | K8: ALL
A9: NO. | B9: SUMMARY OF RESULTS | D9: ALLO | F9: RESIDENTIAL | G9: DEMAND | H9: COMMODITY | I9: CUSTOMER | J9: AT ISSUE | K9: OTHER
C10: Schedule 1 | G10: 3 | H10: 4 | I10: 5
A11: 1 | B11: NET INCOME COMPUTATION
A12: 2 | C12: ='FR-16(7)(v)-1 Functional'!C12 -> GROSS GAS PLANT IN SERVICE | F12: =F101 -> 613910118 | G12: =G101 -> 273823104 | H12: =H101 -> 3446902 | I12: =I101 -> 336640112 | J12: =J101 -> 613910118 | K12: =F12-J12 -> 0
A13: 3 | C13: ='FR-16(7)(v)-1 Functional'!C13 -> TOTAL DEPRECIATION RESERVE | F13: =-F151 -> -179610935 | G13: =-G151 -> -71684211 | H13: =-H151 -> -1692623 | I13: =-I151 -> -106234101 | J13: =-J151 -> -179610935 | K13: =F13-J13 -> 0
A14: 4 | C14: ='FR-16(7)(v)-1 Functional'!C14 -> TOTAL RATE BASE ADJUSTMENTS | F14: =F326 -> -76484684 | G14: =G326 -> -36303824 | H14: =H326 -> 946769 | I14: =I326 -> -41127629 | J14: =J326 -> -76484684 | K14: =F14-J14 -> 0
A15: 5 | C15: ='FR-16(7)(v)-1 Functional'!C15 -> TOTAL RATE BASE | F15: =SUM(F12:F14) -> 357814499 | G15: 165835069 | H15: 2701048 | I15: 189278382 | J15: 357814499 | K15: 0
A16: 6
A17: 7 | B17: OPERATING EXPENSES
A18: 8 | C18: ='FR-16(7)(v)-1 Functional'!C18 -> TOTAL O&M EXPENSE | F18: =F433 -> 56304286 | G18: =G433 -> 5509009 | H18: =H433 -> 40856529 | I18: =I433 -> 9938748 | J18: =J433 -> 56304286 | K18: =F18-J18 -> 0
A19: 9 | C19: ='FR-16(7)(v)-1 Functional'!C19 -> TOTAL DEPRECIATION EXPENSE | F19: =F465 -> 17970850 | G19: =G465 -> 7837378 | H19: =H465 -> 339461 | I19: =I465 -> 9794011 | J19: =J465 -> 17970850 | K19: 0
A20: 10 | C20: ='FR-16(7)(v)-1 Functional'!C20 -> TOTAL OTHER TAX & MISC EXPENSE | F20: =F495 -> 3494399 | G20: =$G$495 -> 1573044 | H20: =$H$495 -> 41200 | I20: =$I$495 -> 1880155 | J20: =$J$495 -> 3494399 | K20: 0
A21: 11 | C21: ='FR-16(7)(v)-1 Functional'!C21 -> TOTAL OP EXP EXCLUDING INC & REV TAX | F21: =SUM(F17:F20) -> 77769535 | G21: =SUM(G17:G20) -> 14919431 | H21: =SUM(H17:H20) -> 41237190 | I21: =SUM(I17:I20) -> 21612914 | J21: =SUM(J17:J20) -> 77769535 | K21: 0
A22: 12 | C22: ='FR-16(7)(v)-1 Functional'!C22 -> NET FED INCOME TAX EXP ALLOWABLE | F22: =F557 -> 4659665 | G22: =$G$557 -> 2039892 | H22: =$H$557 -> 431574 | I22: =$I$557 -> 2188199 | J22: =$J$557 -> 4659665 | K22: 0
A23: 13 | C23: ='FR-16(7)(v)-1 Functional'!C23 -> NET STATE INCOME TAX EXP ALLOWABLE | F23: =F605 -> 1173066 | G23: =G605 -> 540497 | H23: =H605 -> 27516 | I23: =I605 -> 605053 | J23: =J605 -> 1173066 | K23: 0
A24: 14 | C24: ='FR-16(7)(v)-1 Functional'!C24 -> TOTAL OPERATING EXPENSE | F24: =SUM(F21:F23) -> 83602266 | G24: =SUM(G21:G23) -> 17499820 | H24: =SUM(H21:H23) -> 41696280 | I24: =SUM(I21:I23) -> 24406166 | J24: =SUM(J21:J23) -> 83602266 | K24: 0
A25: 15
A26: 16 | B26: RETURN ON RATE BASE | F26: =F334 -> 28664520 | G26: =G334 -> 13285047 | H26: =H334 -> 216381 | I26: =I334 -> 15163091 | J26: =J334 -> 28664519 | K26: =F26-J26 -> 1
A27: 17 | B27: TOTAL OTHER OPERATING REVENUES | F27: =-F630 -> -887547 | G27: =-$G$630 -> -170806 | H27: =-$H$630 -> -34996 | I27: =-$I$630 -> -681745 | J27: =-$J$630 -> -887547 | K27: 0
A28: 18 | C28: ='FR-16(7)(v)-1 Functional'!C28 -> TOTAL GAS COST OF SERVICE | F28: =SUM(F24:F27) -> 111379239 | G28: =SUM(G24:G27) -> 30614061 | H28: =SUM(H24:H27) -> 41877665 | I28: =SUM(I24:I27) -> 38887512 | J28: =SUM(J24:J27) -> 111379238 | K28: 1
A29: 19 | B29: ADJUSTMENT FOR INTERCLASS SUBSIDIZATION | D29: =1-'WP FR-16(7)(v)Rate Incr (50.0%)'!I11 -> 0.5 | F29: =SUM(G29:I29) -> -92086 | G29: ='WP FR-16(7)(v)Rate Incr (50.0%)'!T15 -> -54506 | H29: ='WP FR-16(7)(v)Rate Incr (50.0%)'!U15 -> 0 | I29: ='WP FR-16(7)(v)Rate Incr (50.0%)'!V15 -> -37580 | J29: =SUM(G29:I29) -> -92086 | K29: 0
A30: 20 | B30: REQUESTED REVENUES | F30: =F28+F29 -> 111287153 | G30: =G28+G29 -> 30559555 | H30: =H28+H29 -> 41877665 | I30: =I28+I29 -> 38849932 | J30: =SUM(G30:I30) -> 111287152 | K30: 1
A31: 21 | B31: PROPOSED REVENUES | F31: ='FR-16(7)(v)-8 TOT CLASS Alloc'!G31 -> 111276415 | G31: ='FR-16(7)(v)-5 DISTR Dem Alloc'!G31 -> 37413132 | H31: ='FR-16(7)(v)-3 PROD Comm Alloc'!G31 -> 44214571 | I31: ='FR-16(7)(v)-6 DISTR Cust Alloc'!G31 -> 29648712 | J31: =SUM(G31:I31) -> 111276415 | K31: 0
A32: 22 | B32: DIFFERENCE (REQUESTED LESS PROPOSED) | F32: =F30-F31 -> 10738 | G32: -6853577 | H32: -2336906 | I32: 9201220 | J32: 10737 | K32: 1
A33: 23
A34: 24 | B34: TOTAL RETURN EARNED | F34: =F654+F26 -> 29468004 | G34: =G654+G26 -> 18795228 | H34: =H654+H26 -> 1991471 | I34: =I654+I26 -> 8681305 | J34: =J654+J26 -> 29468004 | K34: =F34-J34 -> 0
A35: 25 | B35: RATE OF RETURN EARNED | F35: =IF(F331=0,0,ROUND(F34/F331,5)) -> 0.08236 | G35: 0.11334 | H35: 0.7373 | I35: 0.04587 | J35: 0.08236 | K35: 0
A36: 26 | B36: TOTAL RATE OF RETURN ALLOWABLE | F36: =$F$688 -> 0.08011 | G36: =F688 -> 0.08011 | H36: =F688 -> 0.08011 | I36: =F688 -> 0.08011 | J36: =$F$688 -> 0.08011 | K36: =IF(K35=0,0,$F$688) -> 0 | N36: Not Part of print range
A37: 27 | B37: RETURN EARNED ON COMMON EQUITY | F37: =IF(F670=0,0,(F35-$F$683-$F$684-$F$686)*$F$673/$F$670) -> 0.1117775054 | G37: =IF(F670=0,0,(G35-F683-F684-F686)*F673/F670) -> 0.1706197674 | H37: =IF(F670=0,0,(H35-F683-F684-F686)*F673/F670) -> 1.355746229 | I37: =IF(F670=0,0,(I35-F683-F684-F686)*F673/F670) -> 0.04246975396 | J37: =IF(F670=0,0,(J35-F683-F684-F686)*F673/F670) -> 0.1117775054 | K37: =IF(OR(E670=0,K35=0)=TRUE,0,(K35-E683-E684-E686)*E673/E670) -> 0 | N37: Not Filed
A38: 28 | B38: ALLOWED RETURN ON COMMON EQUITY | F38: =IF($F$670=0,0,(F36-$F$683-$F$684-$F$686)*$F$673/$F$670) -> 0.1075039389 | G38: =IF(F670=0,0,(G36-F683-F684-F686)*F673/F670) -> 0.1075039389 | H38: =IF(F670=0,0,(H36-F683-F684-F686)*F673/F670) -> 0.1075039389 | I38: =IF(F670=0,0,(I36-F683-F684-F686)*F673/F670) -> 0.1075039389 | J38: =IF($F$670=0,0,(J36-$F$683-$F$684-$F$686)*$F$673/$F$670) -> 0.1075039389 | K38: =IF(OR($F$670=0,K36=0)=TRUE,0,(K36-$F$683-$F$684-$F$686)*$F$673/$F$670) -> 0
A39: 29
A40: 30 | B40: PRESENT REVENUES | F40: ='FR-16(7)(v)-8 TOT CLASS Alloc'!G40 -> 94137279 | G40: =F40-SUM(H40:I40) -> 31650646 | H40: ='FR-16(7)(v)-3 PROD Comm Alloc'!G40 -> 37404507 | I40: ='FR-16(7)(v)-6 DISTR Cust Alloc'!G40 -> 25082126 | J40: =SUM(G40:I40) -> 94137279 | K40: =F40-J40 -> 0
A41: 31 | B41: REVENUE INCREASE JUSTIFIED | F41: =F28-F40 -> 17241960 | G41: -1036585 | H41: 4473158 | I41: 13805386 | J41: 17241959 | K41: 1
A42: 32 | C42: PER UNIT PRES REV | F42: =IF(F40=0,0,ROUND(F41/F40,5)) -> 0.18316 | G42: -0.03275 | H42: 0.11959 | I42: 0.55041 | J42: 0.18316 | K42: 0
A43: 33 | B43: REVENUE INCREASE REQUESTED | F43: =F31-F40 -> 17139136 | G43: 5762486 | H43: 6810064 | I43: 4566586 | J43: 17139136 | K43: 0
A44: 34 | C44: PER UNIT PRES REV | F44: =IF(F40=0,0,ROUND(F43/F40,5)) -> 0.18207 | G44: 0.18207 | H44: 0.18207 | I44: 0.18207 | J44: 0.18207 | K44: 0
A46: =co_name -> DUKE ENERGY KENTUCKY, INC. | J46: =$J$1 -> FR-16(7)(v)-9
A47: =$A$2 -> RESIDENTIAL CLASSIFIED - GAS COST OF SERVICE | J47: =$J$2 -> WITNESS RESPONSIBLE:
A48: =case_name -> CASE NO: 2025-00125 | J48: =Witness -> DOUGLAS J. HEITKAMP
A49: =data_filing -> DATA: 12 MONTH FORECASTED PERIOD | J49: ="PAGE "&Pages2-13&" OF "&Pages2 -> PAGE 2 OF 15
A50: =type -> TYPE OF FILING: "X" ORIGINAL UPDATED REVISED
A53: LINE | F53: TOTAL | G53: CLASSIFIED | J53: TOTAL | K53: ALL
A54: NO. | B54: GROSS GAS PLANT IN SERVICE | D54: ALLO | F54: =$F$9 -> RESIDENTIAL | G54: DEMAND | H54: COMMODITY | I54: CUSTOMER | J54: AT ISSUE | K54: OTHER
C55: Schedule 2 | G55: =$G$10 -> 3 | H55: =$H$10 -> 4 | I55: =$I$10 -> 5
A56: 1 | B56: PRODUCTION PLANT
A57: 2 | C57: ='FR-16(7)(v)-1 Functional'!C57 -> PRODUCTION PLANT | D57: ='FR-16(7)(v)-1 Functional'!D57 -> K205 | F57: ='FR-16(7)(v)-8 TOT CLASS Alloc'!G57 -> 0 | G57: ='FR-16(7)(v)-5 DISTR Dem Alloc'!$G$57 -> 0 | H57: ='FR-16(7)(v)-3 PROD Comm Alloc'!$G$57 -> 0 | I57: ='FR-16(7)(v)-6 DISTR Cust Alloc'!$G$57 -> 0 | J57: =SUM(G57:I57) -> 0 | K57: =F57-$J$57 -> 0
A58: 3 | C58: ='FR-16(7)(v)-1 Functional'!C58 -> GAS PRODUCTION -CPMPL NOT CLASS | D58: ='FR-16(7)(v)-1 Functional'!D58 -> K205 | F58: ='FR-16(7)(v)-8 TOT CLASS Alloc'!G58 -> 0 | G58: ='FR-16(7)(v)-5 DISTR Dem Alloc'!$G$58 -> 0 | H58: ='FR-16(7)(v)-3 PROD Comm Alloc'!$G$58 -> 0 | I58: ='FR-16(7)(v)-6 DISTR Cust Alloc'!$G$58 -> 0 | J58: =SUM(G58:I58) -> 0 | K58: =F58-$J$58 -> 0
A59: 4 | C59: ='FR-16(7)(v)-1 Functional'!C59 -> PRODUCTION PLANT IN SERVICE | F59: =SUM(F57:F58) -> 0 | G59: =SUM($G$57:$G$58) -> 0 | H59: =SUM($H$57:$H$58) -> 0 | I59: =SUM($I$57:$I$58) -> 0 | J59: =SUM($J$57:$J$58) -> 0 | K59: =SUM($K$57:$K$58) -> 0
A60: 5
A61: 6 | B61: TRANSMISSION PLANT
A62: 7 | C62: ='FR-16(7)(v)-1 Functional'!C62 -> TRANSMISSION PLANT
